Workbook

Sheet Report - ALL (DASHBOARD)
A2: Dashboard | B2: Select Parameter: | F2: Select Statistic: | I2: Select Seasonal Period: | L2: Do you want to convert CFS values to TAF/Mon? | W2: 87
W3: 1
W4: 16
L5: News | W5: FALSE
L6: - parameter list updated to include all items on the appendix list (in addition to other locations of interest)
L7: - year type sorting is now done by calendar year
L8: - year type sorting is provided for 60-20-20 index as well as 40-30-30 index
L9: - format modified to be consistent with appendix reports
L10: - check out the new spinners!
B13: =CONCATENATE('Report Data'!$P$7," / seasonal statistics (",$W$2,"-",$W$3,"-",$W$4,"-",IF(NOT($W$5),1,2),"a):") -> Total CVP, SWP, Sites Facilities - Net Generation (GWh) / seasonal statistics (87-1-16-1a):
C17: ='Report Data'!P6 -> October-September
C18: ='Report Data'!P7 -> Total CVP, SWP, Sites Facilities - Net Generation (GWh)
C19: ='Report Data'!P9 -> (CVP_SWP_NODOS_TOTAL/Net_Generation)
C20: ='Report Data'!P8 -> Averages
C21: ='Report Data'!P11 ->  | F21: =CONCATENATE("Difference from ",'Report Data'!Q13) -> Difference from NAA 051422
C25: =IF('Report Data'!O14=0,"",'Report Data'!O14) -> NAA 051422 | E25: =IFERROR('Report Data'!P14,"") -> 376.926341
C26: =IF('Report Data'!O15=0,"",'Report Data'!O15) -> Alt 1A 051722 | E26: =IFERROR('Report Data'!P15,"") -> 111.6591007 | F26: =IFERROR('Report Data'!Q15,"") -> -265.2672403
C27: =IF('Report Data'!O16=0,"",'Report Data'!O16) -> Alt 1B 051722 | E27: =IFERROR('Report Data'!P16,"") -> 126.0024648 | F27: =IFERROR('Report Data'!Q16,"") -> -250.9238763
C28: =IF('Report Data'!O17=0,"",'Report Data'!O17) -> Alt 3 051722 | E28: =IFERROR('Report Data'!P17,"") -> 166.1391639 | F28: =IFERROR('Report Data'!Q17,"") -> -210.7871772
C29: =IF('Report Data'!O18=0,"",'Report Data'!O18) ->  | E29: =IFERROR('Report Data'!P18,"") ->  | F29: =IFERROR('Report Data'!Q18,"") -> 
C30: =IF('Report Data'!O19=0,"",'Report Data'!O19) ->  | E30: =IFERROR('Report Data'!P19,"") ->  | F30: =IFERROR('Report Data'!Q19,"") -> 
B60: =CONCATENATE('Report Data'!$P$7," / monthly statistics (",$W$2,"-",$W$3,"-",$W$4,"-",IF(NOT($W$5),1,2),"b):") -> Total CVP, SWP, Sites Facilities - Net Generation (GWh) / monthly statistics (87-1-16-1b):
B88: =CONCATENATE('Report Data'!$P$7," / time series (",$W$2,"-",$W$3,"-",$W$4,"-",IF(NOT($W$5),1,2),"c):") -> Total CVP, SWP, Sites Facilities - Net Generation (GWh) / time series (87-1-16-1c):

Sheet Chart - Prob Exc
S2: Select Parameter: | X2: Select Statistic: | AB2: Select Seasonal Period: | AE2: Do you want to convert CFS values to TAF/Mon?

Sheet Chart - Pattern
S2: Select Parameter: | X2: Select Statistic: | AB2: Select Seasonal Period: | AE2: Do you want to convert CFS values to TAF/Mon?

Sheet Chart - WYT
S2: Select Parameter: | X2: Select Statistic: | AB2: Select Seasonal Period: | AE2: Do you want to convert CFS values to TAF/Mon?

Sheet Report Data
A2: Information, Tables and Calculations for Reports
A4: Table of Selected Values for Monthly Chart: | O4: Trend Evaluation: | U4: Water Year Type Averages:
A6: Title: | B6: ='Compile Data'!$B$5 -> Total CVP, SWP, Sites Facilities - Net Generation (GWh) | O6: Title: | P6: =INDEX(Other!$B$9:$B$33,'Report - ALL (DASHBOARD)'!$W$4) -> October-September | U6: Title: | V6: =INDEX(Other!$B$9:$B$33,'Report - ALL (DASHBOARD)'!$W$4) -> October-September
B7: =INDEX(Other!$C$9:$C$35,'Report - ALL (DASHBOARD)'!$W$3) -> Averages | P7: ='Compile Data'!$B$5 -> Total CVP, SWP, Sites Facilities - Net Generation (GWh) | V7: ='Compile Data'!$B$5 -> Total CVP, SWP, Sites Facilities - Net Generation (GWh)
B8: =CONCATENATE("(",'Compile Data'!$B$6,"/",'Compile Data'!$B$7,")") -> (CVP_SWP_NODOS_TOTAL/Net_Generation) | P8: =CONCATENATE(INDEX(Other!$C$9:$C$35,'Report - ALL (DASHBOARD)'!$W$3)," ",IF('Report - ALL (DASHBOARD)'!$W$3>4,IF(AND('Compile Data'!$B$10="TAF",'Compile Data'!$B$8="PER-AVER"),"Totals","Averages"),"")) -> Averages | V8: =CONCATENATE(INDEX(Other!$C$9:$C$35,'Report - ALL (DASHBOARD)'!$W$3)," ",IF('Report - ALL (DASHBOARD)'!$W$3>4,IF(AND('Compile Data'!$B$10="TAF",'Compile Data'!$B$8="PER-AVER"),"Totals","Averages"),"")) -> Averages
P9: =CONCATENATE("(",'Compile Data'!$B$6,"/",'Compile Data'!$B$7,")") -> (CVP_SWP_NODOS_TOTAL/Net_Generation) | V9: =CONCATENATE("(",'Compile Data'!$B$6,"/",'Compile Data'!$B$7,")") -> (CVP_SWP_NODOS_TOTAL/Net_Generation)
A11: Y-axis: | B11: =IF('Compile Data'!$B$10="CFS","Flow (CFS)",IF('Compile Data'!$B$10="TAF","Volume (TAF)",IF('Compile Data'!$B$10="KM","POSITION (KM)",""))) ->  | P11: =IF('Compile Data'!$B$10="CFS","Flow (CFS)",IF('Compile Data'!$B$10="TAF","Volume (TAF)",IF('Compile Data'!$B$10="KM","POSITION (KM)",""))) ->  | V11: =IF('Compile Data'!$B$10="CFS","Flow (CFS)",IF('Compile Data'!$B$10="TAF","Volume (TAF)",IF('Compile Data'!$B$10="KM","POSITION (KM)",""))) -> 
Q12: Diff from | R12: Diff from
B13: OCT | C13: NOV | D13: DEC | E13: JAN | F13: FEB | G13: MAR | H13: APR | I13: MAY | J13: JUN | K13: JUL | L13: AUG | M13: SEP | P13: Value | Q13: =$O$14 -> NAA 051422 | R13: =$O$15 -> Alt 1A 051722 | V13: Wet | W13: Above Normal | X13: Below Normal | Y13: Dry | Z13: Critically Dry
A14: ='Compile Data'!$B$1 -> NAA 051422 | B14: =INDEX('Compile Data'!L$95:L$120,'Report - ALL (DASHBOARD)'!$W$3) -> -151.0548604 | C14: =INDEX('Compile Data'!M$95:M$120,'Report - ALL (DASHBOARD)'!$W$3) -> -219.9608872 | D14: =INDEX('Compile Data'!N$95:N$120,'Report - ALL (DASHBOARD)'!$W$3) -> -138.7158907 | E14: =INDEX('Compile Data'!O$95:O$120,'Report - ALL (DASHBOARD)'!$W$3) -> -33.1736721 | F14: =INDEX('Compile Data'!P$95:P$120,'Report - ALL (DASHBOARD)'!$W$3) -> 3.464321241 | G14: =INDEX('Compile Data'!Q$95:Q$120,'Report - ALL (DASHBOARD)'!$W$3) -> 44.56355546 | H14: =INDEX('Compile Data'!R$95:R$120,'Report - ALL (DASHBOARD)'!$W$3) -> 41.61830076 | I14: =INDEX('Compile Data'!S$95:S$120,'Report - ALL (DASHBOARD)'!$W$3) -> 253.1005295 | J14: =INDEX('Compile Data'!T$95:T$120,'Report - ALL (DASHBOARD)'!$W$3) -> 224.1352129 | K14: =INDEX('Compile Data'!U$95:U$120,'Report - ALL (DASHBOARD)'!$W$3) -> 296.7261147 | L14: =INDEX('Compile Data'!V$95:V$120,'Report - ALL (DASHBOARD)'!$W$3) -> 97.44253043 | M14: =INDEX('Compile Data'!W$95:W$120,'Report - ALL (DASHBOARD)'!$W$3) -> -41.21891362 | O14: ='Compile Data'!$B$1 -> NAA 051422 | P14: =INDEX('Compile Data'!$L$95:$AI$120,'Report - ALL (DASHBOARD)'!$W$3,'Report - ALL (DASHBOARD)'!$W$4) -> 376.926341 | U14: ='Compile Data'!$B$1 -> NAA 051422 | V14: =INDEX('Compile Data'!$L$95:$AI$120,14,'Report - ALL (DASHBOARD)'!$W$4) -> 1472.998081 | W14: =INDEX('Compile Data'!$L$95:$AI$120,15,'Report - ALL (DASHBOARD)'!$W$4) -> 498.5590377 | X14: =INDEX('Compile Data'!$L$95:$AI$120,16,'Report - ALL (DASHBOARD)'!$W$4) -> -895.2767608 | Y14: =INDEX('Compile Data'!$L$95:$AI$120,17,'Report - ALL (DASHBOARD)'!$W$4) -> -137.0777398 | Z14: =INDEX('Compile Data'!$L$95:$AI$120,18,'Report - ALL (DASHBOARD)'!$W$4) -> 135.7146143
A15: ='Compile Data'!$C$1 -> Alt 1A 051722 | B15: =INDEX('Compile Data'!AL$95:AL$120,'Report - ALL (DASHBOARD)'!$W$3) -> -191.0377601 | C15: =INDEX('Compile Data'!AM$95:AM$120,'Report - ALL (DASHBOARD)'!$W$3) -> -249.121208 | D15: =INDEX('Compile Data'!AN$95:AN$120,'Report - ALL (DASHBOARD)'!$W$3) -> -152.2954672 | E15: =INDEX('Compile Data'!AO$95:AO$120,'Report - ALL (DASHBOARD)'!$W$3) -> -52.66188772 | F15: =INDEX('Compile Data'!AP$95:AP$120,'Report - ALL (DASHBOARD)'!$W$3) -> -15.01905096 | G15: =INDEX('Compile Data'!AQ$95:AQ$120,'Report - ALL (DASHBOARD)'!$W$3) -> 29.64772972 | H15: =INDEX('Compile Data'!AR$95:AR$120,'Report - ALL (DASHBOARD)'!$W$3) -> 31.38618691 | I15: =INDEX('Compile Data'!AS$95:AS$120,'Report - ALL (DASHBOARD)'!$W$3) -> 256.0366424 | J15: =INDEX('Compile Data'!AT$95:AT$120,'Report - ALL (DASHBOARD)'!$W$3) -> 220.6145435 | K15: =INDEX('Compile Data'!AU$95:AU$120,'Report - ALL (DASHBOARD)'!$W$3) -> 255.9852129 | L15: =INDEX('Compile Data'!AV$95:AV$120,'Report - ALL (DASHBOARD)'!$W$3) -> 46.64175601 | M15: =INDEX('Compile Data'!AW$95:AW$120,'Report - ALL (DASHBOARD)'!$W$3) -> -68.51759662 | O15: ='Compile Data'!$C$1 -> Alt 1A 051722 | P15: =INDEX('Compile Data'!$AL$95:$BI$120,'Report - ALL (DASHBOARD)'!$W$3,'Report - ALL (DASHBOARD)'!$W$4) -> 111.6591007 | Q15: =$P15-$P$14 -> -265.2672403 | U15: ='Compile Data'!$C$1 -> Alt 1A 051722 | V15: =INDEX('Compile Data'!$AL$95:$BI$120,14,'Report - ALL (DASHBOARD)'!$W$4) -> 1329.328586 | W15: =INDEX('Compile Data'!$AL$95:$BI$120,15,'Report - ALL (DASHBOARD)'!$W$4) -> 273.0176373 | X15: =INDEX('Compile Data'!$AL$95:$BI$120,16,'Report - ALL (DASHBOARD)'!$W$4) -> -1069.13446 | Y15: =INDEX('Compile Data'!$AL$95:$BI$120,17,'Report - ALL (DASHBOARD)'!$W$4) -> -561.6520689 | Z15: =INDEX('Compile Data'!$AL$95:$BI$120,18,'Report - ALL (DASHBOARD)'!$W$4) -> -300.4240786
A16: ='Compile Data'!$D$1 -> Alt 1B 051722 | B16: =INDEX('Compile Data'!BL$95:BL$120,'Report - ALL (DASHBOARD)'!$W$3) -> -190.6740416 | C16: =INDEX('Compile Data'!BM$95:BM$120,'Report - ALL (DASHBOARD)'!$W$3) -> -247.7357495 | D16: =INDEX('Compile Data'!BN$95:BN$120,'Report - ALL (DASHBOARD)'!$W$3) -> -145.6220813 | E16: =INDEX('Compile Data'!BO$95:BO$120,'Report - ALL (DASHBOARD)'!$W$3) -> -50.4071797 | F16: =INDEX('Compile Data'!BP$95:BP$120,'Report - ALL (DASHBOARD)'!$W$3) -> -13.31840965 | G16: =INDEX('Compile Data'!BQ$95:BQ$120,'Report - ALL (DASHBOARD)'!$W$3) -> 29.61810396 | H16: =INDEX('Compile Data'!BR$95:BR$120,'Report - ALL (DASHBOARD)'!$W$3) -> 30.98096443 | I16: =INDEX('Compile Data'!BS$95:BS$120,'Report - ALL (DASHBOARD)'!$W$3) -> 256.0405988 | J16: =INDEX('Compile Data'!BT$95:BT$120,'Report - ALL (DASHBOARD)'!$W$3) -> 217.9876146 | K16: =INDEX('Compile Data'!BU$95:BU$120,'Report - ALL (DASHBOARD)'!$W$3) -> 256.3298956 | L16: =INDEX('Compile Data'!BV$95:BV$120,'Report - ALL (DASHBOARD)'!$W$3) -> 49.40782497 | M16: =INDEX('Compile Data'!BW$95:BW$120,'Report - ALL (DASHBOARD)'!$W$3) -> -66.60507579 | O16: ='Compile Data'!$D$1 -> Alt 1B 051722 | P16: =INDEX('Compile Data'!$BL$95:$CI$120,'Report - ALL (DASHBOARD)'!$W$3,'Report - ALL (DASHBOARD)'!$W$4) -> 126.0024648 | Q16: -250.9238763 | R16: =$P16-$P$15 -> 14.34336402 | U16: ='Compile Data'!$D$1 -> Alt 1B 051722 | V16: =INDEX('Compile Data'!$BL$95:$CI$120,14,'Report - ALL (DASHBOARD)'!$W$4) -> 1366.020049 | W16: =INDEX('Compile Data'!$BL$95:$CI$120,15,'Report - ALL (DASHBOARD)'!$W$4) -> 276.0368624 | X16: =INDEX('Compile Data'!$BL$95:$CI$120,16,'Report - ALL (DASHBOARD)'!$W$4) -> -1076.294752 | Y16: =INDEX('Compile Data'!$BL$95:$CI$120,17,'Report - ALL (DASHBOARD)'!$W$4) -> -543.2485464 | Z16: =INDEX('Compile Data'!$BL$95:$CI$120,18,'Report - ALL (DASHBOARD)'!$W$4) -> -304.1800958
A17: ='Compile Data'!$E$1 -> Alt 3 051722 | B17: =INDEX('Compile Data'!CL$95:CL$120,'Report - ALL (DASHBOARD)'!$W$3) -> -176.3150221 | C17: =INDEX('Compile Data'!CM$95:CM$120,'Report - ALL (DASHBOARD)'!$W$3) -> -237.525073 | D17: =INDEX('Compile Data'!CN$95:CN$120,'Report - ALL (DASHBOARD)'!$W$3) -> -144.4692163 | E17: =INDEX('Compile Data'!CO$95:CO$120,'Report - ALL (DASHBOARD)'!$W$3) -> -46.26804893 | F17: =INDEX('Compile Data'!CP$95:CP$120,'Report - ALL (DASHBOARD)'!$W$3) -> -13.55674531 | G17: =INDEX('Compile Data'!CQ$95:CQ$120,'Report - ALL (DASHBOARD)'!$W$3) -> 25.3900372 | H17: =INDEX('Compile Data'!CR$95:CR$120,'Report - ALL (DASHBOARD)'!$W$3) -> 36.04223749 | I17: =INDEX('Compile Data'!CS$95:CS$120,'Report - ALL (DASHBOARD)'!$W$3) -> 249.6140185 | J17: =INDEX('Compile Data'!CT$95:CT$120,'Report - ALL (DASHBOARD)'!$W$3) -> 212.6127276 | K17: =INDEX('Compile Data'!CU$95:CU$120,'Report - ALL (DASHBOARD)'!$W$3) -> 254.6023852 | L17: =INDEX('Compile Data'!CV$95:CV$120,'Report - ALL (DASHBOARD)'!$W$3) -> 60.08022082 | M17: =INDEX('Compile Data'!CW$95:CW$120,'Report - ALL (DASHBOARD)'!$W$3) -> -54.0683574 | O17: ='Compile Data'!$E$1 -> Alt 3 051722 | P17: =INDEX('Compile Data'!$CL$95:$DI$120,'Report - ALL (DASHBOARD)'!$W$3,'Report - ALL (DASHBOARD)'!$W$4) -> 166.1391639 | Q17: -210.7871772 | R17: =$P17-$P$15 -> 54.48006312 | U17: ='Compile Data'!$E$1 -> Alt 3 051722 | V17: =INDEX('Compile Data'!$CL$95:$DI$120,14,'Report - ALL (DASHBOARD)'!$W$4) -> 1366.975878 | W17: =INDEX('Compile Data'!$CL$95:$DI$120,15,'Report - ALL (DASHBOARD)'!$W$4) -> 322.5853481 | X17: =INDEX('Compile Data'!$CL$95:$DI$120,16,'Report - ALL (DASHBOARD)'!$W$4) -> -1007.431498 | Y17: =INDEX('Compile Data'!$CL$95:$DI$120,17,'Report - ALL (DASHBOARD)'!$W$4) -> -514.9472002 | Z17: =INDEX('Compile Data'!$CL$95:$DI$120,18,'Report - ALL (DASHBOARD)'!$W$4) -> -201.3245826
A18: ='Compile Data'!$F$1 -> 0 | B18: =INDEX('Compile Data'!DL$95:DL$120,'Report - ALL (DASHBOARD)'!$W$3) ->  | C18: =INDEX('Compile Data'!DM$95:DM$120,'Report - ALL (DASHBOARD)'!$W$3) ->  | D18: =INDEX('Compile Data'!DN$95:DN$120,'Report - ALL (DASHBOARD)'!$W$3) ->  | E18: =INDEX('Compile Data'!DO$95:DO$120,'Report - ALL (DASHBOARD)'!$W$3) ->  | F18: =INDEX('Compile Data'!DP$95:DP$120,'Report - ALL (DASHBOARD)'!$W$3) ->  | G18: =INDEX('Compile Data'!DQ$95:DQ$120,'Report - ALL (DASHBOARD)'!$W$3) ->  | H18: =INDEX('Compile Data'!DR$95:DR$120,'Report - ALL (DASHBOARD)'!$W$3) ->  | I18: =INDEX('Compile Data'!DS$95:DS$120,'Report - ALL (DASHBOARD)'!$W$3) ->  | J18: =INDEX('Compile Data'!DT$95:DT$120,'Report - ALL (DASHBOARD)'!$W$3) ->  | K18: =INDEX('Compile Data'!DU$95:DU$120,'Report - ALL (DASHBOARD)'!$W$3) ->  | L18: =INDEX('Compile Data'!DV$95:DV$120,'Report - ALL (DASHBOARD)'!$W$3) ->  | M18: =INDEX('Compile Data'!DW$95:DW$120,'Report - ALL (DASHBOARD)'!$W$3) ->  | O18: ='Compile Data'!$F$1 -> 0 | P18: =INDEX('Compile Data'!$DL$95:$EI$120,'Report - ALL (DASHBOARD)'!$W$3,'Report - ALL (DASHBOARD)'!$W$4) ->  | Q18: =$P18-$P$14 ->  | R18: =$P18-$P$15 ->  | U18: ='Compile Data'!$F$1 -> 0 | V18: =INDEX('Compile Data'!$DL$95:$EI$120,14,'Report - ALL (DASHBOARD)'!$W$4) ->  | W18: =INDEX('Compile Data'!$DL$95:$EI$120,15,'Report - ALL (DASHBOARD)'!$W$4) ->  | X18: =INDEX('Compile Data'!$DL$95:$EI$120,16,'Report - ALL (DASHBOARD)'!$W$4) ->  | Y18: =INDEX('Compile Data'!$DL$95:$EI$120,17,'Report - ALL (DASHBOARD)'!$W$4) ->  | Z18: =INDEX('Compile Data'!$DL$95:$EI$120,18,'Report - ALL (DASHBOARD)'!$W$4) -> 
A19: ='Compile Data'!$G$1 -> 0 | B19: =INDEX('Compile Data'!EL$95:EL$120,'Report - ALL (DASHBOARD)'!$W$3) ->  | C19: =INDEX('Compile Data'!EM$95:EM$120,'Report - ALL (DASHBOARD)'!$W$3) ->  | D19: =INDEX('Compile Data'!EN$95:EN$120,'Report - ALL (DASHBOARD)'!$W$3) ->  | E19: =INDEX('Compile Data'!EO$95:EO$120,'Report - ALL (DASHBOARD)'!$W$3) ->  | F19: =INDEX('Compile Data'!EP$95:EP$120,'Report - ALL (DASHBOARD)'!$W$3) ->  | G19: =INDEX('Compile Data'!EQ$95:EQ$120,'Report - ALL (DASHBOARD)'!$W$3) ->  | H19: =INDEX('Compile Data'!ER$95:ER$120,'Report - ALL (DASHBOARD)'!$W$3) ->  | I19: =INDEX('Compile Data'!ES$95:ES$120,'Report - ALL (DASHBOARD)'!$W$3) ->  | J19: =INDEX('Compile Data'!ET$95:ET$120,'Report - ALL (DASHBOARD)'!$W$3) ->  | K19: =INDEX('Compile Data'!EU$95:EU$120,'Report - ALL (DASHBOARD)'!$W$3) ->  | L19: =INDEX('Compile Data'!EV$95:EV$120,'Report - ALL (DASHBOARD)'!$W$3) ->  | M19: =INDEX('Compile Data'!EW$95:EW$120,'Report - ALL (DASHBOARD)'!$W$3) ->  | O19: ='Compile Data'!$G$1 -> 0 | P19: =INDEX('Compile Data'!$EL$95:$FI$120,'Report - ALL (DASHBOARD)'!$W$3,'Report - ALL (DASHBOARD)'!$W$4) ->  | R19: =$P19-$P$15 ->  | U19: ='Compile Data'!$G$1 -> 0 | V19: =INDEX('Compile Data'!$EL$95:$FI$120,14,'Report - ALL (DASHBOARD)'!$W$4) ->  | W19: =INDEX('Compile Data'!$EL$95:$FI$120,15,'Report - ALL (DASHBOARD)'!$W$4) ->  | X19: =INDEX('Compile Data'!$EL$95:$FI$120,16,'Report - ALL (DASHBOARD)'!$W$4) ->  | Y19: =INDEX('Compile Data'!$EL$95:$FI$120,17,'Report - ALL (DASHBOARD)'!$W$4) ->  | Z19: =INDEX('Compile Data'!$EL$95:$FI$120,18,'Report - ALL (DASHBOARD)'!$W$4) -> 
A21: Annuals Plot: | O21: Exceedence Plot:
A23: Title: | B23: =INDEX(Other!$B$9:$B$33,'Report - ALL (DASHBOARD)'!$W$4) -> October-September | O23: Title: | P23: =INDEX(Other!$B$9:$B$33,'Report - ALL (DASHBOARD)'!$W$4) -> October-September
B24: ='Compile Data'!$B$5 -> Total CVP, SWP, Sites Facilities - Net Generation (GWh) | P24: ='Compile Data'!$B$5 -> Total CVP, SWP, Sites Facilities - Net Generation (GWh)
B25: =IF('Compile Data'!$B$10="CFS","Flow (CFS)",IF('Compile Data'!$B$10="TAF","Volume (TAF)",IF('Compile Data'!$B$10="KM","POSITION (KM)",""))) ->  | P25: =IF('Compile Data'!$B$10="CFS","Flow (CFS)",IF('Compile Data'!$B$10="TAF","Volume (TAF)",IF('Compile Data'!$B$10="KM","POSITION (KM)",""))) -> 
B27: ='Compile Data'!$B$1 -> NAA 051422 | C27: ='Compile Data'!$C$1 -> Alt 1A 051722 | D27: ='Compile Data'!$D$1 -> Alt 1B 051722 | E27: ='Compile Data'!$E$1 -> Alt 3 051722 | F27: ='Compile Data'!$F$1 -> 0 | G27: ='Compile Data'!$G$1 -> 0 | Q27: ='Compile Data'!$B$1 -> NAA 051422 | R27: ='Compile Data'!$C$1 -> Alt 1A 051722 | S27: ='Compile Data'!$D$1 -> Alt 1B 051722 | T27: ='Compile Data'!$E$1 -> Alt 3 051722 | U27: ='Compile Data'!$F$1 -> 0 | V27: ='Compile Data'!$G$1 -> 0
A28: 1922 | B28: =INDEX('Compile Data'!$L$12:$AI$93,$A28-1921,'Report - ALL (DASHBOARD)'!$W$4) -> -415.4557991 | C28: =INDEX('Compile Data'!$AL$12:$BI$93,$A28-1921,'Report - ALL (DASHBOARD)'!$W$4) -> -438.9384117 | D28: =INDEX('Compile Data'!$BL$12:$CI$93,$A28-1921,'Report - ALL (DASHBOARD)'!$W$4) -> -450.5014915 | E28: =INDEX('Compile Data'!$CL$12:$DI$93,$A28-1921,'Report - ALL (DASHBOARD)'!$W$4) -> -457.2759819 | F28: =INDEX('Compile Data'!$DL$12:$EI$93,$A28-1921,'Report - ALL (DASHBOARD)'!$W$4) ->  | G28: =INDEX('Compile Data'!$EL$12:$FI$93,$A28-1921,'Report - ALL (DASHBOARD)'!$W$4) ->  | O28: 1 | P28: =(O28-1)/81 -> 0 | Q28: =INDEX('Compile Data'!$L$123:$AI$204,$O28,'Report - ALL (DASHBOARD)'!$W$4) -> 4361.657719 | R28: =INDEX('Compile Data'!$AL$123:$BI$204,$O28,'Report - ALL (DASHBOARD)'!$W$4) -> 4370.212361 | S28: =INDEX('Compile Data'!$BL$123:$CI$204,$O28,'Report - ALL (DASHBOARD)'!$W$4) -> 4357.944745 | T28: =INDEX('Compile Data'!$CL$123:$DI$204,$O28,'Report - ALL (DASHBOARD)'!$W$4) -> 4358.013304 | U28: =INDEX('Compile Data'!$DL$123:$EI$204,$O28,'Report - ALL (DASHBOARD)'!$W$4) ->  | V28: =INDEX('Compile Data'!$EL$123:$FI$204,$O28,'Report - ALL (DASHBOARD)'!$W$4) -> 
A29: =A28+1 -> 1923 | B29: =INDEX('Compile Data'!$L$12:$AI$93,$A29-1921,'Report - ALL (DASHBOARD)'!$W$4) -> -1535.839996 | C29: =INDEX('Compile Data'!$AL$12:$BI$93,$A29-1921,'Report - ALL (DASHBOARD)'!$W$4) -> -1547.897522 | D29: =INDEX('Compile Data'!$BL$12:$CI$93,$A29-1921,'Report - ALL (DASHBOARD)'!$W$4) -> -1509.305389 | E29: =INDEX('Compile Data'!$CL$12:$DI$93,$A29-1921,'Report - ALL (DASHBOARD)'!$W$4) -> -1489.888206 | F29: =INDEX('Compile Data'!$DL$12:$EI$93,$A29-1921,'Report - ALL (DASHBOARD)'!$W$4) ->  | G29: =INDEX('Compile Data'!$EL$12:$FI$93,$A29-1921,'Report - ALL (DASHBOARD)'!$W$4) ->  | O29: 2 | P29: 0.01234567901 | Q29: =INDEX('Compile Data'!$L$123:$AI$204,$O29,'Report - ALL (DASHBOARD)'!$W$4) -> 2686.302261 | R29: =INDEX('Compile Data'!$AL$123:$BI$204,$O29,'Report - ALL (DASHBOARD)'!$W$4) -> 2627.684608 | S29: =INDEX('Compile Data'!$BL$123:$CI$204,$O29,'Report - ALL (DASHBOARD)'!$W$4) -> 2621.373619 | T29: =INDEX('Compile Data'!$CL$123:$DI$204,$O29,'Report - ALL (DASHBOARD)'!$W$4) -> 2588.456642 | U29: =INDEX('Compile Data'!$DL$123:$EI$204,$O29,'Report - ALL (DASHBOARD)'!$W$4) ->  | V29: =INDEX('Compile Data'!$EL$123:$FI$204,$O29,'Report - ALL (DASHBOARD)'!$W$4) -> 
A30: =A29+1 -> 1924 | B30: =INDEX('Compile Data'!$L$12:$AI$93,$A30-1921,'Report - ALL (DASHBOARD)'!$W$4) -> 254.5100136 | C30: =INDEX('Compile Data'!$AL$12:$BI$93,$A30-1921,'Report - ALL (DASHBOARD)'!$W$4) -> -751.9243832 | D30: =INDEX('Compile Data'!$BL$12:$CI$93,$A30-1921,'Report - ALL (DASHBOARD)'!$W$4) -> -771.9884224 | E30: =INDEX('Compile Data'!$CL$12:$DI$93,$A30-1921,'Report - ALL (DASHBOARD)'!$W$4) -> -655.0390797 | F30: =INDEX('Compile Data'!$DL$12:$EI$93,$A30-1921,'Report - ALL (DASHBOARD)'!$W$4) ->  | G30: =INDEX('Compile Data'!$EL$12:$FI$93,$A30-1921,'Report - ALL (DASHBOARD)'!$W$4) ->  | O30: 3 | P30: 0.02469135802 | Q30: =INDEX('Compile Data'!$L$123:$AI$204,$O30,'Report - ALL (DASHBOARD)'!$W$4) -> 2436.53249 | R30: =INDEX('Compile Data'!$AL$123:$BI$204,$O30,'Report - ALL (DASHBOARD)'!$W$4) -> 2241.839303 | S30: =INDEX('Compile Data'!$BL$123:$CI$204,$O30,'Report - ALL (DASHBOARD)'!$W$4) -> 2272.442863 | T30: =INDEX('Compile Data'!$CL$123:$DI$204,$O30,'Report - ALL (DASHBOARD)'!$W$4) -> 2370.611015 | U30: =INDEX('Compile Data'!$DL$123:$EI$204,$O30,'Report - ALL (DASHBOARD)'!$W$4) ->  | V30: =INDEX('Compile Data'!$EL$123:$FI$204,$O30,'Report - ALL (DASHBOARD)'!$W$4) -> 
A31: 1925 | B31: =INDEX('Compile Data'!$L$12:$AI$93,$A31-1921,'Report - ALL (DASHBOARD)'!$W$4) -> 425.3880367 | C31: =INDEX('Compile Data'!$AL$12:$BI$93,$A31-1921,'Report - ALL (DASHBOARD)'!$W$4) -> 90.59974432 | D31: =INDEX('Compile Data'!$BL$12:$CI$93,$A31-1921,'Report - ALL (DASHBOARD)'!$W$4) -> 158.6032057 | E31: =INDEX('Compile Data'!$CL$12:$DI$93,$A31-1921,'Report - ALL (DASHBOARD)'!$W$4) -> 190.4393475 | F31: =INDEX('Compile Data'!$DL$12:$EI$93,$A31-1921,'Report - ALL (DASHBOARD)'!$W$4) ->  | G31: =INDEX('Compile Data'!$EL$12:$FI$93,$A31-1921,'Report - ALL (DASHBOARD)'!$W$4) ->  | O31: 4 | P31: 0.03703703704 | Q31: =INDEX('Compile Data'!$L$123:$AI$204,$O31,'Report - ALL (DASHBOARD)'!$W$4) -> 2256.092398 | R31: =INDEX('Compile Data'!$AL$123:$BI$204,$O31,'Report - ALL (DASHBOARD)'!$W$4) -> 2191.716564 | S31: =INDEX('Compile Data'!$BL$123:$CI$204,$O31,'Report - ALL (DASHBOARD)'!$W$4) -> 2245.609908 | T31: =INDEX('Compile Data'!$CL$123:$DI$204,$O31,'Report - ALL (DASHBOARD)'!$W$4) -> 2244.879141 | U31: =INDEX('Compile Data'!$DL$123:$EI$204,$O31,'Report - ALL (DASHBOARD)'!$W$4) ->  | V31: =INDEX('Compile Data'!$EL$123:$FI$204,$O31,'Report - ALL (DASHBOARD)'!$W$4) -> 
A32: 1926 | B32: =INDEX('Compile Data'!$L$12:$AI$93,$A32-1921,'Report - ALL (DASHBOARD)'!$W$4) -> 545.9331733 | C32: =INDEX('Compile Data'!$AL$12:$BI$93,$A32-1921,'Report - ALL (DASHBOARD)'!$W$4) -> 195.6951032 | D32: =INDEX('Compile Data'!$BL$12:$CI$93,$A32-1921,'Report - ALL (DASHBOARD)'!$W$4) -> 239.6659136 | E32: =INDEX('Compile Data'!$CL$12:$DI$93,$A32-1921,'Report - ALL (DASHBOARD)'!$W$4) -> 417.6409063 | F32: =INDEX('Compile Data'!$DL$12:$EI$93,$A32-1921,'Report - ALL (DASHBOARD)'!$W$4) ->  | G32: =INDEX('Compile Data'!$EL$12:$FI$93,$A32-1921,'Report - ALL (DASHBOARD)'!$W$4) ->  | O32: 5 | P32: 0.04938271605 | Q32: =INDEX('Compile Data'!$L$123:$AI$204,$O32,'Report - ALL (DASHBOARD)'!$W$4) -> 2026.73108 | R32: =INDEX('Compile Data'!$AL$123:$BI$204,$O32,'Report - ALL (DASHBOARD)'!$W$4) -> 1990.924093 | S32: =INDEX('Compile Data'!$BL$123:$CI$204,$O32,'Report - ALL (DASHBOARD)'!$W$4) -> 2160.041794 | T32: =INDEX('Compile Data'!$CL$123:$DI$204,$O32,'Report - ALL (DASHBOARD)'!$W$4) -> 2080.608856 | U32: =INDEX('Compile Data'!$DL$123:$EI$204,$O32,'Report - ALL (DASHBOARD)'!$W$4) ->  | V32: =INDEX('Compile Data'!$EL$123:$FI$204,$O32,'Report - ALL (DASHBOARD)'!$W$4) -> 
A33: 1927 | B33: =INDEX('Compile Data'!$L$12:$AI$93,$A33-1921,'Report - ALL (DASHBOARD)'!$W$4) -> 1226.945455 | C33: =INDEX('Compile Data'!$AL$12:$BI$93,$A33-1921,'Report - ALL (DASHBOARD)'!$W$4) -> 972.9372635 | D33: =INDEX('Compile Data'!$BL$12:$CI$93,$A33-1921,'Report - ALL (DASHBOARD)'!$W$4) -> 968.135788 | E33: =INDEX('Compile Data'!$CL$12:$DI$93,$A33-1921,'Report - ALL (DASHBOARD)'!$W$4) -> 940.9465065 | F33: =INDEX('Compile Data'!$DL$12:$EI$93,$A33-1921,'Report - ALL (DASHBOARD)'!$W$4) ->  | G33: =INDEX('Compile Data'!$EL$12:$FI$93,$A33-1921,'Report - ALL (DASHBOARD)'!$W$4) ->  | O33: 6 | P33: 0.06172839506 | Q33: =INDEX('Compile Data'!$L$123:$AI$204,$O33,'Report - ALL (DASHBOARD)'!$W$4) -> 2025.403278 | R33: =INDEX('Compile Data'!$AL$123:$BI$204,$O33,'Report - ALL (DASHBOARD)'!$W$4) -> 1856.836163 | S33: =INDEX('Compile Data'!$BL$123:$CI$204,$O33,'Report - ALL (DASHBOARD)'!$W$4) -> 1998.47241 | T33: =INDEX('Compile Data'!$CL$123:$DI$204,$O33,'Report - ALL (DASHBOARD)'!$W$4) -> 1924.232042 | U33: =INDEX('Compile Data'!$DL$123:$EI$204,$O33,'Report - ALL (DASHBOARD)'!$W$4) ->  | V33: =INDEX('Compile Data'!$EL$123:$FI$204,$O33,'Report - ALL (DASHBOARD)'!$W$4) -> 
A34: 1928 | B34: =INDEX('Compile Data'!$L$12:$AI$93,$A34-1921,'Report - ALL (DASHBOARD)'!$W$4) -> -339.9272194 | C34: =INDEX('Compile Data'!$AL$12:$BI$93,$A34-1921,'Report - ALL (DASHBOARD)'!$W$4) -> -464.0268021 | D34: =INDEX('Compile Data'!$BL$12:$CI$93,$A34-1921,'Report - ALL (DASHBOARD)'!$W$4) -> -453.5503273 | E34: =INDEX('Compile Data'!$CL$12:$DI$93,$A34-1921,'Report - ALL (DASHBOARD)'!$W$4) -> -510.3581772 | F34: =INDEX('Compile Data'!$DL$12:$EI$93,$A34-1921,'Report - ALL (DASHBOARD)'!$W$4) ->  | G34: =INDEX('Compile Data'!$EL$12:$FI$93,$A34-1921,'Report - ALL (DASHBOARD)'!$W$4) ->  | O34: 7 | P34: 0.07407407407 | Q34: =INDEX('Compile Data'!$L$123:$AI$204,$O34,'Report - ALL (DASHBOARD)'!$W$4) -> 1880.616135 | R34: =INDEX('Compile Data'!$AL$123:$BI$204,$O34,'Report - ALL (DASHBOARD)'!$W$4) -> 1802.812988 | S34: =INDEX('Compile Data'!$BL$123:$CI$204,$O34,'Report - ALL (DASHBOARD)'!$W$4) -> 1839.316669 | T34: =INDEX('Compile Data'!$CL$123:$DI$204,$O34,'Report - ALL (DASHBOARD)'!$W$4) -> 1836.081139 | U34: =INDEX('Compile Data'!$DL$123:$EI$204,$O34,'Report - ALL (DASHBOARD)'!$W$4) ->  | V34: =INDEX('Compile Data'!$EL$123:$FI$204,$O34,'Report - ALL (DASHBOARD)'!$W$4) -> 
A35: 1929 | B35: =INDEX('Compile Data'!$L$12:$AI$93,$A35-1921,'Report - ALL (DASHBOARD)'!$W$4) -> -332.3381462 | C35: =INDEX('Compile Data'!$AL$12:$BI$93,$A35-1921,'Report - ALL (DASHBOARD)'!$W$4) -> -1046.534086 | D35: =INDEX('Compile Data'!$BL$12:$CI$93,$A35-1921,'Report - ALL (DASHBOARD)'!$W$4) -> -1051.488884 | E35: =INDEX('Compile Data'!$CL$12:$DI$93,$A35-1921,'Report - ALL (DASHBOARD)'!$W$4) -> -822.1746864 | F35: =INDEX('Compile Data'!$DL$12:$EI$93,$A35-1921,'Report - ALL (DASHBOARD)'!$W$4) ->  | G35: =INDEX('Compile Data'!$EL$12:$FI$93,$A35-1921,'Report - ALL (DASHBOARD)'!$W$4) ->  | O35: 8 | P35: 0.08641975309 | Q35: =INDEX('Compile Data'!$L$123:$AI$204,$O35,'Report - ALL (DASHBOARD)'!$W$4) -> 1840.900642 | R35: =INDEX('Compile Data'!$AL$123:$BI$204,$O35,'Report - ALL (DASHBOARD)'!$W$4) -> 1681.975403 | S35: =INDEX('Compile Data'!$BL$123:$CI$204,$O35,'Report - ALL (DASHBOARD)'!$W$4) -> 1767.910198 | T35: =INDEX('Compile Data'!$CL$123:$DI$204,$O35,'Report - ALL (DASHBOARD)'!$W$4) -> 1708.851284 | U35: =INDEX('Compile Data'!$DL$123:$EI$204,$O35,'Report - ALL (DASHBOARD)'!$W$4) ->  | V35: =INDEX('Compile Data'!$EL$123:$FI$204,$O35,'Report - ALL (DASHBOARD)'!$W$4) -> 
A36: 1930 | B36: =INDEX('Compile Data'!$L$12:$AI$93,$A36-1921,'Report - ALL (DASHBOARD)'!$W$4) -> 1000.139884 | C36: =INDEX('Compile Data'!$AL$12:$BI$93,$A36-1921,'Report - ALL (DASHBOARD)'!$W$4) -> 441.2159386 | D36: =INDEX('Compile Data'!$BL$12:$CI$93,$A36-1921,'Report - ALL (DASHBOARD)'!$W$4) -> 402.2136612 | E36: =INDEX('Compile Data'!$CL$12:$DI$93,$A36-1921,'Report - ALL (DASHBOARD)'!$W$4) -> 772.0498919 | F36: =INDEX('Compile Data'!$DL$12:$EI$93,$A36-1921,'Report - ALL (DASHBOARD)'!$W$4) ->  | G36: =INDEX('Compile Data'!$EL$12:$FI$93,$A36-1921,'Report - ALL (DASHBOARD)'!$W$4) ->  | O36: 9 | P36: 0.0987654321 | Q36: =INDEX('Compile Data'!$L$123:$AI$204,$O36,'Report - ALL (DASHBOARD)'!$W$4) -> 1836.278366 | R36: =INDEX('Compile Data'!$AL$123:$BI$204,$O36,'Report - ALL (DASHBOARD)'!$W$4) -> 1671.072735 | S36: =INDEX('Compile Data'!$BL$123:$CI$204,$O36,'Report - ALL (DASHBOARD)'!$W$4) -> 1670.212448 | T36: =INDEX('Compile Data'!$CL$123:$DI$204,$O36,'Report - ALL (DASHBOARD)'!$W$4) -> 1530.00322 | U36: =INDEX('Compile Data'!$DL$123:$EI$204,$O36,'Report - ALL (DASHBOARD)'!$W$4) ->  | V36: =INDEX('Compile Data'!$EL$123:$FI$204,$O36,'Report - ALL (DASHBOARD)'!$W$4) -> 
A37: 1931 | B37: =INDEX('Compile Data'!$L$12:$AI$93,$A37-1921,'Report - ALL (DASHBOARD)'!$W$4) -> -31.05559921 | C37: =INDEX('Compile Data'!$AL$12:$BI$93,$A37-1921,'Report - ALL (DASHBOARD)'!$W$4) -> -33.85162783 | D37: =INDEX('Compile Data'!$BL$12:$CI$93,$A37-1921,'Report - ALL (DASHBOARD)'!$W$4) -> -119.1548796 | E37: =INDEX('Compile Data'!$CL$12:$DI$93,$A37-1921,'Report - ALL (DASHBOARD)'!$W$4) -> 34.76737881 | F37: =INDEX('Compile Data'!$DL$12:$EI$93,$A37-1921,'Report - ALL (DASHBOARD)'!$W$4) ->  | G37: =INDEX('Compile Data'!$EL$12:$FI$93,$A37-1921,'Report - ALL (DASHBOARD)'!$W$4) ->  | O37: 10 | P37: 0.1111111111 | Q37: =INDEX('Compile Data'!$L$123:$AI$204,$O37,'Report - ALL (DASHBOARD)'!$W$4) -> 1771.19735 | R37: =INDEX('Compile Data'!$AL$123:$BI$204,$O37,'Report - ALL (DASHBOARD)'!$W$4) -> 1478.209508 | S37: =INDEX('Compile Data'!$BL$123:$CI$204,$O37,'Report - ALL (DASHBOARD)'!$W$4) -> 1663.140869 | T37: =INDEX('Compile Data'!$CL$123:$DI$204,$O37,'Report - ALL (DASHBOARD)'!$W$4) -> 1516.973282 | U37: =INDEX('Compile Data'!$DL$123:$EI$204,$O37,'Report - ALL (DASHBOARD)'!$W$4) ->  | V37: =INDEX('Compile Data'!$EL$123:$FI$204,$O37,'Report - ALL (DASHBOARD)'!$W$4) -> 
A38: 1932 | B38: =INDEX('Compile Data'!$L$12:$AI$93,$A38-1921,'Report - ALL (DASHBOARD)'!$W$4) -> -1155.524578 | C38: =INDEX('Compile Data'!$AL$12:$BI$93,$A38-1921,'Report - ALL (DASHBOARD)'!$W$4) -> -1205.330101 | D38: =INDEX('Compile Data'!$BL$12:$CI$93,$A38-1921,'Report - ALL (DASHBOARD)'!$W$4) -> -1213.831295 | E38: =INDEX('Compile Data'!$CL$12:$DI$93,$A38-1921,'Report - ALL (DASHBOARD)'!$W$4) -> -1038.400463 | F38: =INDEX('Compile Data'!$DL$12:$EI$93,$A38-1921,'Report - ALL (DASHBOARD)'!$W$4) ->  | G38: =INDEX('Compile Data'!$EL$12:$FI$93,$A38-1921,'Report - ALL (DASHBOARD)'!$W$4) ->  | O38: 11 | P38: 0.1234567901 | Q38: =INDEX('Compile Data'!$L$123:$AI$204,$O38,'Report - ALL (DASHBOARD)'!$W$4) -> 1743.429029 | R38: =INDEX('Compile Data'!$AL$123:$BI$204,$O38,'Report - ALL (DASHBOARD)'!$W$4) -> 1459.816116 | S38: =INDEX('Compile Data'!$BL$123:$CI$204,$O38,'Report - ALL (DASHBOARD)'!$W$4) -> 1499.804531 | T38: =INDEX('Compile Data'!$CL$123:$DI$204,$O38,'Report - ALL (DASHBOARD)'!$W$4) -> 1460.0015 | U38: =INDEX('Compile Data'!$DL$123:$EI$204,$O38,'Report - ALL (DASHBOARD)'!$W$4) ->  | V38: =INDEX('Compile Data'!$EL$123:$FI$204,$O38,'Report - ALL (DASHBOARD)'!$W$4) -> 
A39: 1933 | B39: =INDEX('Compile Data'!$L$12:$AI$93,$A39-1921,'Report - ALL (DASHBOARD)'!$W$4) -> -716.3799858 | C39: =INDEX('Compile Data'!$AL$12:$BI$93,$A39-1921,'Report - ALL (DASHBOARD)'!$W$4) -> -669.8385056 | D39: =INDEX('Compile Data'!$BL$12:$CI$93,$A39-1921,'Report - ALL (DASHBOARD)'!$W$4) -> -639.7028931 | E39: =INDEX('Compile Data'!$CL$12:$DI$93,$A39-1921,'Report - ALL (DASHBOARD)'!$W$4) -> -757.2981768 | F39: =INDEX('Compile Data'!$DL$12:$EI$93,$A39-1921,'Report - ALL (DASHBOARD)'!$W$4) ->  | G39: =INDEX('Compile Data'!$EL$12:$FI$93,$A39-1921,'Report - ALL (DASHBOARD)'!$W$4) ->  | O39: 12 | P39: 0.1358024691 | Q39: =INDEX('Compile Data'!$L$123:$AI$204,$O39,'Report - ALL (DASHBOARD)'!$W$4) -> 1611.994987 | R39: =INDEX('Compile Data'!$AL$123:$BI$204,$O39,'Report - ALL (DASHBOARD)'!$W$4) -> 1355.22509 | S39: =INDEX('Compile Data'!$BL$123:$CI$204,$O39,'Report - ALL (DASHBOARD)'!$W$4) -> 1488.640927 | T39: =INDEX('Compile Data'!$CL$123:$DI$204,$O39,'Report - ALL (DASHBOARD)'!$W$4) -> 1442.614201 | U39: =INDEX('Compile Data'!$DL$123:$EI$204,$O39,'Report - ALL (DASHBOARD)'!$W$4) ->  | V39: =INDEX('Compile Data'!$EL$123:$FI$204,$O39,'Report - ALL (DASHBOARD)'!$W$4) -> 
A40: 1934 | B40: =INDEX('Compile Data'!$L$12:$AI$93,$A40-1921,'Report - ALL (DASHBOARD)'!$W$4) -> 159.4947262 | C40: =INDEX('Compile Data'!$AL$12:$BI$93,$A40-1921,'Report - ALL (DASHBOARD)'!$W$4) -> 137.1482382 | D40: =INDEX('Compile Data'!$BL$12:$CI$93,$A40-1921,'Report - ALL (DASHBOARD)'!$W$4) -> 142.580472 | E40: =INDEX('Compile Data'!$CL$12:$DI$93,$A40-1921,'Report - ALL (DASHBOARD)'!$W$4) -> 60.14954638 | F40: =INDEX('Compile Data'!$DL$12:$EI$93,$A40-1921,'Report - ALL (DASHBOARD)'!$W$4) ->  | G40: =INDEX('Compile Data'!$EL$12:$FI$93,$A40-1921,'Report - ALL (DASHBOARD)'!$W$4) ->  | O40: 13 | P40: 0.1481481481 | Q40: =INDEX('Compile Data'!$L$123:$AI$204,$O40,'Report - ALL (DASHBOARD)'!$W$4) -> 1558.165726 | R40: =INDEX('Compile Data'!$AL$123:$BI$204,$O40,'Report - ALL (DASHBOARD)'!$W$4) -> 1277.711409 | S40: =INDEX('Compile Data'!$BL$123:$CI$204,$O40,'Report - ALL (DASHBOARD)'!$W$4) -> 1274.001332 | T40: =INDEX('Compile Data'!$CL$123:$DI$204,$O40,'Report - ALL (DASHBOARD)'!$W$4) -> 1393.566107 | U40: =INDEX('Compile Data'!$DL$123:$EI$204,$O40,'Report - ALL (DASHBOARD)'!$W$4) ->  | V40: =INDEX('Compile Data'!$EL$123:$FI$204,$O40,'Report - ALL (DASHBOARD)'!$W$4) -> 
A41: 1935 | B41: =INDEX('Compile Data'!$L$12:$AI$93,$A41-1921,'Report - ALL (DASHBOARD)'!$W$4) -> -1559.775422 | C41: =INDEX('Compile Data'!$AL$12:$BI$93,$A41-1921,'Report - ALL (DASHBOARD)'!$W$4) -> -1689.41001 | D41: =INDEX('Compile Data'!$BL$12:$CI$93,$A41-1921,'Report - ALL (DASHBOARD)'!$W$4) -> -1700.808964 | E41: =INDEX('Compile Data'!$CL$12:$DI$93,$A41-1921,'Report - ALL (DASHBOARD)'!$W$4) -> -1707.935328 | F41: =INDEX('Compile Data'!$DL$12:$EI$93,$A41-1921,'Report - ALL (DASHBOARD)'!$W$4) ->  | G41: =INDEX('Compile Data'!$EL$12:$FI$93,$A41-1921,'Report - ALL (DASHBOARD)'!$W$4) ->  | O41: 14 | P41: 0.1604938272 | Q41: =INDEX('Compile Data'!$L$123:$AI$204,$O41,'Report - ALL (DASHBOARD)'!$W$4) -> 1542.437862 | R41: =INDEX('Compile Data'!$AL$123:$BI$204,$O41,'Report - ALL (DASHBOARD)'!$W$4) -> 1167.483505 | S41: =INDEX('Compile Data'!$BL$123:$CI$204,$O41,'Report - ALL (DASHBOARD)'!$W$4) -> 1273.431034 | T41: =INDEX('Compile Data'!$CL$123:$DI$204,$O41,'Report - ALL (DASHBOARD)'!$W$4) -> 1364.1408 | U41: =INDEX('Compile Data'!$DL$123:$EI$204,$O41,'Report - ALL (DASHBOARD)'!$W$4) ->  | V41: =INDEX('Compile Data'!$EL$123:$FI$204,$O41,'Report - ALL (DASHBOARD)'!$W$4) -> 
A42: 1936 | B42: =INDEX('Compile Data'!$L$12:$AI$93,$A42-1921,'Report - ALL (DASHBOARD)'!$W$4) -> -1354.455841 | C42: =INDEX('Compile Data'!$AL$12:$BI$93,$A42-1921,'Report - ALL (DASHBOARD)'!$W$4) -> -1703.557676 | D42: =INDEX('Compile Data'!$BL$12:$CI$93,$A42-1921,'Report - ALL (DASHBOARD)'!$W$4) -> -1686.892275 | E42: =INDEX('Compile Data'!$CL$12:$DI$93,$A42-1921,'Report - ALL (DASHBOARD)'!$W$4) -> -1577.072714 | F42: =INDEX('Compile Data'!$DL$12:$EI$93,$A42-1921,'Report - ALL (DASHBOARD)'!$W$4) ->  | G42: =INDEX('Compile Data'!$EL$12:$FI$93,$A42-1921,'Report - ALL (DASHBOARD)'!$W$4) ->  | O42: 15 | P42: 0.1728395062 | Q42: =INDEX('Compile Data'!$L$123:$AI$204,$O42,'Report - ALL (DASHBOARD)'!$W$4) -> 1402.107162 | R42: =INDEX('Compile Data'!$AL$123:$BI$204,$O42,'Report - ALL (DASHBOARD)'!$W$4) -> 1131.447903 | S42: =INDEX('Compile Data'!$BL$123:$CI$204,$O42,'Report - ALL (DASHBOARD)'!$W$4) -> 1151.875378 | T42: =INDEX('Compile Data'!$CL$123:$DI$204,$O42,'Report - ALL (DASHBOARD)'!$W$4) -> 1311.488968 | U42: =INDEX('Compile Data'!$DL$123:$EI$204,$O42,'Report - ALL (DASHBOARD)'!$W$4) ->  | V42: =INDEX('Compile Data'!$EL$123:$FI$204,$O42,'Report - ALL (DASHBOARD)'!$W$4) -> 
A43: 1937 | B43: =INDEX('Compile Data'!$L$12:$AI$93,$A43-1921,'Report - ALL (DASHBOARD)'!$W$4) -> -2780.649383 | C43: =INDEX('Compile Data'!$AL$12:$BI$93,$A43-1921,'Report - ALL (DASHBOARD)'!$W$4) -> -3158.293182 | D43: =INDEX('Compile Data'!$BL$12:$CI$93,$A43-1921,'Report - ALL (DASHBOARD)'!$W$4) -> -3146.019585 | E43: =INDEX('Compile Data'!$CL$12:$DI$93,$A43-1921,'Report - ALL (DASHBOARD)'!$W$4) -> -3071.93853 | F43: =INDEX('Compile Data'!$DL$12:$EI$93,$A43-1921,'Report - ALL (DASHBOARD)'!$W$4) ->  | G43: =INDEX('Compile Data'!$EL$12:$FI$93,$A43-1921,'Report - ALL (DASHBOARD)'!$W$4) ->  | O43: 16 | P43: 0.1851851852 | Q43: =INDEX('Compile Data'!$L$123:$AI$204,$O43,'Report - ALL (DASHBOARD)'!$W$4) -> 1320.027782 | R43: =INDEX('Compile Data'!$AL$123:$BI$204,$O43,'Report - ALL (DASHBOARD)'!$W$4) -> 995.8002968 | S43: =INDEX('Compile Data'!$BL$123:$CI$204,$O43,'Report - ALL (DASHBOARD)'!$W$4) -> 1023.653702 | T43: =INDEX('Compile Data'!$CL$123:$DI$204,$O43,'Report - ALL (DASHBOARD)'!$W$4) -> 1258.991172 | U43: =INDEX('Compile Data'!$DL$123:$EI$204,$O43,'Report - ALL (DASHBOARD)'!$W$4) ->  | V43: =INDEX('Compile Data'!$EL$123:$FI$204,$O43,'Report - ALL (DASHBOARD)'!$W$4) -> 
A44: 1938 | B44: =INDEX('Compile Data'!$L$12:$AI$93,$A44-1921,'Report - ALL (DASHBOARD)'!$W$4) -> 607.0775051 | C44: =INDEX('Compile Data'!$AL$12:$BI$93,$A44-1921,'Report - ALL (DASHBOARD)'!$W$4) -> 231.3810463 | D44: =INDEX('Compile Data'!$BL$12:$CI$93,$A44-1921,'Report - ALL (DASHBOARD)'!$W$4) -> 254.9615917 | E44: =INDEX('Compile Data'!$CL$12:$DI$93,$A44-1921,'Report - ALL (DASHBOARD)'!$W$4) -> 317.9192905 | F44: =INDEX('Compile Data'!$DL$12:$EI$93,$A44-1921,'Report - ALL (DASHBOARD)'!$W$4) ->  | G44: =INDEX('Compile Data'!$EL$12:$FI$93,$A44-1921,'Report - ALL (DASHBOARD)'!$W$4) ->  | O44: 17 | P44: 0.1975308642 | Q44: =INDEX('Compile Data'!$L$123:$AI$204,$O44,'Report - ALL (DASHBOARD)'!$W$4) -> 1285.093359 | R44: =INDEX('Compile Data'!$AL$123:$BI$204,$O44,'Report - ALL (DASHBOARD)'!$W$4) -> 982.8096848 | S44: =INDEX('Compile Data'!$BL$123:$CI$204,$O44,'Report - ALL (DASHBOARD)'!$W$4) -> 979.1556854 | T44: =INDEX('Compile Data'!$CL$123:$DI$204,$O44,'Report - ALL (DASHBOARD)'!$W$4) -> 1022.62302 | U44: =INDEX('Compile Data'!$DL$123:$EI$204,$O44,'Report - ALL (DASHBOARD)'!$W$4) ->  | V44: =INDEX('Compile Data'!$EL$123:$FI$204,$O44,'Report - ALL (DASHBOARD)'!$W$4) -> 
A45: 1939 | B45: =INDEX('Compile Data'!$L$12:$AI$93,$A45-1921,'Report - ALL (DASHBOARD)'!$W$4) -> -219.2296677 | C45: =INDEX('Compile Data'!$AL$12:$BI$93,$A45-1921,'Report - ALL (DASHBOARD)'!$W$4) -> -564.1956196 | D45: =INDEX('Compile Data'!$BL$12:$CI$93,$A45-1921,'Report - ALL (DASHBOARD)'!$W$4) -> -534.6699905 | E45: =INDEX('Compile Data'!$CL$12:$DI$93,$A45-1921,'Report - ALL (DASHBOARD)'!$W$4) -> -513.1718292 | F45: =INDEX('Compile Data'!$DL$12:$EI$93,$A45-1921,'Report - ALL (DASHBOARD)'!$W$4) ->  | G45: =INDEX('Compile Data'!$EL$12:$FI$93,$A45-1921,'Report - ALL (DASHBOARD)'!$W$4) ->  | O45: 18 | P45: 0.2098765432 | Q45: =INDEX('Compile Data'!$L$123:$AI$204,$O45,'Report - ALL (DASHBOARD)'!$W$4) -> 1249.433852 | R45: =INDEX('Compile Data'!$AL$123:$BI$204,$O45,'Report - ALL (DASHBOARD)'!$W$4) -> 972.9372635 | S45: =INDEX('Compile Data'!$BL$123:$CI$204,$O45,'Report - ALL (DASHBOARD)'!$W$4) -> 968.135788 | T45: =INDEX('Compile Data'!$CL$123:$DI$204,$O45,'Report - ALL (DASHBOARD)'!$W$4) -> 974.481144 | U45: =INDEX('Compile Data'!$DL$123:$EI$204,$O45,'Report - ALL (DASHBOARD)'!$W$4) ->  | V45: =INDEX('Compile Data'!$EL$123:$FI$204,$O45,'Report - ALL (DASHBOARD)'!$W$4) -> 
A46: 1940 | B46: =INDEX('Compile Data'!$L$12:$AI$93,$A46-1921,'Report - ALL (DASHBOARD)'!$W$4) -> 1285.093359 | C46: =INDEX('Compile Data'!$AL$12:$BI$93,$A46-1921,'Report - ALL (DASHBOARD)'!$W$4) -> 719.9618034 | D46: =INDEX('Compile Data'!$BL$12:$CI$93,$A46-1921,'Report - ALL (DASHBOARD)'!$W$4) -> 791.8513012 | E46: =INDEX('Compile Data'!$CL$12:$DI$93,$A46-1921,'Report - ALL (DASHBOARD)'!$W$4) -> 832.6775322 | F46: =INDEX('Compile Data'!$DL$12:$EI$93,$A46-1921,'Report - ALL (DASHBOARD)'!$W$4) ->  | G46: =INDEX('Compile Data'!$EL$12:$FI$93,$A46-1921,'Report - ALL (DASHBOARD)'!$W$4) ->  | O46: 19 | P46: 0.2222222222 | Q46: =INDEX('Compile Data'!$L$123:$AI$204,$O46,'Report - ALL (DASHBOARD)'!$W$4) -> 1226.945455 | R46: =INDEX('Compile Data'!$AL$123:$BI$204,$O46,'Report - ALL (DASHBOARD)'!$W$4) -> 960.5053253 | S46: =INDEX('Compile Data'!$BL$123:$CI$204,$O46,'Report - ALL (DASHBOARD)'!$W$4) -> 967.2065964 | T46: =INDEX('Compile Data'!$CL$123:$DI$204,$O46,'Report - ALL (DASHBOARD)'!$W$4) -> 955.0201206 | U46: =INDEX('Compile Data'!$DL$123:$EI$204,$O46,'Report - ALL (DASHBOARD)'!$W$4) ->  | V46: =INDEX('Compile Data'!$EL$123:$FI$204,$O46,'Report - ALL (DASHBOARD)'!$W$4) -> 
A47: 1941 | B47: =INDEX('Compile Data'!$L$12:$AI$93,$A47-1921,'Report - ALL (DASHBOARD)'!$W$4) -> 1836.278366 | C47: =INDEX('Compile Data'!$AL$12:$BI$93,$A47-1921,'Report - ALL (DASHBOARD)'!$W$4) -> 1681.975403 | D47: =INDEX('Compile Data'!$BL$12:$CI$93,$A47-1921,'Report - ALL (DASHBOARD)'!$W$4) -> 1670.212448 | E47: =INDEX('Compile Data'!$CL$12:$DI$93,$A47-1921,'Report - ALL (DASHBOARD)'!$W$4) -> 1516.973282 | F47: =INDEX('Compile Data'!$DL$12:$EI$93,$A47-1921,'Report - ALL (DASHBOARD)'!$W$4) ->  | G47: =INDEX('Compile Data'!$EL$12:$FI$93,$A47-1921,'Report - ALL (DASHBOARD)'!$W$4) ->  | O47: 20 | P47: 0.2345679012 | Q47: =INDEX('Compile Data'!$L$123:$AI$204,$O47,'Report - ALL (DASHBOARD)'!$W$4) -> 1173.629652 | R47: =INDEX('Compile Data'!$AL$123:$BI$204,$O47,'Report - ALL (DASHBOARD)'!$W$4) -> 954.8409672 | S47: =INDEX('Compile Data'!$BL$123:$CI$204,$O47,'Report - ALL (DASHBOARD)'!$W$4) -> 950.2789555 | T47: =INDEX('Compile Data'!$CL$123:$DI$204,$O47,'Report - ALL (DASHBOARD)'!$W$4) -> 940.9465065 | U47: =INDEX('Compile Data'!$DL$123:$EI$204,$O47,'Report - ALL (DASHBOARD)'!$W$4) ->  | V47: =INDEX('Compile Data'!$EL$123:$FI$204,$O47,'Report - ALL (DASHBOARD)'!$W$4) -> 
A48: 1942 | B48: =INDEX('Compile Data'!$L$12:$AI$93,$A48-1921,'Report - ALL (DASHBOARD)'!$W$4) -> 2026.73108 | C48: =INDEX('Compile Data'!$AL$12:$BI$93,$A48-1921,'Report - ALL (DASHBOARD)'!$W$4) -> 1990.924093 | D48: =INDEX('Compile Data'!$BL$12:$CI$93,$A48-1921,'Report - ALL (DASHBOARD)'!$W$4) -> 1998.47241 | E48: =INDEX('Compile Data'!$CL$12:$DI$93,$A48-1921,'Report - ALL (DASHBOARD)'!$W$4) -> 1924.232042 | F48: =INDEX('Compile Data'!$DL$12:$EI$93,$A48-1921,'Report - ALL (DASHBOARD)'!$W$4) ->  | G48: =INDEX('Compile Data'!$EL$12:$FI$93,$A48-1921,'Report - ALL (DASHBOARD)'!$W$4) ->  | O48: 21 | P48: 0.2469135802 | Q48: =INDEX('Compile Data'!$L$123:$AI$204,$O48,'Report - ALL (DASHBOARD)'!$W$4) -> 1023.477764 | R48: =INDEX('Compile Data'!$AL$123:$BI$204,$O48,'Report - ALL (DASHBOARD)'!$W$4) -> 926.1868706 | S48: =INDEX('Compile Data'!$BL$123:$CI$204,$O48,'Report - ALL (DASHBOARD)'!$W$4) -> 911.9069538 | T48: =INDEX('Compile Data'!$CL$123:$DI$204,$O48,'Report - ALL (DASHBOARD)'!$W$4) -> 906.5805931 | U48: =INDEX('Compile Data'!$DL$123:$EI$204,$O48,'Report - ALL (DASHBOARD)'!$W$4) ->  | V48: =INDEX('Compile Data'!$EL$123:$FI$204,$O48,'Report - ALL (DASHBOARD)'!$W$4) -> 
A49: 1943 | B49: =INDEX('Compile Data'!$L$12:$AI$93,$A49-1921,'Report - ALL (DASHBOARD)'!$W$4) -> 980.9522371 | C49: =INDEX('Compile Data'!$AL$12:$BI$93,$A49-1921,'Report - ALL (DASHBOARD)'!$W$4) -> 954.8409672 | D49: =INDEX('Compile Data'!$BL$12:$CI$93,$A49-1921,'Report - ALL (DASHBOARD)'!$W$4) -> 950.2789555 | E49: =INDEX('Compile Data'!$CL$12:$DI$93,$A49-1921,'Report - ALL (DASHBOARD)'!$W$4) -> 955.0201206 | F49: =INDEX('Compile Data'!$DL$12:$EI$93,$A49-1921,'Report - ALL (DASHBOARD)'!$W$4) ->  | G49: =INDEX('Compile Data'!$EL$12:$FI$93,$A49-1921,'Report - ALL (DASHBOARD)'!$W$4) ->  | O49: 22 | P49: 0.2592592593 | Q49: =INDEX('Compile Data'!$L$123:$AI$204,$O49,'Report - ALL (DASHBOARD)'!$W$4) -> 1016.436878 | R49: =INDEX('Compile Data'!$AL$123:$BI$204,$O49,'Report - ALL (DASHBOARD)'!$W$4) -> 804.9179039 | S49: =INDEX('Compile Data'!$BL$123:$CI$204,$O49,'Report - ALL (DASHBOARD)'!$W$4) -> 820.663826 | T49: =INDEX('Compile Data'!$CL$123:$DI$204,$O49,'Report - ALL (DASHBOARD)'!$W$4) -> 844.6437225 | U49: =INDEX('Compile Data'!$DL$123:$EI$204,$O49,'Report - ALL (DASHBOARD)'!$W$4) ->  | V49: =INDEX('Compile Data'!$EL$123:$FI$204,$O49,'Report - ALL (DASHBOARD)'!$W$4) -> 
A50: 1944 | B50: =INDEX('Compile Data'!$L$12:$AI$93,$A50-1921,'Report - ALL (DASHBOARD)'!$W$4) -> -1126.018066 | C50: =INDEX('Compile Data'!$AL$12:$BI$93,$A50-1921,'Report - ALL (DASHBOARD)'!$W$4) -> -1318.126278 | D50: =INDEX('Compile Data'!$BL$12:$CI$93,$A50-1921,'Report - ALL (DASHBOARD)'!$W$4) -> -1321.922989 | E50: =INDEX('Compile Data'!$CL$12:$DI$93,$A50-1921,'Report - ALL (DASHBOARD)'!$W$4) -> -1350.913389 | F50: =INDEX('Compile Data'!$DL$12:$EI$93,$A50-1921,'Report - ALL (DASHBOARD)'!$W$4) ->  | G50: =INDEX('Compile Data'!$EL$12:$FI$93,$A50-1921,'Report - ALL (DASHBOARD)'!$W$4) ->  | O50: 23 | P50: 0.2716049383 | Q50: =INDEX('Compile Data'!$L$123:$AI$204,$O50,'Report - ALL (DASHBOARD)'!$W$4) -> 1002.892262 | R50: =INDEX('Compile Data'!$AL$123:$BI$204,$O50,'Report - ALL (DASHBOARD)'!$W$4) -> 785.7355537 | S50: =INDEX('Compile Data'!$BL$123:$CI$204,$O50,'Report - ALL (DASHBOARD)'!$W$4) -> 791.8513012 | T50: =INDEX('Compile Data'!$CL$123:$DI$204,$O50,'Report - ALL (DASHBOARD)'!$W$4) -> 832.6775322 | U50: =INDEX('Compile Data'!$DL$123:$EI$204,$O50,'Report - ALL (DASHBOARD)'!$W$4) ->  | V50: =INDEX('Compile Data'!$EL$123:$FI$204,$O50,'Report - ALL (DASHBOARD)'!$W$4) -> 
A51: 1945 | B51: =INDEX('Compile Data'!$L$12:$AI$93,$A51-1921,'Report - ALL (DASHBOARD)'!$W$4) -> -1271.179932 | C51: =INDEX('Compile Data'!$AL$12:$BI$93,$A51-1921,'Report - ALL (DASHBOARD)'!$W$4) -> -1380.437584 | D51: =INDEX('Compile Data'!$BL$12:$CI$93,$A51-1921,'Report - ALL (DASHBOARD)'!$W$4) -> -1526.535568 | E51: =INDEX('Compile Data'!$CL$12:$DI$93,$A51-1921,'Report - ALL (DASHBOARD)'!$W$4) -> -1181.742851 | F51: =INDEX('Compile Data'!$DL$12:$EI$93,$A51-1921,'Report - ALL (DASHBOARD)'!$W$4) ->  | G51: =INDEX('Compile Data'!$EL$12:$FI$93,$A51-1921,'Report - ALL (DASHBOARD)'!$W$4) ->  | O51: 24 | P51: 0.2839506173 | Q51: =INDEX('Compile Data'!$L$123:$AI$204,$O51,'Report - ALL (DASHBOARD)'!$W$4) -> 1000.139884 | R51: =INDEX('Compile Data'!$AL$123:$BI$204,$O51,'Report - ALL (DASHBOARD)'!$W$4) -> 748.114933 | S51: =INDEX('Compile Data'!$BL$123:$CI$204,$O51,'Report - ALL (DASHBOARD)'!$W$4) -> 785.8606567 | T51: =INDEX('Compile Data'!$CL$123:$DI$204,$O51,'Report - ALL (DASHBOARD)'!$W$4) -> 791.5244503 | U51: =INDEX('Compile Data'!$DL$123:$EI$204,$O51,'Report - ALL (DASHBOARD)'!$W$4) ->  | V51: =INDEX('Compile Data'!$EL$123:$FI$204,$O51,'Report - ALL (DASHBOARD)'!$W$4) -> 
A52: 1946 | B52: =INDEX('Compile Data'!$L$12:$AI$93,$A52-1921,'Report - ALL (DASHBOARD)'!$W$4) -> -824.2713704 | C52: =INDEX('Compile Data'!$AL$12:$BI$93,$A52-1921,'Report - ALL (DASHBOARD)'!$W$4) -> -992.4237828 | D52: =INDEX('Compile Data'!$BL$12:$CI$93,$A52-1921,'Report - ALL (DASHBOARD)'!$W$4) -> -1001.790856 | E52: =INDEX('Compile Data'!$CL$12:$DI$93,$A52-1921,'Report - ALL (DASHBOARD)'!$W$4) -> -465.3307724 | F52: =INDEX('Compile Data'!$DL$12:$EI$93,$A52-1921,'Report - ALL (DASHBOARD)'!$W$4) ->  | G52: =INDEX('Compile Data'!$EL$12:$FI$93,$A52-1921,'Report - ALL (DASHBOARD)'!$W$4) ->  | O52: 25 | P52: 0.2962962963 | Q52: =INDEX('Compile Data'!$L$123:$AI$204,$O52,'Report - ALL (DASHBOARD)'!$W$4) -> 980.9522371 | R52: =INDEX('Compile Data'!$AL$123:$BI$204,$O52,'Report - ALL (DASHBOARD)'!$W$4) -> 720.8399124 | S52: =INDEX('Compile Data'!$BL$123:$CI$204,$O52,'Report - ALL (DASHBOARD)'!$W$4) -> 728.2568169 | T52: =INDEX('Compile Data'!$CL$123:$DI$204,$O52,'Report - ALL (DASHBOARD)'!$W$4) -> 777.987216 | U52: =INDEX('Compile Data'!$DL$123:$EI$204,$O52,'Report - ALL (DASHBOARD)'!$W$4) ->  | V52: =INDEX('Compile Data'!$EL$123:$FI$204,$O52,'Report - ALL (DASHBOARD)'!$W$4) -> 
A53: 1947 | B53: =INDEX('Compile Data'!$L$12:$AI$93,$A53-1921,'Report - ALL (DASHBOARD)'!$W$4) -> -396.3913116 | C53: =INDEX('Compile Data'!$AL$12:$BI$93,$A53-1921,'Report - ALL (DASHBOARD)'!$W$4) -> -1035.896973 | D53: =INDEX('Compile Data'!$BL$12:$CI$93,$A53-1921,'Report - ALL (DASHBOARD)'!$W$4) -> -1049.269241 | E53: =INDEX('Compile Data'!$CL$12:$DI$93,$A53-1921,'Report - ALL (DASHBOARD)'!$W$4) -> -1030.087944 | F53: =INDEX('Compile Data'!$DL$12:$EI$93,$A53-1921,'Report - ALL (DASHBOARD)'!$W$4) ->  | G53: =INDEX('Compile Data'!$EL$12:$FI$93,$A53-1921,'Report - ALL (DASHBOARD)'!$W$4) ->  | O53: 26 | P53: 0.3086419753 | Q53: =INDEX('Compile Data'!$L$123:$AI$204,$O53,'Report - ALL (DASHBOARD)'!$W$4) -> 974.5117111 | R53: =INDEX('Compile Data'!$AL$123:$BI$204,$O53,'Report - ALL (DASHBOARD)'!$W$4) -> 719.9618034 | S53: =INDEX('Compile Data'!$BL$123:$CI$204,$O53,'Report - ALL (DASHBOARD)'!$W$4) -> 724.9777908 | T53: =INDEX('Compile Data'!$CL$123:$DI$204,$O53,'Report - ALL (DASHBOARD)'!$W$4) -> 772.0498919 | U53: =INDEX('Compile Data'!$DL$123:$EI$204,$O53,'Report - ALL (DASHBOARD)'!$W$4) ->  | V53: =INDEX('Compile Data'!$EL$123:$FI$204,$O53,'Report - ALL (DASHBOARD)'!$W$4) -> 
A54: 1948 | B54: =INDEX('Compile Data'!$L$12:$AI$93,$A54-1921,'Report - ALL (DASHBOARD)'!$W$4) -> -710.6639953 | C54: =INDEX('Compile Data'!$AL$12:$BI$93,$A54-1921,'Report - ALL (DASHBOARD)'!$W$4) -> -925.7927675 | D54: =INDEX('Compile Data'!$BL$12:$CI$93,$A54-1921,'Report - ALL (DASHBOARD)'!$W$4) -> -961.6536646 | E54: =INDEX('Compile Data'!$CL$12:$DI$93,$A54-1921,'Report - ALL (DASHBOARD)'!$W$4) -> -920.1941338 | F54: =INDEX('Compile Data'!$DL$12:$EI$93,$A54-1921,'Report - ALL (DASHBOARD)'!$W$4) ->  | G54: =INDEX('Compile Data'!$EL$12:$FI$93,$A54-1921,'Report - ALL (DASHBOARD)'!$W$4) ->  | O54: 27 | P54: 0.3209876543 | Q54: =INDEX('Compile Data'!$L$123:$AI$204,$O54,'Report - ALL (DASHBOARD)'!$W$4) -> 933.8034916 | R54: =INDEX('Compile Data'!$AL$123:$BI$204,$O54,'Report - ALL (DASHBOARD)'!$W$4) -> 701.0733414 | S54: =INDEX('Compile Data'!$BL$123:$CI$204,$O54,'Report - ALL (DASHBOARD)'!$W$4) -> 704.8954506 | T54: =INDEX('Compile Data'!$CL$123:$DI$204,$O54,'Report - ALL (DASHBOARD)'!$W$4) -> 756.6992798 | U54: =INDEX('Compile Data'!$DL$123:$EI$204,$O54,'Report - ALL (DASHBOARD)'!$W$4) ->  | V54: =INDEX('Compile Data'!$EL$123:$FI$204,$O54,'Report - ALL (DASHBOARD)'!$W$4) -> 
A55: 1949 | B55: =INDEX('Compile Data'!$L$12:$AI$93,$A55-1921,'Report - ALL (DASHBOARD)'!$W$4) -> 301.5039272 | C55: =INDEX('Compile Data'!$AL$12:$BI$93,$A55-1921,'Report - ALL (DASHBOARD)'!$W$4) -> -348.5614967 | D55: =INDEX('Compile Data'!$BL$12:$CI$93,$A55-1921,'Report - ALL (DASHBOARD)'!$W$4) -> -366.8519192 | E55: =INDEX('Compile Data'!$CL$12:$DI$93,$A55-1921,'Report - ALL (DASHBOARD)'!$W$4) -> -404.6831264 | F55: =INDEX('Compile Data'!$DL$12:$EI$93,$A55-1921,'Report - ALL (DASHBOARD)'!$W$4) ->  | G55: =INDEX('Compile Data'!$EL$12:$FI$93,$A55-1921,'Report - ALL (DASHBOARD)'!$W$4) ->  | O55: 28 | P55: 0.3333333333 | Q55: =INDEX('Compile Data'!$L$123:$AI$204,$O55,'Report - ALL (DASHBOARD)'!$W$4) -> 888.5601797 | R55: =INDEX('Compile Data'!$AL$123:$BI$204,$O55,'Report - ALL (DASHBOARD)'!$W$4) -> 637.2120667 | S55: =INDEX('Compile Data'!$BL$123:$CI$204,$O55,'Report - ALL (DASHBOARD)'!$W$4) -> 616.2848854 | T55: =INDEX('Compile Data'!$CL$123:$DI$204,$O55,'Report - ALL (DASHBOARD)'!$W$4) -> 742.7566795 | U55: =INDEX('Compile Data'!$DL$123:$EI$204,$O55,'Report - ALL (DASHBOARD)'!$W$4) ->  | V55: =INDEX('Compile Data'!$EL$123:$FI$204,$O55,'Report - ALL (DASHBOARD)'!$W$4) -> 
A56: 1950 | B56: =INDEX('Compile Data'!$L$12:$AI$93,$A56-1921,'Report - ALL (DASHBOARD)'!$W$4) -> 88.38390827 | C56: =INDEX('Compile Data'!$AL$12:$BI$93,$A56-1921,'Report - ALL (DASHBOARD)'!$W$4) -> -274.6315546 | D56: =INDEX('Compile Data'!$BL$12:$CI$93,$A56-1921,'Report - ALL (DASHBOARD)'!$W$4) -> -126.6354723 | E56: =INDEX('Compile Data'!$CL$12:$DI$93,$A56-1921,'Report - ALL (DASHBOARD)'!$W$4) -> -138.0055285 | F56: =INDEX('Compile Data'!$DL$12:$EI$93,$A56-1921,'Report - ALL (DASHBOARD)'!$W$4) ->  | G56: =INDEX('Compile Data'!$EL$12:$FI$93,$A56-1921,'Report - ALL (DASHBOARD)'!$W$4) ->  | O56: 29 | P56: 0.3456790123 | Q56: =INDEX('Compile Data'!$L$123:$AI$204,$O56,'Report - ALL (DASHBOARD)'!$W$4) -> 862.2646065 | R56: =INDEX('Compile Data'!$AL$123:$BI$204,$O56,'Report - ALL (DASHBOARD)'!$W$4) -> 613.6453743 | S56: =INDEX('Compile Data'!$BL$123:$CI$204,$O56,'Report - ALL (DASHBOARD)'!$W$4) -> 609.4705324 | T56: =INDEX('Compile Data'!$CL$123:$DI$204,$O56,'Report - ALL (DASHBOARD)'!$W$4) -> 719.2561493 | U56: =INDEX('Compile Data'!$DL$123:$EI$204,$O56,'Report - ALL (DASHBOARD)'!$W$4) ->  | V56: =INDEX('Compile Data'!$EL$123:$FI$204,$O56,'Report - ALL (DASHBOARD)'!$W$4) -> 
A57: 1951 | B57: =INDEX('Compile Data'!$L$12:$AI$93,$A57-1921,'Report - ALL (DASHBOARD)'!$W$4) -> 834.5708861 | C57: =INDEX('Compile Data'!$AL$12:$BI$93,$A57-1921,'Report - ALL (DASHBOARD)'!$W$4) -> 637.2120667 | D57: =INDEX('Compile Data'!$BL$12:$CI$93,$A57-1921,'Report - ALL (DASHBOARD)'!$W$4) -> 616.2848854 | E57: =INDEX('Compile Data'!$CL$12:$DI$93,$A57-1921,'Report - ALL (DASHBOARD)'!$W$4) -> 777.987216 | F57: =INDEX('Compile Data'!$DL$12:$EI$93,$A57-1921,'Report - ALL (DASHBOARD)'!$W$4) ->  | G57: =INDEX('Compile Data'!$EL$12:$FI$93,$A57-1921,'Report - ALL (DASHBOARD)'!$W$4) ->  | O57: 30 | P57: 0.3580246914 | Q57: =INDEX('Compile Data'!$L$123:$AI$204,$O57,'Report - ALL (DASHBOARD)'!$W$4) -> 834.5708861 | R57: =INDEX('Compile Data'!$AL$123:$BI$204,$O57,'Report - ALL (DASHBOARD)'!$W$4) -> 603.8388948 | S57: =INDEX('Compile Data'!$BL$123:$CI$204,$O57,'Report - ALL (DASHBOARD)'!$W$4) -> 595.8163452 | T57: =INDEX('Compile Data'!$CL$123:$DI$204,$O57,'Report - ALL (DASHBOARD)'!$W$4) -> 687.8536644 | U57: =INDEX('Compile Data'!$DL$123:$EI$204,$O57,'Report - ALL (DASHBOARD)'!$W$4) ->  | V57: =INDEX('Compile Data'!$EL$123:$FI$204,$O57,'Report - ALL (DASHBOARD)'!$W$4) -> 
A58: 1952 | B58: =INDEX('Compile Data'!$L$12:$AI$93,$A58-1921,'Report - ALL (DASHBOARD)'!$W$4) -> 1249.433852 | C58: =INDEX('Compile Data'!$AL$12:$BI$93,$A58-1921,'Report - ALL (DASHBOARD)'!$W$4) -> 982.8096848 | D58: =INDEX('Compile Data'!$BL$12:$CI$93,$A58-1921,'Report - ALL (DASHBOARD)'!$W$4) -> 1023.653702 | E58: =INDEX('Compile Data'!$CL$12:$DI$93,$A58-1921,'Report - ALL (DASHBOARD)'!$W$4) -> 1364.1408 | F58: =INDEX('Compile Data'!$DL$12:$EI$93,$A58-1921,'Report - ALL (DASHBOARD)'!$W$4) ->  | G58: =INDEX('Compile Data'!$EL$12:$FI$93,$A58-1921,'Report - ALL (DASHBOARD)'!$W$4) ->  | O58: 31 | P58: 0.3703703704 | Q58: =INDEX('Compile Data'!$L$123:$AI$204,$O58,'Report - ALL (DASHBOARD)'!$W$4) -> 832.4316368 | R58: =INDEX('Compile Data'!$AL$123:$BI$204,$O58,'Report - ALL (DASHBOARD)'!$W$4) -> 446.9260712 | S58: =INDEX('Compile Data'!$BL$123:$CI$204,$O58,'Report - ALL (DASHBOARD)'!$W$4) -> 447.046793 | T58: =INDEX('Compile Data'!$CL$123:$DI$204,$O58,'Report - ALL (DASHBOARD)'!$W$4) -> 670.2625465 | U58: =INDEX('Compile Data'!$DL$123:$EI$204,$O58,'Report - ALL (DASHBOARD)'!$W$4) ->  | V58: =INDEX('Compile Data'!$EL$123:$FI$204,$O58,'Report - ALL (DASHBOARD)'!$W$4) -> 
A59: 1953 | B59: =INDEX('Compile Data'!$L$12:$AI$93,$A59-1921,'Report - ALL (DASHBOARD)'!$W$4) -> 933.8034916 | C59: =INDEX('Compile Data'!$AL$12:$BI$93,$A59-1921,'Report - ALL (DASHBOARD)'!$W$4) -> 926.1868706 | D59: =INDEX('Compile Data'!$BL$12:$CI$93,$A59-1921,'Report - ALL (DASHBOARD)'!$W$4) -> 911.9069538 | E59: =INDEX('Compile Data'!$CL$12:$DI$93,$A59-1921,'Report - ALL (DASHBOARD)'!$W$4) -> 906.5805931 | F59: =INDEX('Compile Data'!$DL$12:$EI$93,$A59-1921,'Report - ALL (DASHBOARD)'!$W$4) ->  | G59: =INDEX('Compile Data'!$EL$12:$FI$93,$A59-1921,'Report - ALL (DASHBOARD)'!$W$4) ->  | O59: 32 | P59: 0.3827160494 | Q59: =INDEX('Compile Data'!$L$123:$AI$204,$O59,'Report - ALL (DASHBOARD)'!$W$4) -> 776.6136246 | R59: =INDEX('Compile Data'!$AL$123:$BI$204,$O59,'Report - ALL (DASHBOARD)'!$W$4) -> 446.0542541 | S59: =INDEX('Compile Data'!$BL$123:$CI$204,$O59,'Report - ALL (DASHBOARD)'!$W$4) -> 446.6990676 | T59: =INDEX('Compile Data'!$CL$123:$DI$204,$O59,'Report - ALL (DASHBOARD)'!$W$4) -> 667.1769152 | U59: =INDEX('Compile Data'!$DL$123:$EI$204,$O59,'Report - ALL (DASHBOARD)'!$W$4) ->  | V59: =INDEX('Compile Data'!$EL$123:$FI$204,$O59,'Report - ALL (DASHBOARD)'!$W$4) -> 
A60: 1954 | B60: =INDEX('Compile Data'!$L$12:$AI$93,$A60-1921,'Report - ALL (DASHBOARD)'!$W$4) -> 1542.437862 | C60: =INDEX('Compile Data'!$AL$12:$BI$93,$A60-1921,'Report - ALL (DASHBOARD)'!$W$4) -> 1478.209508 | D60: =INDEX('Compile Data'!$BL$12:$CI$93,$A60-1921,'Report - ALL (DASHBOARD)'!$W$4) -> 1488.640927 | E60: =INDEX('Compile Data'!$CL$12:$DI$93,$A60-1921,'Report - ALL (DASHBOARD)'!$W$4) -> 1460.0015 | F60: =INDEX('Compile Data'!$DL$12:$EI$93,$A60-1921,'Report - ALL (DASHBOARD)'!$W$4) ->  | G60: =INDEX('Compile Data'!$EL$12:$FI$93,$A60-1921,'Report - ALL (DASHBOARD)'!$W$4) ->  | O60: 33 | P60: 0.3950617284 | Q60: =INDEX('Compile Data'!$L$123:$AI$204,$O60,'Report - ALL (DASHBOARD)'!$W$4) -> 762.2871132 | R60: =INDEX('Compile Data'!$AL$123:$BI$204,$O60,'Report - ALL (DASHBOARD)'!$W$4) -> 441.2159386 | S60: =INDEX('Compile Data'!$BL$123:$CI$204,$O60,'Report - ALL (DASHBOARD)'!$W$4) -> 421.6457748 | T60: =INDEX('Compile Data'!$CL$123:$DI$204,$O60,'Report - ALL (DASHBOARD)'!$W$4) -> 509.2124748 | U60: =INDEX('Compile Data'!$DL$123:$EI$204,$O60,'Report - ALL (DASHBOARD)'!$W$4) ->  | V60: =INDEX('Compile Data'!$EL$123:$FI$204,$O60,'Report - ALL (DASHBOARD)'!$W$4) -> 
A61: 1955 | B61: =INDEX('Compile Data'!$L$12:$AI$93,$A61-1921,'Report - ALL (DASHBOARD)'!$W$4) -> -386.3101654 | C61: =INDEX('Compile Data'!$AL$12:$BI$93,$A61-1921,'Report - ALL (DASHBOARD)'!$W$4) -> -858.0397949 | D61: =INDEX('Compile Data'!$BL$12:$CI$93,$A61-1921,'Report - ALL (DASHBOARD)'!$W$4) -> -831.2667809 | E61: =INDEX('Compile Data'!$CL$12:$DI$93,$A61-1921,'Report - ALL (DASHBOARD)'!$W$4) -> -828.1045933 | F61: =INDEX('Compile Data'!$DL$12:$EI$93,$A61-1921,'Report - ALL (DASHBOARD)'!$W$4) ->  | G61: =INDEX('Compile Data'!$EL$12:$FI$93,$A61-1921,'Report - ALL (DASHBOARD)'!$W$4) ->  | O61: 34 | P61: 0.4074074074 | Q61: =INDEX('Compile Data'!$L$123:$AI$204,$O61,'Report - ALL (DASHBOARD)'!$W$4) -> 725.582489 | R61: =INDEX('Compile Data'!$AL$123:$BI$204,$O61,'Report - ALL (DASHBOARD)'!$W$4) -> 416.7137451 | S61: =INDEX('Compile Data'!$BL$123:$CI$204,$O61,'Report - ALL (DASHBOARD)'!$W$4) -> 402.2136612 | T61: =INDEX('Compile Data'!$CL$123:$DI$204,$O61,'Report - ALL (DASHBOARD)'!$W$4) -> 452.2143974 | U61: =INDEX('Compile Data'!$DL$123:$EI$204,$O61,'Report - ALL (DASHBOARD)'!$W$4) ->  | V61: =INDEX('Compile Data'!$EL$123:$FI$204,$O61,'Report - ALL (DASHBOARD)'!$W$4) -> 
A62: 1956 | B62: =INDEX('Compile Data'!$L$12:$AI$93,$A62-1921,'Report - ALL (DASHBOARD)'!$W$4) -> 1771.19735 | C62: =INDEX('Compile Data'!$AL$12:$BI$93,$A62-1921,'Report - ALL (DASHBOARD)'!$W$4) -> 1459.816116 | D62: =INDEX('Compile Data'!$BL$12:$CI$93,$A62-1921,'Report - ALL (DASHBOARD)'!$W$4) -> 2272.442863 | E62: =INDEX('Compile Data'!$CL$12:$DI$93,$A62-1921,'Report - ALL (DASHBOARD)'!$W$4) -> 2370.611015 | F62: =INDEX('Compile Data'!$DL$12:$EI$93,$A62-1921,'Report - ALL (DASHBOARD)'!$W$4) ->  | G62: =INDEX('Compile Data'!$EL$12:$FI$93,$A62-1921,'Report - ALL (DASHBOARD)'!$W$4) ->  | O62: 35 | P62: 0.4197530864 | Q62: =INDEX('Compile Data'!$L$123:$AI$204,$O62,'Report - ALL (DASHBOARD)'!$W$4) -> 607.0775051 | R62: =INDEX('Compile Data'!$AL$123:$BI$204,$O62,'Report - ALL (DASHBOARD)'!$W$4) -> 329.9698448 | S62: =INDEX('Compile Data'!$BL$123:$CI$204,$O62,'Report - ALL (DASHBOARD)'!$W$4) -> 335.9154863 | T62: =INDEX('Compile Data'!$CL$123:$DI$204,$O62,'Report - ALL (DASHBOARD)'!$W$4) -> 435.5190125 | U62: =INDEX('Compile Data'!$DL$123:$EI$204,$O62,'Report - ALL (DASHBOARD)'!$W$4) ->  | V62: =INDEX('Compile Data'!$EL$123:$FI$204,$O62,'Report - ALL (DASHBOARD)'!$W$4) -> 
A63: 1957 | B63: =INDEX('Compile Data'!$L$12:$AI$93,$A63-1921,'Report - ALL (DASHBOARD)'!$W$4) -> -18.1591053 | C63: =INDEX('Compile Data'!$AL$12:$BI$93,$A63-1921,'Report - ALL (DASHBOARD)'!$W$4) -> -78.86042976 | D63: =INDEX('Compile Data'!$BL$12:$CI$93,$A63-1921,'Report - ALL (DASHBOARD)'!$W$4) -> -152.8087769 | E63: =INDEX('Compile Data'!$CL$12:$DI$93,$A63-1921,'Report - ALL (DASHBOARD)'!$W$4) -> -392.4719691 | F63: =INDEX('Compile Data'!$DL$12:$EI$93,$A63-1921,'Report - ALL (DASHBOARD)'!$W$4) ->  | G63: =INDEX('Compile Data'!$EL$12:$FI$93,$A63-1921,'Report - ALL (DASHBOARD)'!$W$4) ->  | O63: 36 | P63: 0.4320987654 | Q63: =INDEX('Compile Data'!$L$123:$AI$204,$O63,'Report - ALL (DASHBOARD)'!$W$4) -> 593.8740501 | R63: =INDEX('Compile Data'!$AL$123:$BI$204,$O63,'Report - ALL (DASHBOARD)'!$W$4) -> 246.3326988 | S63: =INDEX('Compile Data'!$BL$123:$CI$204,$O63,'Report - ALL (DASHBOARD)'!$W$4) -> 310.3812981 | T63: =INDEX('Compile Data'!$CL$123:$DI$204,$O63,'Report - ALL (DASHBOARD)'!$W$4) -> 417.6409063 | U63: =INDEX('Compile Data'!$DL$123:$EI$204,$O63,'Report - ALL (DASHBOARD)'!$W$4) ->  | V63: =INDEX('Compile Data'!$EL$123:$FI$204,$O63,'Report - ALL (DASHBOARD)'!$W$4) -> 
A64: 1958 | B64: =INDEX('Compile Data'!$L$12:$AI$93,$A64-1921,'Report - ALL (DASHBOARD)'!$W$4) -> 1880.616135 | C64: =INDEX('Compile Data'!$AL$12:$BI$93,$A64-1921,'Report - ALL (DASHBOARD)'!$W$4) -> 1802.812988 | D64: =INDEX('Compile Data'!$BL$12:$CI$93,$A64-1921,'Report - ALL (DASHBOARD)'!$W$4) -> 1767.910198 | E64: =INDEX('Compile Data'!$CL$12:$DI$93,$A64-1921,'Report - ALL (DASHBOARD)'!$W$4) -> 1530.00322 | F64: =INDEX('Compile Data'!$DL$12:$EI$93,$A64-1921,'Report - ALL (DASHBOARD)'!$W$4) ->  | G64: =INDEX('Compile Data'!$EL$12:$FI$93,$A64-1921,'Report - ALL (DASHBOARD)'!$W$4) ->  | O64: 37 | P64: 0.4444444444 | Q64: =INDEX('Compile Data'!$L$123:$AI$204,$O64,'Report - ALL (DASHBOARD)'!$W$4) -> 565.715929 | R64: =INDEX('Compile Data'!$AL$123:$BI$204,$O64,'Report - ALL (DASHBOARD)'!$W$4) -> 231.3810463 | S64: =INDEX('Compile Data'!$BL$123:$CI$204,$O64,'Report - ALL (DASHBOARD)'!$W$4) -> 254.9615917 | T64: =INDEX('Compile Data'!$CL$123:$DI$204,$O64,'Report - ALL (DASHBOARD)'!$W$4) -> 404.0522237 | U64: =INDEX('Compile Data'!$DL$123:$EI$204,$O64,'Report - ALL (DASHBOARD)'!$W$4) ->  | V64: =INDEX('Compile Data'!$EL$123:$FI$204,$O64,'Report - ALL (DASHBOARD)'!$W$4) -> 
A65: 1959 | B65: =INDEX('Compile Data'!$L$12:$AI$93,$A65-1921,'Report - ALL (DASHBOARD)'!$W$4) -> -385.3515005 | C65: =INDEX('Compile Data'!$AL$12:$BI$93,$A65-1921,'Report - ALL (DASHBOARD)'!$W$4) -> -444.6726995 | D65: =INDEX('Compile Data'!$BL$12:$CI$93,$A65-1921,'Report - ALL (DASHBOARD)'!$W$4) -> -516.6691818 | E65: =INDEX('Compile Data'!$CL$12:$DI$93,$A65-1921,'Report - ALL (DASHBOARD)'!$W$4) -> -466.8678288 | F65: =INDEX('Compile Data'!$DL$12:$EI$93,$A65-1921,'Report - ALL (DASHBOARD)'!$W$4) ->  | G65: =INDEX('Compile Data'!$EL$12:$FI$93,$A65-1921,'Report - ALL (DASHBOARD)'!$W$4) ->  | O65: 38 | P65: 0.4567901235 | Q65: =INDEX('Compile Data'!$L$123:$AI$204,$O65,'Report - ALL (DASHBOARD)'!$W$4) -> 545.9331733 | R65: =INDEX('Compile Data'!$AL$123:$BI$204,$O65,'Report - ALL (DASHBOARD)'!$W$4) -> 213.487587 | S65: =INDEX('Compile Data'!$BL$123:$CI$204,$O65,'Report - ALL (DASHBOARD)'!$W$4) -> 239.6659136 | T65: =INDEX('Compile Data'!$CL$123:$DI$204,$O65,'Report - ALL (DASHBOARD)'!$W$4) -> 331.4971733 | U65: =INDEX('Compile Data'!$DL$123:$EI$204,$O65,'Report - ALL (DASHBOARD)'!$W$4) ->  | V65: =INDEX('Compile Data'!$EL$123:$FI$204,$O65,'Report - ALL (DASHBOARD)'!$W$4) -> 
A66: 1960 | B66: =INDEX('Compile Data'!$L$12:$AI$93,$A66-1921,'Report - ALL (DASHBOARD)'!$W$4) -> 565.715929 | C66: =INDEX('Compile Data'!$AL$12:$BI$93,$A66-1921,'Report - ALL (DASHBOARD)'!$W$4) -> 329.9698448 | D66: =INDEX('Compile Data'!$BL$12:$CI$93,$A66-1921,'Report - ALL (DASHBOARD)'!$W$4) -> 335.9154863 | E66: =INDEX('Compile Data'!$CL$12:$DI$93,$A66-1921,'Report - ALL (DASHBOARD)'!$W$4) -> 331.4971733 | F66: =INDEX('Compile Data'!$DL$12:$EI$93,$A66-1921,'Report - ALL (DASHBOARD)'!$W$4) ->  | G66: =INDEX('Compile Data'!$EL$12:$FI$93,$A66-1921,'Report - ALL (DASHBOARD)'!$W$4) ->  | O66: 39 | P66: 0.4691358025 | Q66: =INDEX('Compile Data'!$L$123:$AI$204,$O66,'Report - ALL (DASHBOARD)'!$W$4) -> 493.3324747 | R66: =INDEX('Compile Data'!$AL$123:$BI$204,$O66,'Report - ALL (DASHBOARD)'!$W$4) -> 212.8559256 | S66: =INDEX('Compile Data'!$BL$123:$CI$204,$O66,'Report - ALL (DASHBOARD)'!$W$4) -> 228.0324488 | T66: =INDEX('Compile Data'!$CL$123:$DI$204,$O66,'Report - ALL (DASHBOARD)'!$W$4) -> 317.9192905 | U66: =INDEX('Compile Data'!$DL$123:$EI$204,$O66,'Report - ALL (DASHBOARD)'!$W$4) ->  | V66: =INDEX('Compile Data'!$EL$123:$FI$204,$O66,'Report - ALL (DASHBOARD)'!$W$4) -> 
A67: 1961 | B67: =INDEX('Compile Data'!$L$12:$AI$93,$A67-1921,'Report - ALL (DASHBOARD)'!$W$4) -> 73.27257347 | C67: =INDEX('Compile Data'!$AL$12:$BI$93,$A67-1921,'Report - ALL (DASHBOARD)'!$W$4) -> -757.8134327 | D67: =INDEX('Compile Data'!$BL$12:$CI$93,$A67-1921,'Report - ALL (DASHBOARD)'!$W$4) -> -525.0481644 | E67: =INDEX('Compile Data'!$CL$12:$DI$93,$A67-1921,'Report - ALL (DASHBOARD)'!$W$4) -> -708.3152351 | F67: =INDEX('Compile Data'!$DL$12:$EI$93,$A67-1921,'Report - ALL (DASHBOARD)'!$W$4) ->  | G67: =INDEX('Compile Data'!$EL$12:$FI$93,$A67-1921,'Report - ALL (DASHBOARD)'!$W$4) ->  | O67: 40 | P67: 0.4814814815 | Q67: =INDEX('Compile Data'!$L$123:$AI$204,$O67,'Report - ALL (DASHBOARD)'!$W$4) -> 487.728569 | R67: =INDEX('Compile Data'!$AL$123:$BI$204,$O67,'Report - ALL (DASHBOARD)'!$W$4) -> 195.6951032 | S67: =INDEX('Compile Data'!$BL$123:$CI$204,$O67,'Report - ALL (DASHBOARD)'!$W$4) -> 160.2549858 | T67: =INDEX('Compile Data'!$CL$123:$DI$204,$O67,'Report - ALL (DASHBOARD)'!$W$4) -> 276.6187806 | U67: =INDEX('Compile Data'!$DL$123:$EI$204,$O67,'Report - ALL (DASHBOARD)'!$W$4) ->  | V67: =INDEX('Compile Data'!$EL$123:$FI$204,$O67,'Report - ALL (DASHBOARD)'!$W$4) -> 
A68: 1962 | B68: =INDEX('Compile Data'!$L$12:$AI$93,$A68-1921,'Report - ALL (DASHBOARD)'!$W$4) -> -609.2739143 | C68: =INDEX('Compile Data'!$AL$12:$BI$93,$A68-1921,'Report - ALL (DASHBOARD)'!$W$4) -> -1051.407112 | D68: =INDEX('Compile Data'!$BL$12:$CI$93,$A68-1921,'Report - ALL (DASHBOARD)'!$W$4) -> -959.8781099 | E68: =INDEX('Compile Data'!$CL$12:$DI$93,$A68-1921,'Report - ALL (DASHBOARD)'!$W$4) -> -959.0174713 | F68: =INDEX('Compile Data'!$DL$12:$EI$93,$A68-1921,'Report - ALL (DASHBOARD)'!$W$4) ->  | G68: =INDEX('Compile Data'!$EL$12:$FI$93,$A68-1921,'Report - ALL (DASHBOARD)'!$W$4) ->  | O68: 41 | P68: 0.4938271605 | Q68: =INDEX('Compile Data'!$L$123:$AI$204,$O68,'Report - ALL (DASHBOARD)'!$W$4) -> 444.7151837 | R68: =INDEX('Compile Data'!$AL$123:$BI$204,$O68,'Report - ALL (DASHBOARD)'!$W$4) -> 137.1482382 | S68: =INDEX('Compile Data'!$BL$123:$CI$204,$O68,'Report - ALL (DASHBOARD)'!$W$4) -> 158.6032057 | T68: =INDEX('Compile Data'!$CL$123:$DI$204,$O68,'Report - ALL (DASHBOARD)'!$W$4) -> 190.4393475 | U68: =INDEX('Compile Data'!$DL$123:$EI$204,$O68,'Report - ALL (DASHBOARD)'!$W$4) ->  | V68: =INDEX('Compile Data'!$EL$123:$FI$204,$O68,'Report - ALL (DASHBOARD)'!$W$4) -> 
A69: 1963 | B69: =INDEX('Compile Data'!$L$12:$AI$93,$A69-1921,'Report - ALL (DASHBOARD)'!$W$4) -> 974.5117111 | C69: =INDEX('Compile Data'!$AL$12:$BI$93,$A69-1921,'Report - ALL (DASHBOARD)'!$W$4) -> 701.0733414 | D69: =INDEX('Compile Data'!$BL$12:$CI$93,$A69-1921,'Report - ALL (DASHBOARD)'!$W$4) -> 724.9777908 | E69: =INDEX('Compile Data'!$CL$12:$DI$93,$A69-1921,'Report - ALL (DASHBOARD)'!$W$4) -> 719.2561493 | F69: =INDEX('Compile Data'!$DL$12:$EI$93,$A69-1921,'Report - ALL (DASHBOARD)'!$W$4) ->  | G69: =INDEX('Compile Data'!$EL$12:$FI$93,$A69-1921,'Report - ALL (DASHBOARD)'!$W$4) ->  | O69: 42 | P69: 0.5061728395 | Q69: =INDEX('Compile Data'!$L$123:$AI$204,$O69,'Report - ALL (DASHBOARD)'!$W$4) -> 425.3880367 | R69: =INDEX('Compile Data'!$AL$123:$BI$204,$O69,'Report - ALL (DASHBOARD)'!$W$4) -> 90.59974432 | S69: =INDEX('Compile Data'!$BL$123:$CI$204,$O69,'Report - ALL (DASHBOARD)'!$W$4) -> 142.580472 | T69: =INDEX('Compile Data'!$CL$123:$DI$204,$O69,'Report - ALL (DASHBOARD)'!$W$4) -> 171.64081 | U69: =INDEX('Compile Data'!$DL$123:$EI$204,$O69,'Report - ALL (DASHBOARD)'!$W$4) ->  | V69: =INDEX('Compile Data'!$EL$123:$FI$204,$O69,'Report - ALL (DASHBOARD)'!$W$4) -> 
A70: 1964 | B70: =INDEX('Compile Data'!$L$12:$AI$93,$A70-1921,'Report - ALL (DASHBOARD)'!$W$4) -> -510.9171953 | C70: =INDEX('Compile Data'!$AL$12:$BI$93,$A70-1921,'Report - ALL (DASHBOARD)'!$W$4) -> -696.4766045 | D70: =INDEX('Compile Data'!$BL$12:$CI$93,$A70-1921,'Report - ALL (DASHBOARD)'!$W$4) -> -716.1467247 | E70: =INDEX('Compile Data'!$CL$12:$DI$93,$A70-1921,'Report - ALL (DASHBOARD)'!$W$4) -> -746.1401367 | F70: =INDEX('Compile Data'!$DL$12:$EI$93,$A70-1921,'Report - ALL (DASHBOARD)'!$W$4) ->  | G70: =INDEX('Compile Data'!$EL$12:$FI$93,$A70-1921,'Report - ALL (DASHBOARD)'!$W$4) ->  | O70: 43 | P70: 0.5185185185 | Q70: =INDEX('Compile Data'!$L$123:$AI$204,$O70,'Report - ALL (DASHBOARD)'!$W$4) -> 404.0676327 | R70: =INDEX('Compile Data'!$AL$123:$BI$204,$O70,'Report - ALL (DASHBOARD)'!$W$4) -> 51.6281929 | S70: =INDEX('Compile Data'!$BL$123:$CI$204,$O70,'Report - ALL (DASHBOARD)'!$W$4) -> 28.4824791 | T70: =INDEX('Compile Data'!$CL$123:$DI$204,$O70,'Report - ALL (DASHBOARD)'!$W$4) -> 60.14954638 | U70: =INDEX('Compile Data'!$DL$123:$EI$204,$O70,'Report - ALL (DASHBOARD)'!$W$4) ->  | V70: =INDEX('Compile Data'!$EL$123:$FI$204,$O70,'Report - ALL (DASHBOARD)'!$W$4) -> 
A71: 1965 | B71: =INDEX('Compile Data'!$L$12:$AI$93,$A71-1921,'Report - ALL (DASHBOARD)'!$W$4) -> 1743.429029 | C71: =INDEX('Compile Data'!$AL$12:$BI$93,$A71-1921,'Report - ALL (DASHBOARD)'!$W$4) -> 1355.22509 | D71: =INDEX('Compile Data'!$BL$12:$CI$93,$A71-1921,'Report - ALL (DASHBOARD)'!$W$4) -> 1499.804531 | E71: =INDEX('Compile Data'!$CL$12:$DI$93,$A71-1921,'Report - ALL (DASHBOARD)'!$W$4) -> 1393.566107 | F71: =INDEX('Compile Data'!$DL$12:$EI$93,$A71-1921,'Report - ALL (DASHBOARD)'!$W$4) ->  | G71: =INDEX('Compile Data'!$EL$12:$FI$93,$A71-1921,'Report - ALL (DASHBOARD)'!$W$4) ->  | O71: 44 | P71: 0.5308641975 | Q71: =INDEX('Compile Data'!$L$123:$AI$204,$O71,'Report - ALL (DASHBOARD)'!$W$4) -> 351.2768965 | R71: =INDEX('Compile Data'!$AL$123:$BI$204,$O71,'Report - ALL (DASHBOARD)'!$W$4) -> 36.15752029 | S71: =INDEX('Compile Data'!$BL$123:$CI$204,$O71,'Report - ALL (DASHBOARD)'!$W$4) -> -18.12498093 | T71: =INDEX('Compile Data'!$CL$123:$DI$204,$O71,'Report - ALL (DASHBOARD)'!$W$4) -> 34.76737881 | U71: =INDEX('Compile Data'!$DL$123:$EI$204,$O71,'Report - ALL (DASHBOARD)'!$W$4) ->  | V71: =INDEX('Compile Data'!$EL$123:$FI$204,$O71,'Report - ALL (DASHBOARD)'!$W$4) -> 
A72: 1966 | B72: =INDEX('Compile Data'!$L$12:$AI$93,$A72-1921,'Report - ALL (DASHBOARD)'!$W$4) -> 107.4777145 | C72: =INDEX('Compile Data'!$AL$12:$BI$93,$A72-1921,'Report - ALL (DASHBOARD)'!$W$4) -> 51.6281929 | D72: =INDEX('Compile Data'!$BL$12:$CI$93,$A72-1921,'Report - ALL (DASHBOARD)'!$W$4) -> -53.40081024 | E72: =INDEX('Compile Data'!$CL$12:$DI$93,$A72-1921,'Report - ALL (DASHBOARD)'!$W$4) -> -174.6010208 | F72: =INDEX('Compile Data'!$DL$12:$EI$93,$A72-1921,'Report - ALL (DASHBOARD)'!$W$4) ->  | G72: =INDEX('Compile Data'!$EL$12:$FI$93,$A72-1921,'Report - ALL (DASHBOARD)'!$W$4) ->  | O72: 45 | P72: 0.5432098765 | Q72: =INDEX('Compile Data'!$L$123:$AI$204,$O72,'Report - ALL (DASHBOARD)'!$W$4) -> 301.5039272 | R72: =INDEX('Compile Data'!$AL$123:$BI$204,$O72,'Report - ALL (DASHBOARD)'!$W$4) -> -33.85162783 | S72: =INDEX('Compile Data'!$BL$123:$CI$204,$O72,'Report - ALL (DASHBOARD)'!$W$4) -> -53.40081024 | T72: =INDEX('Compile Data'!$CL$123:$DI$204,$O72,'Report - ALL (DASHBOARD)'!$W$4) -> -43.16622162 | U72: =INDEX('Compile Data'!$DL$123:$EI$204,$O72,'Report - ALL (DASHBOARD)'!$W$4) ->  | V72: =INDEX('Compile Data'!$EL$123:$FI$204,$O72,'Report - ALL (DASHBOARD)'!$W$4) -> 
A73: 1967 | B73: =INDEX('Compile Data'!$L$12:$AI$93,$A73-1921,'Report - ALL (DASHBOARD)'!$W$4) -> 888.5601797 | C73: =INDEX('Compile Data'!$AL$12:$BI$93,$A73-1921,'Report - ALL (DASHBOARD)'!$W$4) -> 603.8388948 | D73: =INDEX('Compile Data'!$BL$12:$CI$93,$A73-1921,'Report - ALL (DASHBOARD)'!$W$4) -> 609.4705324 | E73: =INDEX('Compile Data'!$CL$12:$DI$93,$A73-1921,'Report - ALL (DASHBOARD)'!$W$4) -> 667.1769152 | F73: =INDEX('Compile Data'!$DL$12:$EI$93,$A73-1921,'Report - ALL (DASHBOARD)'!$W$4) ->  | G73: =INDEX('Compile Data'!$EL$12:$FI$93,$A73-1921,'Report - ALL (DASHBOARD)'!$W$4) ->  | O73: 46 | P73: 0.5555555556 | Q73: =INDEX('Compile Data'!$L$123:$AI$204,$O73,'Report - ALL (DASHBOARD)'!$W$4) -> 254.5100136 | R73: =INDEX('Compile Data'!$AL$123:$BI$204,$O73,'Report - ALL (DASHBOARD)'!$W$4) -> -74.55583572 | S73: =INDEX('Compile Data'!$BL$123:$CI$204,$O73,'Report - ALL (DASHBOARD)'!$W$4) -> -119.1548796 | T73: =INDEX('Compile Data'!$CL$123:$DI$204,$O73,'Report - ALL (DASHBOARD)'!$W$4) -> -133.0520678 | U73: =INDEX('Compile Data'!$DL$123:$EI$204,$O73,'Report - ALL (DASHBOARD)'!$W$4) ->  | V73: =INDEX('Compile Data'!$EL$123:$FI$204,$O73,'Report - ALL (DASHBOARD)'!$W$4) -> 
A74: 1968 | B74: =INDEX('Compile Data'!$L$12:$AI$93,$A74-1921,'Report - ALL (DASHBOARD)'!$W$4) -> 45.65526199 | C74: =INDEX('Compile Data'!$AL$12:$BI$93,$A74-1921,'Report - ALL (DASHBOARD)'!$W$4) -> 36.15752029 | D74: =INDEX('Compile Data'!$BL$12:$CI$93,$A74-1921,'Report - ALL (DASHBOARD)'!$W$4) -> 28.4824791 | E74: =INDEX('Compile Data'!$CL$12:$DI$93,$A74-1921,'Report - ALL (DASHBOARD)'!$W$4) -> -43.16622162 | F74: =INDEX('Compile Data'!$DL$12:$EI$93,$A74-1921,'Report - ALL (DASHBOARD)'!$W$4) ->  | G74: =INDEX('Compile Data'!$EL$12:$FI$93,$A74-1921,'Report - ALL (DASHBOARD)'!$W$4) ->  | O74: 47 | P74: 0.5679012346 | Q74: =INDEX('Compile Data'!$L$123:$AI$204,$O74,'Report - ALL (DASHBOARD)'!$W$4) -> 159.4947262 | R74: =INDEX('Compile Data'!$AL$123:$BI$204,$O74,'Report - ALL (DASHBOARD)'!$W$4) -> -78.86042976 | S74: =INDEX('Compile Data'!$BL$123:$CI$204,$O74,'Report - ALL (DASHBOARD)'!$W$4) -> -126.6354723 | T74: =INDEX('Compile Data'!$CL$123:$DI$204,$O74,'Report - ALL (DASHBOARD)'!$W$4) -> -138.0055285 | U74: =INDEX('Compile Data'!$DL$123:$EI$204,$O74,'Report - ALL (DASHBOARD)'!$W$4) ->  | V74: =INDEX('Compile Data'!$EL$123:$FI$204,$O74,'Report - ALL (DASHBOARD)'!$W$4) -> 
A75: 1969 | B75: =INDEX('Compile Data'!$L$12:$AI$93,$A75-1921,'Report - ALL (DASHBOARD)'!$W$4) -> -429.1861391 | C75: =INDEX('Compile Data'!$AL$12:$BI$93,$A75-1921,'Report - ALL (DASHBOARD)'!$W$4) -> -412.7050228 | D75: =INDEX('Compile Data'!$BL$12:$CI$93,$A75-1921,'Report - ALL (DASHBOARD)'!$W$4) -> -454.7316494 | E75: =INDEX('Compile Data'!$CL$12:$DI$93,$A75-1921,'Report - ALL (DASHBOARD)'!$W$4) -> -458.1963158 | F75: =INDEX('Compile Data'!$DL$12:$EI$93,$A75-1921,'Report - ALL (DASHBOARD)'!$W$4) ->  | G75: =INDEX('Compile Data'!$EL$12:$FI$93,$A75-1921,'Report - ALL (DASHBOARD)'!$W$4) ->  | O75: 48 | P75: 0.5802469136 | Q75: =INDEX('Compile Data'!$L$123:$AI$204,$O75,'Report - ALL (DASHBOARD)'!$W$4) -> 107.4777145 | R75: =INDEX('Compile Data'!$AL$123:$BI$204,$O75,'Report - ALL (DASHBOARD)'!$W$4) -> -178.3639259 | S75: =INDEX('Compile Data'!$BL$123:$CI$204,$O75,'Report - ALL (DASHBOARD)'!$W$4) -> -152.8087769 | T75: =INDEX('Compile Data'!$CL$123:$DI$204,$O75,'Report - ALL (DASHBOARD)'!$W$4) -> -174.6010208 | U75: =INDEX('Compile Data'!$DL$123:$EI$204,$O75,'Report - ALL (DASHBOARD)'!$W$4) ->  | V75: =INDEX('Compile Data'!$EL$123:$FI$204,$O75,'Report - ALL (DASHBOARD)'!$W$4) -> 
A76: 1970 | B76: =INDEX('Compile Data'!$L$12:$AI$93,$A76-1921,'Report - ALL (DASHBOARD)'!$W$4) -> 2025.403278 | C76: =INDEX('Compile Data'!$AL$12:$BI$93,$A76-1921,'Report - ALL (DASHBOARD)'!$W$4) -> 1671.072735 | D76: =INDEX('Compile Data'!$BL$12:$CI$93,$A76-1921,'Report - ALL (DASHBOARD)'!$W$4) -> 1663.140869 | E76: =INDEX('Compile Data'!$CL$12:$DI$93,$A76-1921,'Report - ALL (DASHBOARD)'!$W$4) -> 1708.851284 | F76: =INDEX('Compile Data'!$DL$12:$EI$93,$A76-1921,'Report - ALL (DASHBOARD)'!$W$4) ->  | G76: =INDEX('Compile Data'!$EL$12:$FI$93,$A76-1921,'Report - ALL (DASHBOARD)'!$W$4) ->  | O76: 49 | P76: 0.5925925926 | Q76: =INDEX('Compile Data'!$L$123:$AI$204,$O76,'Report - ALL (DASHBOARD)'!$W$4) -> 88.38390827 | R76: =INDEX('Compile Data'!$AL$123:$BI$204,$O76,'Report - ALL (DASHBOARD)'!$W$4) -> -180.7811527 | S76: =INDEX('Compile Data'!$BL$123:$CI$204,$O76,'Report - ALL (DASHBOARD)'!$W$4) -> -158.4543643 | T76: =INDEX('Compile Data'!$CL$123:$DI$204,$O76,'Report - ALL (DASHBOARD)'!$W$4) -> -189.427494 | U76: =INDEX('Compile Data'!$DL$123:$EI$204,$O76,'Report - ALL (DASHBOARD)'!$W$4) ->  | V76: =INDEX('Compile Data'!$EL$123:$FI$204,$O76,'Report - ALL (DASHBOARD)'!$W$4) -> 
A77: 1971 | B77: =INDEX('Compile Data'!$L$12:$AI$93,$A77-1921,'Report - ALL (DASHBOARD)'!$W$4) -> 762.2871132 | C77: =INDEX('Compile Data'!$AL$12:$BI$93,$A77-1921,'Report - ALL (DASHBOARD)'!$W$4) -> 748.114933 | D77: =INDEX('Compile Data'!$BL$12:$CI$93,$A77-1921,'Report - ALL (DASHBOARD)'!$W$4) -> 704.8954506 | E77: =INDEX('Compile Data'!$CL$12:$DI$93,$A77-1921,'Report - ALL (DASHBOARD)'!$W$4) -> 742.7566795 | F77: =INDEX('Compile Data'!$DL$12:$EI$93,$A77-1921,'Report - ALL (DASHBOARD)'!$W$4) ->  | G77: =INDEX('Compile Data'!$EL$12:$FI$93,$A77-1921,'Report - ALL (DASHBOARD)'!$W$4) ->  | O77: 50 | P77: 0.6049382716 | Q77: =INDEX('Compile Data'!$L$123:$AI$204,$O77,'Report - ALL (DASHBOARD)'!$W$4) -> 73.27257347 | R77: =INDEX('Compile Data'!$AL$123:$BI$204,$O77,'Report - ALL (DASHBOARD)'!$W$4) -> -274.6315546 | S77: =INDEX('Compile Data'!$BL$123:$CI$204,$O77,'Report - ALL (DASHBOARD)'!$W$4) -> -195.0409698 | T77: =INDEX('Compile Data'!$CL$123:$DI$204,$O77,'Report - ALL (DASHBOARD)'!$W$4) -> -237.490038 | U77: =INDEX('Compile Data'!$DL$123:$EI$204,$O77,'Report - ALL (DASHBOARD)'!$W$4) ->  | V77: =INDEX('Compile Data'!$EL$123:$FI$204,$O77,'Report - ALL (DASHBOARD)'!$W$4) -> 
A78: 1972 | B78: =INDEX('Compile Data'!$L$12:$AI$93,$A78-1921,'Report - ALL (DASHBOARD)'!$W$4) -> 493.3324747 | C78: =INDEX('Compile Data'!$AL$12:$BI$93,$A78-1921,'Report - ALL (DASHBOARD)'!$W$4) -> 446.0542541 | D78: =INDEX('Compile Data'!$BL$12:$CI$93,$A78-1921,'Report - ALL (DASHBOARD)'!$W$4) -> 446.6990676 | E78: =INDEX('Compile Data'!$CL$12:$DI$93,$A78-1921,'Report - ALL (DASHBOARD)'!$W$4) -> 404.0522237 | F78: =INDEX('Compile Data'!$DL$12:$EI$93,$A78-1921,'Report - ALL (DASHBOARD)'!$W$4) ->  | G78: =INDEX('Compile Data'!$EL$12:$FI$93,$A78-1921,'Report - ALL (DASHBOARD)'!$W$4) ->  | O78: 51 | P78: 0.6172839506 | Q78: =INDEX('Compile Data'!$L$123:$AI$204,$O78,'Report - ALL (DASHBOARD)'!$W$4) -> 45.65526199 | R78: =INDEX('Compile Data'!$AL$123:$BI$204,$O78,'Report - ALL (DASHBOARD)'!$W$4) -> -348.5614967 | S78: =INDEX('Compile Data'!$BL$123:$CI$204,$O78,'Report - ALL (DASHBOARD)'!$W$4) -> -366.8519192 | T78: =INDEX('Compile Data'!$CL$123:$DI$204,$O78,'Report - ALL (DASHBOARD)'!$W$4) -> -335.1859875 | U78: =INDEX('Compile Data'!$DL$123:$EI$204,$O78,'Report - ALL (DASHBOARD)'!$W$4) ->  | V78: =INDEX('Compile Data'!$EL$123:$FI$204,$O78,'Report - ALL (DASHBOARD)'!$W$4) -> 
A79: 1973 | B79: =INDEX('Compile Data'!$L$12:$AI$93,$A79-1921,'Report - ALL (DASHBOARD)'!$W$4) -> 1016.436878 | C79: =INDEX('Compile Data'!$AL$12:$BI$93,$A79-1921,'Report - ALL (DASHBOARD)'!$W$4) -> 613.6453743 | D79: =INDEX('Compile Data'!$BL$12:$CI$93,$A79-1921,'Report - ALL (DASHBOARD)'!$W$4) -> 595.8163452 | E79: =INDEX('Compile Data'!$CL$12:$DI$93,$A79-1921,'Report - ALL (DASHBOARD)'!$W$4) -> 791.5244503 | F79: =INDEX('Compile Data'!$DL$12:$EI$93,$A79-1921,'Report - ALL (DASHBOARD)'!$W$4) ->  | G79: =INDEX('Compile Data'!$EL$12:$FI$93,$A79-1921,'Report - ALL (DASHBOARD)'!$W$4) ->  | O79: 52 | P79: 0.6296296296 | Q79: =INDEX('Compile Data'!$L$123:$AI$204,$O79,'Report - ALL (DASHBOARD)'!$W$4) -> -18.1591053 | R79: =INDEX('Compile Data'!$AL$123:$BI$204,$O79,'Report - ALL (DASHBOARD)'!$W$4) -> -412.7050228 | S79: =INDEX('Compile Data'!$BL$123:$CI$204,$O79,'Report - ALL (DASHBOARD)'!$W$4) -> -425.6050682 | T79: =INDEX('Compile Data'!$CL$123:$DI$204,$O79,'Report - ALL (DASHBOARD)'!$W$4) -> -392.4719691 | U79: =INDEX('Compile Data'!$DL$123:$EI$204,$O79,'Report - ALL (DASHBOARD)'!$W$4) ->  | V79: =INDEX('Compile Data'!$EL$123:$FI$204,$O79,'Report - ALL (DASHBOARD)'!$W$4) -> 
A80: 1974 | B80: =INDEX('Compile Data'!$L$12:$AI$93,$A80-1921,'Report - ALL (DASHBOARD)'!$W$4) -> 2686.302261 | C80: =INDEX('Compile Data'!$AL$12:$BI$93,$A80-1921,'Report - ALL (DASHBOARD)'!$W$4) -> 2627.684608 | D80: =INDEX('Compile Data'!$BL$12:$CI$93,$A80-1921,'Report - ALL (DASHBOARD)'!$W$4) -> 2621.373619 | E80: =INDEX('Compile Data'!$CL$12:$DI$93,$A80-1921,'Report - ALL (DASHBOARD)'!$W$4) -> 2588.456642 | F80: =INDEX('Compile Data'!$DL$12:$EI$93,$A80-1921,'Report - ALL (DASHBOARD)'!$W$4) ->  | G80: =INDEX('Compile Data'!$EL$12:$FI$93,$A80-1921,'Report - ALL (DASHBOARD)'!$W$4) ->  | O80: 53 | P80: 0.6419753086 | Q80: =INDEX('Compile Data'!$L$123:$AI$204,$O80,'Report - ALL (DASHBOARD)'!$W$4) -> -31.05559921 | R80: =INDEX('Compile Data'!$AL$123:$BI$204,$O80,'Report - ALL (DASHBOARD)'!$W$4) -> -435.8266029 | S80: =INDEX('Compile Data'!$BL$123:$CI$204,$O80,'Report - ALL (DASHBOARD)'!$W$4) -> -450.5014915 | T80: =INDEX('Compile Data'!$CL$123:$DI$204,$O80,'Report - ALL (DASHBOARD)'!$W$4) -> -404.6831264 | U80: =INDEX('Compile Data'!$DL$123:$EI$204,$O80,'Report - ALL (DASHBOARD)'!$W$4) ->  | V80: =INDEX('Compile Data'!$EL$123:$FI$204,$O80,'Report - ALL (DASHBOARD)'!$W$4) -> 
A81: 1975 | B81: =INDEX('Compile Data'!$L$12:$AI$93,$A81-1921,'Report - ALL (DASHBOARD)'!$W$4) -> 832.4316368 | C81: =INDEX('Compile Data'!$AL$12:$BI$93,$A81-1921,'Report - ALL (DASHBOARD)'!$W$4) -> 785.7355537 | D81: =INDEX('Compile Data'!$BL$12:$CI$93,$A81-1921,'Report - ALL (DASHBOARD)'!$W$4) -> 785.8606567 | E81: =INDEX('Compile Data'!$CL$12:$DI$93,$A81-1921,'Report - ALL (DASHBOARD)'!$W$4) -> 756.6992798 | F81: =INDEX('Compile Data'!$DL$12:$EI$93,$A81-1921,'Report - ALL (DASHBOARD)'!$W$4) ->  | G81: =INDEX('Compile Data'!$EL$12:$FI$93,$A81-1921,'Report - ALL (DASHBOARD)'!$W$4) ->  | O81: 54 | P81: 0.6543209877 | Q81: =INDEX('Compile Data'!$L$123:$AI$204,$O81,'Report - ALL (DASHBOARD)'!$W$4) -> -116.3242188 | R81: =INDEX('Compile Data'!$AL$123:$BI$204,$O81,'Report - ALL (DASHBOARD)'!$W$4) -> -438.9384117 | S81: =INDEX('Compile Data'!$BL$123:$CI$204,$O81,'Report - ALL (DASHBOARD)'!$W$4) -> -453.5503273 | T81: =INDEX('Compile Data'!$CL$123:$DI$204,$O81,'Report - ALL (DASHBOARD)'!$W$4) -> -457.2759819 | U81: =INDEX('Compile Data'!$DL$123:$EI$204,$O81,'Report - ALL (DASHBOARD)'!$W$4) ->  | V81: =INDEX('Compile Data'!$EL$123:$FI$204,$O81,'Report - ALL (DASHBOARD)'!$W$4) -> 
A82: 1976 | B82: =INDEX('Compile Data'!$L$12:$AI$93,$A82-1921,'Report - ALL (DASHBOARD)'!$W$4) -> -976.2243309 | C82: =INDEX('Compile Data'!$AL$12:$BI$93,$A82-1921,'Report - ALL (DASHBOARD)'!$W$4) -> -1152.797441 | D82: =INDEX('Compile Data'!$BL$12:$CI$93,$A82-1921,'Report - ALL (DASHBOARD)'!$W$4) -> -1171.277523 | E82: =INDEX('Compile Data'!$CL$12:$DI$93,$A82-1921,'Report - ALL (DASHBOARD)'!$W$4) -> -1304.614376 | F82: =INDEX('Compile Data'!$DL$12:$EI$93,$A82-1921,'Report - ALL (DASHBOARD)'!$W$4) ->  | G82: =INDEX('Compile Data'!$EL$12:$FI$93,$A82-1921,'Report - ALL (DASHBOARD)'!$W$4) ->  | O82: 55 | P82: 0.6666666667 | Q82: =INDEX('Compile Data'!$L$123:$AI$204,$O82,'Report - ALL (DASHBOARD)'!$W$4) -> -173.4388428 | R82: =INDEX('Compile Data'!$AL$123:$BI$204,$O82,'Report - ALL (DASHBOARD)'!$W$4) -> -444.6726995 | S82: =INDEX('Compile Data'!$BL$123:$CI$204,$O82,'Report - ALL (DASHBOARD)'!$W$4) -> -454.7316494 | T82: =INDEX('Compile Data'!$CL$123:$DI$204,$O82,'Report - ALL (DASHBOARD)'!$W$4) -> -458.1963158 | U82: =INDEX('Compile Data'!$DL$123:$EI$204,$O82,'Report - ALL (DASHBOARD)'!$W$4) ->  | V82: =INDEX('Compile Data'!$EL$123:$FI$204,$O82,'Report - ALL (DASHBOARD)'!$W$4) -> 
A83: 1977 | B83: =INDEX('Compile Data'!$L$12:$AI$93,$A83-1921,'Report - ALL (DASHBOARD)'!$W$4) -> 862.2646065 | C83: =INDEX('Compile Data'!$AL$12:$BI$93,$A83-1921,'Report - ALL (DASHBOARD)'!$W$4) -> -74.55583572 | D83: =INDEX('Compile Data'!$BL$12:$CI$93,$A83-1921,'Report - ALL (DASHBOARD)'!$W$4) -> -18.12498093 | E83: =INDEX('Compile Data'!$CL$12:$DI$93,$A83-1921,'Report - ALL (DASHBOARD)'!$W$4) -> 171.64081 | F83: =INDEX('Compile Data'!$DL$12:$EI$93,$A83-1921,'Report - ALL (DASHBOARD)'!$W$4) ->  | G83: =INDEX('Compile Data'!$EL$12:$FI$93,$A83-1921,'Report - ALL (DASHBOARD)'!$W$4) ->  | O83: 56 | P83: 0.6790123457 | Q83: =INDEX('Compile Data'!$L$123:$AI$204,$O83,'Report - ALL (DASHBOARD)'!$W$4) -> -219.2296677 | R83: =INDEX('Compile Data'!$AL$123:$BI$204,$O83,'Report - ALL (DASHBOARD)'!$W$4) -> -464.0268021 | S83: =INDEX('Compile Data'!$BL$123:$CI$204,$O83,'Report - ALL (DASHBOARD)'!$W$4) -> -484.4188805 | T83: =INDEX('Compile Data'!$CL$123:$DI$204,$O83,'Report - ALL (DASHBOARD)'!$W$4) -> -465.3307724 | U83: =INDEX('Compile Data'!$DL$123:$EI$204,$O83,'Report - ALL (DASHBOARD)'!$W$4) ->  | V83: =INDEX('Compile Data'!$EL$123:$FI$204,$O83,'Report - ALL (DASHBOARD)'!$W$4) -> 
A84: 1978 | B84: =INDEX('Compile Data'!$L$12:$AI$93,$A84-1921,'Report - ALL (DASHBOARD)'!$W$4) -> -173.4388428 | C84: =INDEX('Compile Data'!$AL$12:$BI$93,$A84-1921,'Report - ALL (DASHBOARD)'!$W$4) -> -435.8266029 | D84: =INDEX('Compile Data'!$BL$12:$CI$93,$A84-1921,'Report - ALL (DASHBOARD)'!$W$4) -> -425.6050682 | E84: =INDEX('Compile Data'!$CL$12:$DI$93,$A84-1921,'Report - ALL (DASHBOARD)'!$W$4) -> -237.490038 | F84: =INDEX('Compile Data'!$DL$12:$EI$93,$A84-1921,'Report - ALL (DASHBOARD)'!$W$4) ->  | G84: =INDEX('Compile Data'!$EL$12:$FI$93,$A84-1921,'Report - ALL (DASHBOARD)'!$W$4) ->  | O84: 57 | P84: 0.6913580247 | Q84: =INDEX('Compile Data'!$L$123:$AI$204,$O84,'Report - ALL (DASHBOARD)'!$W$4) -> -251.9931984 | R84: =INDEX('Compile Data'!$AL$123:$BI$204,$O84,'Report - ALL (DASHBOARD)'!$W$4) -> -491.0213213 | S84: =INDEX('Compile Data'!$BL$123:$CI$204,$O84,'Report - ALL (DASHBOARD)'!$W$4) -> -516.6691818 | T84: =INDEX('Compile Data'!$CL$123:$DI$204,$O84,'Report - ALL (DASHBOARD)'!$W$4) -> -466.8678288 | U84: =INDEX('Compile Data'!$DL$123:$EI$204,$O84,'Report - ALL (DASHBOARD)'!$W$4) ->  | V84: =INDEX('Compile Data'!$EL$123:$FI$204,$O84,'Report - ALL (DASHBOARD)'!$W$4) -> 
A85: 1979 | B85: =INDEX('Compile Data'!$L$12:$AI$93,$A85-1921,'Report - ALL (DASHBOARD)'!$W$4) -> -2237.262657 | C85: =INDEX('Compile Data'!$AL$12:$BI$93,$A85-1921,'Report - ALL (DASHBOARD)'!$W$4) -> -2333.198517 | D85: =INDEX('Compile Data'!$BL$12:$CI$93,$A85-1921,'Report - ALL (DASHBOARD)'!$W$4) -> -2353.718193 | E85: =INDEX('Compile Data'!$CL$12:$DI$93,$A85-1921,'Report - ALL (DASHBOARD)'!$W$4) -> -2312.332592 | F85: =INDEX('Compile Data'!$DL$12:$EI$93,$A85-1921,'Report - ALL (DASHBOARD)'!$W$4) ->  | G85: =INDEX('Compile Data'!$EL$12:$FI$93,$A85-1921,'Report - ALL (DASHBOARD)'!$W$4) ->  | O85: 58 | P85: 0.7037037037 | Q85: =INDEX('Compile Data'!$L$123:$AI$204,$O85,'Report - ALL (DASHBOARD)'!$W$4) -> -332.3381462 | R85: =INDEX('Compile Data'!$AL$123:$BI$204,$O85,'Report - ALL (DASHBOARD)'!$W$4) -> -564.1956196 | S85: =INDEX('Compile Data'!$BL$123:$CI$204,$O85,'Report - ALL (DASHBOARD)'!$W$4) -> -525.0481644 | T85: =INDEX('Compile Data'!$CL$123:$DI$204,$O85,'Report - ALL (DASHBOARD)'!$W$4) -> -510.3581772 | U85: =INDEX('Compile Data'!$DL$123:$EI$204,$O85,'Report - ALL (DASHBOARD)'!$W$4) ->  | V85: =INDEX('Compile Data'!$EL$123:$FI$204,$O85,'Report - ALL (DASHBOARD)'!$W$4) -> 
A86: 1980 | B86: =INDEX('Compile Data'!$L$12:$AI$93,$A86-1921,'Report - ALL (DASHBOARD)'!$W$4) -> -1160.935943 | C86: =INDEX('Compile Data'!$AL$12:$BI$93,$A86-1921,'Report - ALL (DASHBOARD)'!$W$4) -> -1412.370577 | D86: =INDEX('Compile Data'!$BL$12:$CI$93,$A86-1921,'Report - ALL (DASHBOARD)'!$W$4) -> -1398.481467 | E86: =INDEX('Compile Data'!$CL$12:$DI$93,$A86-1921,'Report - ALL (DASHBOARD)'!$W$4) -> -1368.681943 | F86: =INDEX('Compile Data'!$DL$12:$EI$93,$A86-1921,'Report - ALL (DASHBOARD)'!$W$4) ->  | G86: =INDEX('Compile Data'!$EL$12:$FI$93,$A86-1921,'Report - ALL (DASHBOARD)'!$W$4) ->  | O86: 59 | P86: 0.7160493827 | Q86: =INDEX('Compile Data'!$L$123:$AI$204,$O86,'Report - ALL (DASHBOARD)'!$W$4) -> -339.9272194 | R86: =INDEX('Compile Data'!$AL$123:$BI$204,$O86,'Report - ALL (DASHBOARD)'!$W$4) -> -669.8385056 | S86: =INDEX('Compile Data'!$BL$123:$CI$204,$O86,'Report - ALL (DASHBOARD)'!$W$4) -> -534.6699905 | T86: =INDEX('Compile Data'!$CL$123:$DI$204,$O86,'Report - ALL (DASHBOARD)'!$W$4) -> -513.1718292 | U86: =INDEX('Compile Data'!$DL$123:$EI$204,$O86,'Report - ALL (DASHBOARD)'!$W$4) ->  | V86: =INDEX('Compile Data'!$EL$123:$FI$204,$O86,'Report - ALL (DASHBOARD)'!$W$4) -> 
A87: 1981 | B87: =INDEX('Compile Data'!$L$12:$AI$93,$A87-1921,'Report - ALL (DASHBOARD)'!$W$4) -> -1018.930379 | C87: =INDEX('Compile Data'!$AL$12:$BI$93,$A87-1921,'Report - ALL (DASHBOARD)'!$W$4) -> -1239.774605 | D87: =INDEX('Compile Data'!$BL$12:$CI$93,$A87-1921,'Report - ALL (DASHBOARD)'!$W$4) -> -1230.661827 | E87: =INDEX('Compile Data'!$CL$12:$DI$93,$A87-1921,'Report - ALL (DASHBOARD)'!$W$4) -> -1241.678383 | F87: =INDEX('Compile Data'!$DL$12:$EI$93,$A87-1921,'Report - ALL (DASHBOARD)'!$W$4) ->  | G87: =INDEX('Compile Data'!$EL$12:$FI$93,$A87-1921,'Report - ALL (DASHBOARD)'!$W$4) ->  | O87: 60 | P87: 0.7283950617 | Q87: =INDEX('Compile Data'!$L$123:$AI$204,$O87,'Report - ALL (DASHBOARD)'!$W$4) -> -385.3515005 | R87: =INDEX('Compile Data'!$AL$123:$BI$204,$O87,'Report - ALL (DASHBOARD)'!$W$4) -> -696.4766045 | S87: =INDEX('Compile Data'!$BL$123:$CI$204,$O87,'Report - ALL (DASHBOARD)'!$W$4) -> -639.7028931 | T87: =INDEX('Compile Data'!$CL$123:$DI$204,$O87,'Report - ALL (DASHBOARD)'!$W$4) -> -655.0390797 | U87: =INDEX('Compile Data'!$DL$123:$EI$204,$O87,'Report - ALL (DASHBOARD)'!$W$4) ->  | V87: =INDEX('Compile Data'!$EL$123:$FI$204,$O87,'Report - ALL (DASHBOARD)'!$W$4) -> 
A88: 1982 | B88: =INDEX('Compile Data'!$L$12:$AI$93,$A88-1921,'Report - ALL (DASHBOARD)'!$W$4) -> 2436.53249 | C88: =INDEX('Compile Data'!$AL$12:$BI$93,$A88-1921,'Report - ALL (DASHBOARD)'!$W$4) -> 2191.716564 | D88: =INDEX('Compile Data'!$BL$12:$CI$93,$A88-1921,'Report - ALL (DASHBOARD)'!$W$4) -> 2160.041794 | E88: =INDEX('Compile Data'!$CL$12:$DI$93,$A88-1921,'Report - ALL (DASHBOARD)'!$W$4) -> 2080.608856 | F88: =INDEX('Compile Data'!$DL$12:$EI$93,$A88-1921,'Report - ALL (DASHBOARD)'!$W$4) ->  | G88: =INDEX('Compile Data'!$EL$12:$FI$93,$A88-1921,'Report - ALL (DASHBOARD)'!$W$4) ->  | O88: 61 | P88: 0.7407407407 | Q88: =INDEX('Compile Data'!$L$123:$AI$204,$O88,'Report - ALL (DASHBOARD)'!$W$4) -> -386.3101654 | R88: =INDEX('Compile Data'!$AL$123:$BI$204,$O88,'Report - ALL (DASHBOARD)'!$W$4) -> -743.2817383 | S88: =INDEX('Compile Data'!$BL$123:$CI$204,$O88,'Report - ALL (DASHBOARD)'!$W$4) -> -708.3934479 | T88: =INDEX('Compile Data'!$CL$123:$DI$204,$O88,'Report - ALL (DASHBOARD)'!$W$4) -> -708.3152351 | U88: =INDEX('Compile Data'!$DL$123:$EI$204,$O88,'Report - ALL (DASHBOARD)'!$W$4) ->  | V88: =INDEX('Compile Data'!$EL$123:$FI$204,$O88,'Report - ALL (DASHBOARD)'!$W$4) -> 
A89: 1983 | B89: =INDEX('Compile Data'!$L$12:$AI$93,$A89-1921,'Report - ALL (DASHBOARD)'!$W$4) -> 4361.657719 | C89: =INDEX('Compile Data'!$AL$12:$BI$93,$A89-1921,'Report - ALL (DASHBOARD)'!$W$4) -> 4370.212361 | D89: =INDEX('Compile Data'!$BL$12:$CI$93,$A89-1921,'Report - ALL (DASHBOARD)'!$W$4) -> 4357.944745 | E89: =INDEX('Compile Data'!$CL$12:$DI$93,$A89-1921,'Report - ALL (DASHBOARD)'!$W$4) -> 4358.013304 | F89: =INDEX('Compile Data'!$DL$12:$EI$93,$A89-1921,'Report - ALL (DASHBOARD)'!$W$4) ->  | G89: =INDEX('Compile Data'!$EL$12:$FI$93,$A89-1921,'Report - ALL (DASHBOARD)'!$W$4) ->  | O89: 62 | P89: 0.7530864198 | Q89: =INDEX('Compile Data'!$L$123:$AI$204,$O89,'Report - ALL (DASHBOARD)'!$W$4) -> -396.3913116 | R89: =INDEX('Compile Data'!$AL$123:$BI$204,$O89,'Report - ALL (DASHBOARD)'!$W$4) -> -751.9243832 | S89: =INDEX('Compile Data'!$BL$123:$CI$204,$O89,'Report - ALL (DASHBOARD)'!$W$4) -> -716.1467247 | T89: =INDEX('Compile Data'!$CL$123:$DI$204,$O89,'Report - ALL (DASHBOARD)'!$W$4) -> -746.1401367 | U89: =INDEX('Compile Data'!$DL$123:$EI$204,$O89,'Report - ALL (DASHBOARD)'!$W$4) ->  | V89: =INDEX('Compile Data'!$EL$123:$FI$204,$O89,'Report - ALL (DASHBOARD)'!$W$4) -> 
A90: 1984 | B90: =INDEX('Compile Data'!$L$12:$AI$93,$A90-1921,'Report - ALL (DASHBOARD)'!$W$4) -> 2256.092398 | C90: =INDEX('Compile Data'!$AL$12:$BI$93,$A90-1921,'Report - ALL (DASHBOARD)'!$W$4) -> 2241.839303 | D90: =INDEX('Compile Data'!$BL$12:$CI$93,$A90-1921,'Report - ALL (DASHBOARD)'!$W$4) -> 2245.609908 | E90: =INDEX('Compile Data'!$CL$12:$DI$93,$A90-1921,'Report - ALL (DASHBOARD)'!$W$4) -> 2244.879141 | F90: =INDEX('Compile Data'!$DL$12:$EI$93,$A90-1921,'Report - ALL (DASHBOARD)'!$W$4) ->  | G90: =INDEX('Compile Data'!$EL$12:$FI$93,$A90-1921,'Report - ALL (DASHBOARD)'!$W$4) ->  | O90: 63 | P90: 0.7654320988 | Q90: =INDEX('Compile Data'!$L$123:$AI$204,$O90,'Report - ALL (DASHBOARD)'!$W$4) -> -415.4557991 | R90: =INDEX('Compile Data'!$AL$123:$BI$204,$O90,'Report - ALL (DASHBOARD)'!$W$4) -> -757.8134327 | S90: =INDEX('Compile Data'!$BL$123:$CI$204,$O90,'Report - ALL (DASHBOARD)'!$W$4) -> -771.9884224 | T90: =INDEX('Compile Data'!$CL$123:$DI$204,$O90,'Report - ALL (DASHBOARD)'!$W$4) -> -757.2981768 | U90: =INDEX('Compile Data'!$DL$123:$EI$204,$O90,'Report - ALL (DASHBOARD)'!$W$4) ->  | V90: =INDEX('Compile Data'!$EL$123:$FI$204,$O90,'Report - ALL (DASHBOARD)'!$W$4) -> 
A91: 1985 | B91: =INDEX('Compile Data'!$L$12:$AI$93,$A91-1921,'Report - ALL (DASHBOARD)'!$W$4) -> -1327.364182 | C91: =INDEX('Compile Data'!$AL$12:$BI$93,$A91-1921,'Report - ALL (DASHBOARD)'!$W$4) -> -1549.554829 | D91: =INDEX('Compile Data'!$BL$12:$CI$93,$A91-1921,'Report - ALL (DASHBOARD)'!$W$4) -> -1578.895508 | E91: =INDEX('Compile Data'!$CL$12:$DI$93,$A91-1921,'Report - ALL (DASHBOARD)'!$W$4) -> -1661.249191 | F91: =INDEX('Compile Data'!$DL$12:$EI$93,$A91-1921,'Report - ALL (DASHBOARD)'!$W$4) ->  | G91: =INDEX('Compile Data'!$EL$12:$FI$93,$A91-1921,'Report - ALL (DASHBOARD)'!$W$4) ->  | O91: 64 | P91: 0.7777777778 | Q91: =INDEX('Compile Data'!$L$123:$AI$204,$O91,'Report - ALL (DASHBOARD)'!$W$4) -> -429.1861391 | R91: =INDEX('Compile Data'!$AL$123:$BI$204,$O91,'Report - ALL (DASHBOARD)'!$W$4) -> -858.0397949 | S91: =INDEX('Compile Data'!$BL$123:$CI$204,$O91,'Report - ALL (DASHBOARD)'!$W$4) -> -831.2667809 | T91: =INDEX('Compile Data'!$CL$123:$DI$204,$O91,'Report - ALL (DASHBOARD)'!$W$4) -> -800.2670822 | U91: =INDEX('Compile Data'!$DL$123:$EI$204,$O91,'Report - ALL (DASHBOARD)'!$W$4) ->  | V91: =INDEX('Compile Data'!$EL$123:$FI$204,$O91,'Report - ALL (DASHBOARD)'!$W$4) -> 
A92: 1986 | B92: =INDEX('Compile Data'!$L$12:$AI$93,$A92-1921,'Report - ALL (DASHBOARD)'!$W$4) -> 351.2768965 | C92: =INDEX('Compile Data'!$AL$12:$BI$93,$A92-1921,'Report - ALL (DASHBOARD)'!$W$4) -> 416.7137451 | D92: =INDEX('Compile Data'!$BL$12:$CI$93,$A92-1921,'Report - ALL (DASHBOARD)'!$W$4) -> 447.046793 | E92: =INDEX('Compile Data'!$CL$12:$DI$93,$A92-1921,'Report - ALL (DASHBOARD)'!$W$4) -> 509.2124748 | F92: =INDEX('Compile Data'!$DL$12:$EI$93,$A92-1921,'Report - ALL (DASHBOARD)'!$W$4) ->  | G92: =INDEX('Compile Data'!$EL$12:$FI$93,$A92-1921,'Report - ALL (DASHBOARD)'!$W$4) ->  | O92: 65 | P92: =(O92-1)/81 -> 0.7901234568 | Q92: =INDEX('Compile Data'!$L$123:$AI$204,$O92,'Report - ALL (DASHBOARD)'!$W$4) -> -510.9171953 | R92: =INDEX('Compile Data'!$AL$123:$BI$204,$O92,'Report - ALL (DASHBOARD)'!$W$4) -> -925.7927675 | S92: =INDEX('Compile Data'!$BL$123:$CI$204,$O92,'Report - ALL (DASHBOARD)'!$W$4) -> -959.8781099 | T92: =INDEX('Compile Data'!$CL$123:$DI$204,$O92,'Report - ALL (DASHBOARD)'!$W$4) -> -822.1746864 | U92: =INDEX('Compile Data'!$DL$123:$EI$204,$O92,'Report - ALL (DASHBOARD)'!$W$4) ->  | V92: =INDEX('Compile Data'!$EL$123:$FI$204,$O92,'Report - ALL (DASHBOARD)'!$W$4) -> 
A93: 1987 | B93: =INDEX('Compile Data'!$L$12:$AI$93,$A93-1921,'Report - ALL (DASHBOARD)'!$W$4) -> -116.3242188 | C93: =INDEX('Compile Data'!$AL$12:$BI$93,$A93-1921,'Report - ALL (DASHBOARD)'!$W$4) -> -743.2817383 | D93: =INDEX('Compile Data'!$BL$12:$CI$93,$A93-1921,'Report - ALL (DASHBOARD)'!$W$4) -> -708.3934479 | E93: =INDEX('Compile Data'!$CL$12:$DI$93,$A93-1921,'Report - ALL (DASHBOARD)'!$W$4) -> -800.2670822 | F93: =INDEX('Compile Data'!$DL$12:$EI$93,$A93-1921,'Report - ALL (DASHBOARD)'!$W$4) ->  | G93: =INDEX('Compile Data'!$EL$12:$FI$93,$A93-1921,'Report - ALL (DASHBOARD)'!$W$4) ->  | O93: 66 | P93: 0.8024691358 | Q93: =INDEX('Compile Data'!$L$123:$AI$204,$O93,'Report - ALL (DASHBOARD)'!$W$4) -> -520.1208782 | R93: =INDEX('Compile Data'!$AL$123:$BI$204,$O93,'Report - ALL (DASHBOARD)'!$W$4) -> -992.4237828 | S93: =INDEX('Compile Data'!$BL$123:$CI$204,$O93,'Report - ALL (DASHBOARD)'!$W$4) -> -961.6536646 | T93: =INDEX('Compile Data'!$CL$123:$DI$204,$O93,'Report - ALL (DASHBOARD)'!$W$4) -> -828.1045933 | U93: =INDEX('Compile Data'!$DL$123:$EI$204,$O93,'Report - ALL (DASHBOARD)'!$W$4) ->  | V93: =INDEX('Compile Data'!$EL$123:$FI$204,$O93,'Report - ALL (DASHBOARD)'!$W$4) -> 
A94: =A93+1 -> 1988 | B94: =INDEX('Compile Data'!$L$12:$AI$93,$A94-1921,'Report - ALL (DASHBOARD)'!$W$4) -> 1402.107162 | C94: =INDEX('Compile Data'!$AL$12:$BI$93,$A94-1921,'Report - ALL (DASHBOARD)'!$W$4) -> 213.487587 | D94: =INDEX('Compile Data'!$BL$12:$CI$93,$A94-1921,'Report - ALL (DASHBOARD)'!$W$4) -> 160.2549858 | E94: =INDEX('Compile Data'!$CL$12:$DI$93,$A94-1921,'Report - ALL (DASHBOARD)'!$W$4) -> 670.2625465 | F94: =INDEX('Compile Data'!$DL$12:$EI$93,$A94-1921,'Report - ALL (DASHBOARD)'!$W$4) ->  | G94: =INDEX('Compile Data'!$EL$12:$FI$93,$A94-1921,'Report - ALL (DASHBOARD)'!$W$4) ->  | O94: 67 | P94: 0.8148148148 | Q94: =INDEX('Compile Data'!$L$123:$AI$204,$O94,'Report - ALL (DASHBOARD)'!$W$4) -> -609.2739143 | R94: =INDEX('Compile Data'!$AL$123:$BI$204,$O94,'Report - ALL (DASHBOARD)'!$W$4) -> -1035.896973 | S94: =INDEX('Compile Data'!$BL$123:$CI$204,$O94,'Report - ALL (DASHBOARD)'!$W$4) -> -1001.790856 | T94: =INDEX('Compile Data'!$CL$123:$DI$204,$O94,'Report - ALL (DASHBOARD)'!$W$4) -> -920.1941338 | U94: =INDEX('Compile Data'!$DL$123:$EI$204,$O94,'Report - ALL (DASHBOARD)'!$W$4) ->  | V94: =INDEX('Compile Data'!$EL$123:$FI$204,$O94,'Report - ALL (DASHBOARD)'!$W$4) -> 
A95: 1989 | B95: =INDEX('Compile Data'!$L$12:$AI$93,$A95-1921,'Report - ALL (DASHBOARD)'!$W$4) -> -251.9931984 | C95: =INDEX('Compile Data'!$AL$12:$BI$93,$A95-1921,'Report - ALL (DASHBOARD)'!$W$4) -> -491.0213213 | D95: =INDEX('Compile Data'!$BL$12:$CI$93,$A95-1921,'Report - ALL (DASHBOARD)'!$W$4) -> -484.4188805 | E95: =INDEX('Compile Data'!$CL$12:$DI$93,$A95-1921,'Report - ALL (DASHBOARD)'!$W$4) -> -335.1859875 | F95: =INDEX('Compile Data'!$DL$12:$EI$93,$A95-1921,'Report - ALL (DASHBOARD)'!$W$4) ->  | G95: =INDEX('Compile Data'!$EL$12:$FI$93,$A95-1921,'Report - ALL (DASHBOARD)'!$W$4) ->  | O95: 68 | P95: 0.8271604938 | Q95: =INDEX('Compile Data'!$L$123:$AI$204,$O95,'Report - ALL (DASHBOARD)'!$W$4) -> -710.6639953 | R95: =INDEX('Compile Data'!$AL$123:$BI$204,$O95,'Report - ALL (DASHBOARD)'!$W$4) -> -1046.534086 | S95: =INDEX('Compile Data'!$BL$123:$CI$204,$O95,'Report - ALL (DASHBOARD)'!$W$4) -> -1049.269241 | T95: =INDEX('Compile Data'!$CL$123:$DI$204,$O95,'Report - ALL (DASHBOARD)'!$W$4) -> -959.0174713 | U95: =INDEX('Compile Data'!$DL$123:$EI$204,$O95,'Report - ALL (DASHBOARD)'!$W$4) ->  | V95: =INDEX('Compile Data'!$EL$123:$FI$204,$O95,'Report - ALL (DASHBOARD)'!$W$4) -> 
A96: 1990 | B96: =INDEX('Compile Data'!$L$12:$AI$93,$A96-1921,'Report - ALL (DASHBOARD)'!$W$4) -> 487.728569 | C96: =INDEX('Compile Data'!$AL$12:$BI$93,$A96-1921,'Report - ALL (DASHBOARD)'!$W$4) -> 246.3326988 | D96: =INDEX('Compile Data'!$BL$12:$CI$93,$A96-1921,'Report - ALL (DASHBOARD)'!$W$4) -> 310.3812981 | E96: =INDEX('Compile Data'!$CL$12:$DI$93,$A96-1921,'Report - ALL (DASHBOARD)'!$W$4) -> 435.5190125 | F96: =INDEX('Compile Data'!$DL$12:$EI$93,$A96-1921,'Report - ALL (DASHBOARD)'!$W$4) ->  | G96: =INDEX('Compile Data'!$EL$12:$FI$93,$A96-1921,'Report - ALL (DASHBOARD)'!$W$4) ->  | O96: 69 | P96: 0.8395061728 | Q96: =INDEX('Compile Data'!$L$123:$AI$204,$O96,'Report - ALL (DASHBOARD)'!$W$4) -> -716.3799858 | R96: =INDEX('Compile Data'!$AL$123:$BI$204,$O96,'Report - ALL (DASHBOARD)'!$W$4) -> -1051.407112 | S96: =INDEX('Compile Data'!$BL$123:$CI$204,$O96,'Report - ALL (DASHBOARD)'!$W$4) -> -1051.488884 | T96: =INDEX('Compile Data'!$CL$123:$DI$204,$O96,'Report - ALL (DASHBOARD)'!$W$4) -> -977.9411449 | U96: =INDEX('Compile Data'!$DL$123:$EI$204,$O96,'Report - ALL (DASHBOARD)'!$W$4) ->  | V96: =INDEX('Compile Data'!$EL$123:$FI$204,$O96,'Report - ALL (DASHBOARD)'!$W$4) -> 
A97: 1991 | B97: =INDEX('Compile Data'!$L$12:$AI$93,$A97-1921,'Report - ALL (DASHBOARD)'!$W$4) -> 444.7151837 | C97: =INDEX('Compile Data'!$AL$12:$BI$93,$A97-1921,'Report - ALL (DASHBOARD)'!$W$4) -> 212.8559256 | D97: =INDEX('Compile Data'!$BL$12:$CI$93,$A97-1921,'Report - ALL (DASHBOARD)'!$W$4) -> 228.0324488 | E97: =INDEX('Compile Data'!$CL$12:$DI$93,$A97-1921,'Report - ALL (DASHBOARD)'!$W$4) -> 276.6187806 | F97: =INDEX('Compile Data'!$DL$12:$EI$93,$A97-1921,'Report - ALL (DASHBOARD)'!$W$4) ->  | G97: =INDEX('Compile Data'!$EL$12:$FI$93,$A97-1921,'Report - ALL (DASHBOARD)'!$W$4) ->  | O97: 70 | P97: 0.8518518519 | Q97: =INDEX('Compile Data'!$L$123:$AI$204,$O97,'Report - ALL (DASHBOARD)'!$W$4) -> -824.2713704 | R97: =INDEX('Compile Data'!$AL$123:$BI$204,$O97,'Report - ALL (DASHBOARD)'!$W$4) -> -1132.337584 | S97: =INDEX('Compile Data'!$BL$123:$CI$204,$O97,'Report - ALL (DASHBOARD)'!$W$4) -> -1141.318546 | T97: =INDEX('Compile Data'!$CL$123:$DI$204,$O97,'Report - ALL (DASHBOARD)'!$W$4) -> -1030.087944 | U97: =INDEX('Compile Data'!$DL$123:$EI$204,$O97,'Report - ALL (DASHBOARD)'!$W$4) ->  | V97: =INDEX('Compile Data'!$EL$123:$FI$204,$O97,'Report - ALL (DASHBOARD)'!$W$4) -> 
A98: 1992 | B98: =INDEX('Compile Data'!$L$12:$AI$93,$A98-1921,'Report - ALL (DASHBOARD)'!$W$4) -> 593.8740501 | C98: =INDEX('Compile Data'!$AL$12:$BI$93,$A98-1921,'Report - ALL (DASHBOARD)'!$W$4) -> 446.9260712 | D98: =INDEX('Compile Data'!$BL$12:$CI$93,$A98-1921,'Report - ALL (DASHBOARD)'!$W$4) -> 421.6457748 | E98: =INDEX('Compile Data'!$CL$12:$DI$93,$A98-1921,'Report - ALL (DASHBOARD)'!$W$4) -> 452.2143974 | F98: =INDEX('Compile Data'!$DL$12:$EI$93,$A98-1921,'Report - ALL (DASHBOARD)'!$W$4) ->  | G98: =INDEX('Compile Data'!$EL$12:$FI$93,$A98-1921,'Report - ALL (DASHBOARD)'!$W$4) ->  | O98: 71 | P98: 0.8641975309 | Q98: =INDEX('Compile Data'!$L$123:$AI$204,$O98,'Report - ALL (DASHBOARD)'!$W$4) -> -976.2243309 | R98: =INDEX('Compile Data'!$AL$123:$BI$204,$O98,'Report - ALL (DASHBOARD)'!$W$4) -> -1152.797441 | S98: =INDEX('Compile Data'!$BL$123:$CI$204,$O98,'Report - ALL (DASHBOARD)'!$W$4) -> -1171.277523 | T98: =INDEX('Compile Data'!$CL$123:$DI$204,$O98,'Report - ALL (DASHBOARD)'!$W$4) -> -1038.400463 | U98: =INDEX('Compile Data'!$DL$123:$EI$204,$O98,'Report - ALL (DASHBOARD)'!$W$4) ->  | V98: =INDEX('Compile Data'!$EL$123:$FI$204,$O98,'Report - ALL (DASHBOARD)'!$W$4) -> 
A99: 1993 | B99: =INDEX('Compile Data'!$L$12:$AI$93,$A99-1921,'Report - ALL (DASHBOARD)'!$W$4) -> 1023.477764 | C99: =INDEX('Compile Data'!$AL$12:$BI$93,$A99-1921,'Report - ALL (DASHBOARD)'!$W$4) -> 804.9179039 | D99: =INDEX('Compile Data'!$BL$12:$CI$93,$A99-1921,'Report - ALL (DASHBOARD)'!$W$4) -> 820.663826 | E99: =INDEX('Compile Data'!$CL$12:$DI$93,$A99-1921,'Report - ALL (DASHBOARD)'!$W$4) -> 844.6437225 | F99: =INDEX('Compile Data'!$DL$12:$EI$93,$A99-1921,'Report - ALL (DASHBOARD)'!$W$4) ->  | G99: =INDEX('Compile Data'!$EL$12:$FI$93,$A99-1921,'Report - ALL (DASHBOARD)'!$W$4) ->  | O99: 72 | P99: 0.8765432099 | Q99: =INDEX('Compile Data'!$L$123:$AI$204,$O99,'Report - ALL (DASHBOARD)'!$W$4) -> -1018.930379 | R99: =INDEX('Compile Data'!$AL$123:$BI$204,$O99,'Report - ALL (DASHBOARD)'!$W$4) -> -1205.330101 | S99: =INDEX('Compile Data'!$BL$123:$CI$204,$O99,'Report - ALL (DASHBOARD)'!$W$4) -> -1213.831295 | T99: =INDEX('Compile Data'!$CL$123:$DI$204,$O99,'Report - ALL (DASHBOARD)'!$W$4) -> -1181.742851 | U99: =INDEX('Compile Data'!$DL$123:$EI$204,$O99,'Report - ALL (DASHBOARD)'!$W$4) ->  | V99: =INDEX('Compile Data'!$EL$123:$FI$204,$O99,'Report - ALL (DASHBOARD)'!$W$4) -> 
A100: 1994 | B100: =INDEX('Compile Data'!$L$12:$AI$93,$A100-1921,'Report - ALL (DASHBOARD)'!$W$4) -> -520.1208782 | C100: =INDEX('Compile Data'!$AL$12:$BI$93,$A100-1921,'Report - ALL (DASHBOARD)'!$W$4) -> -1132.337584 | D100: =INDEX('Compile Data'!$BL$12:$CI$93,$A100-1921,'Report - ALL (DASHBOARD)'!$W$4) -> -1141.318546 | E100: =INDEX('Compile Data'!$CL$12:$DI$93,$A100-1921,'Report - ALL (DASHBOARD)'!$W$4) -> -977.9411449 | F100: =INDEX('Compile Data'!$DL$12:$EI$93,$A100-1921,'Report - ALL (DASHBOARD)'!$W$4) ->  | G100: =INDEX('Compile Data'!$EL$12:$FI$93,$A100-1921,'Report - ALL (DASHBOARD)'!$W$4) ->  | O100: 73 | P100: 0.8888888889 | Q100: =INDEX('Compile Data'!$L$123:$AI$204,$O100,'Report - ALL (DASHBOARD)'!$W$4) -> -1126.018066 | R100: =INDEX('Compile Data'!$AL$123:$BI$204,$O100,'Report - ALL (DASHBOARD)'!$W$4) -> -1239.774605 | S100: =INDEX('Compile Data'!$BL$123:$CI$204,$O100,'Report - ALL (DASHBOARD)'!$W$4) -> -1230.661827 | T100: =INDEX('Compile Data'!$CL$123:$DI$204,$O100,'Report - ALL (DASHBOARD)'!$W$4) -> -1241.678383 | U100: =INDEX('Compile Data'!$DL$123:$EI$204,$O100,'Report - ALL (DASHBOARD)'!$W$4) ->  | V100: =INDEX('Compile Data'!$EL$123:$FI$204,$O100,'Report - ALL (DASHBOARD)'!$W$4) -> 
A101: 1995 | B101: =INDEX('Compile Data'!$L$12:$AI$93,$A101-1921,'Report - ALL (DASHBOARD)'!$W$4) -> 1558.165726 | C101: =INDEX('Compile Data'!$AL$12:$BI$93,$A101-1921,'Report - ALL (DASHBOARD)'!$W$4) -> 1167.483505 | D101: =INDEX('Compile Data'!$BL$12:$CI$93,$A101-1921,'Report - ALL (DASHBOARD)'!$W$4) -> 1273.431034 | E101: =INDEX('Compile Data'!$CL$12:$DI$93,$A101-1921,'Report - ALL (DASHBOARD)'!$W$4) -> 1311.488968 | F101: =INDEX('Compile Data'!$DL$12:$EI$93,$A101-1921,'Report - ALL (DASHBOARD)'!$W$4) ->  | G101: =INDEX('Compile Data'!$EL$12:$FI$93,$A101-1921,'Report - ALL (DASHBOARD)'!$W$4) ->  | O101: 74 | P101: 0.9012345679 | Q101: =INDEX('Compile Data'!$L$123:$AI$204,$O101,'Report - ALL (DASHBOARD)'!$W$4) -> -1155.524578 | R101: =INDEX('Compile Data'!$AL$123:$BI$204,$O101,'Report - ALL (DASHBOARD)'!$W$4) -> -1318.126278 | S101: =INDEX('Compile Data'!$BL$123:$CI$204,$O101,'Report - ALL (DASHBOARD)'!$W$4) -> -1321.922989 | T101: =INDEX('Compile Data'!$CL$123:$DI$204,$O101,'Report - ALL (DASHBOARD)'!$W$4) -> -1304.614376 | U101: =INDEX('Compile Data'!$DL$123:$EI$204,$O101,'Report - ALL (DASHBOARD)'!$W$4) ->  | V101: =INDEX('Compile Data'!$EL$123:$FI$204,$O101,'Report - ALL (DASHBOARD)'!$W$4) -> 
A102: 1996 | B102: =INDEX('Compile Data'!$L$12:$AI$93,$A102-1921,'Report - ALL (DASHBOARD)'!$W$4) -> 1173.629652 | C102: =INDEX('Compile Data'!$AL$12:$BI$93,$A102-1921,'Report - ALL (DASHBOARD)'!$W$4) -> 995.8002968 | D102: =INDEX('Compile Data'!$BL$12:$CI$93,$A102-1921,'Report - ALL (DASHBOARD)'!$W$4) -> 979.1556854 | E102: =INDEX('Compile Data'!$CL$12:$DI$93,$A102-1921,'Report - ALL (DASHBOARD)'!$W$4) -> 974.481144 | F102: =INDEX('Compile Data'!$DL$12:$EI$93,$A102-1921,'Report - ALL (DASHBOARD)'!$W$4) ->  | G102: =INDEX('Compile Data'!$EL$12:$FI$93,$A102-1921,'Report - ALL (DASHBOARD)'!$W$4) ->  | O102: 75 | P102: 0.9135802469 | Q102: =INDEX('Compile Data'!$L$123:$AI$204,$O102,'Report - ALL (DASHBOARD)'!$W$4) -> -1160.935943 | R102: =INDEX('Compile Data'!$AL$123:$BI$204,$O102,'Report - ALL (DASHBOARD)'!$W$4) -> -1380.437584 | S102: =INDEX('Compile Data'!$BL$123:$CI$204,$O102,'Report - ALL (DASHBOARD)'!$W$4) -> -1398.481467 | T102: =INDEX('Compile Data'!$CL$123:$DI$204,$O102,'Report - ALL (DASHBOARD)'!$W$4) -> -1350.913389 | U102: =INDEX('Compile Data'!$DL$123:$EI$204,$O102,'Report - ALL (DASHBOARD)'!$W$4) ->  | V102: =INDEX('Compile Data'!$EL$123:$FI$204,$O102,'Report - ALL (DASHBOARD)'!$W$4) -> 
A103: 1997 | B103: =INDEX('Compile Data'!$L$12:$AI$93,$A103-1921,'Report - ALL (DASHBOARD)'!$W$4) -> 1320.027782 | C103: =INDEX('Compile Data'!$AL$12:$BI$93,$A103-1921,'Report - ALL (DASHBOARD)'!$W$4) -> 1277.711409 | D103: =INDEX('Compile Data'!$BL$12:$CI$93,$A103-1921,'Report - ALL (DASHBOARD)'!$W$4) -> 1274.001332 | E103: =INDEX('Compile Data'!$CL$12:$DI$93,$A103-1921,'Report - ALL (DASHBOARD)'!$W$4) -> 1258.991172 | F103: =INDEX('Compile Data'!$DL$12:$EI$93,$A103-1921,'Report - ALL (DASHBOARD)'!$W$4) ->  | G103: =INDEX('Compile Data'!$EL$12:$FI$93,$A103-1921,'Report - ALL (DASHBOARD)'!$W$4) ->  | O103: 76 | P103: 0.9259259259 | Q103: =INDEX('Compile Data'!$L$123:$AI$204,$O103,'Report - ALL (DASHBOARD)'!$W$4) -> -1271.179932 | R103: =INDEX('Compile Data'!$AL$123:$BI$204,$O103,'Report - ALL (DASHBOARD)'!$W$4) -> -1412.370577 | S103: =INDEX('Compile Data'!$BL$123:$CI$204,$O103,'Report - ALL (DASHBOARD)'!$W$4) -> -1509.305389 | T103: =INDEX('Compile Data'!$CL$123:$DI$204,$O103,'Report - ALL (DASHBOARD)'!$W$4) -> -1368.681943 | U103: =INDEX('Compile Data'!$DL$123:$EI$204,$O103,'Report - ALL (DASHBOARD)'!$W$4) ->  | V103: =INDEX('Compile Data'!$EL$123:$FI$204,$O103,'Report - ALL (DASHBOARD)'!$W$4) -> 
A104: 1998 | B104: =INDEX('Compile Data'!$L$12:$AI$93,$A104-1921,'Report - ALL (DASHBOARD)'!$W$4) -> 1002.892262 | C104: =INDEX('Compile Data'!$AL$12:$BI$93,$A104-1921,'Report - ALL (DASHBOARD)'!$W$4) -> 960.5053253 | D104: =INDEX('Compile Data'!$BL$12:$CI$93,$A104-1921,'Report - ALL (DASHBOARD)'!$W$4) -> 967.2065964 | E104: =INDEX('Compile Data'!$CL$12:$DI$93,$A104-1921,'Report - ALL (DASHBOARD)'!$W$4) -> 1022.62302 | F104: =INDEX('Compile Data'!$DL$12:$EI$93,$A104-1921,'Report - ALL (DASHBOARD)'!$W$4) ->  | G104: =INDEX('Compile Data'!$EL$12:$FI$93,$A104-1921,'Report - ALL (DASHBOARD)'!$W$4) ->  | O104: 77 | P104: 0.9382716049 | Q104: =INDEX('Compile Data'!$L$123:$AI$204,$O104,'Report - ALL (DASHBOARD)'!$W$4) -> -1327.364182 | R104: =INDEX('Compile Data'!$AL$123:$BI$204,$O104,'Report - ALL (DASHBOARD)'!$W$4) -> -1547.897522 | S104: =INDEX('Compile Data'!$BL$123:$CI$204,$O104,'Report - ALL (DASHBOARD)'!$W$4) -> -1526.535568 | T104: =INDEX('Compile Data'!$CL$123:$DI$204,$O104,'Report - ALL (DASHBOARD)'!$W$4) -> -1489.888206 | U104: =INDEX('Compile Data'!$DL$123:$EI$204,$O104,'Report - ALL (DASHBOARD)'!$W$4) ->  | V104: =INDEX('Compile Data'!$EL$123:$FI$204,$O104,'Report - ALL (DASHBOARD)'!$W$4) -> 
A105: 1999 | B105: =INDEX('Compile Data'!$L$12:$AI$93,$A105-1921,'Report - ALL (DASHBOARD)'!$W$4) -> 1840.900642 | C105: =INDEX('Compile Data'!$AL$12:$BI$93,$A105-1921,'Report - ALL (DASHBOARD)'!$W$4) -> 1856.836163 | D105: =INDEX('Compile Data'!$BL$12:$CI$93,$A105-1921,'Report - ALL (DASHBOARD)'!$W$4) -> 1839.316669 | E105: =INDEX('Compile Data'!$CL$12:$DI$93,$A105-1921,'Report - ALL (DASHBOARD)'!$W$4) -> 1836.081139 | F105: =INDEX('Compile Data'!$DL$12:$EI$93,$A105-1921,'Report - ALL (DASHBOARD)'!$W$4) ->  | G105: =INDEX('Compile Data'!$EL$12:$FI$93,$A105-1921,'Report - ALL (DASHBOARD)'!$W$4) ->  | O105: 78 | P105: 0.950617284 | Q105: =INDEX('Compile Data'!$L$123:$AI$204,$O105,'Report - ALL (DASHBOARD)'!$W$4) -> -1354.455841 | R105: =INDEX('Compile Data'!$AL$123:$BI$204,$O105,'Report - ALL (DASHBOARD)'!$W$4) -> -1549.554829 | S105: =INDEX('Compile Data'!$BL$123:$CI$204,$O105,'Report - ALL (DASHBOARD)'!$W$4) -> -1578.895508 | T105: =INDEX('Compile Data'!$CL$123:$DI$204,$O105,'Report - ALL (DASHBOARD)'!$W$4) -> -1577.072714 | U105: =INDEX('Compile Data'!$DL$123:$EI$204,$O105,'Report - ALL (DASHBOARD)'!$W$4) ->  | V105: =INDEX('Compile Data'!$EL$123:$FI$204,$O105,'Report - ALL (DASHBOARD)'!$W$4) -> 
A106: 2000 | B106: =INDEX('Compile Data'!$L$12:$AI$93,$A106-1921,'Report - ALL (DASHBOARD)'!$W$4) -> 776.6136246 | C106: =INDEX('Compile Data'!$AL$12:$BI$93,$A106-1921,'Report - ALL (DASHBOARD)'!$W$4) -> 720.8399124 | D106: =INDEX('Compile Data'!$BL$12:$CI$93,$A106-1921,'Report - ALL (DASHBOARD)'!$W$4) -> 728.2568169 | E106: =INDEX('Compile Data'!$CL$12:$DI$93,$A106-1921,'Report - ALL (DASHBOARD)'!$W$4) -> 687.8536644 | F106: =INDEX('Compile Data'!$DL$12:$EI$93,$A106-1921,'Report - ALL (DASHBOARD)'!$W$4) ->  | G106: =INDEX('Compile Data'!$EL$12:$FI$93,$A106-1921,'Report - ALL (DASHBOARD)'!$W$4) ->  | O106: 79 | P106: 0.962962963 | Q106: =INDEX('Compile Data'!$L$123:$AI$204,$O106,'Report - ALL (DASHBOARD)'!$W$4) -> -1535.839996 | R106: =INDEX('Compile Data'!$AL$123:$BI$204,$O106,'Report - ALL (DASHBOARD)'!$W$4) -> -1689.41001 | S106: =INDEX('Compile Data'!$BL$123:$CI$204,$O106,'Report - ALL (DASHBOARD)'!$W$4) -> -1686.892275 | T106: =INDEX('Compile Data'!$CL$123:$DI$204,$O106,'Report - ALL (DASHBOARD)'!$W$4) -> -1661.249191 | U106: =INDEX('Compile Data'!$DL$123:$EI$204,$O106,'Report - ALL (DASHBOARD)'!$W$4) ->  | V106: =INDEX('Compile Data'!$EL$123:$FI$204,$O106,'Report - ALL (DASHBOARD)'!$W$4) -> 
A107: 2001 | B107: =INDEX('Compile Data'!$L$12:$AI$93,$A107-1921,'Report - ALL (DASHBOARD)'!$W$4) -> 404.0676327 | C107: =INDEX('Compile Data'!$AL$12:$BI$93,$A107-1921,'Report - ALL (DASHBOARD)'!$W$4) -> -180.7811527 | D107: =INDEX('Compile Data'!$BL$12:$CI$93,$A107-1921,'Report - ALL (DASHBOARD)'!$W$4) -> -195.0409698 | E107: =INDEX('Compile Data'!$CL$12:$DI$93,$A107-1921,'Report - ALL (DASHBOARD)'!$W$4) -> -189.427494 | F107: =INDEX('Compile Data'!$DL$12:$EI$93,$A107-1921,'Report - ALL (DASHBOARD)'!$W$4) ->  | G107: =INDEX('Compile Data'!$EL$12:$FI$93,$A107-1921,'Report - ALL (DASHBOARD)'!$W$4) ->  | O107: 80 | P107: 0.975308642 | Q107: =INDEX('Compile Data'!$L$123:$AI$204,$O107,'Report - ALL (DASHBOARD)'!$W$4) -> -1559.775422 | R107: =INDEX('Compile Data'!$AL$123:$BI$204,$O107,'Report - ALL (DASHBOARD)'!$W$4) -> -1703.557676 | S107: =INDEX('Compile Data'!$BL$123:$CI$204,$O107,'Report - ALL (DASHBOARD)'!$W$4) -> -1700.808964 | T107: =INDEX('Compile Data'!$CL$123:$DI$204,$O107,'Report - ALL (DASHBOARD)'!$W$4) -> -1707.935328 | U107: =INDEX('Compile Data'!$DL$123:$EI$204,$O107,'Report - ALL (DASHBOARD)'!$W$4) ->  | V107: =INDEX('Compile Data'!$EL$123:$FI$204,$O107,'Report - ALL (DASHBOARD)'!$W$4) -> 
A108: 2002 | B108: =INDEX('Compile Data'!$L$12:$AI$93,$A108-1921,'Report - ALL (DASHBOARD)'!$W$4) -> 725.582489 | C108: =INDEX('Compile Data'!$AL$12:$BI$93,$A108-1921,'Report - ALL (DASHBOARD)'!$W$4) -> -178.3639259 | D108: =INDEX('Compile Data'!$BL$12:$CI$93,$A108-1921,'Report - ALL (DASHBOARD)'!$W$4) -> -158.4543643 | E108: =INDEX('Compile Data'!$CL$12:$DI$93,$A108-1921,'Report - ALL (DASHBOARD)'!$W$4) -> -133.0520678 | F108: =INDEX('Compile Data'!$DL$12:$EI$93,$A108-1921,'Report - ALL (DASHBOARD)'!$W$4) ->  | G108: =INDEX('Compile Data'!$EL$12:$FI$93,$A108-1921,'Report - ALL (DASHBOARD)'!$W$4) ->  | O108: 81 | P108: 0.987654321 | Q108: =INDEX('Compile Data'!$L$123:$AI$204,$O108,'Report - ALL (DASHBOARD)'!$W$4) -> -2237.262657 | R108: =INDEX('Compile Data'!$AL$123:$BI$204,$O108,'Report - ALL (DASHBOARD)'!$W$4) -> -2333.198517 | S108: =INDEX('Compile Data'!$BL$123:$CI$204,$O108,'Report - ALL (DASHBOARD)'!$W$4) -> -2353.718193 | T108: =INDEX('Compile Data'!$CL$123:$DI$204,$O108,'Report - ALL (DASHBOARD)'!$W$4) -> -2312.332592 | U108: =INDEX('Compile Data'!$DL$123:$EI$204,$O108,'Report - ALL (DASHBOARD)'!$W$4) ->  | V108: =INDEX('Compile Data'!$EL$123:$FI$204,$O108,'Report - ALL (DASHBOARD)'!$W$4) -> 
A109: 2003 | B109: =INDEX('Compile Data'!$L$12:$AI$93,$A109-1921,'Report - ALL (DASHBOARD)'!$W$4) -> 1611.994987 | C109: =INDEX('Compile Data'!$AL$12:$BI$93,$A109-1921,'Report - ALL (DASHBOARD)'!$W$4) -> 1131.447903 | D109: =INDEX('Compile Data'!$BL$12:$CI$93,$A109-1921,'Report - ALL (DASHBOARD)'!$W$4) -> 1151.875378 | E109: =INDEX('Compile Data'!$CL$12:$DI$93,$A109-1921,'Report - ALL (DASHBOARD)'!$W$4) -> 1442.614201 | F109: =INDEX('Compile Data'!$DL$12:$EI$93,$A109-1921,'Report - ALL (DASHBOARD)'!$W$4) ->  | G109: =INDEX('Compile Data'!$EL$12:$FI$93,$A109-1921,'Report - ALL (DASHBOARD)'!$W$4) ->  | O109: 82 | P109: 1 | Q109: =INDEX('Compile Data'!$L$123:$AI$204,$O109,'Report - ALL (DASHBOARD)'!$W$4) -> -2780.649383 | R109: =INDEX('Compile Data'!$AL$123:$BI$204,$O109,'Report - ALL (DASHBOARD)'!$W$4) -> -3158.293182 | S109: =INDEX('Compile Data'!$BL$123:$CI$204,$O109,'Report - ALL (DASHBOARD)'!$W$4) -> -3146.019585 | T109: =INDEX('Compile Data'!$CL$123:$DI$204,$O109,'Report - ALL (DASHBOARD)'!$W$4) -> -3071.93853 | U109: =INDEX('Compile Data'!$DL$123:$EI$204,$O109,'Report - ALL (DASHBOARD)'!$W$4) ->  | V109: =INDEX('Compile Data'!$EL$123:$FI$204,$O109,'Report - ALL (DASHBOARD)'!$W$4) -> 

Sheet Compile Data
B1: =Control!$B$5 -> NAA 051422 | C1: =Control!$B$6 -> Alt 1A 051722 | D1: =Control!$B$7 -> Alt 1B 051722 | E1: =Control!$B$8 -> Alt 3 051722 | F1: =Control!$B$9 -> 0 | G1: =Control!$B$10 -> 0 | AE1: =$B$8 -> PER-AVER | BE1: =$C$8 -> PER-AVER | CE1: =$D$8 -> PER-AVER | DE1: =$E$8 -> PER-AVER | EE1: =$F$8 -> PER-AVER | FE1: =$G$8 -> PER-AVER
A2: Index: | B2: ='Report - ALL (DASHBOARD)'!W2 -> 87 | C2: =B2 -> 87 | D2: 87 | E2: 87 | F2: 87 | G2: 87
A3: Convert? | B3: =IF('Report - ALL (DASHBOARD)'!W5,1,0) -> 0 | C3: 0 | D3: 0 | E3: 0 | F3: 0 | G3: 0
A4: Column: | B4: =TRIM(VLOOKUP(B$2+2,DSSPathnames!$H$7:$K$168,2,FALSE)) -> CK | C4: =TRIM(VLOOKUP(C$2+2,DSSPathnames!$H$7:$K$168,2,FALSE)) -> CK | D4: =TRIM(VLOOKUP(D$2+2,DSSPathnames!$H$7:$K$168,2,FALSE)) -> CK | E4: =TRIM(VLOOKUP(E$2+2,DSSPathnames!$H$7:$K$168,2,FALSE)) -> CK | F4: =TRIM(VLOOKUP(F$2+2,DSSPathnames!$H$7:$K$168,2,FALSE)) -> CK | G4: =TRIM(VLOOKUP(G$2+2,DSSPathnames!$H$7:$K$168,2,FALSE)) -> CK
A5: Title: | B5: =TRIM(VLOOKUP(B$2+2,DSSPathnames!$H$7:$K$168,4,FALSE)) -> Total CVP, SWP, Sites Facilities - Net Generation (GWh) | C5: =TRIM(VLOOKUP(C$2+2,DSSPathnames!$H$7:$K$168,4,FALSE)) -> Total CVP, SWP, Sites Facilities - Net Generation (GWh) | D5: =TRIM(VLOOKUP(D$2+2,DSSPathnames!$H$7:$K$168,4,FALSE)) -> Total CVP, SWP, Sites Facilities - Net Generation (GWh) | E5: =TRIM(VLOOKUP(E$2+2,DSSPathnames!$H$7:$K$168,4,FALSE)) -> Total CVP, SWP, Sites Facilities - Net Generation (GWh) | F5: =TRIM(VLOOKUP(F$2+2,DSSPathnames!$H$7:$K$168,4,FALSE)) -> Total CVP, SWP, Sites Facilities - Net Generation (GWh) | G5: =TRIM(VLOOKUP(G$2+2,DSSPathnames!$H$7:$K$168,4,FALSE)) -> Total CVP, SWP, Sites Facilities - Net Generation (GWh)
A6: Parameter: | B6: =INDIRECT(CONCATENATE("'",B$1,"'!",B$4,2)) -> CVP_SWP_NODOS_TOTAL | C6: CVP_SWP_NODOS_TOTAL | D6: CVP_SWP_NODOS_TOTAL | E6: CVP_SWP_NODOS_TOTAL
B7: =INDIRECT(CONCATENATE("'",B$1,"'!",B$4,3)) -> Net_Generation | C7: Net_Generation | D7: Net_Generation | E7: Net_Generation
A8: Type: | B8: =TRIM(VLOOKUP(B$2+2,DSSPathnames!$H$7:$K$168,3,FALSE)) -> PER-AVER | C8: =TRIM(VLOOKUP(C$2+2,DSSPathnames!$H$7:$K$168,3,FALSE)) -> PER-AVER | D8: =TRIM(VLOOKUP(D$2+2,DSSPathnames!$H$7:$K$168,3,FALSE)) -> PER-AVER | E8: =TRIM(VLOOKUP(E$2+2,DSSPathnames!$H$7:$K$168,3,FALSE)) -> PER-AVER | F8: =TRIM(VLOOKUP(F$2+2,DSSPathnames!$H$7:$K$168,3,FALSE)) -> PER-AVER | G8: =TRIM(VLOOKUP(G$2+2,DSSPathnames!$H$7:$K$168,3,FALSE)) -> PER-AVER | K8: =CONCATENATE(TRIM(B$1),": ",TRIM(B$5)," - ",TRIM(B$6)," ",TRIM(B$7)," (",TRIM(B$10),") ",TRIM(B$11)) -> NAA 051422: Total CVP, SWP, Sites Facilities - Net Generation (GWh) - CVP_SWP_NODOS_TOTAL Net_Generation (GWh) | AK8: =CONCATENATE(TRIM(C$1),": ",TRIM(C$5)," - ",TRIM(C$6)," ",TRIM(C$7)," (",TRIM(C$10),") ",TRIM(C$11)) -> Alt 1A 051722: Total CVP, SWP, Sites Facilities - Net Generation (GWh) - CVP_SWP_NODOS_TOTAL Net_Generation (GWh) | BK8: =CONCATENATE(TRIM(D$1),": ",TRIM(D$5)," - ",TRIM(D$6)," ",TRIM(D$7)," (",TRIM(D$10),") ",TRIM(D$11)) -> Alt 1B 051722: Total CVP, SWP, Sites Facilities - Net Generation (GWh) - CVP_SWP_NODOS_TOTAL Net_Generation (GWh) | CK8: =CONCATENATE(TRIM(E$1),": ",TRIM(E$5)," - ",TRIM(E$6)," ",TRIM(E$7)," (",TRIM(E$10),") ",TRIM(E$11)) -> Alt 3 051722: Total CVP, SWP, Sites Facilities - Net Generation (GWh) - CVP_SWP_NODOS_TOTAL Net_Generation (GWh) | DK8: =CONCATENATE(TRIM(F$1),": ",TRIM(F$5)," - ",TRIM(F$6)," ",TRIM(F$7)," (",TRIM(F$10),") ",TRIM(F$11)) ->  | EK8: =CONCATENATE(TRIM(G$1),": ",TRIM(G$5)," - ",TRIM(G$6)," ",TRIM(G$7)," (",TRIM(G$10),") ",TRIM(G$11)) -> 
A9: Units-native: | B9: =TRIM(INDIRECT(CONCATENATE("'",B$1,"'!",B$4,11))) -> GWh | C9: GWh | D9: GWh | E9: GWh
A10: Units-shown: | B10: =IF(AND(B$3>0,B$9="CFS"),"TAF",B$9) -> GWh | C10: GWh | D10: GWh | E10: GWh | Y10: Jan-Dec | Z10: Mar-Feb | AA10: Oct-Sep | AC10: Nov-Mar | AD10: Aug-Oct | AE10: Oct-Jan | AF10: Dec-Feb | AG10: Mar-Jun | AH10: Jun-Sep | AI10: Sep-Nov | AY10: Jan-Dec | AZ10: Mar-Feb | BA10: Oct-Sep | BC10: Nov-Mar | BD10: Aug-Oct | BE10: Oct-Jan | BF10: Dec-Feb | BG10: Mar-Jun | BH10: Jun-Sep | BI10: Sep-Nov | BY10: Jan-Dec | BZ10: Mar-Feb | CA10: Oct-Sep | CC10: Nov-Mar | CD10: Aug-Oct | CE10: Oct-Jan | CF10: Dec-Feb | CG10: Mar-Jun | CH10: Jun-Sep | CI10: Sep-Nov | CY10: Jan-Dec | CZ10: Mar-Feb | DA10: Oct-Sep | DC10: Nov-Mar | DD10: Aug-Oct | DE10: Oct-Jan | DF10: Dec-Feb | DG10: Mar-Jun | DH10: Jun-Sep | DI10: Sep-Nov | DY10: Jan-Dec | DZ10: Mar-Feb | EA10: Oct-Sep | EC10: Nov-Mar | ED10: Aug-Oct | EE10: Oct-Jan | EF10: Dec-Feb | EG10: Mar-Jun | EH10: Jun-Sep | EI10: Sep-Nov | EY10: Jan-Dec | EZ10: Mar-Feb | FA10: Oct-Sep | FC10: Nov-Mar | FD10: Aug-Oct | FE10: Oct-Jan | FF10: Dec-Feb | FG10: Mar-Jun | FH10: Jun-Sep | FI10: Sep-Nov
A11: Date | B11: =IF(ISNUMBER(FIND("PRV",B$6)),"SHIFTED","") ->  | C11: =IF(ISNUMBER(FIND("PRV",C$6)),"SHIFTED","") ->  | D11: =IF(ISNUMBER(FIND("PRV",D$6)),"SHIFTED","") ->  | E11: =IF(ISNUMBER(FIND("PRV",E$6)),"SHIFTED","") ->  | F11: =IF(ISNUMBER(FIND("PRV",F$6)),"SHIFTED","") ->  | K11: YEAR | L11: OCT | M11: NOV | N11: DEC | O11: JAN | P11: FEB | Q11: MAR | R11: APR | S11: MAY | T11: JUN | U11: JUL | V11: AUG | W11: SEP | Y11: =IF(AND(OR($B$10="TAF",$B$10="GWh",$B$10="GWh",$B$10="1000"),$B$8="PER-AVER"),"TOT","AVG") -> TOT | Z11: =IF(AND(OR($B$10="TAF",$B$10="GWh",$B$10="1000"),$B$8="PER-AVER"),"TOT","AVG") -> TOT | AA11: =IF(AND(OR($B$10="TAF",$B$10="GWh",$B$10="1000"),$B$8="PER-AVER"),"TOT","AVG") -> TOT | AC11: =IF(AND(OR($B$10="TAF",$B$10="GWh",$B$10="1000"),$B$8="PER-AVER"),"TOT","AVG") -> TOT | AD11: TOT | AE11: TOT | AF11: TOT | AG11: TOT | AH11: TOT | AI11: TOT | AK11: YEAR | AL11: OCT | AM11: NOV | AN11: DEC | AO11: JAN | AP11: FEB | AQ11: MAR | AR11: APR | AS11: MAY | AT11: JUN | AU11: JUL | AV11: AUG | AW11: SEP | AY11: =IF(AND(OR($C$10="TAF",$C$10="GWh",$B$10="1000"),$C$8="PER-AVER"),"TOT","AVG") -> TOT | AZ11: =IF(AND(OR($C$10="TAF",$C$10="GWh",$B$10="1000"),$C$8="PER-AVER"),"TOT","AVG") -> TOT | BA11: =IF(AND(OR($C$10="TAF",$C$10="GWh",$B$10="1000"),$C$8="PER-AVER"),"TOT","AVG") -> TOT | BC11: =IF(AND(OR($C$10="TAF",$C$10="GWh",$B$10="1000"),$C$8="PER-AVER"),"TOT","AVG") -> TOT | BD11: TOT | BE11: TOT | BF11: TOT | BG11: TOT | BH11: TOT | BI11: TOT | BK11: YEAR | BL11: OCT | BM11: NOV | BN11: DEC | BO11: JAN | BP11: FEB | BQ11: MAR | BR11: APR | BS11: MAY | BT11: JUN | BU11: JUL | BV11: AUG | BW11: SEP | BY11: =IF(AND(OR($D$10="TAF",$D$10="GWh",$B$10="1000"),$D$8="PER-AVER"),"TOT","AVG") -> TOT | BZ11: =IF(AND(OR($D$10="TAF",$D$10="GWh",$B$10="1000"),$D$8="PER-AVER"),"TOT","AVG") -> TOT | CA11: =IF(AND(OR($D$10="TAF",$D$10="GWh",$B$10="1000"),$D$8="PER-AVER"),"TOT","AVG") -> TOT | CC11: =IF(AND(OR($D$10="TAF",$D$10="GWh",$B$10="1000"),$D$8="PER-AVER"),"TOT","AVG") -> TOT | CD11: TOT | CE11: TOT | CF11: TOT | CG11: TOT | CH11: TOT | CI11: TOT | CK11: YEAR | CL11: OCT | CM11: NOV | CN11: DEC | CO11: JAN | CP11: FEB | CQ11: MAR | CR11: APR | CS11: MAY | CT11: JUN | CU11: JUL | CV11: AUG | CW11: SEP | CY11: =IF(AND(OR($E$10="TAF",$E$10="GWh",$B$10="1000"),$E$8="PER-AVER"),"TOT","AVG") -> TOT | CZ11: =IF(AND(OR($E$10="TAF",$E$10="GWh",$B$10="1000"),$E$8="PER-AVER"),"TOT","AVG") -> TOT | DA11: =IF(AND(OR($E$10="TAF",$E$10="GWh",$B$10="1000"),$E$8="PER-AVER"),"TOT","AVG") -> TOT | DC11: =IF(AND(OR($E$10="TAF",$E$10="GWh",$B$10="1000"),$E$8="PER-AVER"),"TOT","AVG") -> TOT | DD11: TOT | DE11: TOT | DF11: TOT | DG11: TOT | DH11: TOT | DI11: TOT | DK11: YEAR | DL11: OCT | DM11: NOV | DN11: DEC | DO11: JAN | DP11: FEB | DQ11: MAR | DR11: APR | DS11: MAY | DT11: JUN | DU11: JUL | DV11: AUG | DW11: SEP | DY11: =IF(AND(OR($F$10="TAF",$F$10="GWh",$B$10="1000"),$F$8="PER-AVER"),"TOT","AVG") ->  | DZ11: =IF(AND(OR($F$10="TAF",$F$10="GWh",$B$10="1000"),$F$8="PER-AVER"),"TOT","AVG") ->  | EA11: =IF(AND(OR($F$10="TAF",$F$10="GWh",$B$10="1000"),$F$8="PER-AVER"),"TOT","AVG") ->  | EC11: =IF(AND(OR($F$10="TAF",$F$10="GWh",$B$10="1000"),$F$8="PER-AVER"),"TOT","AVG") ->  | EK11: YEAR | EL11: OCT | EM11: NOV | EN11: DEC | EO11: JAN | EP11: FEB | EQ11: MAR | ER11: APR | ES11: MAY | ET11: JUN | EU11: JUL | EV11: AUG | EW11: SEP | EY11: =IF(AND(OR($G$10="TAF",$G$10="GWh",$B$10="1000"),$G$8="PER-AVER"),"TOT","AVG") ->  | EZ11: =IF(AND(OR($G$10="TAF",$G$10="GWh",$B$10="1000"),$G$8="PER-AVER"),"TOT","AVG") ->  | FA11: =IF(AND(OR($G$10="TAF",$G$10="GWh",$B$10="1000"),$G$8="PER-AVER"),"TOT","AVG") ->  | FC11: =IF(AND(OR($G$10="TAF",$G$10="GWh",$B$10="1000"),$G$8="PER-AVER"),"TOT","AVG") -> 
A12: 1921-09-30 | K12: 1922 | L12: =B13 -> -312.4784851 | M12: =B14 -> -473.5233154 | N12: =B15 -> -619.2562256 | O12: =B16 -> -91.0632782 | P12: =B17 -> -136.9272156 | Q12: =B18 -> -247.080719 | R12: =B19 -> -54.97164536 | S12: =B20 -> 785.3573608 | T12: =B21 -> 241.6077728 | U12: =B22 -> 215.9976044 | V12: =B23 -> 189.9784393 | W12: =B24 -> 86.90390778 | Y12: =IF(Y$11="AVG",AVERAGE(O12:W12,L13:N13),SUM(O12:W12,L13:N13)) -> 265.8977623 | Z12: =IF(Z$11="AVG",AVERAGE(Q12:W12,L13:P13),SUM(Q12:W12,L13:P13)) -> -353.5387459 | AA12: =IF(AA$11="AVG",AVERAGE(L12:W12),SUM(L12:W12)) -> -415.4557991 | AC12: =IF(AC$11="AVG",IF(AE$1="INST-VAL",AVERAGE(L12:P12,M12:Q12),AVERAGE(M12:Q12)),SUM(M12:Q12)) -> -1567.850754 | AD12: =IF(AD$11="AVG",IF(AE$1="INST-VAL",AVERAGE(U12:W12,V12:W12,L13),AVERAGE(V12:W12,L13)),SUM(V12:W12,L13)) -> 109.3333359 | AE12: =IF(AE$11="AVG",IF(AE$1="INST-VAL",AVERAGE(W11,L12:N12,L12:O12),AVERAGE(L12:O12)),SUM(L12:O12)) -> -1496.321304 | AF12: =IF(AF$11="AVG",IF(AE$1="INST-VAL",AVERAGE(M12:O12,N12:P12),AVERAGE(N12:P12)),SUM(N12:P12)) -> -847.2467194 | AG12: =IF(AG$11="AVG",IF(AE$1="INST-VAL",AVERAGE(P12:S12,Q12:T12),AVERAGE(Q12:T12)),SUM(Q12:T12)) -> 724.9127693 | AH12: =IF(AH$11="AVG",IF(AE$1="INST-VAL",AVERAGE(S12:V12,T12:W12),AVERAGE(T12:W12)),SUM(T12:W12)) -> 734.4877243 | AI12: =IF(AI$11="AVG",IF(AE$1="INST-VAL",AVERAGE(V12:W12,L13,W12,L13:M13),AVERAGE(W12,L13:M13)),SUM(W12,L13:M13)) -> -479.0130234 | AK12: 1922 | AL12: =C13 -> -312.4784851 | AM12: =C14 -> -473.5233154 | AN12: =C15 -> -619.2562256 | AO12: =C16 -> -91.0632782 | AP12: =C17 -> -175.794281 | AQ12: =C18 -> -247.080719 | AR12: =C19 -> -54.97164536 | AS12: =C20 -> 785.3573608 | AT12: =C21 -> 242.352417 | AU12: =C22 -> 216.6672058 | AV12: =C23 -> 197.0188293 | AW12: =C24 -> 93.83372498 | AY12: =IF(AY$11="AVG",AVERAGE(AO12:AW12,AL13:AN13),SUM(AO12:AW12,AL13:AN13)) -> 235.2747536 | AZ12: =IF(AZ$11="AVG",AVERAGE(AQ12:AW12,AL13:AP13),SUM(AQ12:AW12,AL13:AP13)) -> -345.1607475 | BA12: =IF(BA$11="AVG",AVERAGE(AL12:AW12),SUM(AL12:AW12)) -> -438.9384117 | BC12: =IF(BC$11="AVG",IF(BE$1="INST-VAL",AVERAGE(AL12:AP12,AM12:AQ12),AVERAGE(AM12:AQ12)),SUM(AM12:AQ12)) -> -1606.717819 | BD12: =IF(BD$11="AVG",IF(BE$1="INST-VAL",AVERAGE(AU12:AW12,AV12:AW12,AL13),AVERAGE(AV12:AW12,AL13)),SUM(AV12:AW12,AL13)) -> 130.0510559 | BE12: =IF(BE$11="AVG",IF(BE$1="INST-VAL",AVERAGE(AW11,AL12:AN12,AL12:AO12),AVERAGE(AL12:AO12)),SUM(AL12:AO12)) -> -1496.321304 | BF12: =IF(BF$11="AVG",IF(BE$1="INST-VAL",AVERAGE(AM12:AO12,AN12:AP12),AVERAGE(AN12:AP12)),SUM(AN12:AP12)) -> -886.1137848 | BG12: =IF(BG$11="AVG",IF(BE$1="INST-VAL",AVERAGE(AP12:AS12,AQ12:AT12),AVERAGE(AQ12:AT12)),SUM(AQ12:AT12)) -> 725.6574135 | BH12: =IF(BH$11="AVG",IF(BE$1="INST-VAL",AVERAGE(AS12:AV12,AT12:AW12),AVERAGE(AT12:AW12)),SUM(AT12:AW12)) -> 749.8721771 | BI12: =IF(BI$11="AVG",IF(BE$1="INST-VAL",AVERAGE(AV12:AW12,AL13,AW12,AL13:AM13),AVERAGE(AW12,AL13:AM13)),SUM(AW12,AL13:AM13)) -> -464.8052063 | BK12: 1922 | BL12: =D13 -> -313.8348999 | BM12: =D14 -> -473.7279053 | BN12: =D15 -> -619.3396606 | BO12: =D16 -> -91.12107849 | BP12: =D17 -> -177.8966675 | BQ12: =D18 -> -247.0222473 | BR12: =D19 -> -51.00577927 | BS12: =D20 -> 785.3597412 | BT12: =D21 -> 242.2463837 | BU12: =D22 -> 200.2043304 | BV12: =D23 -> 197.920517 | BW12: =D24 -> 97.71577454 | BY12: =IF(BY$11="AVG",AVERAGE(BO12:BW12,BL13:BN13),SUM(BO12:BW12,BL13:BN13)) -> 250.9500923 | BZ12: =IF(BZ$11="AVG",AVERAGE(BQ12:BW12,BL13:BP13),SUM(BQ12:BW12,BL13:BP13)) -> -328.5789452 | CA12: =IF(CA$11="AVG",AVERAGE(BL12:BW12),SUM(BL12:BW12)) -> -450.5014915 | CC12: =IF(CC$11="AVG",IF(CE$1="INST-VAL",AVERAGE(BL12:BP12,BM12:BQ12),AVERAGE(BM12:BQ12)),SUM(BM12:BQ12)) -> -1609.107559 | CD12: =IF(CD$11="AVG",IF(CE$1="INST-VAL",AVERAGE(BU12:BW12,BV12:BW12,BL13),AVERAGE(BV12:BW12,BL13)),SUM(BV12:BW12,BL13)) -> 162.6205139 | CE12: =IF(CE$11="AVG",IF(CE$1="INST-VAL",AVERAGE(BW11,BL12:BN12,BL12:BO12),AVERAGE(BL12:BO12)),SUM(BL12:BO12)) -> -1498.023544 | CF12: =IF(CF$11="AVG",IF(CE$1="INST-VAL",AVERAGE(BM12:BO12,BN12:BP12),AVERAGE(BN12:BP12)),SUM(BN12:BP12)) -> -888.3574066 | CG12: =IF(CG$11="AVG",IF(CE$1="INST-VAL",AVERAGE(BP12:BS12,BQ12:BT12),AVERAGE(BQ12:BT12)),SUM(BQ12:BT12)) -> 729.5780983 | CH12: =IF(CH$11="AVG",IF(CE$1="INST-VAL",AVERAGE(BS12:BV12,BT12:BW12),AVERAGE(BT12:BW12)),SUM(BT12:BW12)) -> 738.0870056 | CI12: =IF(CI$11="AVG",IF(CE$1="INST-VAL",AVERAGE(BV12:BW12,BL13,BW12,BL13:BM13),AVERAGE(BW12,BL13:BM13)),SUM(BW12,BL13:BM13)) -> -435.763443 | CK12: 1922 | CL12: =E13 -> -318.3509216 | CM12: =E14 -> -474.3962097 | CN12: =E15 -> -619.6166992 | CO12: =E16 -> -91.31248474 | CP12: =E17 -> -184.7835541 | CQ12: =E18 -> -246.8348694 | CR12: =E19 -> -38.26458359 | CS12: =E20 -> 785.3672485 | CT12: =E21 -> 241.9460754 | CU12: =E22 -> 193.5401611 | CV12: =E23 -> 181.4770203 | CW12: =E24 -> 113.9528351 | CY12: =IF(CY$11="AVG",AVERAGE(CO12:CW12,CL13:CN13),SUM(CO12:CW12,CL13:CN13)) -> 267.85886 | CZ12: =IF(CZ$11="AVG",AVERAGE(CQ12:CW12,CL13:CP13),SUM(CQ12:CW12,CL13:CP13)) -> -311.7905846 | DA12: =IF(DA$11="AVG",AVERAGE(CL12:CW12),SUM(CL12:CW12)) -> -457.2759819 | DC12: =IF(DC$11="AVG",IF(DE$1="INST-VAL",AVERAGE(CL12:CP12,CM12:CQ12),AVERAGE(CM12:CQ12)),SUM(CM12:CQ12)) -> -1616.943817 | DD12: =IF(DD$11="AVG",IF(DE$1="INST-VAL",AVERAGE(CU12:CW12,CV12:CW12,CL13),AVERAGE(CV12:CW12,CL13)),SUM(CV12:CW12,CL13)) -> 167.4086151 | DE12: =IF(DE$11="AVG",IF(DE$1="INST-VAL",AVERAGE(CW11,CL12:CN12,CL12:CO12),AVERAGE(CL12:CO12)),SUM(CL12:CO12)) -> -1503.676315 | DF12: =IF(DF$11="AVG",IF(DE$1="INST-VAL",AVERAGE(CM12:CO12,CN12:CP12),AVERAGE(CN12:CP12)),SUM(CN12:CP12)) -> -895.712738 | DG12: =IF(DG$11="AVG",IF(DE$1="INST-VAL",AVERAGE(CP12:CS12,CQ12:CT12),AVERAGE(CQ12:CT12)),SUM(CQ12:CT12)) -> 742.213871 | DH12: =IF(DH$11="AVG",IF(DE$1="INST-VAL",AVERAGE(CS12:CV12,CT12:CW12),AVERAGE(CT12:CW12)),SUM(CT12:CW12)) -> 730.9160919 | DI12: =IF(DI$11="AVG",IF(DE$1="INST-VAL",AVERAGE(CV12:CW12,CL13,CW12,CL13:CM13),AVERAGE(CW12,CL13:CM13)),SUM(CW12,CL13:CM13)) -> -402.2194061 | DK12: 1922 | DL12: =F13 ->  | DM12: =F14 ->  | DN12: =F15 ->  | DO12: =F16 ->  | DP12: =F17 ->  | DQ12: =F18 ->  | DR12: =F19 ->  | DS12: =F20 ->  | DT12: =F21 ->  | DU12: =F22 ->  | DV12: =F23 ->  | DW12: =F24 ->  | DY12: =IF(DY$11="AVG",AVERAGE(DO12:DW12,DL13:DN13),SUM(DO12:DW12,DL13:DN13)) ->  | DZ12: =IF(DZ$11="AVG",AVERAGE(DQ12:DW12,DL13:DP13),SUM(DQ12:DW12,DL13:DP13)) ->  | EA12: =IF(EA$11="AVG",AVERAGE(DL12:DW12),SUM(DL12:DW12)) ->  | EC12: =IF(EC$11="AVG",IF(EE$1="INST-VAL",AVERAGE(DL12:DP12,DM12:DQ12),AVERAGE(DM12:DQ12)),SUM(DM12:DQ12)) ->  | ED12: =IF(ED$11="AVG",IF(EE$1="INST-VAL",AVERAGE(DU12:DW12,DV12:DW12,DL13),AVERAGE(DV12:DW12,DL13)),SUM(DV12:DW12,DL13)) ->  | EE12: =IF(EE$11="AVG",IF(EE$1="INST-VAL",AVERAGE(DW11,DL12:DN12,DL12:DO12),AVERAGE(DL12:DO12)),SUM(DL12:DO12)) ->  | EF12: =IF(EF$11="AVG",IF(EE$1="INST-VAL",AVERAGE(DM12:DO12,DN12:DP12),AVERAGE(DN12:DP12)),SUM(DN12:DP12)) ->  | EG12: =IF(EG$11="AVG",IF(EE$1="INST-VAL",AVERAGE(DP12:DS12,DQ12:DT12),AVERAGE(DQ12:DT12)),SUM(DQ12:DT12)) ->  | EH12: =IF(EH$11="AVG",IF(EE$1="INST-VAL",AVERAGE(DS12:DV12,DT12:DW12),AVERAGE(DT12:DW12)),SUM(DT12:DW12)) ->  | EI12: =IF(EI$11="AVG",IF(EE$1="INST-VAL",AVERAGE(DV12:DW12,DL13,DW12,DL13:DM13),AVERAGE(DW12,DL13:DM13)),SUM(DW12,DL13:DM13)) ->  | EK12: 1922 | EL12: =G13 ->  | EM12: =G14 ->  | EN12: =G15 ->  | EO12: =G16 ->  | EP12: =G17 ->  | EQ12: =G18 ->  | ER12: =G19 ->  | ES12: =G20 ->  | ET12: =G21 ->  | EU12: =G22 ->  | EV12: =G23 ->  | EW12: =G24 ->  | EY12: =IF(EY$11="AVG",AVERAGE(EO12:EW12,EL13:EN13),SUM(EO12:EW12,EL13:EN13)) ->  | EZ12: =IF(EZ$11="AVG",AVERAGE(EQ12:EW12,EL13:EP13),SUM(EQ12:EW12,EL13:EP13)) ->  | FA12: =IF(FA$11="AVG",AVERAGE(EL12:EW12),SUM(EL12:EW12)) ->  | FC12: =IF(FC$11="AVG",IF(FE$1="INST-VAL",AVERAGE(EL12:EP12,EM12:EQ12),AVERAGE(EM12:EQ12)),SUM(EM12:EQ12)) ->  | FD12: =IF(FD$11="AVG",IF(FE$1="INST-VAL",AVERAGE(EU12:EW12,EV12:EW12,EL13),AVERAGE(EV12:EW12,EL13)),SUM(EV12:EW12,EL13)) ->  | FE12: =IF(FE$11="AVG",IF(FE$1="INST-VAL",AVERAGE(EW11,EL12:EN12,EL12:EO12),AVERAGE(EL12:EO12)),SUM(EL12:EO12)) ->  | FF12: =IF(FF$11="AVG",IF(FE$1="INST-VAL",AVERAGE(EM12:EO12,EN12:EP12),AVERAGE(EN12:EP12)),SUM(EN12:EP12)) ->  | FG12: =IF(FG$11="AVG",IF(FE$1="INST-VAL",AVERAGE(EP12:ES12,EQ12:ET12),AVERAGE(EQ12:ET12)),SUM(EQ12:ET12)) ->  | FH12: =IF(FH$11="AVG",IF(FE$1="INST-VAL",AVERAGE(ES12:EV12,ET12:EW12),AVERAGE(ET12:EW12)),SUM(ET12:EW12)) ->  | FI12: =IF(FI$11="AVG",IF(FE$1="INST-VAL",AVERAGE(EV12:EW12,EL13,EW12,EL13:EM13),AVERAGE(EW12,EL13:EM13)),SUM(EW12,EL13:EM13)) -> 
A13: 1921-10-31 | B13: =INDIRECT(CONCATENATE("'",B$1,"'!",B$4,(YEAR($A13)-1921)*12+MONTH($A13)+3+IF(ISNUMBER(FIND("PRV",B$6)),1,0)))*IF(AND(B$3>0,TRIM(B$9)="CFS"),Conversions!$C13,1) -> -312.4784851 | C13: =INDIRECT(CONCATENATE("'",C$1,"'!",C$4,(YEAR($A13)-1921)*12+MONTH($A13)+3+IF(ISNUMBER(FIND("PRV",C$6)),1,0)))*IF(AND(C$3>0,TRIM(C$9)="CFS"),Conversions!$C13,1) -> -312.4784851 | D13: =INDIRECT(CONCATENATE("'",D$1,"'!",D$4,(YEAR($A13)-1921)*12+MONTH($A13)+3+IF(ISNUMBER(FIND("PRV",D$6)),1,0)))*IF(AND(D$3>0,TRIM(D$9)="CFS"),Conversions!$C13,1) -> -313.8348999 | E13: =INDIRECT(CONCATENATE("'",E$1,"'!",E$4,(YEAR($A13)-1921)*12+MONTH($A13)+3+IF(ISNUMBER(FIND("PRV",E$6)),1,0)))*IF(AND(E$3>0,TRIM(E$9)="CFS"),Conversions!$C13,1) -> -318.3509216 | F13: =INDIRECT(CONCATENATE("'",F$1,"'!",F$4,(YEAR($A13)-1921)*12+MONTH($A13)+3+IF(ISNUMBER(FIND("PRV",F$6)),1,0)))*IF(AND(F$3>0,TRIM(F$9)="CFS"),Conversions!$C13,1) ->  | G13: =INDIRECT(CONCATENATE("'",G$1,"'!",G$4,(YEAR($A13)-1921)*12+MONTH($A13)+3+IF(ISNUMBER(FIND("PRV",G$6)),1,0)))*IF(AND(G$3>0,TRIM(G$9)="CFS"),Conversions!$C13,1) ->  | K13: 1923 | L13: =B25 -> -167.5490112 | M13: =B26 -> -398.3679199 | N13: =B27 -> -157.9875336 | O13: =B28 -> -436.7878723 | P13: =B29 -> -410.6391296 | Q13: =B30 -> -277.6933289 | R13: =B31 -> -140.8462372 | S13: =B32 -> 295.9063416 | T13: =B33 -> 81.09450531 | U13: =B34 -> 265.3327637 | V13: =B35 -> 101.8436356 | W13: =B36 -> -290.1462097 | Y13: -1508.817673 | Z13: -834.0693817 | AA13: -1535.839996 | AC13: =IF(AC$11="AVG",IF(AE$1="INST-VAL",AVERAGE(L13:P13,M13:Q13),AVERAGE(M13:Q13)),SUM(M13:Q13)) -> -1681.475784 | AD13: =IF(AD$11="AVG",IF(AE$1="INST-VAL",AVERAGE(U13:W13,V13:W13,L14),AVERAGE(V13:W13,L14)),SUM(V13:W13,L14)) -> -470.4492111 | AE13: =IF(AE$11="AVG",IF(AE$1="INST-VAL",AVERAGE(W12,L13:N13,L13:O13),AVERAGE(L13:O13)),SUM(L13:O13)) -> -1160.692337 | AF13: -1005.414536 | AG13: -41.53871918 | AH13: 158.1246948 | AI13: -783.3027039 | AK13: 1923 | AL13: =C25 -> -160.8014984 | AM13: =C26 -> -397.8374329 | AN13: =C27 -> -172.4059296 | AO13: =C28 -> -436.7900085 | AP13: =C29 -> -410.5030518 | AQ13: =C30 -> -281.6651917 | AR13: =C31 -> -140.1191406 | AS13: =C32 -> 296.2303162 | AT13: =C33 -> 82.33629608 | AU13: =C34 -> 257.3059387 | AV13: =C35 -> 104.7096939 | AW13: =C36 -> -288.3575134 | AY13: -1745.43103 | AZ13: -1069.017128 | BA13: -1547.897522 | BC13: =IF(BC$11="AVG",IF(BE$1="INST-VAL",AVERAGE(AL13:AP13,AM13:AQ13),AVERAGE(AM13:AQ13)),SUM(AM13:AQ13)) -> -1699.201614 | BD13: =IF(BD$11="AVG",IF(BE$1="INST-VAL",AVERAGE(AU13:AW13,AV13:AW13,AL14),AVERAGE(AV13:AW13,AL14)),SUM(AV13:AW13,AL14)) -> -558.348259 | BE13: -1167.834869 | BF13: -1019.69899 | BG13: -43.21772003 | BH13: 155.9944153 | BI13: -1018.563385 | BK13: 1923 | BL13: =D25 -> -133.0157776 | BM13: =D26 -> -400.4634399 | BN13: =D27 -> -171.9716644 | BO13: =D28 -> -437.2094727 | BP13: =D29 -> -411.3373108 | BQ13: =D30 -> -278.2188416 | BR13: =D31 -> -139.550705 | BS13: =D32 -> 296.8162537 | BT13: =D33 -> 83.87532806 | BU13: =D34 -> 259.1853027 | BV13: =D35 -> 107.8670425 | BW13: =D36 -> -285.2821045 | BY13: -1725.676285 | BZ13: -1050.77993 | CA13: -1509.305389 | CC13: =IF(CC$11="AVG",IF(CE$1="INST-VAL",AVERAGE(BL13:BP13,BM13:BQ13),AVERAGE(BM13:BQ13)),SUM(BM13:BQ13)) -> -1699.200729 | CD13: =IF(CD$11="AVG",IF(CE$1="INST-VAL",AVERAGE(BU13:BW13,BV13:BW13,BL14),AVERAGE(BV13:BW13,BL14)),SUM(BV13:BW13,BL14)) -> -550.0128708 | CE13: -1142.660355 | CF13: -1020.518448 | CG13: -37.07796478 | CH13: 165.6455688 | CI13: -1009.683868 | CK13: 1923 | CL13: =E25 -> -128.0212402 | CM13: =E26 -> -388.151001 | CN13: =E27 -> -171.0567474 | CO13: =E28 -> -437.8610535 | CP13: =E29 -> -417.8844299 | CQ13: =E30 -> -288.7635193 | CR13: =E31 -> -131.7812653 | CS13: =E32 -> 297.9914551 | CT13: =E33 -> 62.01272583 | CU13: =E34 -> 257.3047791 | CV13: =E35 -> 114.5652542 | CW13: =E36 -> -258.2431641 | CY13: -1718.324501 | CZ13: -1065.908897 | DA13: -1489.888206 | DC13: -1703.716751 | DD13: -517.318718 | DE13: -1125.090042 | DF13: -1026.802231 | DG13: -60.54060364 | DH13: 175.639595 | DI13: -975.083374 | DK13: 1923 | DL13: =F25 ->  | DM13: =F26 ->  | DN13: =F27 ->  | DO13: =F28 ->  | DP13: =F29 ->  | DQ13: =F30 ->  | DR13: =F31 ->  | DS13: =F32 ->  | DT13: =F33 ->  | DU13: =F34 ->  | DV13: =F35 ->  | DW13: =F36 ->  | EK13: 1923 | EL13: =G25 ->  | EM13: =G26 ->  | EN13: =G27 ->  | EO13: =G28 ->  | EP13: =G29 ->  | EQ13: =G30 ->  | ER13: =G31 ->  | ES13: =G32 ->  | ET13: =G33 ->  | EU13: =G34 ->  | EV13: =G35 ->  | EW13: =G36 -> 
A14: 1921-11-30 | B14: =INDIRECT(CONCATENATE("'",B$1,"'!",B$4,(YEAR($A14)-1921)*12+MONTH($A14)+3+IF(ISNUMBER(FIND("PRV",B$6)),1,0)))*IF(AND(B$3>0,TRIM(B$9)="CFS"),Conversions!$C14,1) -> -473.5233154 | C14: =INDIRECT(CONCATENATE("'",C$1,"'!",C$4,(YEAR($A14)-1921)*12+MONTH($A14)+3+IF(ISNUMBER(FIND("PRV",C$6)),1,0)))*IF(AND(C$3>0,TRIM(C$9)="CFS"),Conversions!$C14,1) -> -473.5233154 | D14: =INDIRECT(CONCATENATE("'",D$1,"'!",D$4,(YEAR($A14)-1921)*12+MONTH($A14)+3+IF(ISNUMBER(FIND("PRV",D$6)),1,0)))*IF(AND(D$3>0,TRIM(D$9)="CFS"),Conversions!$C14,1) -> -473.7279053 | E14: =INDIRECT(CONCATENATE("'",E$1,"'!",E$4,(YEAR($A14)-1921)*12+MONTH($A14)+3+IF(ISNUMBER(FIND("PRV",E$6)),1,0)))*IF(AND(E$3>0,TRIM(E$9)="CFS"),Conversions!$C14,1) -> -474.3962097 | F14: =INDIRECT(CONCATENATE("'",F$1,"'!",F$4,(YEAR($A14)-1921)*12+MONTH($A14)+3+IF(ISNUMBER(FIND("PRV",F$6)),1,0)))*IF(AND(F$3>0,TRIM(F$9)="CFS"),Conversions!$C14,1) ->  | G14: =INDIRECT(CONCATENATE("'",G$1,"'!",G$4,(YEAR($A14)-1921)*12+MONTH($A14)+3+IF(ISNUMBER(FIND("PRV",G$6)),1,0)))*IF(AND(G$3>0,TRIM(G$9)="CFS"),Conversions!$C14,1) ->  | K14: 1924 | L14: =B37 -> -282.146637 | M14: =B38 -> -211.0098572 | N14: =B39 -> -203.725647 | O14: =B40 -> -73.90566254 | P14: =B41 -> -98.7730484 | Q14: =B42 -> 115.7340164 | R14: =B43 -> 121.023201 | S14: =B44 -> 258.9457397 | T14: =B45 -> 261.0545654 | U14: =B46 -> 224.7954559 | V14: =B47 -> 96.52194214 | W14: =B48 -> 45.99594498 | Y14: 576.4492989 | Z14: 611.414938 | AA14: 254.5100136 | AC14: =IF(AC$11="AVG",IF(AE$1="INST-VAL",AVERAGE(L14:P14,M14:Q14),AVERAGE(M14:Q14)),SUM(M14:Q14)) -> -471.6801987 | AD14: =IF(AD$11="AVG",IF(AE$1="INST-VAL",AVERAGE(U14:W14,V14:W14,L15),AVERAGE(V14:W14,L15)),SUM(V14:W14,L15)) -> -3.703197479 | AE14: =IF(AE$11="AVG",IF(AE$1="INST-VAL",AVERAGE(W13,L14:N14,L14:O14),AVERAGE(L14:O14)),SUM(L14:O14)) -> -770.7878036 | AF14: -376.4043579 | AG14: 756.7575226 | AH14: 628.3679085 | AI14: -188.8288078 | AK14: 1924 | AL14: =C37 -> -374.7004395 | AM14: =C38 -> -355.5054321 | AN14: =C39 -> -198.3724976 | AO14: =C40 -> -72.9683075 | AP14: =C41 -> -97.91085052 | AQ14: =C42 -> 117.4776917 | AR14: =C43 -> 114.4345932 | AS14: =C44 -> 269.3421326 | AT14: =C45 -> 248.1761017 | AU14: =C46 -> 14.98118019 | AV14: =C47 -> -274.7888489 | AW14: =C48 -> -142.0897064 | AY14: -200.7878246 | AZ14: -209.4835796 | BA14: -751.9243832 | BC14: =IF(BC$11="AVG",IF(BE$1="INST-VAL",AVERAGE(AL14:AP14,AM14:AQ14),AVERAGE(AM14:AQ14)),SUM(AM14:AQ14)) -> -607.2793961 | BD14: -562.3795776 | BE14: -1001.546677 | BF14: -369.2516556 | BG14: 749.4305191 | BH14: -153.7212734 | BI14: -375.5369797 | BK14: 1924 | BL14: =D37 -> -372.5978088 | BM14: =D38 -> -351.8039551 | BN14: =D39 -> -197.4200134 | BO14: =D40 -> -74.40520477 | BP14: =D41 -> -99.245224 | BQ14: =D42 -> 116.4727097 | BR14: =D43 -> 112.9904938 | BS14: =D44 -> 267.9343567 | BT14: =D45 -> 246.1459656 | BU14: =D46 -> -0.01086807251 | BV14: =D47 -> -274.6388245 | BW14: =D48 -> -145.4100494 | BY14: -230.3681679 | BZ14: -237.2527428 | CA14: -771.9884224 | CC14: =IF(CC$11="AVG",IF(CE$1="INST-VAL",AVERAGE(BL14:BP14,BM14:BQ14),AVERAGE(BM14:BQ14)),SUM(BM14:BQ14)) -> -606.4016876 | CD14: -564.3668671 | CE14: -996.2269821 | CF14: -371.0704422 | CG14: 743.5435257 | CH14: -173.9137764 | CI14: -379.2445068 | CK14: 1924 | CL14: =E37 -> -373.6408081 | CM14: =E38 -> -343.1994019 | CN14: =E39 -> -198.8250732 | CO14: =E40 -> -89.94843292 | CP14: =E41 -> -113.3814468 | CQ14: =E42 -> 104.2536621 | CR14: =E43 -> 101.5770493 | CS14: =E44 -> 257.1428528 | CT14: =E45 -> 223.1934967 | CU14: =E46 -> -38.11107254 | CV14: =E47 -> -192.8253784 | CW14: =E48 -> 8.725473404 | CY14: -224.5111256 | CZ14: -201.1918583 | DA14: -655.0390797 | DC14: -641.1006927 | DD14: -421.9229031 | DE14: -1005.613716 | DF14: -402.154953 | DG14: 686.1670609 | DH14: 0.9825191498 | DI14: -317.6176357 | DK14: 1924 | DL14: =F37 ->  | DM14: =F38 ->  | DN14: =F39 ->  | DO14: =F40 ->  | DP14: =F41 ->  | DQ14: =F42 ->  | DR14: =F43 ->  | DS14: =F44 ->  | DT14: =F45 ->  | DU14: =F46 ->  | DV14: =F47 ->  | DW14: =F48 ->  | EK14: 1924 | EL14: =G37 ->  | EM14: =G38 ->  | EN14: =G39 ->  | EO14: =G40 ->  | EP14: =G41 ->  | EQ14: =G42 ->  | ER14: =G43 ->  | ES14: =G44 ->  | ET14: =G45 ->  | EU14: =G46 ->  | EV14: =G47 ->  | EW14: =G48 -> 
A15: 1921-12-31 | B15: =INDIRECT(CONCATENATE("'",B$1,"'!",B$4,(YEAR($A15)-1921)*12+MONTH($A15)+3+IF(ISNUMBER(FIND("PRV",B$6)),1,0)))*IF(AND(B$3>0,TRIM(B$9)="CFS"),Conversions!$C15,1) -> -619.2562256 | C15: =INDIRECT(CONCATENATE("'",C$1,"'!",C$4,(YEAR($A15)-1921)*12+MONTH($A15)+3+IF(ISNUMBER(FIND("PRV",C$6)),1,0)))*IF(AND(C$3>0,TRIM(C$9)="CFS"),Conversions!$C15,1) -> -619.2562256 | D15: =INDIRECT(CONCATENATE("'",D$1,"'!",D$4,(YEAR($A15)-1921)*12+MONTH($A15)+3+IF(ISNUMBER(FIND("PRV",D$6)),1,0)))*IF(AND(D$3>0,TRIM(D$9)="CFS"),Conversions!$C15,1) -> -619.3396606 | E15: =INDIRECT(CONCATENATE("'",E$1,"'!",E$4,(YEAR($A15)-1921)*12+MONTH($A15)+3+IF(ISNUMBER(FIND("PRV",E$6)),1,0)))*IF(AND(E$3>0,TRIM(E$9)="CFS"),Conversions!$C15,1) -> -619.6166992 | F15: =INDIRECT(CONCATENATE("'",F$1,"'!",F$4,(YEAR($A15)-1921)*12+MONTH($A15)+3+IF(ISNUMBER(FIND("PRV",F$6)),1,0)))*IF(AND(F$3>0,TRIM(F$9)="CFS"),Conversions!$C15,1) ->  | G15: =INDIRECT(CONCATENATE("'",G$1,"'!",G$4,(YEAR($A15)-1921)*12+MONTH($A15)+3+IF(ISNUMBER(FIND("PRV",G$6)),1,0)))*IF(AND(G$3>0,TRIM(G$9)="CFS"),Conversions!$C15,1) ->  | K15: 1925 | L15: =B49 -> -146.2210846 | M15: =B50 -> -88.60366821 | N15: =B51 -> -140.118103 | O15: =B52 -> -108.0738831 | P15: =B53 -> -29.63918877 | Q15: =B54 -> -70.6772995 | R15: =B55 -> -9.203357697 | S15: =B56 -> 232.6904449 | T15: =B57 -> 241.1435547 | U15: =B58 -> 389.8232422 | V15: =B59 -> 183.7335052 | W15: =B60 -> -29.46612549 | Y15: 452.4320507 | Z15: 458.5992775 | AA15: 425.3880367 | AC15: =IF(AC$11="AVG",IF(AE$1="INST-VAL",AVERAGE(L15:P15,M15:Q15),AVERAGE(M15:Q15)),SUM(M15:Q15)) -> -437.1121426 | AD15: 63.54703522 | AE15: -483.0167389 | AF15: -277.8311749 | AG15: 393.9533424 | AH15: 785.2341766 | AI15: -248.8009872 | AK15: 1925 | AL15: =C49 -> -145.5010223 | AM15: =C50 -> -87.94625092 | AN15: =C51 -> -143.9945374 | AO15: =C52 -> -106.9509506 | AP15: =C53 -> -72.6239624 | AQ15: =C54 -> -72.40032959 | AR15: =C55 -> -7.306940556 | AS15: =C56 -> 249.7691498 | AT15: =C57 -> 242.9213562 | AU15: =C58 -> 374.2568359 | AV15: =C59 -> -86.05180359 | AW15: =C60 -> -53.57180023 | AY15: 121.182302 | AZ15: 114.9931464 | BA15: 90.59974432 | BC15: =IF(BC$11="AVG",IF(BE$1="INST-VAL",AVERAGE(AL15:AP15,AM15:AQ15),AVERAGE(AM15:AQ15)),SUM(AM15:AQ15)) -> -483.9160309 | BD15: =IF(BD$11="AVG",IF(BE$1="INST-VAL",AVERAGE(AU15:AW15,AV15:AW15,AL16),AVERAGE(AV15:AW15,AL16)),SUM(AV15:AW15,AL16)) -> -228.962471 | BE15: -484.3927612 | BF15: -323.5694504 | BG15: 412.9832358 | BH15: 477.5545883 | BI15: -270.0271988 | BK15: 1925 | BL15: =D49 -> -144.3179932 | BM15: =D50 -> -89.51646423 | BN15: =D51 -> -146.3670654 | BO15: =D52 -> -107.8546448 | BP15: =D53 -> -72.68035889 | BQ15: =D54 -> -72.70723724 | BR15: =D55 -> -7.496653557 | BS15: =D56 -> 234.8838501 | BT15: =D57 -> 237.1173248 | BU15: =D58 -> 381.5713501 | BV15: =D59 -> -28.80422592 | BW15: =D60 -> -25.22467613 | BY15: 194.7579832 | BZ15: 193.5123014 | CA15: 158.6032057 | CC15: -489.1257706 | CD15: -142.6044559 | CE15: -488.0561676 | CF15: -326.9020691 | CG15: 391.7972841 | CH15: 564.6597729 | CI15: -240.5893536 | CK15: 1925 | CL15: =E49 -> -237.822998 | CM15: =E50 -> -88.52011108 | CN15: =E51 -> -158.79422 | CO15: =E52 -> -110.4392319 | CP15: =E53 -> -69.57138062 | CQ15: =E54 -> -70.57151031 | CR15: =E55 -> -2.417950392 | CS15: =E56 -> 256.361908 | CT15: =E57 -> 229.5811005 | CU15: =E58 -> 267.5714722 | CV15: =E59 -> 190.3117218 | CW15: =E60 -> -15.24945259 | CY15: 364.3157361 | CZ15: 372.6241238 | DA15: 190.4393475 | DC15: -497.8964539 | DD15: 98.40403557 | DE15: -595.576561 | DF15: -338.8048325 | DG15: 412.9535477 | DH15: 672.2148418 | DI15: -208.8904057 | DK15: 1925 | DL15: =F49 ->  | DM15: =F50 ->  | DN15: =F51 ->  | DO15: =F52 ->  | DP15: =F53 ->  | DQ15: =F54 ->  | DR15: =F55 ->  | DS15: =F56 ->  | DT15: =F57 ->  | DU15: =F58 ->  | DV15: =F59 ->  | DW15: =F60 ->  | EK15: 1925 | EL15: =G49 ->  | EM15: =G50 ->  | EN15: =G51 ->  | EO15: =G52 ->  | EP15: =G53 ->  | EQ15: =G54 ->  | ER15: =G55 ->  | ES15: =G56 ->  | ET15: =G57 ->  | EU15: =G58 ->  | EV15: =G59 ->  | EW15: =G60 -> 
A16: 1922-01-31 | B16: =INDIRECT(CONCATENATE("'",B$1,"'!",B$4,(YEAR($A16)-1921)*12+MONTH($A16)+3+IF(ISNUMBER(FIND("PRV",B$6)),1,0)))*IF(AND(B$3>0,TRIM(B$9)="CFS"),Conversions!$C16,1) -> -91.0632782 | C16: =INDIRECT(CONCATENATE("'",C$1,"'!",C$4,(YEAR($A16)-1921)*12+MONTH($A16)+3+IF(ISNUMBER(FIND("PRV",C$6)),1,0)))*IF(AND(C$3>0,TRIM(C$9)="CFS"),Conversions!$C16,1) -> -91.0632782 | D16: =INDIRECT(CONCATENATE("'",D$1,"'!",D$4,(YEAR($A16)-1921)*12+MONTH($A16)+3+IF(ISNUMBER(FIND("PRV",D$6)),1,0)))*IF(AND(D$3>0,TRIM(D$9)="CFS"),Conversions!$C16,1) -> -91.12107849 | E16: =INDIRECT(CONCATENATE("'",E$1,"'!",E$4,(YEAR($A16)-1921)*12+MONTH($A16)+3+IF(ISNUMBER(FIND("PRV",E$6)),1,0)))*IF(AND(E$3>0,TRIM(E$9)="CFS"),Conversions!$C16,1) -> -91.31248474 | F16: =INDIRECT(CONCATENATE("'",F$1,"'!",F$4,(YEAR($A16)-1921)*12+MONTH($A16)+3+IF(ISNUMBER(FIND("PRV",F$6)),1,0)))*IF(AND(F$3>0,TRIM(F$9)="CFS"),Conversions!$C16,1) ->  | G16: =INDIRECT(CONCATENATE("'",G$1,"'!",G$4,(YEAR($A16)-1921)*12+MONTH($A16)+3+IF(ISNUMBER(FIND("PRV",G$6)),1,0)))*IF(AND(G$3>0,TRIM(G$9)="CFS"),Conversions!$C16,1) ->  | K16: 1926 | L16: =B61 -> -90.72034454 | M16: =B62 -> -128.6145172 | N16: =B63 -> -128.5639801 | O16: =B64 -> -83.24494171 | P16: =B65 -> -48.30090332 | Q16: =B66 -> -1.736184001 | R16: =B67 -> -73.45916748 | S16: =B68 -> 339.9218445 | T16: =B69 -> 321.4048462 | U16: =B70 -> 404.7748718 | V16: =B71 -> 152.5474701 | W16: =B72 -> -118.0758209 | Y16: 340.3470966 | Z16: 823.7350847 | AA16: 545.9331733 | AC16: -390.4605263 | AD16: -136.1583252 | AE16: -431.1437836 | AF16: -260.1098251 | AG16: 586.1313392 | AH16: 760.6513672 | AI16: -690.2367401 | AK16: 1926 | AL16: =C61 -> -89.33886719 | AM16: =C62 -> -127.1165314 | AN16: =C63 -> -130.4038544 | AO16: =C64 -> -84.63079834 | AP16: =C65 -> -101.1332703 | AQ16: =C66 -> -0.2791704535 | AR16: =C67 -> -77.0512085 | AS16: =C68 -> 329.8781128 | AT16: =C69 -> 310.9829102 | AU16: =C70 -> 178.0221558 | AV16: =C71 -> 113.2653275 | AW16: =C72 -> -126.4997025 | AY16: -63.32668251 | AZ16: 359.5366941 | BA16: 195.6951032 | BC16: -443.5636248 | BD16: -187.3235626 | BE16: -431.4900513 | BF16: -316.167923 | BG16: 563.530644 | BH16: 475.7706909 | BI16: -700.7551804 | BK16: 1926 | BL16: =D61 -> -88.57555389 | BM16: =D62 -> -126.7891235 | BN16: =D63 -> -128.6820679 | BO16: =D64 -> -83.77488708 | BP16: =D65 -> -98.00579834 | BQ16: =D66 -> 1.518651009 | BR16: =D67 -> -75.16362 | BS16: =D68 -> 330.0491638 | BT16: =D69 -> 314.8743286 | BU16: =D70 -> 197.8603973 | BV16: =D71 -> 119.0321884 | BW16: =D72 -> -122.6777649 | BY16: -12.71502972 | BZ16: 402.8620119 | CA16: 239.6659136 | CC16: -435.7332258 | CD16: -176.1572342 | CE16: -427.8216324 | CF16: -310.4627533 | CG16: 571.2785234 | CH16: 509.0891495 | CI16: -697.6638489 | CK16: 1926 | CL16: =E61 -> -76.65823364 | CM16: =E62 -> -116.9827194 | CN16: =E63 -> -117.6199875 | CO16: =E64 -> -81.15234375 | CP16: =E65 -> -90.54988098 | CQ16: =E66 -> 8.720824242 | CR16: =E67 -> -66.68185425 | CS16: =E68 -> 327.7615051 | CT16: =E69 -> 332.069397 | CU16: =E70 -> 287.1977234 | CV16: =E71 -> 119.9779358 | CW16: =E72 -> -108.4414597 | CY16: 181.0258856 | CZ16: 566.6827002 | DA16: 417.6409063 | DC16: -397.5841074 | DD16: -146.0275345 | DE16: -392.4132843 | DF16: -289.3222122 | DG16: 601.8698721 | DH16: 630.8035965 | DI16: -658.3890457 | DK16: 1926 | DL16: =F61 ->  | DM16: =F62 ->  | DN16: =F63 ->  | DO16: =F64 ->  | DP16: =F65 ->  | DQ16: =F66 ->  | DR16: =F67 ->  | DS16: =F68 ->  | DT16: =F69 ->  | DU16: =F70 ->  | DV16: =F71 ->  | DW16: =F72 ->  | EK16: 1926 | EL16: =G61 ->  | EM16: =G62 ->  | EN16: =G63 ->  | EO16: =G64 ->  | EP16: =G65 ->  | EQ16: =G66 ->  | ER16: =G67 ->  | ES16: =G68 ->  | ET16: =G69 ->  | EU16: =G70 ->  | EV16: =G71 ->  | EW16: =G72 -> 
A17: 1922-02-28 | B17: =INDIRECT(CONCATENATE("'",B$1,"'!",B$4,(YEAR($A17)-1921)*12+MONTH($A17)+3+IF(ISNUMBER(FIND("PRV",B$6)),1,0)))*IF(AND(B$3>0,TRIM(B$9)="CFS"),Conversions!$C17,1) -> -136.9272156 | C17: =INDIRECT(CONCATENATE("'",C$1,"'!",C$4,(YEAR($A17)-1921)*12+MONTH($A17)+3+IF(ISNUMBER(FIND("PRV",C$6)),1,0)))*IF(AND(C$3>0,TRIM(C$9)="CFS"),Conversions!$C17,1) -> -175.794281 | D17: =INDIRECT(CONCATENATE("'",D$1,"'!",D$4,(YEAR($A17)-1921)*12+MONTH($A17)+3+IF(ISNUMBER(FIND("PRV",D$6)),1,0)))*IF(AND(D$3>0,TRIM(D$9)="CFS"),Conversions!$C17,1) -> -177.8966675 | E17: =INDIRECT(CONCATENATE("'",E$1,"'!",E$4,(YEAR($A17)-1921)*12+MONTH($A17)+3+IF(ISNUMBER(FIND("PRV",E$6)),1,0)))*IF(AND(E$3>0,TRIM(E$9)="CFS"),Conversions!$C17,1) -> -184.7835541 | F17: =INDIRECT(CONCATENATE("'",F$1,"'!",F$4,(YEAR($A17)-1921)*12+MONTH($A17)+3+IF(ISNUMBER(FIND("PRV",F$6)),1,0)))*IF(AND(F$3>0,TRIM(F$9)="CFS"),Conversions!$C17,1) ->  | G17: =INDIRECT(CONCATENATE("'",G$1,"'!",G$4,(YEAR($A17)-1921)*12+MONTH($A17)+3+IF(ISNUMBER(FIND("PRV",G$6)),1,0)))*IF(AND(G$3>0,TRIM(G$9)="CFS"),Conversions!$C17,1) ->  | K17: 1927 | L17: =B73 -> -170.6299744 | M17: =B74 -> -401.5309448 | N17: =B75 -> 18.6760006 | O17: =B76 -> 7.683909416 | P17: =B77 -> 344.1582336 | Q17: =B78 -> 48.2076683 | R17: =B79 -> 233.7208862 | S17: =B80 -> 392.3232727 | T17: =B81 -> 161.4734039 | U17: =B82 -> 334.1439209 | V17: =B83 -> 179.6509705 | W17: =B84 -> 79.0681076 | Y17: 943.8039999 | Z17: -346.6798973 | AA17: 1226.945455 | AC17: 17.19486713 | AD17: 122.443718 | AE17: -545.8010092 | AF17: 370.5181437 | AG17: 835.7252312 | AH17: 754.3364029 | AI17: -426.7551041 | AK17: 1927 | AL17: =C73 -> -174.0891876 | AM17: =C74 -> -400.1662903 | AN17: =C75 -> -31.62556076 | AO17: =C76 -> -53.03356552 | AP17: =C77 -> 290.1328735 | AQ17: =C78 -> -3.153625488 | AR17: =C79 -> 157.0864258 | AS17: =C80 -> 396.3722229 | AT17: =C81 -> 166.8533936 | AU17: =C82 -> 340.3352966 | AV17: =C83 -> 192.7016907 | AW17: =C84 -> 91.52359009 | AY17: 759.0458565 | AZ17: -447.3444672 | BA17: 972.9372635 | BC17: -197.8461685 | BD17: 158.7100677 | BE17: -658.9146042 | BF17: 205.4737473 | BG17: 717.1584167 | BH17: 791.4139709 | BI17: -400.6125946 | BK17: 1927 | BL17: =D73 -> -172.5116577 | BM17: =D74 -> -402.4744263 | BN17: =D75 -> -21.44160461 | BO17: =D76 -> -52.02230835 | BP17: =D77 -> 285.8186646 | BQ17: =D78 -> -3.531143188 | BR17: =D79 -> 157.9928131 | BS17: =D80 -> 394.4230957 | BT17: =D81 -> 165.0328674 | BU17: =D82 -> 338.0273132 | BV17: =D83 -> 190.0052795 | BW17: =D84 -> 88.81689453 | BY17: 738.7108154 | BZ17: -468.8876343 | CA17: 968.135788 | CC17: =IF(CC$11="AVG",IF(CE$1="INST-VAL",AVERAGE(BL17:BP17,BM17:BQ17),AVERAGE(BM17:BQ17)),SUM(BM17:BQ17)) -> -193.6508179 | CD17: =IF(CD$11="AVG",IF(CE$1="INST-VAL",AVERAGE(BU17:BW17,BV17:BW17,BL18),AVERAGE(BV17:BW17,BL18)),SUM(BV17:BW17,BL18)) -> 150.5012207 | CE17: -648.4499969 | CF17: 212.3547516 | CG17: 713.9176331 | CH17: 781.8823547 | CI17: -408.0075684 | CK17: 1927 | CL17: =E73 -> -157.5640106 | CM17: =E74 -> -392.3835754 | CN17: =E75 -> 2.071624756 | CO17: =E76 -> -52.08880615 | CP17: =E77 -> 266.043396 | CQ17: =E78 -> -7.973957062 | CR17: =E79 -> 162.3190308 | CS17: =E80 -> 384.9805603 | CT17: =E81 -> 156.3382263 | CU17: =E82 -> 326.7587585 | CV17: =E83 -> 176.8042603 | CW17: =E84 -> 75.64099884 | CY17: 627.9391518 | CZ17: -583.4999046 | DA17: 940.9465065 | DC17: -184.3313179 | DD17: 105.8667831 | DE17: -599.9647675 | DF17: 216.0262146 | DG17: 695.6638603 | DH17: 735.542244 | DI17: -448.9180069 | DK17: 1927 | DL17: =F73 ->  | DM17: =F74 ->  | DN17: =F75 ->  | DO17: =F76 ->  | DP17: =F77 ->  | DQ17: =F78 ->  | DR17: =F79 ->  | DS17: =F80 ->  | DT17: =F81 ->  | DU17: =F82 ->  | DV17: =F83 ->  | DW17: =F84 ->  | EK17: 1927 | EL17: =G73 ->  | EM17: =G74 ->  | EN17: =G75 ->  | EO17: =G76 ->  | EP17: =G77 ->  | EQ17: =G78 ->  | ER17: =G79 ->  | ES17: =G80 ->  | ET17: =G81 ->  | EU17: =G82 ->  | EV17: =G83 ->  | EW17: =G84 -> 
A18: 1922-03-31 | B18: =INDIRECT(CONCATENATE("'",B$1,"'!",B$4,(YEAR($A18)-1921)*12+MONTH($A18)+3+IF(ISNUMBER(FIND("PRV",B$6)),1,0)))*IF(AND(B$3>0,TRIM(B$9)="CFS"),Conversions!$C18,1) -> -247.080719 | C18: =INDIRECT(CONCATENATE("'",C$1,"'!",C$4,(YEAR($A18)-1921)*12+MONTH($A18)+3+IF(ISNUMBER(FIND("PRV",C$6)),1,0)))*IF(AND(C$3>0,TRIM(C$9)="CFS"),Conversions!$C18,1) -> -247.080719 | D18: =INDIRECT(CONCATENATE("'",D$1,"'!",D$4,(YEAR($A18)-1921)*12+MONTH($A18)+3+IF(ISNUMBER(FIND("PRV",D$6)),1,0)))*IF(AND(D$3>0,TRIM(D$9)="CFS"),Conversions!$C18,1) -> -247.0222473 | E18: =INDIRECT(CONCATENATE("'",E$1,"'!",E$4,(YEAR($A18)-1921)*12+MONTH($A18)+3+IF(ISNUMBER(FIND("PRV",E$6)),1,0)))*IF(AND(E$3>0,TRIM(E$9)="CFS"),Conversions!$C18,1) -> -246.8348694 | F18: =INDIRECT(CONCATENATE("'",F$1,"'!",F$4,(YEAR($A18)-1921)*12+MONTH($A18)+3+IF(ISNUMBER(FIND("PRV",F$6)),1,0)))*IF(AND(F$3>0,TRIM(F$9)="CFS"),Conversions!$C18,1) ->  | G18: =INDIRECT(CONCATENATE("'",G$1,"'!",G$4,(YEAR($A18)-1921)*12+MONTH($A18)+3+IF(ISNUMBER(FIND("PRV",G$6)),1,0)))*IF(AND(G$3>0,TRIM(G$9)="CFS"),Conversions!$C18,1) ->  | K18: 1928 | L18: =B85 -> -136.2753601 | M18: =B86 -> -369.5478516 | N18: =B87 -> -330.8031616 | O18: =B88 -> -548.5784912 | P18: =B89 -> -390.0632629 | Q18: =B90 -> 596.9015503 | R18: =B91 -> -115.6084213 | S18: =B92 -> 144.202774 | T18: =B93 -> 214.02948 | U18: =B94 -> 393.0480042 | V18: =B95 -> 152.4971924 | W18: =B96 -> 50.27032852 | Y18: -538.1170692 | Z18: 375.8751259 | AA18: -339.9272194 | AC18: -1042.091217 | AD18: 10.53772354 | AE18: -1385.204865 | AF18: -1269.444916 | AG18: 839.525383 | AH18: 809.845005 | AI18: -544.4294701 | AK18: 1928 | AL18: =C85 -> -125.515213 | AM18: =C86 -> -366.6209717 | AN18: =C87 -> -327.636261 | AO18: =C88 -> -542.6334839 | AP18: =C89 -> -426.6575317 | AQ18: =C90 -> 527.2131348 | AR18: =C91 -> -118.1608734 | AS18: =C92 -> 141.8957062 | AT18: =C93 -> 209.9813995 | AU18: =C94 -> 382.4102173 | AV18: =C95 -> 140.5848999 | AW18: =C96 -> 41.11217499 | AY18: -690.0698318 | AZ18: 254.6863937 | BA18: -464.0268021 | BC18: -1136.335114 | BD18: -18.67424774 | BE18: -1362.40593 | BF18: -1296.927277 | BG18: 760.9293671 | BH18: 774.0886917 | BI18: -563.3424606 | BK18: 1928 | BL18: =D85 -> -128.3209534 | BM18: =D86 -> -368.5035095 | BN18: =D87 -> -329.0281982 | BO18: =D88 -> -545.1469727 | BP18: =D89 -> -428.6551208 | BQ18: =D90 -> 527.3370361 | BR18: =D91 -> -116.8202667 | BS18: =D92 -> 143.2722321 | BT18: =D93 -> 193.7925568 | BU18: =D94 -> 396.4454651 | BV18: =D95 -> 150.9873199 | BW18: =D96 -> 51.09008408 | BY18: -669.2480049 | BZ18: 280.0140343 | CA18: -453.5503273 | CC18: -1143.996765 | CD18: 4.009975433 | CE18: -1370.999634 | CF18: -1302.830292 | CG18: 747.5815582 | CH18: 792.3154259 | CI18: -549.9663582 | CK18: 1928 | CL18: =E85 -> -146.578476 | CM18: =E86 -> -377.9805298 | CN18: =E87 -> -336.3243103 | CO18: =E88 -> -557.899292 | CP18: =E89 -> -439.5851746 | CQ18: =E90 -> 526.7713623 | CR18: =E91 -> -110.2647934 | CS18: =E92 -> 186.4136963 | CT18: =E93 -> 193.0053711 | CU18: =E94 -> 369.3396606 | CV18: =E95 -> 122.650238 | CW18: =E96 -> 60.09407043 | CY18: -660.4364243 | CZ18: 320.2162552 | DA18: -510.3581772 | DC18: =IF(DC$11="AVG",IF(DE$1="INST-VAL",AVERAGE(CL18:CP18,CM18:CQ18),AVERAGE(CM18:CQ18)),SUM(CM18:CQ18)) -> -1185.017944 | DD18: =IF(DD$11="AVG",IF(DE$1="INST-VAL",AVERAGE(CU18:CW18,CV18:CW18,CL19),AVERAGE(CV18:CW18,CL19)),SUM(CV18:CW18,CL19)) -> -11.66125488 | DE18: -1418.782608 | DF18: -1333.808777 | DG18: 795.9256363 | DH18: 745.0893402 | DI18: -524.7767639 | DK18: 1928 | DL18: =F85 ->  | DM18: =F86 ->  | DN18: =F87 ->  | DO18: =F88 ->  | DP18: =F89 ->  | DQ18: =F90 ->  | DR18: =F91 ->  | DS18: =F92 ->  | DT18: =F93 ->  | DU18: =F94 ->  | DV18: =F95 ->  | DW18: =F96 ->  | EC18: =IF(EC$11="AVG",IF(EE$1="INST-VAL",AVERAGE(DL18:DP18,DM18:DQ18),AVERAGE(DM18:DQ18)),SUM(DM18:DQ18)) ->  | ED18: =IF(ED$11="AVG",IF(EE$1="INST-VAL",AVERAGE(DU18:DW18,DV18:DW18,DL19),AVERAGE(DV18:DW18,DL19)),SUM(DV18:DW18,DL19)) ->  | EK18: 1928 | EL18: =G85 ->  | EM18: =G86 ->  | EN18: =G87 ->  | EO18: =G88 ->  | EP18: =G89 ->  | EQ18: =G90 ->  | ER18: =G91 ->  | ES18: =G92 ->  | ET18: =G93 ->  | EU18: =G94 ->  | EV18: =G95 ->  | EW18: =G96 ->  | FC18: =IF(FC$11="AVG",IF(FE$1="INST-VAL",AVERAGE(EL18:EP18,EM18:EQ18),AVERAGE(EM18:EQ18)),SUM(EM18:EQ18)) -> 
A19: 1922-04-30 | B19: =INDIRECT(CONCATENATE("'",B$1,"'!",B$4,(YEAR($A19)-1921)*12+MONTH($A19)+3+IF(ISNUMBER(FIND("PRV",B$6)),1,0)))*IF(AND(B$3>0,TRIM(B$9)="CFS"),Conversions!$C19,1) -> -54.97164536 | C19: =INDIRECT(CONCATENATE("'",C$1,"'!",C$4,(YEAR($A19)-1921)*12+MONTH($A19)+3+IF(ISNUMBER(FIND("PRV",C$6)),1,0)))*IF(AND(C$3>0,TRIM(C$9)="CFS"),Conversions!$C19,1) -> -54.97164536 | D19: =INDIRECT(CONCATENATE("'",D$1,"'!",D$4,(YEAR($A19)-1921)*12+MONTH($A19)+3+IF(ISNUMBER(FIND("PRV",D$6)),1,0)))*IF(AND(D$3>0,TRIM(D$9)="CFS"),Conversions!$C19,1) -> -51.00577927 | E19: =INDIRECT(CONCATENATE("'",E$1,"'!",E$4,(YEAR($A19)-1921)*12+MONTH($A19)+3+IF(ISNUMBER(FIND("PRV",E$6)),1,0)))*IF(AND(E$3>0,TRIM(E$9)="CFS"),Conversions!$C19,1) -> -38.26458359 | F19: =INDIRECT(CONCATENATE("'",F$1,"'!",F$4,(YEAR($A19)-1921)*12+MONTH($A19)+3+IF(ISNUMBER(FIND("PRV",F$6)),1,0)))*IF(AND(F$3>0,TRIM(F$9)="CFS"),Conversions!$C19,1) ->  | G19: =INDIRECT(CONCATENATE("'",G$1,"'!",G$4,(YEAR($A19)-1921)*12+MONTH($A19)+3+IF(ISNUMBER(FIND("PRV",G$6)),1,0)))*IF(AND(G$3>0,TRIM(G$9)="CFS"),Conversions!$C19,1) ->  | K19: 1929 | L19: =B97 -> -192.2297974 | M19: =B98 -> -402.4700012 | N19: =B99 -> -440.1164246 | O19: =B100 -> 85.6213913 | P19: =B101 -> -110.2709503 | Q19: =B102 -> -104.4829483 | R19: =B103 -> 58.15304184 | S19: =B104 -> 224.4338531 | T19: =B105 -> 232.5192871 | U19: =B106 -> 282.2441406 | V19: =B107 -> 69.21295929 | W19: =B108 -> -34.95269775 | Y19: 310.1954689 | Z19: 321.2910461 | AA19: -332.3381462 | AC19: -971.7189331 | AD19: -42.7561264 | AE19: -949.1948318 | AF19: -464.7659836 | AG19: 410.6232338 | AH19: 549.0236893 | AI19: -206.9229889 | AK19: 1929 | AL19: =C97 -> -200.3713226 | AM19: =C98 -> -404.083313 | AN19: =C99 -> -441.3608398 | AO19: =C100 -> 85.23683167 | AP19: =C101 -> -109.7716217 | AQ19: =C102 -> -102.5424576 | AR19: =C103 -> 51.74391174 | AS19: =C104 -> 221.0885315 | AT19: =C105 -> 219.0456543 | AU19: =C106 -> 19.98746681 | AV19: =C107 -> -166.2322083 | AW19: =C108 -> -219.2747192 | AY19: -406.9675846 | AZ19: -396.127779 | BA19: -1046.534086 | BC19: -972.5214005 | BD19: -437.45261 | BE19: -960.5786438 | BF19: -465.8956299 | BG19: 389.33564 | BH19: -146.4738064 | BI19: -362.2755241 | BK19: 1929 | BL19: =D97 -> -198.0674286 | BM19: =D98 -> -402.9890137 | BN19: =D99 -> -440.4938965 | BO19: =D100 -> 85.38572693 | BP19: =D101 -> -109.9257812 | BQ19: =D102 -> -103.3512344 | BR19: =D103 -> 50.85702896 | BS19: =D104 -> 219.5633392 | BT19: =D105 -> 217.7421722 | BU19: =D106 -> 16.71926498 | BV19: =D107 -> -166.8968201 | BW19: =D108 -> -220.0322418 | BY19: -431.3312683 | BZ19: -421.3948822 | CA19: -1051.488884 | CC19: -971.3741989 | CD19: -439.9371109 | CE19: -956.1646118 | CF19: -465.0339508 | CG19: 384.811306 | CH19: -152.4676247 | CI19: -373.6912003 | CK19: 1929 | CL19: =E97 -> -194.4055634 | CM19: =E98 -> -390.465271 | CN19: =E99 -> -426.0907288 | CO19: =E100 -> 88.48417664 | CP19: =E101 -> -105.3159637 | CQ19: =E102 -> -93.9234314 | CR19: =E103 -> 59.36069107 | CS19: =E104 -> 230.6988373 | CT19: =E105 -> 227.6532288 | CU19: =E106 -> 17.84546661 | CV19: =E107 -> -129.4364777 | CW19: =E108 -> -106.5796509 | CY19: -194.8598099 | CZ19: -196.198555 | DA19: -822.1746864 | DC19: -927.3112183 | DD19: -267.260067 | DE19: -922.4773865 | DF19: -442.9225159 | DG19: 423.7893257 | DH19: 9.482566833 | DI19: -211.2860298 | DK19: 1929 | DL19: =F97 ->  | DM19: =F98 ->  | DN19: =F99 ->  | DO19: =F100 ->  | DP19: =F101 ->  | DQ19: =F102 ->  | DR19: =F103 ->  | DS19: =F104 ->  | DT19: =F105 ->  | DU19: =F106 ->  | DV19: =F107 ->  | DW19: =F108 ->  | EK19: 1929 | EL19: =G97 ->  | EM19: =G98 ->  | EN19: =G99 ->  | EO19: =G100 ->  | EP19: =G101 ->  | EQ19: =G102 ->  | ER19: =G103 ->  | ES19: =G104 ->  | ET19: =G105 ->  | EU19: =G106 ->  | EV19: =G107 ->  | EW19: =G108 -> 
A20: 1922-05-31 | B20: =INDIRECT(CONCATENATE("'",B$1,"'!",B$4,(YEAR($A20)-1921)*12+MONTH($A20)+3+IF(ISNUMBER(FIND("PRV",B$6)),1,0)))*IF(AND(B$3>0,TRIM(B$9)="CFS"),Conversions!$C20,1) -> 785.3573608 | C20: =INDIRECT(CONCATENATE("'",C$1,"'!",C$4,(YEAR($A20)-1921)*12+MONTH($A20)+3+IF(ISNUMBER(FIND("PRV",C$6)),1,0)))*IF(AND(C$3>0,TRIM(C$9)="CFS"),Conversions!$C20,1) -> 785.3573608 | D20: =INDIRECT(CONCATENATE("'",D$1,"'!",D$4,(YEAR($A20)-1921)*12+MONTH($A20)+3+IF(ISNUMBER(FIND("PRV",D$6)),1,0)))*IF(AND(D$3>0,TRIM(D$9)="CFS"),Conversions!$C20,1) -> 785.3597412 | E20: =INDIRECT(CONCATENATE("'",E$1,"'!",E$4,(YEAR($A20)-1921)*12+MONTH($A20)+3+IF(ISNUMBER(FIND("PRV",E$6)),1,0)))*IF(AND(E$3>0,TRIM(E$9)="CFS"),Conversions!$C20,1) -> 785.3672485 | F20: =INDIRECT(CONCATENATE("'",F$1,"'!",F$4,(YEAR($A20)-1921)*12+MONTH($A20)+3+IF(ISNUMBER(FIND("PRV",F$6)),1,0)))*IF(AND(F$3>0,TRIM(F$9)="CFS"),Conversions!$C20,1) ->  | G20: =INDIRECT(CONCATENATE("'",G$1,"'!",G$4,(YEAR($A20)-1921)*12+MONTH($A20)+3+IF(ISNUMBER(FIND("PRV",G$6)),1,0)))*IF(AND(G$3>0,TRIM(G$9)="CFS"),Conversions!$C20,1) ->  | K20: 1930 | L20: =B109 -> -77.01638794 | M20: =B110 -> -94.9539032 | N20: =B111 -> -220.3123169 | O20: =B112 -> -69.17160034 | P20: =B113 -> 55.61761856 | Q20: =B114 -> -37.34730911 | R20: =B115 -> 78.15876007 | S20: =B116 -> 231.001358 | T20: =B117 -> 432.1650391 | U20: =B118 -> 419.211731 | V20: =B119 -> 277.2554626 | W20: =B120 -> 5.531432152 | Y20: 1426.286366 | Z20: 1077.215942 | AA20: 1000.139884 | AC20: -366.167511 | AD20: 313.903882 | AE20: -461.4542084 | AF20: -233.8662987 | AG20: 703.9778481 | AH20: 1134.163665 | AI20: 49.09017658 | AK20: 1930 | AL20: =C109 -> -51.94568253 | AM20: =C110 -> -91.05512238 | AN20: =C111 -> -263.2481689 | AO20: =C112 -> -60.96239471 | AP20: =C113 -> 47.26741028 | AQ20: =C114 -> -65.31845093 | AR20: =C115 -> 80.11976624 | AS20: =C116 -> 244.4475861 | AT20: =C117 -> 416.4241638 | AU20: =C118 -> 411.8866577 | AV20: =C119 -> -72.73323059 | AW20: =C120 -> -153.6665955 | AY20: 866.4305596 | AZ20: 517.3325906 | BA20: 441.2159386 | BC20: -433.3167267 | BD20: -195.3860245 | BE20: -467.2113686 | BF20: -276.9431534 | BG20: 675.6730652 | BH20: 601.9109955 | BI20: -123.8632436 | BK20: 1930 | BL20: =D109 -> -53.00804901 | BM20: =D110 -> -100.6509094 | BN20: =D111 -> -267.7337646 | BO20: =D112 -> -61.34495926 | BP20: =D113 -> 46.74129105 | BQ20: =D114 -> -66.27070618 | BR20: =D115 -> 79.97548676 | BS20: =D116 -> 239.4578094 | BT20: =D117 -> 414.0066833 | BU20: =D118 -> 409.0461121 | BV20: =D119 -> -73.73815155 | BW20: =D120 -> -164.2671814 | BY20: 769.165554 | BZ20: 417.5392418 | CA20: 402.2136612 | CC20: -449.2590485 | CD20: -229.632514 | CE20: -482.7376823 | CF20: -282.3374329 | CG20: 667.1692734 | CH20: 585.0474625 | CI20: -207.7024755 | CK20: 1930 | CL20: =E109 -> -31.24393845 | CM20: =E110 -> -73.46244049 | CN20: =E111 -> -278.9403076 | CO20: =E112 -> -63.2894249 | CP20: =E113 -> 45.11889267 | CQ20: =E114 -> -59.99940491 | CR20: =E115 -> 71.78371429 | CS20: =E116 -> 224.210144 | CT20: =E117 -> 417.6131287 | CU20: =E118 -> 416.8066711 | CV20: =E119 -> 105.373558 | CW20: =E120 -> -1.92070055 | CY20: 1130.921458 | CZ20: 830.6898675 | DA20: 772.0498919 | DC20: -430.5726852 | DD20: 122.778976 | DE20: -446.9361115 | DF20: -297.1108398 | DG20: 653.6075821 | DH20: 937.8726573 | DI20: -13.23901415 | DK20: 1930 | DL20: =F109 ->  | DM20: =F110 ->  | DN20: =F111 ->  | DO20: =F112 ->  | DP20: =F113 ->  | DQ20: =F114 ->  | DR20: =F115 ->  | DS20: =F116 ->  | DT20: =F117 ->  | DU20: =F118 ->  | DV20: =F119 ->  | DW20: =F120 ->  | EK20: 1930 | EL20: =G109 ->  | EM20: =G110 ->  | EN20: =G111 ->  | EO20: =G112 ->  | EP20: =G113 ->  | EQ20: =G114 ->  | ER20: =G115 ->  | ES20: =G116 ->  | ET20: =G117 ->  | EU20: =G118 ->  | EV20: =G119 ->  | EW20: =G120 -> 
A21: 1922-06-30 | B21: =INDIRECT(CONCATENATE("'",B$1,"'!",B$4,(YEAR($A21)-1921)*12+MONTH($A21)+3+IF(ISNUMBER(FIND("PRV",B$6)),1,0)))*IF(AND(B$3>0,TRIM(B$9)="CFS"),Conversions!$C21,1) -> 241.6077728 | C21: =INDIRECT(CONCATENATE("'",C$1,"'!",C$4,(YEAR($A21)-1921)*12+MONTH($A21)+3+IF(ISNUMBER(FIND("PRV",C$6)),1,0)))*IF(AND(C$3>0,TRIM(C$9)="CFS"),Conversions!$C21,1) -> 242.352417 | D21: =INDIRECT(CONCATENATE("'",D$1,"'!",D$4,(YEAR($A21)-1921)*12+MONTH($A21)+3+IF(ISNUMBER(FIND("PRV",D$6)),1,0)))*IF(AND(D$3>0,TRIM(D$9)="CFS"),Conversions!$C21,1) -> 242.2463837 | E21: =INDIRECT(CONCATENATE("'",E$1,"'!",E$4,(YEAR($A21)-1921)*12+MONTH($A21)+3+IF(ISNUMBER(FIND("PRV",E$6)),1,0)))*IF(AND(E$3>0,TRIM(E$9)="CFS"),Conversions!$C21,1) -> 241.9460754 | F21: =INDIRECT(CONCATENATE("'",F$1,"'!",F$4,(YEAR($A21)-1921)*12+MONTH($A21)+3+IF(ISNUMBER(FIND("PRV",F$6)),1,0)))*IF(AND(F$3>0,TRIM(F$9)="CFS"),Conversions!$C21,1) ->  | G21: =INDIRECT(CONCATENATE("'",G$1,"'!",G$4,(YEAR($A21)-1921)*12+MONTH($A21)+3+IF(ISNUMBER(FIND("PRV",G$6)),1,0)))*IF(AND(G$3>0,TRIM(G$9)="CFS"),Conversions!$C21,1) ->  | K21: 1931 | L21: =B121 -> 31.11698723 | M21: =B122 -> 12.4417572 | N21: =B123 -> -9.694870949 | O21: =B124 -> -175.1849365 | P21: =B125 -> -187.4394684 | Q21: =B126 -> 39.33060837 | R21: =B127 -> 82.41775513 | S21: =B128 -> 95.76013184 | T21: =B129 -> 93.03873444 | U21: =B130 -> 180.2838287 | V21: =B131 -> -4.6683321 | W21: =B132 -> -188.4577942 | Y21: -1043.706338 | Z21: -1017.35238 | AA21: -31.05559921 | AC21: -320.5469103 | AD21: -400.2624941 | AE21: -141.321063 | AF21: -372.3192759 | AG21: 310.5472298 | AH21: 80.19643688 | AI21: -607.6990662 | AK21: 1931 | AL21: =C121 -> 31.01380157 | AM21: =C122 -> -1.210449696 | AN21: =C123 -> -10.83770466 | AO21: =C124 -> -175.8727417 | AP21: =C125 -> -186.9202118 | AQ21: =C126 -> 29.96044731 | AR21: =C127 -> 109.5839386 | AS21: =C128 -> 98.57636261 | AT21: =C129 -> 92.25254059 | AU21: =C130 -> 179.9510803 | AV21: =C131 -> -12.73052692 | AW21: =C132 -> -187.6181641 | AY21: -1050.681624 | AZ21: -1024.361403 | BA21: -33.85162783 | BC21: -344.8806605 | BD21: -406.270505 | BE21: -156.9070945 | BF21: -373.6306581 | BG21: 330.3732891 | BH21: 71.85492992 | BI21: -608.5317688 | BK21: 1931 | BL21: =D121 -> 8.372818947 | BM21: =D122 -> -51.8081131 | BN21: =D123 -> -11.00553608 | BO21: =D124 -> -178.8499603 | BP21: =D125 -> -187.3800201 | BQ21: =D126 -> 27.46692467 | BR21: =D127 -> 106.0405655 | BS21: =D128 -> 97.81934357 | BT21: =D129 -> 92.72296906 | BU21: =D130 -> 180.2939606 | BV21: =D131 -> -15.45672321 | BW21: =D132 -> -187.371109 | BY21: -1062.071868 | BZ21: -1030.336196 | CA21: -119.1548796 | CC21: -401.576705 | CD21: -408.3325319 | CE21: -233.2907906 | CF21: -377.2355165 | CG21: 324.0498028 | CH21: 70.1890974 | CI21: -605.0328827 | CK21: 1931 | CL21: =E121 -> 19.32611847 | CM21: =E122 -> -30.64443207 | CN21: =E123 -> -13.45680714 | CO21: =E124 -> -122.3871536 | CP21: =E125 -> -196.0149689 | CQ21: =E126 -> 41.58933258 | CR21: =E127 -> 113.2670135 | CS21: =E128 -> 89.27819061 | CT21: =E129 -> 100.9456253 | CU21: =E130 -> 189.2791138 | CV21: =E131 -> 23.76097488 | CW21: =E132 -> -180.1756287 | CY21: -937.415844 | CZ21: -944.9360237 | DA21: 34.76737881 | DC21: -320.9140291 | DD21: -362.3320427 | DE21: -147.1622744 | DF21: -331.8589296 | DG21: 345.080162 | DH21: 133.8100853 | DI21: -602.7327271 | DK21: 1931 | DL21: =F121 ->  | DM21: =F122 ->  | DN21: =F123 ->  | DO21: =F124 ->  | DP21: =F125 ->  | DQ21: =F126 ->  | DR21: =F127 ->  | DS21: =F128 ->  | DT21: =F129 ->  | DU21: =F130 ->  | DV21: =F131 ->  | DW21: =F132 ->  | EK21: 1931 | EL21: =G121 ->  | EM21: =G122 ->  | EN21: =G123 ->  | EO21: =G124 ->  | EP21: =G125 ->  | EQ21: =G126 ->  | ER21: =G127 ->  | ES21: =G128 ->  | ET21: =G129 ->  | EU21: =G130 ->  | EV21: =G131 ->  | EW21: =G132 -> 
A22: 1922-07-31 | B22: =INDIRECT(CONCATENATE("'",B$1,"'!",B$4,(YEAR($A22)-1921)*12+MONTH($A22)+3+IF(ISNUMBER(FIND("PRV",B$6)),1,0)))*IF(AND(B$3>0,TRIM(B$9)="CFS"),Conversions!$C22,1) -> 215.9976044 | C22: =INDIRECT(CONCATENATE("'",C$1,"'!",C$4,(YEAR($A22)-1921)*12+MONTH($A22)+3+IF(ISNUMBER(FIND("PRV",C$6)),1,0)))*IF(AND(C$3>0,TRIM(C$9)="CFS"),Conversions!$C22,1) -> 216.6672058 | D22: =INDIRECT(CONCATENATE("'",D$1,"'!",D$4,(YEAR($A22)-1921)*12+MONTH($A22)+3+IF(ISNUMBER(FIND("PRV",D$6)),1,0)))*IF(AND(D$3>0,TRIM(D$9)="CFS"),Conversions!$C22,1) -> 200.2043304 | E22: =INDIRECT(CONCATENATE("'",E$1,"'!",E$4,(YEAR($A22)-1921)*12+MONTH($A22)+3+IF(ISNUMBER(FIND("PRV",E$6)),1,0)))*IF(AND(E$3>0,TRIM(E$9)="CFS"),Conversions!$C22,1) -> 193.5401611 | F22: =INDIRECT(CONCATENATE("'",F$1,"'!",F$4,(YEAR($A22)-1921)*12+MONTH($A22)+3+IF(ISNUMBER(FIND("PRV",F$6)),1,0)))*IF(AND(F$3>0,TRIM(F$9)="CFS"),Conversions!$C22,1) ->  | G22: =INDIRECT(CONCATENATE("'",G$1,"'!",G$4,(YEAR($A22)-1921)*12+MONTH($A22)+3+IF(ISNUMBER(FIND("PRV",G$6)),1,0)))*IF(AND(G$3>0,TRIM(G$9)="CFS"),Conversions!$C22,1) ->  | K22: 1932 | L22: =B133 -> -207.1363678 | M22: =B134 -> -212.1049042 | N22: =B135 -> -559.5455933 | O22: =B136 -> -185.4337463 | P22: =B137 -> -150.8367004 | Q22: =B138 -> -94.41625214 | R22: =B139 -> 25.83880997 | S22: =B140 -> 105.1395645 | T22: =B141 -> 132.4281921 | U22: =B142 -> 186.4746094 | V22: =B143 -> 27.44944763 | W22: =B144 -> -223.3816376 | Y22: -726.6012459 | Z22: -628.1578026 | AA22: -1155.524578 | AC22: -1202.337196 | AD22: -378.1136169 | AE22: -1164.220612 | AF22: -895.81604 | AG22: 168.9903145 | AH22: 122.9706116 | AI22: -531.0508957 | AK22: 1932 | AL22: =C133 -> -205.921814 | AM22: =C134 -> -214.9917908 | AN22: =C135 -> -576.9507446 | AO22: =C136 -> -185.9489136 | AP22: =C137 -> -150.523819 | AQ22: =C138 -> -94.92617035 | AR22: =C139 -> 22.8017807 | AS22: =C140 -> 94.40372467 | AT22: =C141 -> 128.030838 | AU22: =C142 -> 182.7471619 | AV22: =C143 -> 26.0710907 | AW22: =C144 -> -230.1214447 | AY22: -749.9825134 | AZ22: -643.3142242 | BA22: -1205.330101 | BC22: -1223.341438 | BD22: -388.256546 | BE22: -1183.813263 | BF22: -913.4234772 | BG22: 150.310173 | BH22: 106.7276459 | BI22: -525.3239212 | BK22: 1932 | BL22: =D133 -> -205.5046997 | BM22: =D134 -> -212.157074 | BN22: =D135 -> -579.6960449 | BO22: =D136 -> -184.819931 | BP22: =D137 -> -149.6743774 | BQ22: =D138 -> -98.55566406 | BR22: =D139 -> 19.24740219 | BS22: =D140 -> 94.67723083 | BT22: =D141 -> 126.9041824 | BU22: =D142 -> 181.7352753 | BV22: =D143 -> 25.51707458 | BW22: =D144 -> -231.5046692 | BY22: -760.5584145 | BZ22: -655.4128761 | CA22: -1213.831295 | CC22: -1224.903091 | CD22: -390.6897583 | CE22: -1182.17775 | CF22: -914.1903534 | CG22: 142.2731514 | CH22: 102.6518631 | CI22: -527.2060013 | CK22: 1932 | CL22: =E133 -> -205.9173889 | CM22: =E134 -> -216.6397095 | CN22: =E135 -> -574.4012451 | CO22: =E136 -> -170.4586945 | CP22: =E137 -> -155.4636078 | CQ22: =E138 -> -82.73377991 | CR22: =E139 -> 39.39470291 | CS22: =E140 -> 128.5389557 | CT22: =E141 -> 151.6307068 | CU22: =E142 -> 206.0326233 | CV22: =E143 -> 38.93203735 | CW22: =E144 -> -197.3150635 | CY22: -549.7008247 | CZ22: -464.9652901 | DA22: -1038.400463 | DC22: -1199.697037 | DD22: -322.9890289 | DE22: -1167.417038 | DF22: -900.3235474 | DG22: 236.8305855 | DH22: 199.280304 | DI22: -478.1675949 | DK22: 1932 | DL22: =F133 ->  | DM22: =F134 ->  | DN22: =F135 ->  | DO22: =F136 ->  | DP22: =F137 ->  | DQ22: =F138 ->  | DR22: =F139 ->  | DS22: =F140 ->  | DT22: =F141 ->  | DU22: =F142 ->  | DV22: =F143 ->  | DW22: =F144 ->  | EK22: 1932 | EL22: =G133 ->  | EM22: =G134 ->  | EN22: =G135 ->  | EO22: =G136 ->  | EP22: =G137 ->  | EQ22: =G138 ->  | ER22: =G139 ->  | ES22: =G140 ->  | ET22: =G141 ->  | EU22: =G142 ->  | EV22: =G143 ->  | EW22: =G144 -> 
A23: 1922-08-31 | B23: =INDIRECT(CONCATENATE("'",B$1,"'!",B$4,(YEAR($A23)-1921)*12+MONTH($A23)+3+IF(ISNUMBER(FIND("PRV",B$6)),1,0)))*IF(AND(B$3>0,TRIM(B$9)="CFS"),Conversions!$C23,1) -> 189.9784393 | C23: =INDIRECT(CONCATENATE("'",C$1,"'!",C$4,(YEAR($A23)-1921)*12+MONTH($A23)+3+IF(ISNUMBER(FIND("PRV",C$6)),1,0)))*IF(AND(C$3>0,TRIM(C$9)="CFS"),Conversions!$C23,1) -> 197.0188293 | D23: =INDIRECT(CONCATENATE("'",D$1,"'!",D$4,(YEAR($A23)-1921)*12+MONTH($A23)+3+IF(ISNUMBER(FIND("PRV",D$6)),1,0)))*IF(AND(D$3>0,TRIM(D$9)="CFS"),Conversions!$C23,1) -> 197.920517 | E23: =INDIRECT(CONCATENATE("'",E$1,"'!",E$4,(YEAR($A23)-1921)*12+MONTH($A23)+3+IF(ISNUMBER(FIND("PRV",E$6)),1,0)))*IF(AND(E$3>0,TRIM(E$9)="CFS"),Conversions!$C23,1) -> 181.4770203 | F23: =INDIRECT(CONCATENATE("'",F$1,"'!",F$4,(YEAR($A23)-1921)*12+MONTH($A23)+3+IF(ISNUMBER(FIND("PRV",F$6)),1,0)))*IF(AND(F$3>0,TRIM(F$9)="CFS"),Conversions!$C23,1) ->  | G23: =INDIRECT(CONCATENATE("'",G$1,"'!",G$4,(YEAR($A23)-1921)*12+MONTH($A23)+3+IF(ISNUMBER(FIND("PRV",G$6)),1,0)))*IF(AND(G$3>0,TRIM(G$9)="CFS"),Conversions!$C23,1) ->  | K23: 1933 | L23: =B145 -> -182.181427 | M23: =B146 -> -125.4878311 | N23: =B147 -> -242.1942749 | O23: =B148 -> -110.7278061 | P23: =B149 -> -127.0991974 | Q23: =B150 -> -176.5961914 | R23: =B151 -> 68.13671112 | S23: =B152 -> 47.74164581 | T23: =B153 -> 129.7539368 | U23: =B154 -> 183.3699188 | V23: =B155 -> -17.37252426 | W23: =B156 -> -163.7229462 | Y23: -877.2275047 | Z23: -797.6656151 | AA23: -716.3799858 | AC23: -782.1053009 | AD23: -273.7638588 | AE23: -660.5913391 | AF23: -480.0212784 | AG23: 69.03610229 | AH23: 132.0283852 | AI23: -434.7169266 | AK23: 1933 | AL23: =C145 -> -184.206192 | AM23: =C146 -> -110.9962845 | AN23: =C147 -> -247.3142853 | AO23: =C148 -> -108.6864014 | AP23: =C149 -> -121.118042 | AQ23: =C150 -> -165.8351288 | AR23: =C151 -> 54.18927002 | AS23: =C152 -> 55.75598145 | AT23: =C153 -> 133.6647491 | AU23: =C154 -> 184.1790924 | AV23: =C155 -> 0.8814269304 | AW23: =C156 -> -160.3526917 | AY23: -843.3077363 | AZ23: -722.4605807 | BA23: -669.8385056 | BC23: -753.9501419 | BD23: -244.2245148 | BE23: -651.2031631 | BF23: -477.1187286 | BG23: 77.77487183 | BH23: 158.3725768 | BI23: -428.9129333 | BK23: 1933 | BL23: =D145 -> -184.7021637 | BM23: =D146 -> -110.9991684 | BN23: =D147 -> -248.383606 | BO23: =D148 -> -108.6837158 | BP23: =D149 -> -120.6650543 | BQ23: =D150 -> -133.157547 | BR23: =D151 -> 52.23986816 | BS23: =D152 -> 56.5437088 | BT23: =D153 -> 133.5296936 | BU23: =D154 -> 184.0550842 | BV23: =D155 -> 0.9664946795 | BW23: =D156 -> -160.4464874 | BY23: -810.5039719 | BZ23: -687.939701 | CA23: -639.7028931 | CC23: -721.8890915 | CD23: -242.2713898 | CE23: -652.7686539 | CF23: -477.7323761 | CG23: 109.1557236 | CH23: 158.1047851 | CI23: -426.8891754 | CK23: 1933 | CL23: =E145 -> -164.6060028 | CM23: =E146 -> -116.2465286 | CN23: =E147 -> -227.4061737 | CO23: =E148 -> -109.0144043 | CP23: =E149 -> -132.1723633 | CQ23: =E150 -> -297.7928162 | CR23: =E151 -> 69.14110565 | CS23: =E152 -> 54.22939301 | CT23: =E153 -> 132.4463806 | CU23: =E154 -> 186.9196014 | CV23: =E155 -> 4.282702446 | CW23: =E156 -> -157.079071 | CY23: -987.8981752 | CZ23: -870.5513594 | DA23: -757.2981768 | DC23: -882.6322861 | DD23: -271.4591646 | DE23: -617.2731094 | DF23: -468.5929413 | DG23: -41.97593689 | DH23: 166.5696135 | DI23: -467.2181396 | DK23: 1933 | DL23: =F145 ->  | DM23: =F146 ->  | DN23: =F147 ->  | DO23: =F148 ->  | DP23: =F149 ->  | DQ23: =F150 ->  | DR23: =F151 ->  | DS23: =F152 ->  | DT23: =F153 ->  | DU23: =F154 ->  | DV23: =F155 ->  | DW23: =F156 ->  | EK23: 1933 | EL23: =G145 ->  | EM23: =G146 ->  | EN23: =G147 ->  | EO23: =G148 ->  | EP23: =G149 ->  | EQ23: =G150 ->  | ER23: =G151 ->  | ES23: =G152 ->  | ET23: =G153 ->  | EU23: =G154 ->  | EV23: =G155 ->  | EW23: =G156 -> 
A24: 1922-09-30 | B24: =INDIRECT(CONCATENATE("'",B$1,"'!",B$4,(YEAR($A24)-1921)*12+MONTH($A24)+3+IF(ISNUMBER(FIND("PRV",B$6)),1,0)))*IF(AND(B$3>0,TRIM(B$9)="CFS"),Conversions!$C24,1) -> 86.90390778 | C24: =INDIRECT(CONCATENATE("'",C$1,"'!",C$4,(YEAR($A24)-1921)*12+MONTH($A24)+3+IF(ISNUMBER(FIND("PRV",C$6)),1,0)))*IF(AND(C$3>0,TRIM(C$9)="CFS"),Conversions!$C24,1) -> 93.83372498 | D24: =INDIRECT(CONCATENATE("'",D$1,"'!",D$4,(YEAR($A24)-1921)*12+MONTH($A24)+3+IF(ISNUMBER(FIND("PRV",D$6)),1,0)))*IF(AND(D$3>0,TRIM(D$9)="CFS"),Conversions!$C24,1) -> 97.71577454 | E24: =INDIRECT(CONCATENATE("'",E$1,"'!",E$4,(YEAR($A24)-1921)*12+MONTH($A24)+3+IF(ISNUMBER(FIND("PRV",E$6)),1,0)))*IF(AND(E$3>0,TRIM(E$9)="CFS"),Conversions!$C24,1) -> 113.9528351 | F24: =INDIRECT(CONCATENATE("'",F$1,"'!",F$4,(YEAR($A24)-1921)*12+MONTH($A24)+3+IF(ISNUMBER(FIND("PRV",F$6)),1,0)))*IF(AND(F$3>0,TRIM(F$9)="CFS"),Conversions!$C24,1) ->  | G24: =INDIRECT(CONCATENATE("'",G$1,"'!",G$4,(YEAR($A24)-1921)*12+MONTH($A24)+3+IF(ISNUMBER(FIND("PRV",G$6)),1,0)))*IF(AND(G$3>0,TRIM(G$9)="CFS"),Conversions!$C24,1) ->  | K24: 1934 | L24: =B157 -> -92.66838837 | M24: =B158 -> -178.325592 | N24: =B159 -> -439.7170715 | O24: =B160 -> -119.496521 | P24: =B161 -> -38.76859283 | Q24: =B162 -> -12.07323265 | R24: =B163 -> 150.9715424 | S24: =B164 -> 316.2279968 | T24: =B165 -> 327.7415161 | U24: =B166 -> 218.1179504 | V24: =B167 -> 44.98062515 | W24: =B168 -> -17.49550629 | Y24: 420.3959332 | Z24: 271.9519482 | AA24: 159.4947262 | AC24: -788.3810101 | AD24: -8.88249588 | AE24: -830.2075729 | AF24: -597.9821854 | AG24: 782.8678226 | AH24: 573.3445854 | AI24: -325.9770126 | AK24: 1934 | AL24: =C157 -> -84.75325012 | AM24: =C158 -> -183.8069916 | AN24: =C159 -> -447.4257507 | AO24: =C160 -> -117.2448196 | AP24: =C161 -> 8.287531853 | AQ24: =C162 -> -34.41469574 | AR24: =C163 -> 145.2459717 | AS24: =C164 -> 308.6788025 | AT24: =C165 -> 318.7905884 | AU24: =C166 -> 213.4511566 | AV24: =C167 -> 35.98765945 | AW24: =C168 -> -25.64796448 | AY24: 379.6376486 | AZ24: 161.9080544 | BA24: 137.1482382 | BC24: -774.6047258 | BD24: -37.00260544 | BE24: -833.2308121 | BF24: -556.3830385 | BG24: 738.3006668 | BH24: 542.58144 | BI24: -353.6278381 | BK24: 1934 | BL24: =D157 -> -82.79139709 | BM24: =D158 -> -183.6512909 | BN24: =D159 -> -448.4433289 | BO24: =D160 -> -116.9640045 | BP24: =D161 -> 10.17950535 | BQ24: =D162 -> -34.08354187 | BR24: =D163 -> 145.4720306 | BS24: =D164 -> 308.469574 | BT24: =D165 -> 318.7789612 | BU24: =D166 -> 214.4622955 | BV24: =D167 -> 36.46120071 | BW24: =D168 -> -25.30953217 | BY24: 384.5508699 | BZ24: 166.4997444 | CA24: 142.580472 | CC24: -772.9626608 | CD24: -35.88032913 | CE24: -831.8500214 | CF24: -555.227828 | CG24: 738.6370239 | CH24: 544.3929253 | CI24: -352.781105 | CK24: 1934 | CL24: =E157 -> -118.662796 | CM24: =E158 -> -191.4762726 | CN24: =E159 -> -428.719635 | CO24: =E160 -> -122.8184433 | CP24: =E161 -> -1.021508455 | CQ24: =E162 -> -35.19844818 | CR24: =E163 -> 140.9776611 | CS24: =E164 -> 302.4203491 | CT24: =E165 -> 312.6666565 | CU24: =E166 -> 199.3984222 | CV24: =E167 -> 32.21472549 | CW24: =E168 -> -29.63116455 | CY24: 324.206866 | CZ24: 124.9714165 | DA24: 60.14954638 | DC24: -779.2343075 | DD24: -45.29195023 | DE24: -861.6771469 | DF24: -552.5595868 | DG24: 720.8662186 | DH24: 514.6486397 | DI24: -358.3461838 | DK24: 1934 | DL24: =F157 ->  | DM24: =F158 ->  | DN24: =F159 ->  | DO24: =F160 ->  | DP24: =F161 ->  | DQ24: =F162 ->  | DR24: =F163 ->  | DS24: =F164 ->  | DT24: =F165 ->  | DU24: =F166 ->  | DV24: =F167 ->  | DW24: =F168 ->  | EK24: 1934 | EL24: =G157 ->  | EM24: =G158 ->  | EN24: =G159 ->  | EO24: =G160 ->  | EP24: =G161 ->  | EQ24: =G162 ->  | ER24: =G163 ->  | ES24: =G164 ->  | ET24: =G165 ->  | EU24: =G166 ->  | EV24: =G167 ->  | EW24: =G168 -> 
A25: 1922-10-31 | B25: =INDIRECT(CONCATENATE("'",B$1,"'!",B$4,(YEAR($A25)-1921)*12+MONTH($A25)+3+IF(ISNUMBER(FIND("PRV",B$6)),1,0)))*IF(AND(B$3>0,TRIM(B$9)="CFS"),Conversions!$C25,1) -> -167.5490112 | C25: =INDIRECT(CONCATENATE("'",C$1,"'!",C$4,(YEAR($A25)-1921)*12+MONTH($A25)+3+IF(ISNUMBER(FIND("PRV",C$6)),1,0)))*IF(AND(C$3>0,TRIM(C$9)="CFS"),Conversions!$C25,1) -> -160.8014984 | D25: =INDIRECT(CONCATENATE("'",D$1,"'!",D$4,(YEAR($A25)-1921)*12+MONTH($A25)+3+IF(ISNUMBER(FIND("PRV",D$6)),1,0)))*IF(AND(D$3>0,TRIM(D$9)="CFS"),Conversions!$C25,1) -> -133.0157776 | E25: =INDIRECT(CONCATENATE("'",E$1,"'!",E$4,(YEAR($A25)-1921)*12+MONTH($A25)+3+IF(ISNUMBER(FIND("PRV",E$6)),1,0)))*IF(AND(E$3>0,TRIM(E$9)="CFS"),Conversions!$C25,1) -> -128.0212402 | F25: =INDIRECT(CONCATENATE("'",F$1,"'!",F$4,(YEAR($A25)-1921)*12+MONTH($A25)+3+IF(ISNUMBER(FIND("PRV",F$6)),1,0)))*IF(AND(F$3>0,TRIM(F$9)="CFS"),Conversions!$C25,1) ->  | G25: =INDIRECT(CONCATENATE("'",G$1,"'!",G$4,(YEAR($A25)-1921)*12+MONTH($A25)+3+IF(ISNUMBER(FIND("PRV",G$6)),1,0)))*IF(AND(G$3>0,TRIM(G$9)="CFS"),Conversions!$C25,1) ->  | K25: 1935 | L25: =B169 -> -36.36761475 | M25: =B170 -> -272.1138916 | N25: =B171 -> -141.3283386 | O25: =B172 -> -191.1580658 | P25: =B173 -> -115.551033 | Q25: =B174 -> -162.171936 | R25: =B175 -> -348.4240417 | S25: =B176 -> -12.05104542 | T25: =B177 -> -3.851565838 | U25: =B178 -> 114.4926605 | V25: =B179 -> -34.51760864 | W25: =B180 -> -356.7329407 | Y25: -2104.811341 | Z25: -1803.649969 | AA25: -1559.775422 | AC25: -882.3232651 | AD25: -790.9039917 | AE25: -640.9679108 | AF25: -448.0374374 | AG25: -526.498589 | AH25: -280.6094546 | AI25: -1074.139374 | AK25: 1935 | AL25: =C169 -> -47.34230042 | AM25: =C170 -> -280.6375732 | AN25: =C171 -> -145.5167084 | AO25: =C172 -> -211.0186615 | AP25: =C173 -> -115.6682205 | AQ25: =C174 -> -172.6864624 | AR25: =C175 -> -407.2884521 | AS25: =C176 -> -12.87823391 | AT25: =C177 -> -10.96798706 | AU25: =C178 -> 103.9908066 | AV25: =C179 -> -34.02835846 | AW25: =C180 -> -355.3678589 | AY25: -2484.891761 | AZ25: -2222.860377 | BA25: -1689.41001 | BC25: -925.527626 | BD25: -932.2074356 | BE25: -684.5152435 | BF25: -472.2035904 | BG25: -603.8211355 | BH25: -296.3733978 | BI25: -1345.235016 | BK25: 1935 | BL25: =D169 -> -47.03199768 | BM25: =D170 -> -280.4395752 | BN25: =D171 -> -145.444046 | BO25: =D172 -> -208.3271332 | BP25: =D173 -> -116.5084915 | BQ25: =D174 -> -173.4326019 | BR25: =D175 -> -410.2633362 | BS25: =D176 -> -12.77816772 | BT25: =D177 -> -16.87441254 | BU25: =D178 -> 99.19855499 | BV25: =D179 -> -33.65586472 | BW25: =D180 -> -355.2518921 | BY25: -2490.114323 | BZ25: -2218.017452 | CA25: -1700.808964 | CC25: -924.1518478 | CD25: -930.8068047 | CE25: -681.2427521 | CF25: -470.2796707 | CG25: -613.3485184 | CH25: -306.5836143 | CI25: -1338.449219 | CK25: 1935 | CL25: =E169 -> -47.87551117 | CM25: =E170 -> -280.8395081 | CN25: =E171 -> -146.0863647 | CO25: =E172 -> -207.0975037 | CP25: =E173 -> -115.9778976 | CQ25: =E174 -> -170.6404114 | CR25: =E175 -> -405.3582153 | CS25: =E176 -> -10.26404572 | CT25: =E177 -> -38.79107285 | CU25: =E178 -> 102.2643127 | CV25: =E179 -> -29.16123009 | CW25: =E180 -> -358.1078796 | CY25: -2475.024446 | CZ25: -2117.034204 | DA25: -1707.935328 | DC25: -920.6416855 | DD25: -939.8517513 | DE25: -681.8988876 | DF25: -469.1617661 | DG25: -625.0537453 | DH25: -323.7958698 | DI25: -1326.216522 | DK25: 1935 | DL25: =F169 ->  | DM25: =F170 ->  | DN25: =F171 ->  | DO25: =F172 ->  | DP25: =F173 ->  | DQ25: =F174 ->  | DR25: =F175 ->  | DS25: =F176 ->  | DT25: =F177 ->  | DU25: =F178 ->  | DV25: =F179 ->  | DW25: =F180 ->  | EK25: 1935 | EL25: =G169 ->  | EM25: =G170 ->  | EN25: =G171 ->  | EO25: =G172 ->  | EP25: =G173 ->  | EQ25: =G174 ->  | ER25: =G175 ->  | ES25: =G176 ->  | ET25: =G177 ->  | EU25: =G178 ->  | EV25: =G179 ->  | EW25: =G180 -> 
A26: 1922-11-30 | B26: =INDIRECT(CONCATENATE("'",B$1,"'!",B$4,(YEAR($A26)-1921)*12+MONTH($A26)+3+IF(ISNUMBER(FIND("PRV",B$6)),1,0)))*IF(AND(B$3>0,TRIM(B$9)="CFS"),Conversions!$C26,1) -> -398.3679199 | C26: =INDIRECT(CONCATENATE("'",C$1,"'!",C$4,(YEAR($A26)-1921)*12+MONTH($A26)+3+IF(ISNUMBER(FIND("PRV",C$6)),1,0)))*IF(AND(C$3>0,TRIM(C$9)="CFS"),Conversions!$C26,1) -> -397.8374329 | D26: =INDIRECT(CONCATENATE("'",D$1,"'!",D$4,(YEAR($A26)-1921)*12+MONTH($A26)+3+IF(ISNUMBER(FIND("PRV",D$6)),1,0)))*IF(AND(D$3>0,TRIM(D$9)="CFS"),Conversions!$C26,1) -> -400.4634399 | E26: =INDIRECT(CONCATENATE("'",E$1,"'!",E$4,(YEAR($A26)-1921)*12+MONTH($A26)+3+IF(ISNUMBER(FIND("PRV",E$6)),1,0)))*IF(AND(E$3>0,TRIM(E$9)="CFS"),Conversions!$C26,1) -> -388.151001 | F26: =INDIRECT(CONCATENATE("'",F$1,"'!",F$4,(YEAR($A26)-1921)*12+MONTH($A26)+3+IF(ISNUMBER(FIND("PRV",F$6)),1,0)))*IF(AND(F$3>0,TRIM(F$9)="CFS"),Conversions!$C26,1) ->  | G26: =INDIRECT(CONCATENATE("'",G$1,"'!",G$4,(YEAR($A26)-1921)*12+MONTH($A26)+3+IF(ISNUMBER(FIND("PRV",G$6)),1,0)))*IF(AND(G$3>0,TRIM(G$9)="CFS"),Conversions!$C26,1) ->  | K26: 1936 | L26: =B181 -> -399.6534424 | M26: =B182 -> -317.7529907 | N26: =B183 -> -277.4393311 | O26: =B184 -> 7.47957468 | P26: =B185 -> -13.02730179 | Q26: =B186 -> -216.3663025 | R26: =B187 -> -127.2879715 | S26: =B188 -> 83.65055847 | T26: =B189 -> -15.86138725 | U26: =B190 -> 198.3974304 | V26: =B191 -> -15.76020432 | W26: =B192 -> -260.8344727 | Y26: -1447.6958 | Z26: -2162.233492 | AA26: -1354.455841 | AC26: -817.1063514 | AD26: -640.5637016 | AE26: -987.3661895 | AF26: -282.9870582 | AG26: -275.8651028 | AH26: -94.0586338 | AI26: -933.0437317 | AK26: 1936 | AL26: =C181 -> -542.8112183 | AM26: =C182 -> -447.0559387 | AN26: =C183 -> -279.1111755 | AO26: =C184 -> -17.21144485 | AP26: =C185 -> -47.44405365 | AQ26: =C186 -> -218.6739807 | AR26: =C187 -> -126.9902725 | AS26: =C188 -> 84.23762512 | AT26: =C189 -> -14.91729546 | AU26: =C190 -> 178.7311859 | AV26: =C191 -> -13.66160202 | AW26: =C192 -> -258.6495056 | AY26: -1682.781065 | AZ26: -2332.290972 | BA26: -1703.557676 | BC26: -1009.496593 | BD26: -633.9817619 | BE26: -1286.189777 | BF26: -343.766674 | BG26: -276.3439236 | BH26: -108.4972172 | BI26: -1091.689178 | BK26: 1936 | BL26: =D181 -> -541.8990479 | BM26: =D182 -> -441.2982788 | BN26: =D183 -> -279.0236511 | BO26: =D184 -> -17.75799942 | BP26: =D185 -> -34.98075485 | BQ26: =D186 -> -218.9015808 | BR26: =D187 -> -127.0811539 | BS26: =D188 -> 84.06568909 | BT26: =D189 -> -15.20525932 | BU26: =D190 -> 177.9549103 | BV26: =D191 -> -13.79270554 | BW26: =D192 -> -258.9724426 | BY26: -1673.660707 | BZ26: -2336.284655 | CA26: -1686.892275 | CC26: -991.962265 | CD26: -635.0601616 | CE26: -1279.978977 | CF26: -331.7624054 | CG26: -277.1223049 | CH26: -110.0154972 | CI26: -1092.482452 | CK26: 1936 | CL26: =E181 -> -552.5826416 | CM26: =E182 -> -415.526001 | CN26: =E183 -> -273.7818604 | CO26: =E184 -> 18.0592804 | CP26: =E185 -> 16.8555603 | CQ26: =E186 -> -209.6941833 | CR26: =E187 -> -127.3046494 | CS26: =E188 -> 83.56599426 | CT26: =E189 -> -16.48647881 | CU26: =E190 -> 173.5089722 | CV26: =E191 -> -14.49816895 | CW26: =E192 -> -259.1885376 | CY26: -1568.624929 | CZ26: -2327.124273 | DA26: -1577.072714 | DC26: -864.087204 | DD26: -635.5240173 | DE26: -1223.831223 | DF26: -238.8670197 | DG26: -269.9193172 | DH26: -116.6642132 | DI26: -1075.823547 | DK26: 1936 | DL26: =F181 ->  | DM26: =F182 ->  | DN26: =F183 ->  | DO26: =F184 ->  | DP26: =F185 ->  | DQ26: =F186 ->  | DR26: =F187 ->  | DS26: =F188 ->  | DT26: =F189 ->  | DU26: =F190 ->  | DV26: =F191 ->  | DW26: =F192 ->  | EK26: 1936 | EL26: =G181 ->  | EM26: =G182 ->  | EN26: =G183 ->  | EO26: =G184 ->  | EP26: =G185 ->  | EQ26: =G186 ->  | ER26: =G187 ->  | ES26: =G188 ->  | ET26: =G189 ->  | EU26: =G190 ->  | EV26: =G191 ->  | EW26: =G192 -> 
A27: 1922-12-31 | B27: =INDIRECT(CONCATENATE("'",B$1,"'!",B$4,(YEAR($A27)-1921)*12+MONTH($A27)+3+IF(ISNUMBER(FIND("PRV",B$6)),1,0)))*IF(AND(B$3>0,TRIM(B$9)="CFS"),Conversions!$C27,1) -> -157.9875336 | C27: =INDIRECT(CONCATENATE("'",C$1,"'!",C$4,(YEAR($A27)-1921)*12+MONTH($A27)+3+IF(ISNUMBER(FIND("PRV",C$6)),1,0)))*IF(AND(C$3>0,TRIM(C$9)="CFS"),Conversions!$C27,1) -> -172.4059296 | D27: =INDIRECT(CONCATENATE("'",D$1,"'!",D$4,(YEAR($A27)-1921)*12+MONTH($A27)+3+IF(ISNUMBER(FIND("PRV",D$6)),1,0)))*IF(AND(D$3>0,TRIM(D$9)="CFS"),Conversions!$C27,1) -> -171.9716644 | E27: =INDIRECT(CONCATENATE("'",E$1,"'!",E$4,(YEAR($A27)-1921)*12+MONTH($A27)+3+IF(ISNUMBER(FIND("PRV",E$6)),1,0)))*IF(AND(E$3>0,TRIM(E$9)="CFS"),Conversions!$C27,1) -> -171.0567474 | F27: =INDIRECT(CONCATENATE("'",F$1,"'!",F$4,(YEAR($A27)-1921)*12+MONTH($A27)+3+IF(ISNUMBER(FIND("PRV",F$6)),1,0)))*IF(AND(F$3>0,TRIM(F$9)="CFS"),Conversions!$C27,1) ->  | G27: =INDIRECT(CONCATENATE("'",G$1,"'!",G$4,(YEAR($A27)-1921)*12+MONTH($A27)+3+IF(ISNUMBER(FIND("PRV",G$6)),1,0)))*IF(AND(G$3>0,TRIM(G$9)="CFS"),Conversions!$C27,1) ->  | K27: 1937 | L27: =B193 -> -363.9690247 | M27: =B194 -> -308.2402344 | N27: =B195 -> -415.8764648 | O27: =B196 -> -263.333313 | P27: =B197 -> -456.7521057 | Q27: =B198 -> -544.1485596 | R27: =B199 -> -229.407608 | S27: =B200 -> -182.8312683 | T27: =B201 -> 108.2146835 | U27: =B202 -> 148.5144958 | V27: =B203 -> 0.6863336563 | W27: =B204 -> -273.5063171 | Y27: -2441.39918 | Z27: -1921.151393 | AA27: -2780.649383 | AC27: -1988.350677 | AD27: -688.4860296 | AE27: -1351.419037 | AF27: -1135.961884 | AG27: -848.1727524 | AH27: -16.0908041 | AI27: -1072.431732 | AK27: 1937 | AL27: =C193 -> -361.6706543 | AM27: =C194 -> -471.3690186 | AN27: =C195 -> -415.1620483 | AO27: =C196 -> -262.8953247 | AP27: =C197 -> -451.2700806 | AQ27: =C198 -> -582.7003784 | AR27: =C199 -> -229.0114441 | AS27: =C200 -> -176.2866974 | AT27: =C201 -> 93.46458435 | AU27: =C202 -> 136.5909882 | AV27: =C203 -> -89.0790863 | AW27: =C204 -> -348.9040222 | AY27: -2738.631382 | AZ27: -2344.328587 | BA27: -3158.293182 | BC27: -2183.396851 | BD27: -869.1500397 | BE27: -1511.097046 | BF27: -1129.327454 | BG27: -894.5339355 | BH27: -207.927536 | BI27: -1208.231812 | BK27: 1937 | BL27: =D193 -> -362.2950134 | BM27: =D194 -> -471.2149963 | BN27: =D195 -> -415.4794006 | BO27: =D196 -> -262.9294739 | BP27: =D197 -> -452.4332275 | BQ27: =D198 -> -579.9460449 | BR27: =D199 -> -230.5253906 | BS27: =D200 -> -172.5850677 | BT27: =D201 -> 90.17391968 | BU27: =D202 -> 139.6867523 | BV27: =D203 -> -88.07308197 | BW27: =D204 -> -340.3985596 | BY27: -2710.739017 | BZ27: -2313.645687 | CA27: -3146.019585 | CC27: -2182.003143 | CD27: -842.8449631 | CE27: -1511.918884 | CF27: -1130.842102 | CG27: -892.8825836 | CH27: -198.6109695 | CI27: -1183.2117 | CK27: 1937 | CL27: =E193 -> -361.8373108 | CM27: =E194 -> -454.797699 | CN27: =E195 -> -416.8077087 | CO27: =E196 -> -262.7576599 | CP27: =E197 -> -460.8268433 | CQ27: =E198 -> -587.8602905 | CR27: =E199 -> -232.9816589 | CS27: =E200 -> -163.1845245 | CT27: =E201 -> 80.65959167 | CU27: =E202 -> 149.647522 | CV27: =E203 -> -79.58904266 | CW27: =E204 -> -281.6029053 | CY27: -2629.244873 | CZ27: -2192.113205 | DA27: -3071.93853 | DC27: -2183.050201 | DD27: -776.599144 | DE27: -1496.200378 | DF27: -1140.392212 | DG27: -903.3668823 | DH27: -130.8848343 | DI27: -1096.823029 | DK27: 1937 | DL27: =F193 ->  | DM27: =F194 ->  | DN27: =F195 ->  | DO27: =F196 ->  | DP27: =F197 ->  | DQ27: =F198 ->  | DR27: =F199 ->  | DS27: =F200 ->  | DT27: =F201 ->  | DU27: =F202 ->  | DV27: =F203 ->  | DW27: =F204 ->  | EK27: 1937 | EL27: =G193 ->  | EM27: =G194 ->  | EN27: =G195 ->  | EO27: =G196 ->  | EP27: =G197 ->  | EQ27: =G198 ->  | ER27: =G199 ->  | ES27: =G200 ->  | ET27: =G201 ->  | EU27: =G202 ->  | EV27: =G203 ->  | EW27: =G204 -> 
A28: 1923-01-31 | B28: =INDIRECT(CONCATENATE("'",B$1,"'!",B$4,(YEAR($A28)-1921)*12+MONTH($A28)+3+IF(ISNUMBER(FIND("PRV",B$6)),1,0)))*IF(AND(B$3>0,TRIM(B$9)="CFS"),Conversions!$C28,1) -> -436.7878723 | C28: =INDIRECT(CONCATENATE("'",C$1,"'!",C$4,(YEAR($A28)-1921)*12+MONTH($A28)+3+IF(ISNUMBER(FIND("PRV",C$6)),1,0)))*IF(AND(C$3>0,TRIM(C$9)="CFS"),Conversions!$C28,1) -> -436.7900085 | D28: =INDIRECT(CONCATENATE("'",D$1,"'!",D$4,(YEAR($A28)-1921)*12+MONTH($A28)+3+IF(ISNUMBER(FIND("PRV",D$6)),1,0)))*IF(AND(D$3>0,TRIM(D$9)="CFS"),Conversions!$C28,1) -> -437.2094727 | E28: =INDIRECT(CONCATENATE("'",E$1,"'!",E$4,(YEAR($A28)-1921)*12+MONTH($A28)+3+IF(ISNUMBER(FIND("PRV",E$6)),1,0)))*IF(AND(E$3>0,TRIM(E$9)="CFS"),Conversions!$C28,1) -> -437.8610535 | F28: =INDIRECT(CONCATENATE("'",F$1,"'!",F$4,(YEAR($A28)-1921)*12+MONTH($A28)+3+IF(ISNUMBER(FIND("PRV",F$6)),1,0)))*IF(AND(F$3>0,TRIM(F$9)="CFS"),Conversions!$C28,1) ->  | G28: =INDIRECT(CONCATENATE("'",G$1,"'!",G$4,(YEAR($A28)-1921)*12+MONTH($A28)+3+IF(ISNUMBER(FIND("PRV",G$6)),1,0)))*IF(AND(G$3>0,TRIM(G$9)="CFS"),Conversions!$C28,1) ->  | K28: 1938 | L28: =B205 -> -415.6660461 | M28: =B206 -> -383.2593689 | N28: =B207 -> 50.08989334 | O28: =B208 -> -359.0873108 | P28: =B209 -> 159.2496796 | Q28: =B210 -> 439.8092346 | R28: =B211 -> 184.0857697 | S28: =B212 -> 336.152832 | T28: =B213 -> 231.0040436 | U28: =B214 -> 9.392808914 | V28: =B215 -> 214.8915863 | W28: =B216 -> 140.4143829 | Y28: 587.5452366 | Z28: 292.6381474 | AA28: 607.0775051 | AC28: -93.19787216 | AD28: 253.9175186 | AE28: -1107.922832 | AF28: -149.7477379 | AG28: 1191.05188 | AH28: 595.7028217 | AI28: -271.6640701 | AK28: 1938 | AL28: =C205 -> -431.1669312 | AM28: =C206 -> -428.1608582 | AN28: =C207 -> 30.7878685 | AO28: =C208 -> -403.0542908 | AP28: =C209 -> 83.19168091 | AQ28: =C210 -> 361.3831177 | AR28: =C211 -> 101.9641647 | AS28: =C212 -> 298.324707 | AT28: =C213 -> 230.5719757 | AU28: =C214 -> 10.97981262 | AV28: =C215 -> 222.8196411 | AW28: =C216 -> 153.7401581 | AY28: 290.662323 | AZ28: 76.98976135 | BA28: 231.3810463 | BC28: -355.8524818 | BD28: 275.3212357 | BE28: -1231.594212 | BF28: -289.0747414 | BG28: 992.2439651 | BH28: 618.1115875 | BI28: -258.4945908 | BK28: 1938 | BL28: =D205 -> -414.3733215 | BM28: =D206 -> -428.4398193 | BN28: =D207 -> 29.10429764 | BO28: =D208 -> -397.671051 | BP28: =D209 -> 79.40167999 | BQ28: =D210 -> 362.6545715 | BR28: =D211 -> 113.5559006 | BS28: =D212 -> 292.8904419 | BT28: =D213 -> 230.512085 | BU28: =D214 -> 10.92074013 | BV28: =D215 -> 222.7421417 | BW28: =D216 -> 153.6639252 | BY28: 298.467783 | BZ28: 81.42848396 | CA28: 254.9615917 | CC28: -354.9503212 | CD28: 274.3616486 | CE28: -1211.379894 | CF28: -289.1650734 | CG28: 999.612999 | CH28: 617.838892 | CI28: -259.4796448 | CK28: 1938 | CL28: =E205 -> -415.407196 | CM28: =E206 -> -399.8129272 | CN28: =E207 -> 24.47106171 | CO28: =E208 -> -379.8610229 | CP28: =E209 -> 93.40818787 | CQ28: =E210 -> 370.3504944 | CR28: =E211 -> 113.3093567 | CS28: =E212 -> 292.3449707 | CT28: =E213 -> 230.8419342 | CU28: =E214 -> 11.21766853 | CV28: =E215 -> 223.0767212 | CW28: =E216 -> 153.9800415 | CY28: 334.4134464 | CZ28: 85.55005836 | DA28: 317.9192905 | DC28: -291.4442062 | DD28: 271.0523758 | DE28: -1170.610085 | DF28: -261.9817734 | DG28: 1006.846756 | DH28: 619.1163654 | DI28: -263.3366623 | DK28: 1938 | DL28: =F205 ->  | DM28: =F206 ->  | DN28: =F207 ->  | DO28: =F208 ->  | DP28: =F209 ->  | DQ28: =F210 ->  | DR28: =F211 ->  | DS28: =F212 ->  | DT28: =F213 ->  | DU28: =F214 ->  | DV28: =F215 ->  | DW28: =F216 ->  | EK28: 1938 | EL28: =G205 ->  | EM28: =G206 ->  | EN28: =G207 ->  | EO28: =G208 ->  | EP28: =G209 ->  | EQ28: =G210 ->  | ER28: =G211 ->  | ES28: =G212 ->  | ET28: =G213 ->  | EU28: =G214 ->  | EV28: =G215 ->  | EW28: =G216 -> 
A29: 1923-02-28 | B29: =INDIRECT(CONCATENATE("'",B$1,"'!",B$4,(YEAR($A29)-1921)*12+MONTH($A29)+3+IF(ISNUMBER(FIND("PRV",B$6)),1,0)))*IF(AND(B$3>0,TRIM(B$9)="CFS"),Conversions!$C29,1) -> -410.6391296 | C29: =INDIRECT(CONCATENATE("'",C$1,"'!",C$4,(YEAR($A29)-1921)*12+MONTH($A29)+3+IF(ISNUMBER(FIND("PRV",C$6)),1,0)))*IF(AND(C$3>0,TRIM(C$9)="CFS"),Conversions!$C29,1) -> -410.5030518 | D29: =INDIRECT(CONCATENATE("'",D$1,"'!",D$4,(YEAR($A29)-1921)*12+MONTH($A29)+3+IF(ISNUMBER(FIND("PRV",D$6)),1,0)))*IF(AND(D$3>0,TRIM(D$9)="CFS"),Conversions!$C29,1) -> -411.3373108 | E29: =INDIRECT(CONCATENATE("'",E$1,"'!",E$4,(YEAR($A29)-1921)*12+MONTH($A29)+3+IF(ISNUMBER(FIND("PRV",E$6)),1,0)))*IF(AND(E$3>0,TRIM(E$9)="CFS"),Conversions!$C29,1) -> -417.8844299 | F29: =INDIRECT(CONCATENATE("'",F$1,"'!",F$4,(YEAR($A29)-1921)*12+MONTH($A29)+3+IF(ISNUMBER(FIND("PRV",F$6)),1,0)))*IF(AND(F$3>0,TRIM(F$9)="CFS"),Conversions!$C29,1) ->  | G29: =INDIRECT(CONCATENATE("'",G$1,"'!",G$4,(YEAR($A29)-1921)*12+MONTH($A29)+3+IF(ISNUMBER(FIND("PRV",G$6)),1,0)))*IF(AND(G$3>0,TRIM(G$9)="CFS"),Conversions!$C29,1) ->  | K29: 1939 | L29: =B217 -> -101.3884506 | M29: =B218 -> -310.6900024 | N29: =B219 -> -356.2893372 | O29: =B220 -> -320.5302429 | P29: =B221 -> -174.2144775 | Q29: =B222 -> -133.0109711 | R29: =B223 -> 162.4807434 | S29: =B224 -> 379.3970337 | T29: =B225 -> 319.4399719 | U29: =B226 -> 388.0123291 | V29: =B227 -> 132.8850708 | W29: =B228 -> -205.3213348 | Y29: -282.9999771 | Z29: 691.4008656 | AA29: -219.2296677 | AC29: -1294.735031 | AD29: -283.0494843 | AE29: -1088.898033 | AF29: -851.0340576 | AG29: 728.306778 | AH29: 635.016037 | AI29: -497.3666 | AK29: 1939 | AL29: =C217 -> -101.2385635 | AM29: =C218 -> -310.9961853 | AN29: =C219 -> -357.0238953 | AO29: =C220 -> -321.0283508 | AP29: =C221 -> -212.5068207 | AQ29: =C222 -> -133.9016266 | AR29: =C223 -> 170.1454315 | AS29: =C224 -> 383.9176636 | AT29: =C225 -> 305.0318909 | AU29: =C226 -> 303.4556274 | AV29: =C227 -> -15.88288307 | AW29: =C228 -> -274.1679077 | AY29: -988.8991337 | AZ29: -69.80809593 | BA29: -564.1956196 | BC29: -1335.456879 | BD29: -666.9814548 | BE29: -1090.286995 | BF29: -890.5590668 | BG29: 725.1933594 | BH29: 318.4367275 | BI29: -899.8960571 | BK29: 1939 | BL29: =D217 -> -102.0444183 | BM29: =D218 -> -311.0991516 | BN29: =D219 -> -357.059082 | BO29: =D220 -> -321.0951843 | BP29: =D221 -> -214.2134857 | BQ29: =D222 -> -133.9307251 | BR29: =D223 -> 163.2083893 | BS29: =D224 -> 330.5936584 | BT29: =D225 -> 315.0288696 | BU29: =D226 -> 334.3602905 | BV29: =D227 -> 35.84708405 | BW29: =D228 -> -274.2662354 | BY29: -924.3634567 | BZ29: -4.551897049 | CA29: -534.6699905 | CC29: -1337.397629 | CD29: -614.4661789 | CE29: -1091.297836 | CF29: -892.3677521 | CG29: 674.9001923 | CH29: 410.9700089 | CI29: -890.1256104 | CK29: 1939 | CL29: =E217 -> -106.0043869 | CM29: =E218 -> -311.3123169 | CN29: =E219 -> -356.9382019 | CO29: =E220 -> -320.9432373 | CP29: =E221 -> -214.3729858 | CQ29: =E222 -> -133.7928925 | CR29: =E223 -> 162.0770874 | CS29: =E224 -> 328.8548279 | CT29: =E225 -> 293.7470703 | CU29: =E226 -> 396.9946289 | CV29: =E227 -> 35.48946381 | CW29: =E228 -> -286.9708862 | CY29: -848.8792648 | CZ29: 84.39608383 | DA29: -513.1718292 | DC29: -1337.359634 | DD29: -620.7145157 | DE29: -1095.198143 | DF29: -892.254425 | DG29: 650.8860931 | DH29: 439.2602768 | DI29: -863.5923462 | DK29: 1939 | DL29: =F217 ->  | DM29: =F218 ->  | DN29: =F219 ->  | DO29: =F220 ->  | DP29: =F221 ->  | DQ29: =F222 ->  | DR29: =F223 ->  | DS29: =F224 ->  | DT29: =F225 ->  | DU29: =F226 ->  | DV29: =F227 ->  | DW29: =F228 ->  | EK29: 1939 | EL29: =G217 ->  | EM29: =G218 ->  | EN29: =G219 ->  | EO29: =G220 ->  | EP29: =G221 ->  | EQ29: =G222 ->  | ER29: =G223 ->  | ES29: =G224 ->  | ET29: =G225 ->  | EU29: =G226 ->  | EV29: =G227 ->  | EW29: =G228 -> 
A30: 1923-03-31 | B30: =INDIRECT(CONCATENATE("'",B$1,"'!",B$4,(YEAR($A30)-1921)*12+MONTH($A30)+3+IF(ISNUMBER(FIND("PRV",B$6)),1,0)))*IF(AND(B$3>0,TRIM(B$9)="CFS"),Conversions!$C30,1) -> -277.6933289 | C30: =INDIRECT(CONCATENATE("'",C$1,"'!",C$4,(YEAR($A30)-1921)*12+MONTH($A30)+3+IF(ISNUMBER(FIND("PRV",C$6)),1,0)))*IF(AND(C$3>0,TRIM(C$9)="CFS"),Conversions!$C30,1) -> -281.6651917 | D30: =INDIRECT(CONCATENATE("'",D$1,"'!",D$4,(YEAR($A30)-1921)*12+MONTH($A30)+3+IF(ISNUMBER(FIND("PRV",D$6)),1,0)))*IF(AND(D$3>0,TRIM(D$9)="CFS"),Conversions!$C30,1) -> -278.2188416 | E30: =INDIRECT(CONCATENATE("'",E$1,"'!",E$4,(YEAR($A30)-1921)*12+MONTH($A30)+3+IF(ISNUMBER(FIND("PRV",E$6)),1,0)))*IF(AND(E$3>0,TRIM(E$9)="CFS"),Conversions!$C30,1) -> -288.7635193 | F30: =INDIRECT(CONCATENATE("'",F$1,"'!",F$4,(YEAR($A30)-1921)*12+MONTH($A30)+3+IF(ISNUMBER(FIND("PRV",F$6)),1,0)))*IF(AND(F$3>0,TRIM(F$9)="CFS"),Conversions!$C30,1) ->  | G30: =INDIRECT(CONCATENATE("'",G$1,"'!",G$4,(YEAR($A30)-1921)*12+MONTH($A30)+3+IF(ISNUMBER(FIND("PRV",G$6)),1,0)))*IF(AND(G$3>0,TRIM(G$9)="CFS"),Conversions!$C30,1) ->  | K30: 1940 | L30: =B229 -> -210.6132202 | M30: =B230 -> -81.43204498 | N30: =B231 -> -540.0928345 | O30: =B232 -> 23.31838417 | P30: =B233 -> 456.337738 | Q30: =B234 -> 773.7402344 | R30: =B235 -> -63.7836113 | S30: =B236 -> 113.8842087 | T30: =B237 -> 188.542572 | U30: =B238 -> 400.0371094 | V30: =B239 -> 153.44133 | W30: =B240 -> 71.71349335 | Y30: 1314.390516 | Z30: 1441.086399 | AA30: 1285.093359 | AC30: 631.8714771 | AD30: -0.2250595093 | AE30: -808.8197155 | AF30: -60.43671227 | AG30: 1012.383404 | AH30: 813.7345047 | AI30: -485.1453934 | AK30: 1940 | AL30: =C229 -> -376.9306641 | AM30: =C230 -> -248.7974854 | AN30: =C231 -> -568.2340088 | AO30: =C232 -> -7.439525604 | AP30: =C233 -> 392.9953918 | AQ30: =C234 -> 726.3317871 | AR30: =C235 -> -146.7396393 | AS30: =C236 -> 112.8982162 | AT30: =C237 -> 194.0268402 | AU30: =C238 -> 400.0973816 | AV30: =C239 -> 162.9919891 | AW30: =C240 -> 78.76152039 | AY30: 1077.414318 | AZ30: 1168.047371 | BA30: 719.9618034 | BC30: 294.8561592 | BD30: 18.10253906 | BE30: -1201.401684 | BF30: -182.6781425 | BG30: 886.5172043 | BH30: 835.8777313 | BI30: -475.4601288 | BK30: 1940 | BL30: =D229 -> -376.0470276 | BM30: =D230 -> -239.8123474 | BN30: =D231 -> -544.0367432 | BO30: =D232 -> -6.749856949 | BP30: =D233 -> 391.2527466 | BQ30: =D234 -> 768.6103516 | BR30: =D235 -> -145.615387 | BS30: =D236 -> 113.5179062 | BT30: =D237 -> 182.9398193 | BU30: =D238 -> 402.2184143 | BV30: =D239 -> 165.1299286 | BW30: =D240 -> 80.4434967 | BY30: 1132.463209 | BZ30: 1203.033897 | CA30: 791.8513012 | CC30: 369.2641506 | CD30: 22.8274231 | CE30: -1166.645975 | CF30: -159.5338535 | CG30: 919.4526901 | CH30: 830.7316589 | CI30: -471.545578 | CK30: 1940 | CL30: =E229 -> -369.2330933 | CM30: =E230 -> -207.3883667 | CN30: =E231 -> -533.3408813 | CO30: =E232 -> -1.283061981 | CP30: =E233 -> 399.2421875 | CQ30: =E234 -> 771.8289795 | CR30: =E235 -> -142.975647 | CS30: =E236 -> 113.2629929 | CT30: =E237 -> 166.7070007 | CU30: =E238 -> 390.9140015 | CV30: =E239 -> 163.8928986 | CW30: =E240 -> 81.05052185 | CY30: 1156.639584 | CZ30: 1207.444221 | DA30: 832.6775322 | DC30: 429.058857 | DD30: 26.30329895 | DE30: -1111.245403 | DF30: -135.3817558 | DG30: 908.8233261 | DH30: 802.5644226 | DI30: -468.0617065 | DK30: 1940 | DL30: =F229 ->  | DM30: =F230 ->  | DN30: =F231 ->  | DO30: =F232 ->  | DP30: =F233 ->  | DQ30: =F234 ->  | DR30: =F235 ->  | DS30: =F236 ->  | DT30: =F237 ->  | DU30: =F238 ->  | DV30: =F239 ->  | DW30: =F240 ->  | EK30: 1940 | EL30: =G229 ->  | EM30: =G230 ->  | EN30: =G231 ->  | EO30: =G232 ->  | EP30: =G233 ->  | EQ30: =G234 ->  | ER30: =G235 ->  | ES30: =G236 ->  | ET30: =G237 ->  | EU30: =G238 ->  | EV30: =G239 ->  | EW30: =G240 -> 
A31: 1923-04-30 | B31: =INDIRECT(CONCATENATE("'",B$1,"'!",B$4,(YEAR($A31)-1921)*12+MONTH($A31)+3+IF(ISNUMBER(FIND("PRV",B$6)),1,0)))*IF(AND(B$3>0,TRIM(B$9)="CFS"),Conversions!$C31,1) -> -140.8462372 | C31: =INDIRECT(CONCATENATE("'",C$1,"'!",C$4,(YEAR($A31)-1921)*12+MONTH($A31)+3+IF(ISNUMBER(FIND("PRV",C$6)),1,0)))*IF(AND(C$3>0,TRIM(C$9)="CFS"),Conversions!$C31,1) -> -140.1191406 | D31: =INDIRECT(CONCATENATE("'",D$1,"'!",D$4,(YEAR($A31)-1921)*12+MONTH($A31)+3+IF(ISNUMBER(FIND("PRV",D$6)),1,0)))*IF(AND(D$3>0,TRIM(D$9)="CFS"),Conversions!$C31,1) -> -139.550705 | E31: =INDIRECT(CONCATENATE("'",E$1,"'!",E$4,(YEAR($A31)-1921)*12+MONTH($A31)+3+IF(ISNUMBER(FIND("PRV",E$6)),1,0)))*IF(AND(E$3>0,TRIM(E$9)="CFS"),Conversions!$C31,1) -> -131.7812653 | F31: =INDIRECT(CONCATENATE("'",F$1,"'!",F$4,(YEAR($A31)-1921)*12+MONTH($A31)+3+IF(ISNUMBER(FIND("PRV",F$6)),1,0)))*IF(AND(F$3>0,TRIM(F$9)="CFS"),Conversions!$C31,1) ->  | G31: =INDIRECT(CONCATENATE("'",G$1,"'!",G$4,(YEAR($A31)-1921)*12+MONTH($A31)+3+IF(ISNUMBER(FIND("PRV",G$6)),1,0)))*IF(AND(G$3>0,TRIM(G$9)="CFS"),Conversions!$C31,1) ->  | K31: 1941 | L31: =B241 -> -225.3798828 | M31: =B242 -> -331.4790039 | N31: =B243 -> -245.9820557 | O31: =B244 -> 233.1027679 | P31: =B245 -> 373.2492371 | Q31: =B246 -> 459.5826416 | R31: =B247 -> 169.0373383 | S31: =B248 -> 516.621521 | T31: =B249 -> 164.3764191 | U31: =B250 -> 335.1045532 | V31: =B251 -> 175.8544006 | W31: =B252 -> 212.1904297 | Y31: 2752.394746 | Z31: 2955.363176 | AA31: 1836.278366 | AC31: 488.473587 | AD31: 390.9884198 | AE31: -569.7381744 | AF31: 360.3699493 | AG31: 1309.61792 | AH31: 887.5258026 | AI31: -104.5035236 | AK31: 1941 | AL31: =C241 -> -223.6509705 | AM31: =C242 -> -330.5706787 | AN31: =C243 -> -282.2879944 | AO31: =C244 -> 152.3146515 | AP31: =C245 -> 323.8742676 | AQ31: =C246 -> 459.5234375 | AR31: =C247 -> 169.0812988 | AS31: =C248 -> 511.5648193 | AT31: =C249 -> 164.2042389 | AU31: =C250 -> 334.8977051 | AV31: =C251 -> 182.9178467 | AW31: =C252 -> 220.106781 | AY31: 2595.577513 | AZ31: 2928.677839 | BA31: 1681.975403 | BC31: 322.8536835 | BD31: 412.9353619 | BE31: -684.1949921 | BF31: 193.9009247 | BG31: 1304.373795 | BH31: 902.1265717 | BI31: -89.86947823 | BK31: 1941 | BL31: =D241 -> -222.7460022 | BM31: =D242 -> -329.2430725 | BN31: =D243 -> -267.2951355 | BO31: =D244 -> 153.0119934 | BP31: =D245 -> 302.0615845 | BQ31: =D246 -> 459.3876648 | BR31: =D247 -> 169.2245178 | BS31: =D248 -> 505.6867981 | BT31: =D249 -> 163.7628326 | BU31: =D250 -> 334.3796997 | BV31: =D251 -> 182.3461304 | BW31: =D252 -> 219.635437 | BY31: 2565.396925 | BZ31: 2919.518263 | CA31: 1670.212448 | CC31: 317.9230347 | CD31: 411.3204632 | CE31: -666.2722168 | CF31: 187.7784424 | CG31: 1298.061813 | CH31: 900.1240997 | CI31: -91.29315376 | CK31: 1941 | CL31: =E241 -> -218.6401215 | CM31: =E242 -> -330.4721069 | CN31: =E243 -> -236.8880615 | CO31: =E244 -> 151.9974976 | CP31: =E245 -> 296.7662659 | CQ31: =E246 -> 389.4814148 | CR31: =E247 -> 170.7710876 | CS31: =E248 -> 424.427002 | CT31: =E249 -> 157.015274 | CU31: =E250 -> 326.5290833 | CV31: =E251 -> 173.5931549 | CW31: =E252 -> 212.3927917 | CY31: 2359.967936 | CZ31: 2719.282755 | DA31: 1516.973282 | DC31: 270.8850098 | DD31: 386.5349369 | DE31: -634.0027924 | DF31: 211.8757019 | DG31: 1141.694778 | DH31: 869.530304 | DI31: -113.1974087 | DK31: 1941 | DL31: =F241 ->  | DM31: =F242 ->  | DN31: =F243 ->  | DO31: =F244 ->  | DP31: =F245 ->  | DQ31: =F246 ->  | DR31: =F247 ->  | DS31: =F248 ->  | DT31: =F249 ->  | DU31: =F250 ->  | DV31: =F251 ->  | DW31: =F252 ->  | EK31: 1941 | EL31: =G241 ->  | EM31: =G242 ->  | EN31: =G243 ->  | EO31: =G244 ->  | EP31: =G245 ->  | EQ31: =G246 ->  | ER31: =G247 ->  | ES31: =G248 ->  | ET31: =G249 ->  | EU31: =G250 ->  | EV31: =G251 ->  | EW31: =G252 -> 
A32: 1923-05-31 | B32: =INDIRECT(CONCATENATE("'",B$1,"'!",B$4,(YEAR($A32)-1921)*12+MONTH($A32)+3+IF(ISNUMBER(FIND("PRV",B$6)),1,0)))*IF(AND(B$3>0,TRIM(B$9)="CFS"),Conversions!$C32,1) -> 295.9063416 | C32: =INDIRECT(CONCATENATE("'",C$1,"'!",C$4,(YEAR($A32)-1921)*12+MONTH($A32)+3+IF(ISNUMBER(FIND("PRV",C$6)),1,0)))*IF(AND(C$3>0,TRIM(C$9)="CFS"),Conversions!$C32,1) -> 296.2303162 | D32: =INDIRECT(CONCATENATE("'",D$1,"'!",D$4,(YEAR($A32)-1921)*12+MONTH($A32)+3+IF(ISNUMBER(FIND("PRV",D$6)),1,0)))*IF(AND(D$3>0,TRIM(D$9)="CFS"),Conversions!$C32,1) -> 296.8162537 | E32: =INDIRECT(CONCATENATE("'",E$1,"'!",E$4,(YEAR($A32)-1921)*12+MONTH($A32)+3+IF(ISNUMBER(FIND("PRV",E$6)),1,0)))*IF(AND(E$3>0,TRIM(E$9)="CFS"),Conversions!$C32,1) -> 297.9914551 | F32: =INDIRECT(CONCATENATE("'",F$1,"'!",F$4,(YEAR($A32)-1921)*12+MONTH($A32)+3+IF(ISNUMBER(FIND("PRV",F$6)),1,0)))*IF(AND(F$3>0,TRIM(F$9)="CFS"),Conversions!$C32,1) ->  | G32: =INDIRECT(CONCATENATE("'",G$1,"'!",G$4,(YEAR($A32)-1921)*12+MONTH($A32)+3+IF(ISNUMBER(FIND("PRV",G$6)),1,0)))*IF(AND(G$3>0,TRIM(G$9)="CFS"),Conversions!$C32,1) ->  | K32: 1942 | L32: =B253 -> 2.943589449 | M32: =B254 -> -319.6375427 | N32: =B255 -> 429.9693909 | O32: =B256 -> 372.9883423 | P32: =B257 -> 436.3320923 | Q32: =B258 -> -375.1064758 | R32: =B259 -> 127.4282227 | S32: =B260 -> 480.5898743 | T32: =B261 -> 259.0173645 | U32: =B262 -> 200.3800964 | V32: =B263 -> 216.8504944 | W32: =B264 -> 194.9756317 | Y32: 1640.154378 | Z32: 833.5022783 | AA32: 2026.73108 | AC32: 544.5458069 | AD32: 441.6222706 | AE32: 486.2637799 | AF32: 1239.289825 | AG32: 491.9289856 | AH32: 871.223587 | AI32: -63.80100822 | AK32: 1942 | AL32: =C253 -> 9.910734177 | AM32: =C254 -> -319.8869934 | AN32: =C255 -> 387.0687256 | AO32: =C256 -> 372.9619141 | AP32: =C257 -> 436.3273315 | AQ32: =C258 -> -375.3198853 | AR32: =C259 -> 127.2793808 | AS32: =C260 -> 480.4819946 | AT32: =C261 -> 258.7689209 | AU32: =C262 -> 199.9045105 | AV32: =C263 -> 211.171051 | AW32: =C264 -> 202.2564087 | AY32: 1626.035692 | AZ32: 794.4793186 | BA32: 1990.924093 | BC32: 501.1510925 | BD32: 445.0729733 | BE32: 450.0543804 | BF32: 1196.357971 | BG32: 491.2104111 | BH32: 872.1008911 | BI32: -55.03106117 | BK32: 1942 | BL32: =D253 -> 9.338895798 | BM32: =D254 -> -320.2674866 | BN32: =D255 -> 386.8288574 | BO32: =D256 -> 372.8843994 | BP32: =D257 -> 436.3105164 | BQ32: =D258 -> -375.9379883 | BR32: =D259 -> 127.1699829 | BS32: =D260 -> 480.2204285 | BT32: =D261 -> 258.1654053 | BU32: =D262 -> 199.1469421 | BV32: =D263 -> 222.8334198 | BW32: =D264 -> 201.7790375 | BY32: 1631.15719 | BZ32: 801.9846058 | CA32: 1998.47241 | CC32: 499.8182983 | CD32: 455.0947628 | CE32: 448.7846661 | CF32: 1196.023773 | CG32: 489.6178284 | CH32: 881.9248047 | CI32: -57.6683445 | CK32: 1942 | CL32: =E253 -> 0.5489902496 | CM32: =E254 -> -326.1391907 | CN32: =E255 -> 382.5845642 | CO32: =E256 -> 371.9512939 | CP32: =E257 -> 436.1272888 | CQ32: =E258 -> -384.0860596 | CR32: =E259 -> 125.8455124 | CS32: =E260 -> 476.6802368 | CT32: =E261 -> 249.7572479 | CU32: =E262 -> 188.4622498 | CV32: =E263 -> 210.2360535 | CW32: =E264 -> 192.263855 | CY32: 1527.947023 | CZ32: 766.2341709 | DA32: 1924.232042 | DC32: 480.4378967 | DD32: 417.5460567 | DE32: 428.9456577 | DF32: 1190.663147 | DG32: 468.1969376 | DH32: 840.7194061 | DI32: -95.26781654 | DK32: 1942 | DL32: =F253 ->  | DM32: =F254 ->  | DN32: =F255 ->  | DO32: =F256 ->  | DP32: =F257 ->  | DQ32: =F258 ->  | DR32: =F259 ->  | DS32: =F260 ->  | DT32: =F261 ->  | DU32: =F262 ->  | DV32: =F263 ->  | DW32: =F264 ->  | EK32: 1942 | EL32: =G253 ->  | EM32: =G254 ->  | EN32: =G255 ->  | EO32: =G256 ->  | EP32: =G257 ->  | EQ32: =G258 ->  | ER32: =G259 ->  | ES32: =G260 ->  | ET32: =G261 ->  | EU32: =G262 ->  | EV32: =G263 ->  | EW32: =G264 -> 
A33: 1923-06-30 | B33: =INDIRECT(CONCATENATE("'",B$1,"'!",B$4,(YEAR($A33)-1921)*12+MONTH($A33)+3+IF(ISNUMBER(FIND("PRV",B$6)),1,0)))*IF(AND(B$3>0,TRIM(B$9)="CFS"),Conversions!$C33,1) -> 81.09450531 | C33: =INDIRECT(CONCATENATE("'",C$1,"'!",C$4,(YEAR($A33)-1921)*12+MONTH($A33)+3+IF(ISNUMBER(FIND("PRV",C$6)),1,0)))*IF(AND(C$3>0,TRIM(C$9)="CFS"),Conversions!$C33,1) -> 82.33629608 | D33: =INDIRECT(CONCATENATE("'",D$1,"'!",D$4,(YEAR($A33)-1921)*12+MONTH($A33)+3+IF(ISNUMBER(FIND("PRV",D$6)),1,0)))*IF(AND(D$3>0,TRIM(D$9)="CFS"),Conversions!$C33,1) -> 83.87532806 | E33: =INDIRECT(CONCATENATE("'",E$1,"'!",E$4,(YEAR($A33)-1921)*12+MONTH($A33)+3+IF(ISNUMBER(FIND("PRV",E$6)),1,0)))*IF(AND(E$3>0,TRIM(E$9)="CFS"),Conversions!$C33,1) -> 62.01272583 | F33: =INDIRECT(CONCATENATE("'",F$1,"'!",F$4,(YEAR($A33)-1921)*12+MONTH($A33)+3+IF(ISNUMBER(FIND("PRV",F$6)),1,0)))*IF(AND(F$3>0,TRIM(F$9)="CFS"),Conversions!$C33,1) ->  | G33: =INDIRECT(CONCATENATE("'",G$1,"'!",G$4,(YEAR($A33)-1921)*12+MONTH($A33)+3+IF(ISNUMBER(FIND("PRV",G$6)),1,0)))*IF(AND(G$3>0,TRIM(G$9)="CFS"),Conversions!$C33,1) ->  | K33: 1943 | L33: =B265 -> 29.79614449 | M33: =B266 -> -288.5727844 | N33: =B267 -> -14.52462482 | O33: =B268 -> 144.1346283 | P33: =B269 -> -141.4662933 | Q33: =B270 -> 218.8609619 | R33: =B271 -> 76.40224457 | S33: =B272 -> 78.50915527 | T33: =B273 -> 94.15704346 | U33: =B274 -> 480.173645 | V33: =B275 -> 162.216095 | W33: =B276 -> 141.2660217 | Y33: 669.8582993 | Z33: 165.4346695 | AA33: 980.9522371 | AC33: -81.56811237 | AD33: 175.5562744 | AE33: -129.1666365 | AF33: -11.85628986 | AG33: 467.9294052 | AH33: 877.8128052 | AI33: -213.2111511 | AK33: 1943 | AL33: =C265 -> 31.64551353 | AM33: =C266 -> -288.9329834 | AN33: =C267 -> -30.50846481 | AO33: =C268 -> 118.4878616 | AP33: =C269 -> -140.7549896 | AQ33: =C270 -> 214.8121338 | AR33: =C271 -> 76.97472382 | AS33: =C272 -> 78.67208862 | AT33: =C273 -> 94.88957214 | AU33: =C274 -> 481.0218506 | AV33: =C275 -> 169.750885 | AW33: =C276 -> 148.7827759 | AY33: 666.0213165 | AZ33: 184.3329239 | BA33: 954.8409672 | BC33: -126.8964424 | BD33: 197.8631592 | BE33: -169.308073 | BF33: -52.7755928 | BG33: 465.3485184 | BH33: 894.4450836 | BI33: -198.2253418 | BK33: 1943 | BL33: =D265 -> 30.48230553 | BM33: =D266 -> -289.9296875 | BN33: =D267 -> -31.96757126 | BO33: =D268 -> 118.7034988 | BP33: =D269 -> -138.6811676 | BQ33: =D270 -> 210.7149963 | BR33: =D271 -> 77.05132294 | BS33: =D272 -> 78.75857544 | BT33: =D273 -> 94.98750305 | BU33: =D274 -> 481.1368713 | BV33: =D275 -> 170.5535583 | BW33: =D276 -> 148.46875 | BY33: 665.3263855 | BZ33: 181.3259811 | CA33: 950.2789555 | CC33: -131.1599312 | CD33: 198.4105682 | CE33: -172.7114544 | CF33: -51.94524002 | CG33: 461.5123978 | CH33: 895.1466827 | CI33: -198.355011 | CK33: 1943 | CL33: =E265 -> 15.0461483 | CM33: =E266 -> -302.5778198 | CN33: =E267 -> -51.75898361 | CO33: =E268 -> 151.8889771 | CP33: =E269 -> -105.5232468 | CQ33: =E270 -> 194.1044312 | CR33: =E271 -> 77.67635345 | CS33: =E272 -> 79.46289062 | CT33: =E273 -> 95.75938416 | CU33: =E274 -> 482.0513306 | CV33: =E275 -> 170.8932495 | CW33: =E276 -> 147.997406 | CY33: 720.140152 | CZ33: 169.7685776 | DA33: 955.0201206 | DC33: -113.866642 | DD33: 199.0393524 | DE33: -187.4016781 | DF33: -5.393253326 | DG33: 447.0030594 | DH33: 896.7013702 | DI33: -197.1817017 | DK33: 1943 | DL33: =F265 ->  | DM33: =F266 ->  | DN33: =F267 ->  | DO33: =F268 ->  | DP33: =F269 ->  | DQ33: =F270 ->  | DR33: =F271 ->  | DS33: =F272 ->  | DT33: =F273 ->  | DU33: =F274 ->  | DV33: =F275 ->  | DW33: =F276 ->  | EK33: 1943 | EL33: =G265 ->  | EM33: =G266 ->  | EN33: =G267 ->  | EO33: =G268 ->  | EP33: =G269 ->  | EQ33: =G270 ->  | ER33: =G271 ->  | ES33: =G272 ->  | ET33: =G273 ->  | EU33: =G274 ->  | EV33: =G275 ->  | EW33: =G276 -> 
A34: 1923-07-31 | B34: =INDIRECT(CONCATENATE("'",B$1,"'!",B$4,(YEAR($A34)-1921)*12+MONTH($A34)+3+IF(ISNUMBER(FIND("PRV",B$6)),1,0)))*IF(AND(B$3>0,TRIM(B$9)="CFS"),Conversions!$C34,1) -> 265.3327637 | C34: =INDIRECT(CONCATENATE("'",C$1,"'!",C$4,(YEAR($A34)-1921)*12+MONTH($A34)+3+IF(ISNUMBER(FIND("PRV",C$6)),1,0)))*IF(AND(C$3>0,TRIM(C$9)="CFS"),Conversions!$C34,1) -> 257.3059387 | D34: =INDIRECT(CONCATENATE("'",D$1,"'!",D$4,(YEAR($A34)-1921)*12+MONTH($A34)+3+IF(ISNUMBER(FIND("PRV",D$6)),1,0)))*IF(AND(D$3>0,TRIM(D$9)="CFS"),Conversions!$C34,1) -> 259.1853027 | E34: =INDIRECT(CONCATENATE("'",E$1,"'!",E$4,(YEAR($A34)-1921)*12+MONTH($A34)+3+IF(ISNUMBER(FIND("PRV",E$6)),1,0)))*IF(AND(E$3>0,TRIM(E$9)="CFS"),Conversions!$C34,1) -> 257.3047791 | F34: =INDIRECT(CONCATENATE("'",F$1,"'!",F$4,(YEAR($A34)-1921)*12+MONTH($A34)+3+IF(ISNUMBER(FIND("PRV",F$6)),1,0)))*IF(AND(F$3>0,TRIM(F$9)="CFS"),Conversions!$C34,1) ->  | G34: =INDIRECT(CONCATENATE("'",G$1,"'!",G$4,(YEAR($A34)-1921)*12+MONTH($A34)+3+IF(ISNUMBER(FIND("PRV",G$6)),1,0)))*IF(AND(G$3>0,TRIM(G$9)="CFS"),Conversions!$C34,1) ->  | K34: 1944 | L34: =B277 -> -127.9258423 | M34: =B278 -> -226.5513306 | N34: =B279 -> -229.9180298 | O34: =B280 -> -244.5717316 | P34: =B281 -> -257.1835632 | Q34: =B282 -> -215.0754089 | R34: =B283 -> -125.4189835 | S34: =B284 -> -20.98214722 | T34: =B285 -> 196.2335052 | U34: =B286 -> 280.5982361 | V34: =B287 -> 48.43448639 | W34: =B288 -> -203.6572571 | Y34: -1366.367447 | Z34: -1175.602478 | AA34: -1126.018066 | AC34: -1173.300064 | AD34: -297.1550064 | AE34: -828.9669342 | AF34: -731.6733246 | AG34: -165.2430344 | AH34: 321.6089706 | AI34: -640.4366302 | AK34: 1944 | AL34: =C277 -> -120.6705017 | AM34: =C278 -> -226.337616 | AN34: =C279 -> -229.6074677 | AO34: =C280 -> -244.7003632 | AP34: =C281 -> -259.2551575 | AQ34: =C282 -> -214.9876251 | AR34: =C283 -> -123.6752548 | AS34: =C284 -> -17.48406982 | AT34: =C285 -> 189.374527 | AU34: =C286 -> 258.646637 | AV34: =C287 -> -12.39123917 | AW34: =C288 -> -317.038147 | AY34: -1671.027004 | AZ34: -1451.132046 | BA34: -1318.126278 | BC34: -1174.888229 | BD34: -672.7811317 | BE34: -821.3159485 | BF34: -733.5629883 | BG34: -166.7724228 | BH34: 118.5917778 | BI34: -998.4151001 | BK34: 1944 | BL34: =D277 -> -120.6117401 | BM34: =D278 -> -226.2120209 | BN34: =D279 -> -229.5437622 | BO34: =D280 -> -244.7110748 | BP34: =D281 -> -259.2669983 | BQ34: =D282 -> -215.0055695 | BR34: =D283 -> -131.0254059 | BS34: =D284 -> -27.86795044 | BT34: =D285 -> 191.0903625 | BU34: =D286 -> 269.3722534 | BV34: =D287 -> -12.33383179 | BW34: =D288 -> -315.807251 | BY34: -1811.645523 | BZ34: -1648.437668 | CA34: -1321.922989 | CC34: -1174.739426 | CD34: -671.5031433 | CE34: -821.078598 | CF34: -733.5218353 | CG34: -182.8085632 | CH34: 132.3215332 | CI34: -997.0749512 | CK34: 1944 | CL34: =E277 -> -119.8513031 | CM34: =E278 -> -225.3278046 | CN34: =E279 -> -228.9915161 | CO34: =E280 -> -244.7168427 | CP34: =E281 -> -259.2890015 | CQ34: =E282 -> -215.0545044 | CR34: =E283 -> -129.0896301 | CS34: =E284 -> -29.84861565 | CT34: =E285 -> 177.0788574 | CU34: =E286 -> 262.387085 | CV34: =E287 -> -23.50152588 | CW34: =E288 -> -314.7085876 | CY34: -1612.464949 | CZ34: -1312.94301 | DA34: -1350.913389 | DC34: -1173.379669 | DD34: -580.108963 | DE34: -818.8874664 | DF34: -732.9973602 | DG34: -196.9138927 | DH34: 101.2558289 | DI34: -909.1506195 | DK34: 1944 | DL34: =F277 ->  | DM34: =F278 ->  | DN34: =F279 ->  | DO34: =F280 ->  | DP34: =F281 ->  | DQ34: =F282 ->  | DR34: =F283 ->  | DS34: =F284 ->  | DT34: =F285 ->  | DU34: =F286 ->  | DV34: =F287 ->  | DW34: =F288 ->  | EK34: 1944 | EL34: =G277 ->  | EM34: =G278 ->  | EN34: =G279 ->  | EO34: =G280 ->  | EP34: =G281 ->  | EQ34: =G282 ->  | ER34: =G283 ->  | ES34: =G284 ->  | ET34: =G285 ->  | EU34: =G286 ->  | EV34: =G287 ->  | EW34: =G288 -> 
A35: 1923-08-31 | B35: =INDIRECT(CONCATENATE("'",B$1,"'!",B$4,(YEAR($A35)-1921)*12+MONTH($A35)+3+IF(ISNUMBER(FIND("PRV",B$6)),1,0)))*IF(AND(B$3>0,TRIM(B$9)="CFS"),Conversions!$C35,1) -> 101.8436356 | C35: =INDIRECT(CONCATENATE("'",C$1,"'!",C$4,(YEAR($A35)-1921)*12+MONTH($A35)+3+IF(ISNUMBER(FIND("PRV",C$6)),1,0)))*IF(AND(C$3>0,TRIM(C$9)="CFS"),Conversions!$C35,1) -> 104.7096939 | D35: =INDIRECT(CONCATENATE("'",D$1,"'!",D$4,(YEAR($A35)-1921)*12+MONTH($A35)+3+IF(ISNUMBER(FIND("PRV",D$6)),1,0)))*IF(AND(D$3>0,TRIM(D$9)="CFS"),Conversions!$C35,1) -> 107.8670425 | E35: =INDIRECT(CONCATENATE("'",E$1,"'!",E$4,(YEAR($A35)-1921)*12+MONTH($A35)+3+IF(ISNUMBER(FIND("PRV",E$6)),1,0)))*IF(AND(E$3>0,TRIM(E$9)="CFS"),Conversions!$C35,1) -> 114.5652542 | F35: =INDIRECT(CONCATENATE("'",F$1,"'!",F$4,(YEAR($A35)-1921)*12+MONTH($A35)+3+IF(ISNUMBER(FIND("PRV",F$6)),1,0)))*IF(AND(F$3>0,TRIM(F$9)="CFS"),Conversions!$C35,1) ->  | G35: =INDIRECT(CONCATENATE("'",G$1,"'!",G$4,(YEAR($A35)-1921)*12+MONTH($A35)+3+IF(ISNUMBER(FIND("PRV",G$6)),1,0)))*IF(AND(G$3>0,TRIM(G$9)="CFS"),Conversions!$C35,1) ->  | K35: 1945 | L35: =B289 -> -141.9322357 | M35: =B290 -> -294.8471375 | N35: =B291 -> -387.96521 | O35: =B292 -> -160.1027985 | P35: =B293 -> -150.8875275 | Q35: =B294 -> -270.8621216 | R35: =B295 -> -94.36435699 | S35: =B296 -> 140.4357452 | T35: =B297 -> 111.6416397 | U35: =B298 -> 262.6963196 | V35: =B299 -> -10.44744873 | W35: =B300 -> -274.5447998 | Y35: -1056.803009 | Z35: -1403.33902 | AA35: -1271.179932 | AC35: -1264.664795 | AD35: -689.4225769 | AE35: -984.8473816 | AF35: -698.9555359 | AG35: -113.1490936 | AH35: 89.34571075 | AI35: -1037.919006 | AK35: 1945 | AL35: =C289 -> -343.3517456 | AM35: =C290 -> -338.0252075 | AN35: =C291 -> -248.1393585 | AO35: =C292 -> -149.0108795 | AP35: =C293 -> -135.0496826 | AQ35: =C294 -> -257.5155029 | AR35: =C295 -> -137.3509369 | AS35: =C296 -> 137.2497406 | AT35: =C297 -> 106.0205154 | AU35: =C298 -> 258.6625366 | AV35: =C299 -> -0.663818121 | AW35: =C300 -> -273.2632446 | AY35: -1126.280594 | AZ35: -1575.258331 | BA35: -1380.437584 | BC35: -1127.740631 | BD35: -675.381439 | BE35: -1078.527191 | BF35: -532.1999207 | BG35: -151.5961838 | BH35: 90.75598931 | BI35: -1033.771515 | BK35: 1945 | BL35: =D289 -> -343.3620605 | BM35: =D290 -> -337.9056396 | BN35: =D291 -> -384.8223572 | BO35: =D292 -> -166.1301422 | BP35: =D293 -> -174.6400757 | BQ35: =D294 -> -311.1259155 | BR35: =D295 -> -80.50004578 | BS35: =D296 -> 143.7221832 | BT35: =D297 -> 114.4940491 | BU35: =D298 -> 271.8517456 | BV35: =D299 -> 2.859802961 | BW35: =D300 -> -260.9771118 | BY35: -1085.96952 | BZ35: -1531.46569 | CA35: -1526.535568 | CC35: -1374.62413 | CD35: -644.3022454 | CE35: -1232.2202 | CF35: -725.5925751 | CG35: -133.409729 | CH35: 128.2284858 | CI35: -989.832489 | CK35: 1945 | CL35: =E289 -> -241.8988495 | CM35: =E290 -> -352.5431824 | CN35: =E291 -> -241.2801514 | CO35: =E292 -> -152.2929993 | CP35: =E293 -> -52.19090652 | CQ35: =E294 -> -331.1904907 | CR35: =E295 -> -81.23049164 | CS35: =E296 -> 142.1190948 | CT35: =E297 -> 93.48360443 | CU35: =E298 -> 277.0743103 | CV35: =E299 -> 10.26249313 | CW35: =E300 -> -252.0552826 | CY35: -701.5541458 | CZ35: -1240.860096 | DA35: -1181.742851 | DC35: -1129.49773 | DD35: -626.1156044 | DE35: -988.0151825 | DF35: -445.7640572 | DG35: -176.8182831 | DH35: 128.7651253 | DI35: -745.9616241 | DK35: 1945 | DL35: =F289 ->  | DM35: =F290 ->  | DN35: =F291 ->  | DO35: =F292 ->  | DP35: =F293 ->  | DQ35: =F294 ->  | DR35: =F295 ->  | DS35: =F296 ->  | DT35: =F297 ->  | DU35: =F298 ->  | DV35: =F299 ->  | DW35: =F300 ->  | EK35: 1945 | EL35: =G289 ->  | EM35: =G290 ->  | EN35: =G291 ->  | EO35: =G292 ->  | EP35: =G293 ->  | EQ35: =G294 ->  | ER35: =G295 ->  | ES35: =G296 ->  | ET35: =G297 ->  | EU35: =G298 ->  | EV35: =G299 ->  | EW35: =G300 -> 
A36: 1923-09-30 | B36: =INDIRECT(CONCATENATE("'",B$1,"'!",B$4,(YEAR($A36)-1921)*12+MONTH($A36)+3+IF(ISNUMBER(FIND("PRV",B$6)),1,0)))*IF(AND(B$3>0,TRIM(B$9)="CFS"),Conversions!$C36,1) -> -290.1462097 | C36: =INDIRECT(CONCATENATE("'",C$1,"'!",C$4,(YEAR($A36)-1921)*12+MONTH($A36)+3+IF(ISNUMBER(FIND("PRV",C$6)),1,0)))*IF(AND(C$3>0,TRIM(C$9)="CFS"),Conversions!$C36,1) -> -288.3575134 | D36: =INDIRECT(CONCATENATE("'",D$1,"'!",D$4,(YEAR($A36)-1921)*12+MONTH($A36)+3+IF(ISNUMBER(FIND("PRV",D$6)),1,0)))*IF(AND(D$3>0,TRIM(D$9)="CFS"),Conversions!$C36,1) -> -285.2821045 | E36: =INDIRECT(CONCATENATE("'",E$1,"'!",E$4,(YEAR($A36)-1921)*12+MONTH($A36)+3+IF(ISNUMBER(FIND("PRV",E$6)),1,0)))*IF(AND(E$3>0,TRIM(E$9)="CFS"),Conversions!$C36,1) -> -258.2431641 | F36: =INDIRECT(CONCATENATE("'",F$1,"'!",F$4,(YEAR($A36)-1921)*12+MONTH($A36)+3+IF(ISNUMBER(FIND("PRV",F$6)),1,0)))*IF(AND(F$3>0,TRIM(F$9)="CFS"),Conversions!$C36,1) ->  | G36: =INDIRECT(CONCATENATE("'",G$1,"'!",G$4,(YEAR($A36)-1921)*12+MONTH($A36)+3+IF(ISNUMBER(FIND("PRV",G$6)),1,0)))*IF(AND(G$3>0,TRIM(G$9)="CFS"),Conversions!$C36,1) ->  | K36: 1946 | L36: =B301 -> -404.4303284 | M36: =B302 -> -358.9438782 | N36: =B303 -> 153.006546 | O36: =B304 -> -226.6828918 | P36: =B305 -> -430.8434448 | Q36: =B306 -> -272.9874878 | R36: =B307 -> -2.982613087 | S36: =B308 -> 174.2738037 | T36: =B309 -> 232.7205505 | U36: =B310 -> 350.4531555 | V36: =B311 -> 133.1650085 | W36: =B312 -> -171.0197906 | Y36: -1148.236168 | Z36: -762.5921865 | AA36: -824.2713704 | AC36: -1136.451157 | AD36: -340.9343414 | AE36: -837.0505524 | AF36: -504.5197906 | AG36: 131.0242534 | AH36: 545.318924 | AI36: -799.222702 | AK36: 1946 | AL36: =C301 -> -401.4543762 | AM36: =C302 -> -359.053894 | AN36: =C303 -> 85.14894867 | AO36: =C304 -> -304.6978149 | AP36: =C305 -> -428.3404846 | AQ36: =C306 -> -270.3357849 | AR36: =C307 -> -5.647408009 | AS36: =C308 -> 172.0149231 | AT36: =C309 -> 223.1180115 | AU36: =C310 -> 343.4055786 | AV36: =C311 -> 122.566803 | AW36: =C312 -> -169.1482849 | AY36: -1285.120766 | AZ36: -792.5901036 | BA36: -992.4237828 | BC36: -1277.27903 | BD36: -355.658783 | BE36: -980.0571365 | BF36: -647.8893509 | BG36: 119.1497416 | BH36: 519.9421082 | BI36: -813.160553 | BK36: 1946 | BL36: =D301 -> -386.1849365 | BM36: =D302 -> -342.6704407 | BN36: =D303 -> 103.3313675 | BO36: =D304 -> -333.0365906 | BP36: =D305 -> -453.2297974 | BQ36: =D306 -> -279.4013062 | BR36: =D307 -> -5.14487505 | BS36: =D308 -> 172.4053955 | BT36: =D309 -> 216.7385712 | BU36: =D310 -> 346.2093506 | BV36: =D311 -> 127.8854294 | BW36: =D312 -> -168.6930237 | BY36: -1353.277344 | BZ36: -811.4585423 | CA36: -1001.790856 | CC36: -1305.006767 | CD36: -351.1783829 | CE36: -958.5606003 | CF36: -682.9350204 | CG36: 104.5977855 | CH36: 522.1403275 | CI36: -826.4125671 | CK36: 1946 | CL36: =E301 -> -384.3228149 | CM36: =E302 -> -109.5835266 | CN36: =E303 -> 138.3728638 | CO36: =E304 -> -340.5066528 | CP36: =E305 -> -403.2832031 | CQ36: =E306 -> -258.7675171 | CR36: =E307 -> 14.18270111 | CS36: =E308 -> 197.3529968 | CT36: =E309 -> 252.3982544 | CU36: =E310 -> 387.4441528 | CV36: =E311 -> 173.3009949 | CW36: =E312 -> -131.9190216 | CY36: -1065.84539 | CZ36: -509.0699844 | DA36: -465.3307724 | DC36: -973.7680359 | DD36: -236.9102631 | DE36: -696.0401306 | DF36: -605.4169922 | DG36: 205.1664352 | DH36: 681.2243805 | DI36: -718.2366791 | DK36: 1946 | DL36: =F301 ->  | DM36: =F302 ->  | DN36: =F303 ->  | DO36: =F304 ->  | DP36: =F305 ->  | DQ36: =F306 ->  | DR36: =F307 ->  | DS36: =F308 ->  | DT36: =F309 ->  | DU36: =F310 ->  | DV36: =F311 ->  | DW36: =F312 ->  | EK36: 1946 | EL36: =G301 ->  | EM36: =G302 ->  | EN36: =G303 ->  | EO36: =G304 ->  | EP36: =G305 ->  | EQ36: =G306 ->  | ER36: =G307 ->  | ES36: =G308 ->  | ET36: =G309 ->  | EU36: =G310 ->  | EV36: =G311 ->  | EW36: =G312 -> 
A37: 1923-10-31 | B37: =INDIRECT(CONCATENATE("'",B$1,"'!",B$4,(YEAR($A37)-1921)*12+MONTH($A37)+3+IF(ISNUMBER(FIND("PRV",B$6)),1,0)))*IF(AND(B$3>0,TRIM(B$9)="CFS"),Conversions!$C37,1) -> -282.146637 | C37: =INDIRECT(CONCATENATE("'",C$1,"'!",C$4,(YEAR($A37)-1921)*12+MONTH($A37)+3+IF(ISNUMBER(FIND("PRV",C$6)),1,0)))*IF(AND(C$3>0,TRIM(C$9)="CFS"),Conversions!$C37,1) -> -374.7004395 | D37: =INDIRECT(CONCATENATE("'",D$1,"'!",D$4,(YEAR($A37)-1921)*12+MONTH($A37)+3+IF(ISNUMBER(FIND("PRV",D$6)),1,0)))*IF(AND(D$3>0,TRIM(D$9)="CFS"),Conversions!$C37,1) -> -372.5978088 | E37: =INDIRECT(CONCATENATE("'",E$1,"'!",E$4,(YEAR($A37)-1921)*12+MONTH($A37)+3+IF(ISNUMBER(FIND("PRV",E$6)),1,0)))*IF(AND(E$3>0,TRIM(E$9)="CFS"),Conversions!$C37,1) -> -373.6408081 | F37: =INDIRECT(CONCATENATE("'",F$1,"'!",F$4,(YEAR($A37)-1921)*12+MONTH($A37)+3+IF(ISNUMBER(FIND("PRV",F$6)),1,0)))*IF(AND(F$3>0,TRIM(F$9)="CFS"),Conversions!$C37,1) ->  | G37: =INDIRECT(CONCATENATE("'",G$1,"'!",G$4,(YEAR($A37)-1921)*12+MONTH($A37)+3+IF(ISNUMBER(FIND("PRV",G$6)),1,0)))*IF(AND(G$3>0,TRIM(G$9)="CFS"),Conversions!$C37,1) ->  | K37: 1947 | L37: =B313 -> -303.0795593 | M37: =B314 -> -325.1233521 | N37: =B315 -> -306.1295471 | O37: =B316 -> -152.9756165 | P37: =B317 -> -118.9067383 | Q37: =B318 -> -89.6671524 | R37: =B319 -> -25.67435455 | S37: =B320 -> 263.7676392 | T37: =B321 -> 231.3131104 | U37: =B322 -> 325.1808472 | V37: =B323 -> 165.100647 | W37: =B324 -> -60.19723511 | Y37: -170.2031555 | Z37: 57.85102749 | AA37: -396.3913116 | AC37: -992.8024063 | AD37: -264.8477783 | AE37: -1087.308075 | AF37: -578.0119019 | AG37: 379.7392426 | AH37: 661.3973694 | AI37: -638.8763123 | AK37: 1947 | AL37: =C313 -> -309.077301 | AM37: =C314 -> -334.934967 | AN37: =C315 -> -324.0440369 | AO37: =C316 -> -135.9039307 | AP37: =C317 -> -104.6037064 | AQ37: =C318 -> -80.75467682 | AR37: =C319 -> -40.36127853 | AS37: =C320 -> 242.9685211 | AT37: =C321 -> 207.2474823 | AU37: =C322 -> 137.1201324 | AV37: =C323 -> -52.12585831 | AW37: =C324 -> -241.4273529 | AY37: -1044.468338 | AZ37: -866.0998478 | BA37: -1035.896973 | BC37: -980.2413177 | BD37: -845.0173836 | BE37: -1103.960236 | BF37: -564.5516739 | BG37: 329.1000481 | BH37: 50.81440353 | BI37: -1057.831924 | BK37: 1947 | BL37: =D313 -> -310.3707886 | BM37: =D314 -> -347.3487549 | BN37: =D315 -> -319.2909546 | BO37: =D316 -> -139.4024353 | BP37: =D317 -> -105.0451508 | BQ37: =D318 -> -82.71229553 | BR37: =D319 -> -38.95293427 | BS37: =D320 -> 245.7205811 | BT37: =D321 -> 206.9699707 | BU37: =D322 -> 136.031189 | BV37: =D323 -> -53.35231781 | BW37: =D324 -> -241.5153503 | BY37: -1095.460907 | BZ37: -911.5977135 | CA37: -1049.269241 | CC37: -993.7995911 | CD37: -852.3469772 | CE37: -1116.412933 | CF37: -563.7385406 | CG37: 331.025322 | CH37: 48.13349152 | CI37: -1105.953735 | CK37: 1947 | CL37: =E313 -> -278.2922363 | CM37: =E314 -> -308.0254211 | CN37: =E315 -> -369.7304382 | CO37: =E316 -> -110.3228149 | CP37: =E317 -> -76.69163513 | CQ37: =E318 -> -67.88832092 | CR37: =E319 -> -66.70188904 | CS37: =E320 -> 202.8489685 | CT37: =E321 -> 196.6943207 | CU37: =E322 -> 182.3605957 | CV37: =E323 -> -89.79712677 | CW37: =E324 -> -244.5419464 | CY37: -1116.646355 | CZ37: -1041.483364 | DA37: -1030.087944 | DC37: -932.6586304 | DD37: -864.291832 | DE37: -1066.370911 | DF37: -556.7448883 | DG37: 264.9530792 | DH37: 44.7158432 | DI37: -1095.290115 | DK37: 1947 | DL37: =F313 ->  | DM37: =F314 ->  | DN37: =F315 ->  | DO37: =F316 ->  | DP37: =F317 ->  | DQ37: =F318 ->  | DR37: =F319 ->  | DS37: =F320 ->  | DT37: =F321 ->  | DU37: =F322 ->  | DV37: =F323 ->  | DW37: =F324 ->  | EK37: 1947 | EL37: =G313 ->  | EM37: =G314 ->  | EN37: =G315 ->  | EO37: =G316 ->  | EP37: =G317 ->  | EQ37: =G318 ->  | ER37: =G319 ->  | ES37: =G320 ->  | ET37: =G321 ->  | EU37: =G322 ->  | EV37: =G323 ->  | EW37: =G324 -> 
A38: 1923-11-30 | B38: =INDIRECT(CONCATENATE("'",B$1,"'!",B$4,(YEAR($A38)-1921)*12+MONTH($A38)+3+IF(ISNUMBER(FIND("PRV",B$6)),1,0)))*IF(AND(B$3>0,TRIM(B$9)="CFS"),Conversions!$C38,1) -> -211.0098572 | C38: =INDIRECT(CONCATENATE("'",C$1,"'!",C$4,(YEAR($A38)-1921)*12+MONTH($A38)+3+IF(ISNUMBER(FIND("PRV",C$6)),1,0)))*IF(AND(C$3>0,TRIM(C$9)="CFS"),Conversions!$C38,1) -> -355.5054321 | D38: =INDIRECT(CONCATENATE("'",D$1,"'!",D$4,(YEAR($A38)-1921)*12+MONTH($A38)+3+IF(ISNUMBER(FIND("PRV",D$6)),1,0)))*IF(AND(D$3>0,TRIM(D$9)="CFS"),Conversions!$C38,1) -> -351.8039551 | E38: =INDIRECT(CONCATENATE("'",E$1,"'!",E$4,(YEAR($A38)-1921)*12+MONTH($A38)+3+IF(ISNUMBER(FIND("PRV",E$6)),1,0)))*IF(AND(E$3>0,TRIM(E$9)="CFS"),Conversions!$C38,1) -> -343.1994019 | F38: =INDIRECT(CONCATENATE("'",F$1,"'!",F$4,(YEAR($A38)-1921)*12+MONTH($A38)+3+IF(ISNUMBER(FIND("PRV",F$6)),1,0)))*IF(AND(F$3>0,TRIM(F$9)="CFS"),Conversions!$C38,1) ->  | G38: =INDIRECT(CONCATENATE("'",G$1,"'!",G$4,(YEAR($A38)-1921)*12+MONTH($A38)+3+IF(ISNUMBER(FIND("PRV",G$6)),1,0)))*IF(AND(G$3>0,TRIM(G$9)="CFS"),Conversions!$C38,1) ->  | K38: 1948 | L38: =B325 -> -369.7511902 | M38: =B326 -> -208.927887 | N38: =B327 -> -129.4652252 | O38: =B328 -> -32.91022491 | P38: =B329 -> -10.91794682 | Q38: =B330 -> -36.90078354 | R38: =B331 -> 121.424324 | S38: =B332 -> 189.9398956 | T38: =B333 -> 7.8387537 | U38: =B334 -> 106.8708496 | V38: =B335 -> 1.486727238 | W38: =B336 -> -349.3512878 | Y38: -1232.469766 | Z38: -1292.612137 | AA38: -710.6639953 | AC38: -419.1220675 | AD38: -770.1025062 | AE38: -741.0545273 | AF38: -173.2933969 | AG38: 282.3021898 | AH38: -233.1549573 | AI38: -1104.016632 | AK38: 1948 | AL38: =C325 -> -551.4641724 | AM38: =C326 -> -264.9403992 | AN38: =C327 -> -160.2230988 | AO38: =C328 -> -41.97447586 | AP38: =C329 -> -20.16467094 | AQ38: =C330 -> -36.16841507 | AR38: =C331 -> 128.9743195 | AS38: =C332 -> 196.226944 | AT38: =C333 -> 14.37284184 | AU38: =C334 -> 114.1841583 | AV38: =C335 -> 11.28636169 | AW38: =C336 -> -315.9021606 | AY38: -1202.257871 | AZ38: -1257.199065 | BA38: -925.7927675 | BC38: -523.4710598 | BD38: -779.235611 | BE38: -1018.602146 | BF38: -222.3622456 | BG38: 303.4056902 | BH38: -176.0587988 | BI38: -1113.088013 | BK38: 1948 | BL38: =D325 -> -557.4793091 | BM38: =D326 -> -306.9590759 | BN38: =D327 -> -158.7637787 | BO38: =D328 -> -41.6033783 | BP38: =D329 -> -18.98101425 | BQ38: =D330 -> -35.69094849 | BR38: =D331 -> 135.5627136 | BS38: =D332 -> 195.7084198 | BT38: =D333 -> 19.3622818 | BU38: =D334 -> 112.4198227 | BV38: =D335 -> 10.06424236 | BW38: =D336 -> -315.2936401 | BY38: -1194.779534 | BZ38: -1251.005109 | CA38: -961.6536646 | CC38: -561.9981956 | CD38: -782.0785799 | CE38: -1064.805542 | CF38: -219.3481712 | CG38: 314.9424667 | CH38: -173.4472933 | CI38: -1115.221497 | CK38: 1948 | CL38: =E325 -> -529.9527588 | CM38: =E326 -> -320.7954102 | CN38: =E327 -> -191.8583374 | CO38: =E328 -> -72.28053284 | CP38: =E329 -> -39.57092667 | CQ38: =E330 -> -37.86798096 | CR38: =E331 -> 133.8180847 | CS38: =E332 -> 204.9879608 | CT38: =E333 -> 35.40729523 | CU38: =E334 -> 122.9114609 | CV38: =E335 -> 40.2760849 | CW38: =E336 -> -265.2690735 | CY38: -1223.189281 | CZ38: -1242.385002 | DA38: -920.1941338 | DC38: -662.373188 | DD38: -639.1897659 | DE38: -1114.887039 | DF38: -303.7097969 | DG38: 336.3453598 | DH38: -66.67423248 | DI38: -1156.490967 | DK38: 1948 | DL38: =F325 ->  | DM38: =F326 ->  | DN38: =F327 ->  | DO38: =F328 ->  | DP38: =F329 ->  | DQ38: =F330 ->  | DR38: =F331 ->  | DS38: =F332 ->  | DT38: =F333 ->  | DU38: =F334 ->  | DV38: =F335 ->  | DW38: =F336 ->  | EK38: 1948 | EL38: =G325 ->  | EM38: =G326 ->  | EN38: =G327 ->  | EO38: =G328 ->  | EP38: =G329 ->  | EQ38: =G330 ->  | ER38: =G331 ->  | ES38: =G332 ->  | ET38: =G333 ->  | EU38: =G334 ->  | EV38: =G335 ->  | EW38: =G336 -> 
A39: 1923-12-31 | B39: =INDIRECT(CONCATENATE("'",B$1,"'!",B$4,(YEAR($A39)-1921)*12+MONTH($A39)+3+IF(ISNUMBER(FIND("PRV",B$6)),1,0)))*IF(AND(B$3>0,TRIM(B$9)="CFS"),Conversions!$C39,1) -> -203.725647 | C39: =INDIRECT(CONCATENATE("'",C$1,"'!",C$4,(YEAR($A39)-1921)*12+MONTH($A39)+3+IF(ISNUMBER(FIND("PRV",C$6)),1,0)))*IF(AND(C$3>0,TRIM(C$9)="CFS"),Conversions!$C39,1) -> -198.3724976 | D39: =INDIRECT(CONCATENATE("'",D$1,"'!",D$4,(YEAR($A39)-1921)*12+MONTH($A39)+3+IF(ISNUMBER(FIND("PRV",D$6)),1,0)))*IF(AND(D$3>0,TRIM(D$9)="CFS"),Conversions!$C39,1) -> -197.4200134 | E39: =INDIRECT(CONCATENATE("'",E$1,"'!",E$4,(YEAR($A39)-1921)*12+MONTH($A39)+3+IF(ISNUMBER(FIND("PRV",E$6)),1,0)))*IF(AND(E$3>0,TRIM(E$9)="CFS"),Conversions!$C39,1) -> -198.8250732 | F39: =INDIRECT(CONCATENATE("'",F$1,"'!",F$4,(YEAR($A39)-1921)*12+MONTH($A39)+3+IF(ISNUMBER(FIND("PRV",F$6)),1,0)))*IF(AND(F$3>0,TRIM(F$9)="CFS"),Conversions!$C39,1) ->  | G39: =INDIRECT(CONCATENATE("'",G$1,"'!",G$4,(YEAR($A39)-1921)*12+MONTH($A39)+3+IF(ISNUMBER(FIND("PRV",G$6)),1,0)))*IF(AND(G$3>0,TRIM(G$9)="CFS"),Conversions!$C39,1) ->  | K39: 1949 | L39: =B337 -> -422.2379456 | M39: =B338 -> -332.4273987 | N39: =B339 -> -475.284729 | O39: =B340 -> -10.24652863 | P39: =B341 -> -93.72401428 | Q39: =B342 -> 134.5484772 | R39: =B343 -> 67.35066986 | S39: =B344 -> 306.0503235 | T39: =B345 -> 369.7487793 | U39: =B346 -> 469.1918945 | V39: =B347 -> 260.1180115 | W39: =B348 -> 28.41638756 | Y39: 1454.914795 | Z39: 1523.112456 | AA39: 301.5039272 | AC39: -777.1341934 | AD39: 317.4120274 | AE39: -1240.196602 | AF39: -579.2552719 | AG39: 877.6982498 | AH39: 1127.475073 | AI39: 30.31903839 | AK39: 1949 | AL39: =C337 -> -474.619812 | AM39: =C338 -> -322.56604 | AN39: =C339 -> -455.9069214 | AO39: =C340 -> -25.18386459 | AP39: =C341 -> -91.89647675 | AQ39: =C342 -> 71.51933289 | AR39: =C343 -> 73.43423462 | AS39: =C344 -> 320.5628967 | AT39: =C345 -> 359.6053467 | AU39: =C346 -> 236.8873291 | AV39: =C347 -> 30.24125671 | AW39: =C348 -> -70.63877869 | AY39: 468.2699471 | AZ39: 538.7269011 | BA39: -348.5614967 | BC39: -824.0339699 | BD39: -211.0302277 | BE39: -1278.276638 | BF39: -572.9872627 | BG39: 825.1218109 | BH39: 556.0951538 | BI39: -436.1219025 | BK39: 1949 | BL39: =D337 -> -476.8491821 | BM39: =D338 -> -323.0786743 | BN39: =D339 -> -456.400177 | BO39: =D340 -> -24.90403748 | BP39: =D341 -> -91.90592957 | BQ39: =D342 -> 73.72375488 | BR39: =D343 -> 73.46430206 | BS39: =D344 -> 314.9147949 | BT39: =D345 -> 360.0078125 | BU39: =D346 -> 235.9822388 | BV39: =D347 -> 29.09910774 | BW39: =D348 -> -80.90592957 | BY39: 598.122694 | BZ39: 670.4608965 | CA39: -366.8519192 | CC39: -822.5650635 | CD39: -253.2055187 | CE39: -1281.232071 | CF39: -573.210144 | CG39: 822.1106644 | CH39: 544.1832294 | CI39: -301.2354851 | CK39: 1949 | CL39: =E337 -> -414.1967773 | CM39: =E338 -> -477.025116 | CN39: =E339 -> -454.3797607 | CO39: =E340 -> -35.20308685 | CP39: =E341 -> -95.84409332 | CQ39: =E342 -> 64.10346985 | CR39: =E343 -> 64.90219116 | CS39: =E344 -> 258.0823669 | CT39: =E345 -> 340.5795898 | CU39: =E346 -> 194.3431091 | CV39: =E347 -> 139.2815399 | CW39: =E348 -> 10.67344093 | CY39: 799.9711285 | CZ39: 880.1354418 | DA39: -404.6831264 | DC39: -998.348587 | DD39: 154.7068081 | DE39: -1380.804741 | DF39: -585.4269409 | DG39: 727.6676178 | DH39: 684.8776798 | DI39: -36.63877296 | DK39: 1949 | DL39: =F337 ->  | DM39: =F338 ->  | DN39: =F339 ->  | DO39: =F340 ->  | DP39: =F341 ->  | DQ39: =F342 ->  | DR39: =F343 ->  | DS39: =F344 ->  | DT39: =F345 ->  | DU39: =F346 ->  | DV39: =F347 ->  | DW39: =F348 ->  | EK39: 1949 | EL39: =G337 ->  | EM39: =G338 ->  | EN39: =G339 ->  | EO39: =G340 ->  | EP39: =G341 ->  | EQ39: =G342 ->  | ER39: =G343 ->  | ES39: =G344 ->  | ET39: =G345 ->  | EU39: =G346 ->  | EV39: =G347 ->  | EW39: =G348 -> 
A40: 1924-01-31 | B40: =INDIRECT(CONCATENATE("'",B$1,"'!",B$4,(YEAR($A40)-1921)*12+MONTH($A40)+3+IF(ISNUMBER(FIND("PRV",B$6)),1,0)))*IF(AND(B$3>0,TRIM(B$9)="CFS"),Conversions!$C40,1) -> -73.90566254 | C40: =INDIRECT(CONCATENATE("'",C$1,"'!",C$4,(YEAR($A40)-1921)*12+MONTH($A40)+3+IF(ISNUMBER(FIND("PRV",C$6)),1,0)))*IF(AND(C$3>0,TRIM(C$9)="CFS"),Conversions!$C40,1) -> -72.9683075 | D40: =INDIRECT(CONCATENATE("'",D$1,"'!",D$4,(YEAR($A40)-1921)*12+MONTH($A40)+3+IF(ISNUMBER(FIND("PRV",D$6)),1,0)))*IF(AND(D$3>0,TRIM(D$9)="CFS"),Conversions!$C40,1) -> -74.40520477 | E40: =INDIRECT(CONCATENATE("'",E$1,"'!",E$4,(YEAR($A40)-1921)*12+MONTH($A40)+3+IF(ISNUMBER(FIND("PRV",E$6)),1,0)))*IF(AND(E$3>0,TRIM(E$9)="CFS"),Conversions!$C40,1) -> -89.94843292 | F40: =INDIRECT(CONCATENATE("'",F$1,"'!",F$4,(YEAR($A40)-1921)*12+MONTH($A40)+3+IF(ISNUMBER(FIND("PRV",F$6)),1,0)))*IF(AND(F$3>0,TRIM(F$9)="CFS"),Conversions!$C40,1) ->  | G40: =INDIRECT(CONCATENATE("'",G$1,"'!",G$4,(YEAR($A40)-1921)*12+MONTH($A40)+3+IF(ISNUMBER(FIND("PRV",G$6)),1,0)))*IF(AND(G$3>0,TRIM(G$9)="CFS"),Conversions!$C40,1) ->  | K40: 1950 | L40: =B349 -> 28.87762833 | M40: =B350 -> -26.97497749 | N40: =B351 -> -78.44185638 | O40: =B352 -> -7.952412605 | P40: =B353 -> -27.8204689 | Q40: =B354 -> -104.0634995 | R40: =B355 -> -39.01678848 | S40: =B356 -> 206.7117615 | T40: =B357 -> 87.52947235 | U40: =B358 -> 275.7327271 | V40: =B359 -> 43.99302673 | W40: =B360 -> -270.1907043 | Y40: -412.518539 | Z40: -126.3468461 | AA40: 88.38390827 | AC40: -245.2532148 | AD40: -604.3993988 | AE40: -84.49161816 | AF40: -114.2147379 | AG40: 151.1609459 | AH40: 137.0645218 | AI40: -844.9417877 | AK40: 1950 | AL40: =C349 -> -170.6327057 | AM40: =C350 -> -194.8504181 | AN40: =C351 -> -70.77820587 | AO40: =C352 -> -6.747654915 | AP40: =C353 -> -39.87573242 | AQ40: =C354 -> -102.4345932 | AR40: =C355 -> -37.15485382 | AS40: =C356 -> 208.3473663 | AT40: =C357 -> 89.33127594 | AU40: =C358 -> 271.1617126 | AV40: =C359 -> 47.01607895 | AW40: =C360 -> -268.0138245 | AY40: -505.7132044 | AZ40: -302.9533882 | BA40: -274.6315546 | BC40: -414.6866045 | BD40: -621.9434242 | BE40: -443.0089846 | BF40: -117.4015932 | BG40: 158.0891953 | BH40: 139.4952431 | BI40: -881.9992065 | BK40: 1950 | BL40: =D349 -> -201.3986969 | BM40: =D350 -> -18.93085861 | BN40: =D351 -> -71.02386475 | BO40: =D352 -> -5.062260628 | BP40: =D353 -> -39.40950394 | BQ40: =D354 -> -102.5158997 | BR40: =D355 -> -37.3649559 | BS40: =D356 -> 208.3312683 | BT40: =D357 -> 89.49068451 | BU40: =D358 -> 272.6603699 | BV40: =D359 -> 46.84859085 | BW40: =D360 -> -268.2603455 | BY40: -503.2402658 | BZ40: -311.5911636 | CA40: -126.6354723 | CC40: -236.9423876 | CD40: -620.3075371 | CE40: -296.4156809 | CF40: -115.4956293 | CG40: 157.9410973 | CH40: 140.7392998 | CI40: -880.2353363 | CK40: 1950 | CL40: =E349 -> 4.75182724 | CM40: =E350 -> -52.06404114 | CN40: =E351 -> -93.63518524 | CO40: =E352 -> -11.96839619 | CP40: =E353 -> -38.91447067 | CQ40: =E354 -> -100.1598969 | CR40: =E355 -> -92.42734528 | CS40: =E356 -> 128.8785095 | CT40: =E357 -> 32.00646973 | CU40: =E358 -> 293.2536316 | CV40: =E359 -> 60.58248138 | CW40: =E360 -> -268.3091125 | CY40: -543.3765726 | CZ40: -259.3346634 | DA40: -138.0055285 | DC40: -296.7419901 | DD40: -462.2294388 | DE40: -152.9157953 | DF40: -144.5180521 | DG40: -31.70226288 | DH40: 117.5334702 | DI40: -701.3493195 | DK40: 1950 | DL40: =F349 ->  | DM40: =F350 ->  | DN40: =F351 ->  | DO40: =F352 ->  | DP40: =F353 ->  | DQ40: =F354 ->  | DR40: =F355 ->  | DS40: =F356 ->  | DT40: =F357 ->  | DU40: =F358 ->  | DV40: =F359 ->  | DW40: =F360 ->  | EK40: 1950 | EL40: =G349 ->  | EM40: =G350 ->  | EN40: =G351 ->  | EO40: =G352 ->  | EP40: =G353 ->  | EQ40: =G354 ->  | ER40: =G355 ->  | ES40: =G356 ->  | ET40: =G357 ->  | EU40: =G358 ->  | EV40: =G359 ->  | EW40: =G360 -> 
A41: 1924-02-29 | B41: =INDIRECT(CONCATENATE("'",B$1,"'!",B$4,(YEAR($A41)-1921)*12+MONTH($A41)+3+IF(ISNUMBER(FIND("PRV",B$6)),1,0)))*IF(AND(B$3>0,TRIM(B$9)="CFS"),Conversions!$C41,1) -> -98.7730484 | C41: =INDIRECT(CONCATENATE("'",C$1,"'!",C$4,(YEAR($A41)-1921)*12+MONTH($A41)+3+IF(ISNUMBER(FIND("PRV",C$6)),1,0)))*IF(AND(C$3>0,TRIM(C$9)="CFS"),Conversions!$C41,1) -> -97.91085052 | D41: =INDIRECT(CONCATENATE("'",D$1,"'!",D$4,(YEAR($A41)-1921)*12+MONTH($A41)+3+IF(ISNUMBER(FIND("PRV",D$6)),1,0)))*IF(AND(D$3>0,TRIM(D$9)="CFS"),Conversions!$C41,1) -> -99.245224 | E41: =INDIRECT(CONCATENATE("'",E$1,"'!",E$4,(YEAR($A41)-1921)*12+MONTH($A41)+3+IF(ISNUMBER(FIND("PRV",E$6)),1,0)))*IF(AND(E$3>0,TRIM(E$9)="CFS"),Conversions!$C41,1) -> -113.3814468 | F41: =INDIRECT(CONCATENATE("'",F$1,"'!",F$4,(YEAR($A41)-1921)*12+MONTH($A41)+3+IF(ISNUMBER(FIND("PRV",F$6)),1,0)))*IF(AND(F$3>0,TRIM(F$9)="CFS"),Conversions!$C41,1) ->  | G41: =INDIRECT(CONCATENATE("'",G$1,"'!",G$4,(YEAR($A41)-1921)*12+MONTH($A41)+3+IF(ISNUMBER(FIND("PRV",G$6)),1,0)))*IF(AND(G$3>0,TRIM(G$9)="CFS"),Conversions!$C41,1) ->  | K41: 1951 | L41: =B361 -> -378.2017212 | M41: =B362 -> -196.5493622 | N41: =B363 -> -2.690569401 | O41: =B364 -> -98.2370224 | P41: =B365 -> 348.6358337 | Q41: =B366 -> -139.2388153 | R41: =B367 -> 42.84064865 | S41: =B368 -> 188.8557892 | T41: =B369 -> 199.7479248 | U41: =B370 -> 508.2634277 | V41: =B371 -> 270.9751282 | W41: =B372 -> 90.16962433 | Y41: 1064.433746 | Z41: 515.4991455 | AA41: 834.5708861 | AC41: -88.07993555 | AD41: 265.2494965 | AE41: -675.6786752 | AF41: 247.7082419 | AG41: 292.2055473 | AH41: 1069.156105 | AI41: -315.7095184 | AK41: 1951 | AL41: =C361 -> -400.9456787 | AM41: =C362 -> -213.0397034 | AN41: =C363 -> -53.35759735 | AO41: =C364 -> -164.6633759 | AP41: =C365 -> 320.7998047 | AQ41: =C366 -> -169.931839 | AR41: =C367 -> 42.9847641 | AS41: =C368 -> 188.8542633 | AT41: =C369 -> 204.8349609 | AU41: =C370 -> 507.8053894 | AV41: =C371 -> 277.4585266 | AW41: =C372 -> 96.41255188 | AY41: 882.8983307 | AZ41: 253.5563202 | BA41: 637.2120667 | BC41: -280.1927109 | BD41: 284.0111237 | BE41: -832.0063553 | BF41: 102.7788315 | BG41: 266.7421494 | BH41: 1086.511429 | BI41: -303.608017 | BK41: 1951 | BL41: =D361 -> -398.8957825 | BM41: =D362 -> -213.0792084 | BN41: =D363 -> -55.98322296 | BO41: =D364 -> -164.0631409 | BP41: =D365 -> 311.2404785 | BQ41: =D366 -> -169.8803406 | BR41: =D367 -> 42.98250198 | BS41: =D368 -> 188.853714 | BT41: =D369 -> 191.8589935 | BU41: =D370 -> 507.4024963 | BV41: =D371 -> 278.5245667 | BW41: =D372 -> 97.32382965 | BY41: 885.3482857 | BZ41: 308.1120872 | CA41: 616.2848854 | CC41: -291.7654343 | CD41: 286.0371323 | CE41: -832.0213547 | CF41: 91.19411469 | CG41: 253.8148689 | CH41: 1075.109886 | CI41: -300.9110794 | CK41: 1951 | CL41: =E361 -> -254.5028076 | CM41: =E362 -> -178.5373993 | CN41: =E363 -> -113.2782364 | CO41: =E364 -> -142.3519135 | CP41: =E365 -> 375.5109558 | CQ41: =E366 -> -167.4973907 | CR41: =E367 -> 7.998690605 | CS41: =E368 -> 226.4934235 | CT41: =E369 -> 168.199646 | CU41: =E370 -> 483.919281 | CV41: =E371 -> 270.8974915 | CW41: =E372 -> 101.1354752 | CY41: 969.7940016 | CZ41: 605.8203688 | DA41: 777.987216 | DC41: -226.1539841 | DD41: 280.7325592 | DE41: -688.6703568 | DF41: 119.880806 | DG41: 235.1943693 | DH41: 1024.151894 | DI41: -289.0364532 | DK41: 1951 | DL41: =F361 ->  | DM41: =F362 ->  | DN41: =F363 ->  | DO41: =F364 ->  | DP41: =F365 ->  | DQ41: =F366 ->  | DR41: =F367 ->  | DS41: =F368 ->  | DT41: =F369 ->  | DU41: =F370 ->  | DV41: =F371 ->  | DW41: =F372 ->  | EK41: 1951 | EL41: =G361 ->  | EM41: =G362 ->  | EN41: =G363 ->  | EO41: =G364 ->  | EP41: =G365 ->  | EQ41: =G366 ->  | ER41: =G367 ->  | ES41: =G368 ->  | ET41: =G369 ->  | EU41: =G370 ->  | EV41: =G371 ->  | EW41: =G372 -> 
A42: 1924-03-31 | B42: =INDIRECT(CONCATENATE("'",B$1,"'!",B$4,(YEAR($A42)-1921)*12+MONTH($A42)+3+IF(ISNUMBER(FIND("PRV",B$6)),1,0)))*IF(AND(B$3>0,TRIM(B$9)="CFS"),Conversions!$C42,1) -> 115.7340164 | C42: =INDIRECT(CONCATENATE("'",C$1,"'!",C$4,(YEAR($A42)-1921)*12+MONTH($A42)+3+IF(ISNUMBER(FIND("PRV",C$6)),1,0)))*IF(AND(C$3>0,TRIM(C$9)="CFS"),Conversions!$C42,1) -> 117.4776917 | D42: =INDIRECT(CONCATENATE("'",D$1,"'!",D$4,(YEAR($A42)-1921)*12+MONTH($A42)+3+IF(ISNUMBER(FIND("PRV",D$6)),1,0)))*IF(AND(D$3>0,TRIM(D$9)="CFS"),Conversions!$C42,1) -> 116.4727097 | E42: =INDIRECT(CONCATENATE("'",E$1,"'!",E$4,(YEAR($A42)-1921)*12+MONTH($A42)+3+IF(ISNUMBER(FIND("PRV",E$6)),1,0)))*IF(AND(E$3>0,TRIM(E$9)="CFS"),Conversions!$C42,1) -> 104.2536621 | F42: =INDIRECT(CONCATENATE("'",F$1,"'!",F$4,(YEAR($A42)-1921)*12+MONTH($A42)+3+IF(ISNUMBER(FIND("PRV",F$6)),1,0)))*IF(AND(F$3>0,TRIM(F$9)="CFS"),Conversions!$C42,1) ->  | G42: =INDIRECT(CONCATENATE("'",G$1,"'!",G$4,(YEAR($A42)-1921)*12+MONTH($A42)+3+IF(ISNUMBER(FIND("PRV",G$6)),1,0)))*IF(AND(G$3>0,TRIM(G$9)="CFS"),Conversions!$C42,1) ->  | K42: 1952 | L42: =B373 -> -95.89525604 | M42: =B374 -> -309.9838867 | N42: =B375 -> 58.30035019 | O42: =B376 -> -417.8608704 | P42: =B377 -> 119.3250809 | Q42: =B378 -> -13.42141438 | R42: =B379 -> 823.0050049 | S42: =B380 -> 341.4542847 | T42: =B381 -> 246.9274139 | U42: =B382 -> 245.4491425 | V42: =B383 -> 122.126709 | W42: =B384 -> 130.0072937 | Y42: 1207.107945 | Z42: 1619.999692 | AA42: 1249.433852 | AC42: -563.6407404 | AD42: 275.2483463 | AE42: -765.4396629 | AF42: -240.2354393 | AG42: 1397.965289 | AH42: 744.5105591 | AI42: -144.7209225 | AK42: 1952 | AL42: =C373 -> -89.85995483 | AM42: =C374 -> -310.160614 | AN42: =C375 -> -21.63614655 | AO42: =C376 -> -502.8383179 | AP42: =C377 -> 29.63273621 | AQ42: =C378 -> -41.56730652 | AR42: =C379 -> 821.1090088 | AS42: =C380 -> 333.0056763 | AT42: =C381 -> 252.284317 | AU42: =C382 -> 245.9711456 | AV42: =C383 -> 129.6752472 | AW42: =C384 -> 137.1938934 | AY42: 978.3055153 | AZ42: 1565.840321 | BA42: 982.8096848 | BC42: -846.5696487 | BD42: 297.0766335 | BE42: -924.4950333 | BF42: -494.8417282 | BG42: 1364.831696 | BH42: 765.1246033 | BI42: -130.6514091 | BK42: 1952 | BL42: =D373 -> -89.81126404 | BM42: =D374 -> -308.423645 | BN42: =D375 -> -0.65990448 | BO42: =D376 -> -485.4583435 | BP42: =D377 -> 55.39948273 | BQ42: =D378 -> -71.10714722 | BR42: =D379 -> 821.2466431 | BS42: =D380 -> 336.6109314 | BT42: =D381 -> 252.4126282 | BU42: =D382 -> 246.1374969 | BV42: =D383 -> 129.8970642 | BW42: =D384 -> 137.4097595 | BY42: 994.7541294 | BZ42: 1539.159548 | CA42: 1023.653702 | CC42: -810.2495575 | CD42: 297.7181416 | CE42: -884.353157 | CF42: -430.7187653 | CG42: 1339.163055 | CH42: 765.8569489 | CI42: -130.1462078 | CK42: 1952 | CL42: =E373 -> -91.30040741 | CM42: =E374 -> -298.871521 | CN42: =E375 -> 35.66027069 | CO42: =E376 -> -373.1059875 | CP42: =E377 -> 242.2913971 | CQ42: =E378 -> -54.6964035 | CR42: =E379 -> 750.5220337 | CS42: =E380 -> 365.1477051 | CT42: =E381 -> 253.8407593 | CU42: =E382 -> 247.9871368 | CV42: =E383 -> 138.5931702 | CW42: =E384 -> 148.0726471 | CY42: 1284.041965 | CZ42: 1528.964588 | DA42: 1364.1408 | DC42: -448.7222443 | DD42: 313.6161766 | DE42: -727.6176453 | DF42: -95.15431976 | DG42: 1314.814095 | DH42: 788.4937134 | DI42: -121.7941017 | DK42: 1952 | DL42: =F373 ->  | DM42: =F374 ->  | DN42: =F375 ->  | DO42: =F376 ->  | DP42: =F377 ->  | DQ42: =F378 ->  | DR42: =F379 ->  | DS42: =F380 ->  | DT42: =F381 ->  | DU42: =F382 ->  | DV42: =F383 ->  | DW42: =F384 ->  | EK42: 1952 | EL42: =G373 ->  | EM42: =G374 ->  | EN42: =G375 ->  | EO42: =G376 ->  | EP42: =G377 ->  | EQ42: =G378 ->  | ER42: =G379 ->  | ES42: =G380 ->  | ET42: =G381 ->  | EU42: =G382 ->  | EV42: =G383 ->  | EW42: =G384 -> 
A43: 1924-04-30 | B43: =INDIRECT(CONCATENATE("'",B$1,"'!",B$4,(YEAR($A43)-1921)*12+MONTH($A43)+3+IF(ISNUMBER(FIND("PRV",B$6)),1,0)))*IF(AND(B$3>0,TRIM(B$9)="CFS"),Conversions!$C43,1) -> 121.023201 | C43: =INDIRECT(CONCATENATE("'",C$1,"'!",C$4,(YEAR($A43)-1921)*12+MONTH($A43)+3+IF(ISNUMBER(FIND("PRV",C$6)),1,0)))*IF(AND(C$3>0,TRIM(C$9)="CFS"),Conversions!$C43,1) -> 114.4345932 | D43: =INDIRECT(CONCATENATE("'",D$1,"'!",D$4,(YEAR($A43)-1921)*12+MONTH($A43)+3+IF(ISNUMBER(FIND("PRV",D$6)),1,0)))*IF(AND(D$3>0,TRIM(D$9)="CFS"),Conversions!$C43,1) -> 112.9904938 | E43: =INDIRECT(CONCATENATE("'",E$1,"'!",E$4,(YEAR($A43)-1921)*12+MONTH($A43)+3+IF(ISNUMBER(FIND("PRV",E$6)),1,0)))*IF(AND(E$3>0,TRIM(E$9)="CFS"),Conversions!$C43,1) -> 101.5770493 | F43: =INDIRECT(CONCATENATE("'",F$1,"'!",F$4,(YEAR($A43)-1921)*12+MONTH($A43)+3+IF(ISNUMBER(FIND("PRV",F$6)),1,0)))*IF(AND(F$3>0,TRIM(F$9)="CFS"),Conversions!$C43,1) ->  | G43: =INDIRECT(CONCATENATE("'",G$1,"'!",G$4,(YEAR($A43)-1921)*12+MONTH($A43)+3+IF(ISNUMBER(FIND("PRV",G$6)),1,0)))*IF(AND(G$3>0,TRIM(G$9)="CFS"),Conversions!$C43,1) ->  | K43: 1953 | L43: =B385 -> 23.11434364 | M43: =B386 -> -297.8425598 | N43: =B387 -> -115.1764832 | O43: =B388 -> 662.142334 | P43: =B389 -> -547.786377 | Q43: =B390 -> -106.1765137 | R43: =B391 -> 85.80192566 | S43: =B392 -> 332.3813477 | T43: =B393 -> 275.4085083 | U43: =B394 -> 345.5284424 | V43: =B395 -> 128.5428162 | W43: =B396 -> 147.8657074 | Y43: 877.7681732 | Z43: 1005.58741 | AA43: 933.8034916 | AC43: -404.8395996 | AD43: 264.3480225 | AE43: 272.2376347 | AF43: -0.820526123 | AG43: 587.4152679 | AH43: 897.3454742 | AI43: -56.87350464 | AK43: 1953 | AL43: =C385 -> 30.20749283 | AM43: =C386 -> -298.0527954 | AN43: =C387 -> -158.3155823 | AO43: =C388 -> 662.1276855 | AP43: =C389 -> -547.7984619 | AQ43: =C390 -> -106.1381683 | AR43: =C391 -> 85.8105545 | AS43: =C392 -> 332.3777161 | AT43: =C393 -> 275.967865 | AU43: =C394 -> 346.1924133 | AV43: =C395 -> 135.9469452 | AW43: =C396 -> 167.8612061 | AY43: 896.9395876 | AZ43: 971.9558725 | BA43: 926.1868706 | BC43: -448.1773224 | BD43: 289.0765429 | BE43: 235.9668007 | BF43: -43.98635864 | BG43: 588.0179672 | BH43: 925.9684296 | BI43: -42.02146435 | BK43: 1953 | BL43: =D385 -> 30.41131783 | BM43: =D386 -> -297.9672852 | BN43: =D387 -> -160.2384186 | BO43: =D388 -> 662.1248779 | BP43: =D389 -> -547.7783203 | BQ43: =D390 -> -106.0831604 | BR43: =D391 -> 85.81617737 | BS43: =D392 -> 332.3824768 | BT43: =D393 -> 275.9822998 | BU43: =D394 -> 346.2054443 | BV43: =D395 -> 135.9646759 | BW43: =D396 -> 155.0868683 | BY43: 901.0031328 | BZ43: 973.8720217 | CA43: 911.9069538 | CC43: -449.9423065 | CD43: 286.1347551 | CE43: 234.330492 | CF43: -45.89186096 | CG43: 588.0977936 | CH43: 913.2392883 | CI43: -42.47619152 | CK43: 1953 | CL43: =E385 -> 26.95035934 | CM43: =E386 -> -296.8171082 | CN43: =E387 -> -164.7437439 | CO43: =E388 -> 661.6572266 | CP43: =E389 -> -547.5491943 | CQ43: =E390 -> -105.0442047 | CR43: =E391 -> 85.86538696 | CS43: =E392 -> 332.4378967 | CT43: =E393 -> 276.1497192 | CU43: =E394 -> 346.3270264 | CV43: =E395 -> 136.1311493 | CW43: =E396 -> 155.2160797 | CY43: 902.5139513 | CZ43: 975.0871286 | DA43: 906.5805931 | DC43: -452.4970245 | DD43: 286.6544695 | DE43: 227.0467339 | DF43: -50.63571167 | DG43: 589.4087982 | DH43: 913.8239746 | DI43: -41.98583508 | DK43: 1953 | DL43: =F385 ->  | DM43: =F386 ->  | DN43: =F387 ->  | DO43: =F388 ->  | DP43: =F389 ->  | DQ43: =F390 ->  | DR43: =F391 ->  | DS43: =F392 ->  | DT43: =F393 ->  | DU43: =F394 ->  | DV43: =F395 ->  | DW43: =F396 ->  | EK43: 1953 | EL43: =G385 ->  | EM43: =G386 ->  | EN43: =G387 ->  | EO43: =G388 ->  | EP43: =G389 ->  | EQ43: =G390 ->  | ER43: =G391 ->  | ES43: =G392 ->  | ET43: =G393 ->  | EU43: =G394 ->  | EV43: =G395 ->  | EW43: =G396 -> 
A44: 1924-05-31 | B44: =INDIRECT(CONCATENATE("'",B$1,"'!",B$4,(YEAR($A44)-1921)*12+MONTH($A44)+3+IF(ISNUMBER(FIND("PRV",B$6)),1,0)))*IF(AND(B$3>0,TRIM(B$9)="CFS"),Conversions!$C44,1) -> 258.9457397 | C44: =INDIRECT(CONCATENATE("'",C$1,"'!",C$4,(YEAR($A44)-1921)*12+MONTH($A44)+3+IF(ISNUMBER(FIND("PRV",C$6)),1,0)))*IF(AND(C$3>0,TRIM(C$9)="CFS"),Conversions!$C44,1) -> 269.3421326 | D44: =INDIRECT(CONCATENATE("'",D$1,"'!",D$4,(YEAR($A44)-1921)*12+MONTH($A44)+3+IF(ISNUMBER(FIND("PRV",D$6)),1,0)))*IF(AND(D$3>0,TRIM(D$9)="CFS"),Conversions!$C44,1) -> 267.9343567 | E44: =INDIRECT(CONCATENATE("'",E$1,"'!",E$4,(YEAR($A44)-1921)*12+MONTH($A44)+3+IF(ISNUMBER(FIND("PRV",E$6)),1,0)))*IF(AND(E$3>0,TRIM(E$9)="CFS"),Conversions!$C44,1) -> 257.1428528 | F44: =INDIRECT(CONCATENATE("'",F$1,"'!",F$4,(YEAR($A44)-1921)*12+MONTH($A44)+3+IF(ISNUMBER(FIND("PRV",F$6)),1,0)))*IF(AND(F$3>0,TRIM(F$9)="CFS"),Conversions!$C44,1) ->  | G44: =INDIRECT(CONCATENATE("'",G$1,"'!",G$4,(YEAR($A44)-1921)*12+MONTH($A44)+3+IF(ISNUMBER(FIND("PRV",G$6)),1,0)))*IF(AND(G$3>0,TRIM(G$9)="CFS"),Conversions!$C44,1) ->  | K44: 1954 | L44: =B397 -> -12.0605011 | M44: =B398 -> -192.6787109 | N44: =B399 -> -241.2008057 | O44: =B400 -> 69.47956085 | P44: =B401 -> 172.6956329 | Q44: =B402 -> 294.7827148 | R44: =B403 -> 482.6245117 | S44: =B404 -> 147.9313354 | T44: =B405 -> 180.5532684 | U44: =B406 -> 440.5195007 | V44: =B407 -> 162.3381195 | W44: =B408 -> 37.45323563 | Y44: 843.1840324 | Z44: 359.2272453 | AA44: 1542.437862 | AC44: 103.078392 | AD44: -11.54696274 | AE44: =IF(AE$11="AVG",IF(AE$1="INST-VAL",AVERAGE(W43,L44:N44,L44:O44),AVERAGE(L44:O44)),SUM(L44:O44)) -> -376.4604568 | AF44: 0.9743881226 | AG44: 1105.89183 | AH44: 820.8641243 | AI44: -620.5057793 | AK44: 1954 | AL44: =C397 -> -14.73160839 | AM44: =C398 -> -195.151062 | AN44: =C399 -> -245.5254974 | AO44: =C400 -> 16.14740372 | AP44: =C401 -> 173.1981049 | AQ44: =C402 -> 293.497345 | AR44: =C403 -> 482.6273804 | AS44: =C404 -> 148.2558899 | AT44: =C405 -> 181.0921936 | AU44: =C406 -> 440.6829834 | AV44: =C407 -> 160.440094 | AW44: =C408 -> 37.67628098 | AY44: 811.9176331 | AZ44: 379.9351311 | BA44: 1478.209508 | BC44: 42.1662941 | BD44: -5.238330841 | BE44: -439.2607641 | BF44: -56.17998886 | BG44: 1105.472809 | BH44: 819.891552 | BI44: -610.8189278 | BK44: 1954 | BL44: =D397 -> -4.916789055 | BM44: =D398 -> -192.6462708 | BN44: =D399 -> -241.1351471 | BO44: =D400 -> 14.65579987 | BP44: =D401 -> 172.5596466 | BQ44: =D402 -> 295.0305786 | BR44: =D403 -> 482.6512756 | BS44: =D404 -> 148.2344055 | BT44: =D405 -> 158.4138489 | BU44: =D406 -> 446.0976868 | BV44: =D407 -> 166.8801727 | BW44: =D408 -> 42.8157196 | BY44: 818.1433182 | BZ44: 388.2564468 | CA44: 1488.640927 | CC44: 48.46460724 | CD44: 7.37159729 | CE44: =IF(CE$11="AVG",IF(CE$1="INST-VAL",AVERAGE(BW43,BL44:BN44,BL44:BO44),AVERAGE(BL44:BO44)),SUM(BL44:BO44)) -> -424.042407 | CF44: =IF(CF$11="AVG",IF(CE$1="INST-VAL",AVERAGE(BM44:BO44,BN44:BP44),AVERAGE(BN44:BP44)),SUM(BN44:BP44)) -> -53.91970062 | CG44: =IF(CG$11="AVG",IF(CE$1="INST-VAL",AVERAGE(BP44:BS44,BQ44:BT44),AVERAGE(BQ44:BT44)),SUM(BQ44:BT44)) -> 1084.330109 | CH44: =IF(CH$11="AVG",IF(CE$1="INST-VAL",AVERAGE(BS44:BV44,BT44:BW44),AVERAGE(BT44:BW44)),SUM(BT44:BW44)) -> 814.207428 | CI44: =IF(CI$11="AVG",IF(CE$1="INST-VAL",AVERAGE(BV44:BW44,BL45,BW44,BL45:BM45),AVERAGE(BW44,BL45:BM45)),SUM(BW44,BL45:BM45)) -> -603.8255005 | CK44: 1954 | CL44: =E397 -> -4.692759514 | CM44: =E398 -> -192.5091553 | CN44: =E399 -> -241.4752197 | CO44: =E400 -> 14.58323288 | CP44: =E401 -> 172.0979767 | CQ44: =E402 -> 294.3954163 | CR44: =E403 -> 482.629425 | CS44: =E404 -> 148.1938477 | CT44: =E405 -> 158.4042664 | CU44: =E406 -> 429.8703918 | CV44: =E407 -> 155.2373047 | CW44: =E408 -> 43.26677322 | CY44: 867.2213593 | CZ44: 433.4333916 | DA44: 1460.0015 | DC44: 47.09225082 | DD44: 10.45824051 | DE44: -424.0939016 | DF44: -54.79401016 | DG44: 1083.622955 | DH44: 786.7787361 | DI44: -531.2945366 | DK44: 1954 | DL44: =F397 ->  | DM44: =F398 ->  | DN44: =F399 ->  | DO44: =F400 ->  | DP44: =F401 ->  | DQ44: =F402 ->  | DR44: =F403 ->  | DS44: =F404 ->  | DT44: =F405 ->  | DU44: =F406 ->  | DV44: =F407 ->  | DW44: =F408 ->  | EK44: 1954 | EL44: =G397 ->  | EM44: =G398 ->  | EN44: =G399 ->  | EO44: =G400 ->  | EP44: =G401 ->  | EQ44: =G402 ->  | ER44: =G403 ->  | ES44: =G404 ->  | ET44: =G405 ->  | EU44: =G406 ->  | EV44: =G407 ->  | EW44: =G408 -> 
A45: 1924-06-30 | B45: =INDIRECT(CONCATENATE("'",B$1,"'!",B$4,(YEAR($A45)-1921)*12+MONTH($A45)+3+IF(ISNUMBER(FIND("PRV",B$6)),1,0)))*IF(AND(B$3>0,TRIM(B$9)="CFS"),Conversions!$C45,1) -> 261.0545654 | C45: =INDIRECT(CONCATENATE("'",C$1,"'!",C$4,(YEAR($A45)-1921)*12+MONTH($A45)+3+IF(ISNUMBER(FIND("PRV",C$6)),1,0)))*IF(AND(C$3>0,TRIM(C$9)="CFS"),Conversions!$C45,1) -> 248.1761017 | D45: =INDIRECT(CONCATENATE("'",D$1,"'!",D$4,(YEAR($A45)-1921)*12+MONTH($A45)+3+IF(ISNUMBER(FIND("PRV",D$6)),1,0)))*IF(AND(D$3>0,TRIM(D$9)="CFS"),Conversions!$C45,1) -> 246.1459656 | E45: =INDIRECT(CONCATENATE("'",E$1,"'!",E$4,(YEAR($A45)-1921)*12+MONTH($A45)+3+IF(ISNUMBER(FIND("PRV",E$6)),1,0)))*IF(AND(E$3>0,TRIM(E$9)="CFS"),Conversions!$C45,1) -> 223.1934967 | F45: =INDIRECT(CONCATENATE("'",F$1,"'!",F$4,(YEAR($A45)-1921)*12+MONTH($A45)+3+IF(ISNUMBER(FIND("PRV",F$6)),1,0)))*IF(AND(F$3>0,TRIM(F$9)="CFS"),Conversions!$C45,1) ->  | G45: =INDIRECT(CONCATENATE("'",G$1,"'!",G$4,(YEAR($A45)-1921)*12+MONTH($A45)+3+IF(ISNUMBER(FIND("PRV",G$6)),1,0)))*IF(AND(G$3>0,TRIM(G$9)="CFS"),Conversions!$C45,1) ->  | K45: 1955 | L45: =B409 -> -211.3383179 | M45: =B410 -> -446.620697 | N45: =B411 -> -487.2348328 | O45: =B412 -> -122.0884933 | P45: =B413 -> -119.6931 | Q45: =B414 -> -86.65772247 | R45: =B415 -> 31.3671875 | S45: =B416 -> 193.329071 | T45: =B417 -> 366.3719788 | U45: =B418 -> 399.686676 | V45: =B419 -> 188.1526184 | W45: =B420 -> -91.58453369 | Y45: 796.7793427 | Z45: 1571.271339 | AA45: -386.3101654 | AC45: -1262.294846 | AD45: 69.93447876 | AE45: -1267.282341 | AF45: -729.0164261 | AG45: 504.4105148 | AH45: 862.6267395 | AI45: -257.155777 | AK45: 1955 | AL45: =C409 -> -203.3547058 | AM45: =C410 -> -445.1405029 | AN45: =C411 -> -473.204834 | AO45: =C412 -> -122.4343338 | AP45: =C413 -> -120.2026596 | AQ45: =C414 -> -86.90502167 | AR45: =C415 -> 32.42889023 | AS45: =C416 -> 192.6752625 | AT45: =C417 -> 349.005127 | AU45: =C418 -> 160.4266968 | AV45: =C419 -> 36.48978806 | AW45: =C420 -> -177.8235016 | AY45: 14.29252625 | AZ45: 718.2721252 | BA45: -858.0397949 | BC45: -1247.887352 | BD45: -325.0308876 | BE45: -1244.134377 | BF45: -715.8418274 | BG45: 487.204258 | BH45: 368.0981102 | BI45: -590.9712372 | BK45: 1955 | BL45: =D409 -> -202.324295 | BM45: =D410 -> -444.316925 | BN45: =D411 -> -462.5545959 | BO45: =D412 -> -122.349823 | BP45: =D413 -> -120.3216019 | BQ45: =D414 -> -86.94838715 | BR45: =D415 -> 32.1390686 | BS45: =D416 -> 185.6476898 | BT45: =D417 -> 345.6122437 | BU45: =D418 -> 159.9391632 | BV45: =D419 -> 35.45590591 | BW45: =D420 -> -151.245224 | BY45: 404.0030556 | BZ45: 1479.811367 | CA45: -831.2667809 | CC45: -1236.491333 | CD45: -323.8103142 | CE45: -1231.545639 | CF45: -705.2260208 | CG45: 476.4506149 | CH45: 389.7620888 | CI45: -540.2885742 | CK45: 1955 | CL45: =E409 -> -188.0458374 | CM45: =E410 -> -386.5154724 | CN45: =E411 -> -456.8959656 | CO45: =E412 -> -121.5119553 | CP45: =E413 -> -125.5948029 | CQ45: =E414 -> -91.37818909 | CR45: =E415 -> 26.54506683 | CS45: =E416 -> 178.7453003 | CT45: =E417 -> 322.7536926 | CU45: =E418 -> 150.7438202 | CV45: =E419 -> 24.74196434 | CW45: =E420 -> -161.692215 | CY45: 307.2205715 | CZ45: 1442.774107 | DA45: -828.1045933 | DC45: -1181.896385 | DD45: -353.7479496 | DE45: -1152.969231 | DF45: -704.0027237 | DG45: 436.6658707 | DH45: 336.5472622 | DI45: -566.3113861 | DK45: 1955 | DL45: =F409 ->  | DM45: =F410 ->  | DN45: =F411 ->  | DO45: =F412 ->  | DP45: =F413 ->  | DQ45: =F414 ->  | DR45: =F415 ->  | DS45: =F416 ->  | DT45: =F417 ->  | DU45: =F418 ->  | DV45: =F419 ->  | DW45: =F420 ->  | EK45: 1955 | EL45: =G409 ->  | EM45: =G410 ->  | EN45: =G411 ->  | EO45: =G412 ->  | EP45: =G413 ->  | EQ45: =G414 ->  | ER45: =G415 ->  | ES45: =G416 ->  | ET45: =G417 ->  | EU45: =G418 ->  | EV45: =G419 ->  | EW45: =G420 -> 
A46: 1924-07-31 | B46: =INDIRECT(CONCATENATE("'",B$1,"'!",B$4,(YEAR($A46)-1921)*12+MONTH($A46)+3+IF(ISNUMBER(FIND("PRV",B$6)),1,0)))*IF(AND(B$3>0,TRIM(B$9)="CFS"),Conversions!$C46,1) -> 224.7954559 | C46: =INDIRECT(CONCATENATE("'",C$1,"'!",C$4,(YEAR($A46)-1921)*12+MONTH($A46)+3+IF(ISNUMBER(FIND("PRV",C$6)),1,0)))*IF(AND(C$3>0,TRIM(C$9)="CFS"),Conversions!$C46,1) -> 14.98118019 | D46: =INDIRECT(CONCATENATE("'",D$1,"'!",D$4,(YEAR($A46)-1921)*12+MONTH($A46)+3+IF(ISNUMBER(FIND("PRV",D$6)),1,0)))*IF(AND(D$3>0,TRIM(D$9)="CFS"),Conversions!$C46,1) -> -0.01086807251 | E46: =INDIRECT(CONCATENATE("'",E$1,"'!",E$4,(YEAR($A46)-1921)*12+MONTH($A46)+3+IF(ISNUMBER(FIND("PRV",E$6)),1,0)))*IF(AND(E$3>0,TRIM(E$9)="CFS"),Conversions!$C46,1) -> -38.11107254 | F46: =INDIRECT(CONCATENATE("'",F$1,"'!",F$4,(YEAR($A46)-1921)*12+MONTH($A46)+3+IF(ISNUMBER(FIND("PRV",F$6)),1,0)))*IF(AND(F$3>0,TRIM(F$9)="CFS"),Conversions!$C46,1) ->  | G46: =INDIRECT(CONCATENATE("'",G$1,"'!",G$4,(YEAR($A46)-1921)*12+MONTH($A46)+3+IF(ISNUMBER(FIND("PRV",G$6)),1,0)))*IF(AND(G$3>0,TRIM(G$9)="CFS"),Conversions!$C46,1) ->  | K46: 1956 | L46: =B421 -> -26.63360596 | M46: =B422 -> -138.9376373 | N46: =B423 -> 203.4669037 | O46: =B424 -> 277.5663757 | P46: =B425 -> 255.1440277 | Q46: =B426 -> -188.3351593 | R46: =B427 -> 129.4354553 | S46: =B428 -> 671.5053101 | T46: =B429 -> 197.1692047 | U46: =B430 -> 136.3884888 | V46: =B431 -> 105.4466171 | W46: =B432 -> 148.981369 | Y46: 1369.782541 | Z46: 20.80890846 | AA46: 1771.19735 | AC46: 408.9045105 | AD46: 276.5743351 | AE46: 315.4620361 | AF46: 736.1773071 | AG46: 809.7748108 | AH46: 587.9856796 | AI46: -65.04495049 | AK46: 1956 | AL46: =C421 -> -183.6971741 | AM46: =C422 -> -229.4505615 | AN46: =C423 -> 163.780014 | AO46: =C424 -> 279.7827759 | AP46: =C425 -> 181.5598297 | AQ46: =C426 -> -161.8997955 | AR46: =C427 -> 129.8076935 | AS46: =C428 -> 670.0968018 | AT46: =C429 -> 198.0964203 | AU46: =C430 -> 137.118042 | AV46: =C431 -> 118.8516083 | AW46: =C432 -> 155.770462 | AY46: 1351.825712 | AZ46: 62.67616081 | BA46: 1459.816116 | BC46: 233.7722626 | BD46: 303.8130016 | BE46: 30.41505432 | BF46: 625.1226196 | BG46: 836.10112 | BH46: 609.8365326 | BI46: -51.3314991 | BK46: 1956 | BL46: =D421 -> -208.0209961 | BM46: =D422 -> -181.0223541 | BN46: =D423 -> 515.1173706 | BO46: =D424 -> 626.7327881 | BP46: =D425 -> 206.4040985 | BQ46: =D426 -> -68.56930542 | BR46: =D427 -> 119.4880981 | BS46: =D428 -> 674.1745605 | BT46: =D429 -> 193.8720398 | BU46: =D430 -> 132.1202087 | BV46: =D431 -> 112.7124252 | BW46: =D432 -> 149.4339294 | BY46: 1768.413223 | BZ46: 110.547699 | CA46: 2272.442863 | CC46: 1098.662598 | CD46: 283.3856964 | CE46: 752.8068085 | CF46: 1348.254257 | CG46: 918.9653931 | CH46: 588.1386032 | CI46: -72.06206512 | CK46: 1956 | CL46: =E421 -> -216.797699 | CM46: =E422 -> -187.8214722 | CN46: =E423 -> 508.4870605 | CO46: =E424 -> 637.7156982 | CP46: =E425 -> 250.7310791 | CQ46: =E426 -> -78.57157898 | CR46: =E427 -> 142.7775269 | CS46: =E428 -> 672.3272095 | CT46: =E429 -> 193.6181793 | CU46: =E430 -> 131.9693298 | CV46: =E431 -> 110.9630508 | CW46: =E432 -> 205.2126312 | CY46: 1820.778606 | CZ46: 106.5813713 | DA46: 2370.611015 | DC46: 1130.540787 | DD46: 281.7559624 | DE46: 741.5835876 | DF46: 1396.933838 | DG46: 930.1513367 | DH46: 641.7631912 | DI46: -78.19732285 | DK46: 1956 | DL46: =F421 ->  | DM46: =F422 ->  | DN46: =F423 ->  | DO46: =F424 ->  | DP46: =F425 ->  | DQ46: =F426 ->  | DR46: =F427 ->  | DS46: =F428 ->  | DT46: =F429 ->  | DU46: =F430 ->  | DV46: =F431 ->  | DW46: =F432 ->  | EK46: 1956 | EL46: =G421 ->  | EM46: =G422 ->  | EN46: =G423 ->  | EO46: =G424 ->  | EP46: =G425 ->  | EQ46: =G426 ->  | ER46: =G427 ->  | ES46: =G428 ->  | ET46: =G429 ->  | EU46: =G430 ->  | EV46: =G431 ->  | EW46: =G432 -> 
A47: 1924-08-31 | B47: =INDIRECT(CONCATENATE("'",B$1,"'!",B$4,(YEAR($A47)-1921)*12+MONTH($A47)+3+IF(ISNUMBER(FIND("PRV",B$6)),1,0)))*IF(AND(B$3>0,TRIM(B$9)="CFS"),Conversions!$C47,1) -> 96.52194214 | C47: =INDIRECT(CONCATENATE("'",C$1,"'!",C$4,(YEAR($A47)-1921)*12+MONTH($A47)+3+IF(ISNUMBER(FIND("PRV",C$6)),1,0)))*IF(AND(C$3>0,TRIM(C$9)="CFS"),Conversions!$C47,1) -> -274.7888489 | D47: =INDIRECT(CONCATENATE("'",D$1,"'!",D$4,(YEAR($A47)-1921)*12+MONTH($A47)+3+IF(ISNUMBER(FIND("PRV",D$6)),1,0)))*IF(AND(D$3>0,TRIM(D$9)="CFS"),Conversions!$C47,1) -> -274.6388245 | E47: =INDIRECT(CONCATENATE("'",E$1,"'!",E$4,(YEAR($A47)-1921)*12+MONTH($A47)+3+IF(ISNUMBER(FIND("PRV",E$6)),1,0)))*IF(AND(E$3>0,TRIM(E$9)="CFS"),Conversions!$C47,1) -> -192.8253784 | F47: =INDIRECT(CONCATENATE("'",F$1,"'!",F$4,(YEAR($A47)-1921)*12+MONTH($A47)+3+IF(ISNUMBER(FIND("PRV",F$6)),1,0)))*IF(AND(F$3>0,TRIM(F$9)="CFS"),Conversions!$C47,1) ->  | G47: =INDIRECT(CONCATENATE("'",G$1,"'!",G$4,(YEAR($A47)-1921)*12+MONTH($A47)+3+IF(ISNUMBER(FIND("PRV",G$6)),1,0)))*IF(AND(G$3>0,TRIM(G$9)="CFS"),Conversions!$C47,1) ->  | K47: 1957 | L47: =B433 -> 22.14634895 | M47: =B434 -> -236.1726685 | N47: =B435 -> -149.4928284 | O47: =B436 -> -562.380249 | P47: =B437 -> -253.8829803 | Q47: =B438 -> 128.7808075 | R47: =B439 -> -34.0907135 | S47: =B440 -> 317.4420166 | T47: =B441 -> 93.27261353 | U47: =B442 -> 496.6313782 | V47: =B443 -> 119.5936966 | W47: =B444 -> 39.99347305 | Y47: -451.9344978 | Z47: 1261.731884 | AA47: -18.1591053 | AC47: -1073.147919 | AD47: -209.6140633 | AE47: -925.8993969 | AF47: -965.7560577 | AG47: 505.4047241 | AH47: 749.4911613 | AI47: -592.1684532 | AK47: 1957 | AL47: =C433 -> 29.19093132 | AM47: =C434 -> -236.2928925 | AN47: =C435 -> -150.2561646 | AO47: =C436 -> -562.2868652 | AP47: =C437 -> -265.5200806 | AQ47: =C438 -> 75.17440796 | AR47: =C439 -> -32.91925049 | AS47: =C440 -> 309.414032 | AT47: =C441 -> 94.93188477 | AU47: =C442 -> 500.134552 | AV47: =C443 -> 122.8555527 | AW47: =C444 -> 36.71346283 | AY47: -557.3356171 | AZ47: 1146.200195 | BA47: -78.86042976 | BC47: -1139.181595 | BD47: -177.9893951 | BE47: -919.6449909 | BF47: -978.0631104 | BG47: 446.6010742 | BH47: 754.6354523 | BI47: -564.5611343 | BK47: 1957 | BL47: =D433 -> 21.23934174 | BM47: =D434 -> -242.7353363 | BN47: =D435 -> -156.4596252 | BO47: =D436 -> -560.7839966 | BP47: =D437 -> -263.9446411 | BQ47: =D438 -> 34.7502594 | BR47: =D439 -> -36.49824524 | BS47: =D440 -> 341.7154236 | BT47: =D441 -> 59.72679138 | BU47: =D442 -> 498.5350647 | BV47: =D443 -> 116.0820847 | BW47: =D444 -> 35.56410217 | BY47: -624.1055222 | BZ47: 1032.818306 | CA47: -152.8087769 | CC47: -1189.17334 | CD47: -192.0387192 | CE47: -938.7396164 | CF47: -981.1882629 | CG47: 399.6942291 | CH47: 709.9080429 | CI47: -579.0198517 | CK47: 1957 | CL47: =E433 -> -34.4197197 | CM47: =E434 -> -248.9902344 | CN47: =E435 -> -162.5545654 | CO47: =E436 -> -561.5611572 | CP47: =E437 -> -264.1893005 | CQ47: =E438 -> -21.84892273 | CR47: =E439 -> -45.37232208 | CS47: =E440 -> 332.6765747 | CT47: =E441 -> 26.34720039 | CU47: =E442 -> 465.8941345 | CV47: =E443 -> 115.5606461 | CW47: =E444 -> 5.985697269 | CY47: -903.2671084 | CZ47: 685.3641706 | DA47: -392.4719691 | DC47: -1259.14418 | DD47: -301.1180549 | DE47: -1007.525677 | DF47: -988.3050232 | DG47: 291.8025303 | DH47: 613.7876782 | DI47: -714.2624106 | DK47: 1957 | DL47: =F433 ->  | DM47: =F434 ->  | DN47: =F435 ->  | DO47: =F436 ->  | DP47: =F437 ->  | DQ47: =F438 ->  | DR47: =F439 ->  | DS47: =F440 ->  | DT47: =F441 ->  | DU47: =F442 ->  | DV47: =F443 ->  | DW47: =F444 ->  | EK47: 1957 | EL47: =G433 ->  | EM47: =G434 ->  | EN47: =G435 ->  | EO47: =G436 ->  | EP47: =G437 ->  | EQ47: =G438 ->  | ER47: =G439 ->  | ES47: =G440 ->  | ET47: =G441 ->  | EU47: =G442 ->  | EV47: =G443 ->  | EW47: =G444 -> 
A48: 1924-09-30 | B48: =INDIRECT(CONCATENATE("'",B$1,"'!",B$4,(YEAR($A48)-1921)*12+MONTH($A48)+3+IF(ISNUMBER(FIND("PRV",B$6)),1,0)))*IF(AND(B$3>0,TRIM(B$9)="CFS"),Conversions!$C48,1) -> 45.99594498 | C48: =INDIRECT(CONCATENATE("'",C$1,"'!",C$4,(YEAR($A48)-1921)*12+MONTH($A48)+3+IF(ISNUMBER(FIND("PRV",C$6)),1,0)))*IF(AND(C$3>0,TRIM(C$9)="CFS"),Conversions!$C48,1) -> -142.0897064 | D48: =INDIRECT(CONCATENATE("'",D$1,"'!",D$4,(YEAR($A48)-1921)*12+MONTH($A48)+3+IF(ISNUMBER(FIND("PRV",D$6)),1,0)))*IF(AND(D$3>0,TRIM(D$9)="CFS"),Conversions!$C48,1) -> -145.4100494 | E48: =INDIRECT(CONCATENATE("'",E$1,"'!",E$4,(YEAR($A48)-1921)*12+MONTH($A48)+3+IF(ISNUMBER(FIND("PRV",E$6)),1,0)))*IF(AND(E$3>0,TRIM(E$9)="CFS"),Conversions!$C48,1) -> 8.725473404 | F48: =INDIRECT(CONCATENATE("'",F$1,"'!",F$4,(YEAR($A48)-1921)*12+MONTH($A48)+3+IF(ISNUMBER(FIND("PRV",F$6)),1,0)))*IF(AND(F$3>0,TRIM(F$9)="CFS"),Conversions!$C48,1) ->  | G48: =INDIRECT(CONCATENATE("'",G$1,"'!",G$4,(YEAR($A48)-1921)*12+MONTH($A48)+3+IF(ISNUMBER(FIND("PRV",G$6)),1,0)))*IF(AND(G$3>0,TRIM(G$9)="CFS"),Conversions!$C48,1) ->  | K48: 1958 | L48: =B445 -> -369.2012329 | M48: =B446 -> -262.9606934 | N48: =B447 -> -165.1326141 | O48: =B448 -> 174.423172 | P48: =B449 -> 722.9799805 | Q48: =B450 -> 669.1243286 | R48: =B451 -> 79.33746338 | S48: =B452 -> 424.0862122 | T48: =B453 -> 226.575592 | U48: =B454 -> 173.5045166 | V48: =B455 -> 109.5494308 | W48: =B456 -> 98.32997894 | Y48: 2181.323157 | Z48: 1027.963367 | AA48: 1880.616135 | AC48: 1138.434174 | AD48: 197.0792761 | AE48: -622.8713684 | AF48: 732.2705383 | AG48: 1399.123596 | AH48: 607.9595184 | AI48: -202.7231455 | AK48: 1958 | AL48: =C445 -> -337.5584106 | AM48: =C446 -> -263.7161865 | AN48: =C447 -> -234.5587158 | AO48: =C448 -> 172.9911346 | AP48: =C449 -> 702.7377319 | AQ48: =C450 -> 664.2234497 | AR48: =C451 -> 45.8943634 | AS48: =C452 -> 421.6911621 | AT48: =C453 -> 228.3649139 | AU48: =C454 -> 175.3987427 | AV48: =C455 -> 119.0571671 | AW48: =C456 -> 108.2876358 | AY48: 2152.699295 | AZ48: 976.5180163 | BA48: 1802.812988 | BC48: 1041.677414 | BD48: 225.7652736 | BE48: -662.8421783 | BF48: 641.1701508 | BG48: 1360.173889 | BH48: 631.1084595 | BI48: -182.0250783 | BK48: 1958 | BL48: =D445 -> -343.684906 | BM48: =D446 -> -270.8990479 | BN48: =D447 -> -234.6684113 | BO48: =D448 -> 111.1208496 | BP48: =D449 -> 721.0743408 | BQ48: =D450 -> 662.5733643 | BR48: =D451 -> 19.29791641 | BS48: =D452 -> 421.9085999 | BT48: =D453 -> 228.6254578 | BU48: =D454 -> 175.7256622 | BV48: =D455 -> 119.3750381 | BW48: =D456 -> 157.4613342 | BY48: 2077.579697 | BZ48: 924.9826927 | CA48: 1767.910198 | CC48: 989.2010956 | CD48: 239.8581963 | CE48: -738.1315155 | CF48: 597.5267792 | CG48: 1332.405338 | CH48: 681.1874924 | CI48: -170.5491295 | CK48: 1958 | CL48: =E445 -> -422.6643982 | CM48: =E446 -> -297.5837097 | CN48: =E447 -> -236.5115509 | CO48: =E448 -> 84.41414642 | CP48: =E449 -> 678.4666748 | CQ48: =E450 -> 599.8779907 | CR48: =E451 -> 72.27826691 | CS48: =E452 -> 421.6337585 | CT48: =E453 -> 228.1443939 | CU48: =E454 -> 175.2330017 | CV48: =E455 -> 118.6121902 | CW48: =E456 -> 108.1024551 | CY48: 1996.835556 | CZ48: 936.7737765 | DA48: 1530.00322 | DC48: 828.6635513 | DD48: 224.8465419 | DE48: -872.3455124 | DF48: 526.3692703 | DG48: 1321.93441 | DH48: 630.092041 | DI48: -183.5530019 | DK48: 1958 | DL48: =F445 ->  | DM48: =F446 ->  | DN48: =F447 ->  | DO48: =F448 ->  | DP48: =F449 ->  | DQ48: =F450 ->  | DR48: =F451 ->  | DS48: =F452 ->  | DT48: =F453 ->  | DU48: =F454 ->  | DV48: =F455 ->  | DW48: =F456 ->  | EK48: 1958 | EL48: =G445 ->  | EM48: =G446 ->  | EN48: =G447 ->  | EO48: =G448 ->  | EP48: =G449 ->  | EQ48: =G450 ->  | ER48: =G451 ->  | ES48: =G452 ->  | ET48: =G453 ->  | EU48: =G454 ->  | EV48: =G455 ->  | EW48: =G456 -> 
A49: 1924-10-31 | B49: =INDIRECT(CONCATENATE("'",B$1,"'!",B$4,(YEAR($A49)-1921)*12+MONTH($A49)+3+IF(ISNUMBER(FIND("PRV",B$6)),1,0)))*IF(AND(B$3>0,TRIM(B$9)="CFS"),Conversions!$C49,1) -> -146.2210846 | C49: =INDIRECT(CONCATENATE("'",C$1,"'!",C$4,(YEAR($A49)-1921)*12+MONTH($A49)+3+IF(ISNUMBER(FIND("PRV",C$6)),1,0)))*IF(AND(C$3>0,TRIM(C$9)="CFS"),Conversions!$C49,1) -> -145.5010223 | D49: =INDIRECT(CONCATENATE("'",D$1,"'!",D$4,(YEAR($A49)-1921)*12+MONTH($A49)+3+IF(ISNUMBER(FIND("PRV",D$6)),1,0)))*IF(AND(D$3>0,TRIM(D$9)="CFS"),Conversions!$C49,1) -> -144.3179932 | E49: =INDIRECT(CONCATENATE("'",E$1,"'!",E$4,(YEAR($A49)-1921)*12+MONTH($A49)+3+IF(ISNUMBER(FIND("PRV",E$6)),1,0)))*IF(AND(E$3>0,TRIM(E$9)="CFS"),Conversions!$C49,1) -> -237.822998 | F49: =INDIRECT(CONCATENATE("'",F$1,"'!",F$4,(YEAR($A49)-1921)*12+MONTH($A49)+3+IF(ISNUMBER(FIND("PRV",F$6)),1,0)))*IF(AND(F$3>0,TRIM(F$9)="CFS"),Conversions!$C49,1) ->  | G49: =INDIRECT(CONCATENATE("'",G$1,"'!",G$4,(YEAR($A49)-1921)*12+MONTH($A49)+3+IF(ISNUMBER(FIND("PRV",G$6)),1,0)))*IF(AND(G$3>0,TRIM(G$9)="CFS"),Conversions!$C49,1) ->  | K49: 1959 | L49: =B457 -> -10.80013371 | M49: =B458 -> -290.2529907 | N49: =B459 -> -195.5343933 | O49: =B460 -> -227.5398102 | P49: =B461 -> -28.41682816 | Q49: =B462 -> -372.5681458 | R49: =B463 -> -15.82896614 | S49: =B464 -> 195.0587006 | T49: =B465 -> 317.5447388 | U49: =B466 -> 410.1345825 | V49: =B467 -> 96.0640564 | W49: =B468 -> -263.2123108 | Y49: -635.6235409 | Z49: -438.8794765 | AA49: -385.3515005 | AC49: -1114.312168 | AD49: -429.2853699 | AE49: -724.1273279 | AF49: -451.4910316 | AG49: 124.2063274 | AH49: 560.5310669 | AI49: -724.0749207 | AK49: 1959 | AL49: =C457 -> -1.579529285 | AM49: =C458 -> -288.7331848 | AN49: =C459 -> -195.6342926 | AO49: =C460 -> -272.0035706 | AP49: =C461 -> -28.44884109 | AQ49: =C462 -> -374.8638611 | AR49: =C463 -> -17.36370468 | AS49: =C464 -> 199.7334442 | AT49: =C465 -> 316.5170288 | AU49: =C466 -> 378.174469 | AV49: =C467 -> 97.52680969 | AW49: =C468 -> -257.997467 | AY49: -680.4233856 | AZ49: -468.9281693 | BA49: -444.6726995 | BC49: -1159.68375 | BD49: -434.2855377 | BE49: -757.9505773 | BF49: -496.0867043 | BG49: 124.0229073 | BH49: 534.2208405 | BI49: -721.6125488 | BK49: 1959 | BL49: =D457 -> -36.97817612 | BM49: =D458 -> -291.0322876 | BN49: =D459 -> -211.572403 | BO49: =D460 -> -283.9699707 | BP49: =D461 -> -36.4318428 | BQ49: =D462 -> -365.7060242 | BR49: =D463 -> -19.15241241 | BS49: =D464 -> 177.0679474 | BT49: =D465 -> 318.9250488 | BU49: =D466 -> 386.0361328 | BV49: =D467 -> 99.28302002 | BW49: =D468 -> -253.1382141 | BY49: -690.4909019 | BZ49: -470.9189987 | CA49: -516.6691818 | CC49: -1188.712528 | CD49: -427.618866 | CE49: -823.5528374 | CF49: -531.9742165 | CG49: 111.1345596 | CH49: 551.1059875 | CI49: -716.7625885 | CK49: 1959 | CL49: =E457 -> -1.868103504 | CM49: =E458 -> -289.7873535 | CN49: =E459 -> -198.2718658 | CO49: =E460 -> -267.4697266 | CP49: =E461 -> -29.71123123 | CQ49: =E462 -> -375.3602295 | CR49: =E463 -> -27.45759201 | CS49: =E464 -> 175.7373657 | CT49: =E465 -> 298.2514648 | CU49: =E466 -> 409.330658 | CV49: =E467 -> 95.84107971 | CW49: =E468 -> -256.1022949 | CY49: -685.8986206 | CZ49: -492.6042213 | DA49: -466.8678288 | DC49: -1160.600407 | DD49: -408.4019623 | DE49: -757.3970494 | DF49: -495.4528236 | DG49: 71.17100906 | DH49: 547.3209076 | DI49: -696.3109589 | DK49: 1959 | DL49: =F457 ->  | DM49: =F458 ->  | DN49: =F459 ->  | DO49: =F460 ->  | DP49: =F461 ->  | DQ49: =F462 ->  | DR49: =F463 ->  | DS49: =F464 ->  | DT49: =F465 ->  | DU49: =F466 ->  | DV49: =F467 ->  | DW49: =F468 ->  | EK49: 1959 | EL49: =G457 ->  | EM49: =G458 ->  | EN49: =G459 ->  | EO49: =G460 ->  | EP49: =G461 ->  | EQ49: =G462 ->  | ER49: =G463 ->  | ES49: =G464 ->  | ET49: =G465 ->  | EU49: =G466 ->  | EV49: =G467 ->  | EW49: =G468 -> 
A50: 1924-11-30 | B50: =INDIRECT(CONCATENATE("'",B$1,"'!",B$4,(YEAR($A50)-1921)*12+MONTH($A50)+3+IF(ISNUMBER(FIND("PRV",B$6)),1,0)))*IF(AND(B$3>0,TRIM(B$9)="CFS"),Conversions!$C50,1) -> -88.60366821 | C50: =INDIRECT(CONCATENATE("'",C$1,"'!",C$4,(YEAR($A50)-1921)*12+MONTH($A50)+3+IF(ISNUMBER(FIND("PRV",C$6)),1,0)))*IF(AND(C$3>0,TRIM(C$9)="CFS"),Conversions!$C50,1) -> -87.94625092 | D50: =INDIRECT(CONCATENATE("'",D$1,"'!",D$4,(YEAR($A50)-1921)*12+MONTH($A50)+3+IF(ISNUMBER(FIND("PRV",D$6)),1,0)))*IF(AND(D$3>0,TRIM(D$9)="CFS"),Conversions!$C50,1) -> -89.51646423 | E50: =INDIRECT(CONCATENATE("'",E$1,"'!",E$4,(YEAR($A50)-1921)*12+MONTH($A50)+3+IF(ISNUMBER(FIND("PRV",E$6)),1,0)))*IF(AND(E$3>0,TRIM(E$9)="CFS"),Conversions!$C50,1) -> -88.52011108 | F50: =INDIRECT(CONCATENATE("'",F$1,"'!",F$4,(YEAR($A50)-1921)*12+MONTH($A50)+3+IF(ISNUMBER(FIND("PRV",F$6)),1,0)))*IF(AND(F$3>0,TRIM(F$9)="CFS"),Conversions!$C50,1) ->  | G50: =INDIRECT(CONCATENATE("'",G$1,"'!",G$4,(YEAR($A50)-1921)*12+MONTH($A50)+3+IF(ISNUMBER(FIND("PRV",G$6)),1,0)))*IF(AND(G$3>0,TRIM(G$9)="CFS"),Conversions!$C50,1) ->  | K50: 1960 | L50: =B469 -> -262.1371155 | M50: =B470 -> -198.7254944 | N50: =B471 -> -285.9969482 | O50: =B472 -> -40.77130127 | P50: =B473 -> -18.44127274 | Q50: =B474 -> 28.56186104 | R50: =B475 -> 108.0837173 | S50: =B476 -> 179.2478638 | T50: =B477 -> 421.4581299 | U50: =B478 -> 449.0627747 | V50: =B479 -> 226.1598663 | W50: =B480 -> -40.78615189 | Y50: 799.3749905 | Z50: 759.8851681 | AA50: 565.715929 | AC50: -515.3731556 | AD50: 134.8234253 | AE50: -787.6308594 | AF50: -345.2095222 | AG50: 737.351572 | AH50: 1055.894619 | AI50: -273.8413544 | AK50: 1960 | AL50: =C469 -> -273.8148804 | AM50: =C470 -> -189.8002014 | AN50: =C471 -> -258.0826111 | AO50: =C472 -> -40.27528 | AP50: =C473 -> -48.68191528 | AQ50: =C474 -> 33.73025513 | AR50: =C475 -> 109.2044601 | AS50: =C476 -> 181.0858917 | AT50: =C477 -> 411.331543 | AU50: =C478 -> 431.3118896 | AV50: =C479 -> 106.848526 | AW50: =C480 -> -132.8878326 | AY50: 228.4356651 | AZ50: 149.1157188 | BA50: 329.9698448 | BC50: -503.1097527 | BD50: -262.589447 | BE50: -761.9729729 | BF50: -347.0398064 | BG50: 735.35215 | BH50: 816.604126 | BI50: -665.8104401 | BK50: 1960 | BL50: =D469 -> -273.7636719 | BM50: =D470 -> -189.8607025 | BN50: =D471 -> -249.7802124 | BO50: =D472 -> -49.90049362 | BP50: =D473 -> -50.92941666 | BQ50: =D474 -> 0.3683519363 | BR50: =D475 -> 117.4650803 | BS50: =D476 -> 207.8708191 | BT50: =D477 -> 411.7023315 | BU50: =D478 -> 436.7880554 | BV50: =D479 -> 106.4990005 | BW50: =D480 -> -130.5436554 | BY50: 499.9899263 | BZ50: 540.1640863 | CA50: 335.9154863 | CC50: -540.1024733 | CD50: -252.3514175 | CE50: -763.3050804 | CF50: -350.6101227 | CG50: 737.4065828 | CH50: 824.4457321 | CI50: -577.4747772 | CK50: 1960 | CL50: =E469 -> -248.1407471 | CM50: =E470 -> -192.0679169 | CN50: =E471 -> -268.7494507 | CO50: =E472 -> -55.07994843 | CP50: =E473 -> -48.80661011 | CQ50: =E474 -> 57.85390854 | CR50: =E475 -> 105.7529526 | CS50: =E476 -> 207.7171326 | CT50: =E477 -> 382.6713867 | CU50: =E478 -> 428.6826782 | CV50: =E479 -> 98.76768494 | CW50: =E480 -> -137.1038971 | CY50: 328.9901848 | CZ50: 284.298996 | DA50: 331.4971733 | DC50: -506.8500175 | DD50: -258.4509125 | DE50: -764.038063 | DF50: -372.6360092 | DG50: 753.9953804 | DH50: 773.0178528 | DI50: -579.8502502 | DK50: 1960 | DL50: =F469 ->  | DM50: =F470 ->  | DN50: =F471 ->  | DO50: =F472 ->  | DP50: =F473 ->  | DQ50: =F474 ->  | DR50: =F475 ->  | DS50: =F476 ->  | DT50: =F477 ->  | DU50: =F478 ->  | DV50: =F479 ->  | DW50: =F480 ->  | EK50: 1960 | EL50: =G469 ->  | EM50: =G470 ->  | EN50: =G471 ->  | EO50: =G472 ->  | EP50: =G473 ->  | EQ50: =G474 ->  | ER50: =G475 ->  | ES50: =G476 ->  | ET50: =G477 ->  | EU50: =G478 ->  | EV50: =G479 ->  | EW50: =G480 -> 
A51: 1924-12-31 | B51: =INDIRECT(CONCATENATE("'",B$1,"'!",B$4,(YEAR($A51)-1921)*12+MONTH($A51)+3+IF(ISNUMBER(FIND("PRV",B$6)),1,0)))*IF(AND(B$3>0,TRIM(B$9)="CFS"),Conversions!$C51,1) -> -140.118103 | C51: =INDIRECT(CONCATENATE("'",C$1,"'!",C$4,(YEAR($A51)-1921)*12+MONTH($A51)+3+IF(ISNUMBER(FIND("PRV",C$6)),1,0)))*IF(AND(C$3>0,TRIM(C$9)="CFS"),Conversions!$C51,1) -> -143.9945374 | D51: =INDIRECT(CONCATENATE("'",D$1,"'!",D$4,(YEAR($A51)-1921)*12+MONTH($A51)+3+IF(ISNUMBER(FIND("PRV",D$6)),1,0)))*IF(AND(D$3>0,TRIM(D$9)="CFS"),Conversions!$C51,1) -> -146.3670654 | E51: =INDIRECT(CONCATENATE("'",E$1,"'!",E$4,(YEAR($A51)-1921)*12+MONTH($A51)+3+IF(ISNUMBER(FIND("PRV",E$6)),1,0)))*IF(AND(E$3>0,TRIM(E$9)="CFS"),Conversions!$C51,1) -> -158.79422 | F51: =INDIRECT(CONCATENATE("'",F$1,"'!",F$4,(YEAR($A51)-1921)*12+MONTH($A51)+3+IF(ISNUMBER(FIND("PRV",F$6)),1,0)))*IF(AND(F$3>0,TRIM(F$9)="CFS"),Conversions!$C51,1) ->  | G51: =INDIRECT(CONCATENATE("'",G$1,"'!",G$4,(YEAR($A51)-1921)*12+MONTH($A51)+3+IF(ISNUMBER(FIND("PRV",G$6)),1,0)))*IF(AND(G$3>0,TRIM(G$9)="CFS"),Conversions!$C51,1) ->  | K51: 1961 | L51: =B481 -> -50.55028915 | M51: =B482 -> -182.5049133 | N51: =B483 -> -280.1452942 | O51: =B484 -> -134.7671051 | P51: =B485 -> 36.06470871 | Q51: =B486 -> -23.90789413 | R51: =B487 -> -16.89179039 | S51: =B488 -> 165.1199493 | T51: =B489 -> 257.4639282 | U51: =B490 -> 337.8613586 | V51: =B491 -> 127.8178024 | W51: =B492 -> -162.2878876 | Y51: 56.44830513 | Z51: 206.6777096 | AA51: 73.27257347 | AC51: -585.260498 | AD51: -171.2574692 | AE51: -647.9676018 | AF51: -378.8476906 | AG51: 381.784193 | AH51: 560.8552017 | AI51: -464.9324646 | AK51: 1961 | AL51: =C481 -> -236.5501404 | AM51: =C482 -> -296.372467 | AN51: =C483 -> -290.3092651 | AO51: =C484 -> -151.5839996 | AP51: =C485 -> -16.69314194 | AQ51: =C486 -> -30.34036636 | AR51: =C487 -> -14.45822334 | AS51: =C488 -> 170.5779877 | AT51: =C489 -> 237.7073517 | AU51: =C490 -> 174.0797272 | AV51: =C491 -> -35.67308044 | AW51: =C492 -> -268.1978149 | AY51: -852.8733082 | AZ51: -679.8161221 | BA51: -757.8134327 | BC51: -785.2992401 | BD51: -628.5919647 | BE51: -974.8158722 | BF51: -458.5864067 | BG51: 363.4867496 | BH51: 107.9161835 | BI51: -958.9522095 | BK51: 1961 | BL51: =D481 -> -228.3067627 | BM51: =D482 -> -218.6243591 | BN51: =D483 -> -102.399025 | BO51: =D484 -> -104.7686462 | BP51: =D485 -> 44.11289597 | BQ51: =D486 -> -26.72295761 | BR51: =D487 -> -76.61196899 | BS51: =D488 -> 160.3784943 | BT51: =D489 -> 224.3824005 | BU51: =D490 -> 154.2318268 | BV51: =D491 -> -48.24121094 | BW51: =D492 -> -302.4788513 | BY51: -882.0876007 | BZ51: -792.6830635 | CA51: -525.0481644 | CC51: -408.402092 | CD51: -691.3260193 | CE51: -654.098793 | CF51: -163.0547752 | CG51: 281.4259682 | CH51: 27.89416504 | CI51: -972.0959473 | CK51: 1961 | CL51: =E481 -> -220.1147003 | CM51: =E482 -> -222.6316528 | CN51: =E483 -> -268.71875 | CO51: =E484 -> -132.0528412 | CP51: =E485 -> -16.52490616 | CQ51: =E486 -> -32.02791977 | CR51: =E487 -> -31.21127701 | CS51: =E488 -> 160.579071 | CT51: =E489 -> 233.004364 | CU51: =E490 -> 162.568512 | CV51: =E491 -> -43.29115295 | CW51: =E492 -> -297.8939819 | CY51: -837.7492256 | CZ51: -686.4236221 | DA51: -708.3152351 | DC51: -671.9560699 | DD51: -716.2915192 | DE51: -843.5179443 | DF51: -417.2964973 | DG51: 330.3442383 | DH51: 54.38774109 | DI51: -915.1750031 | DK51: 1961 | DL51: =F481 ->  | DM51: =F482 ->  | DN51: =F483 ->  | DO51: =F484 ->  | DP51: =F485 ->  | DQ51: =F486 ->  | DR51: =F487 ->  | DS51: =F488 ->  | DT51: =F489 ->  | DU51: =F490 ->  | DV51: =F491 ->  | DW51: =F492 ->  | EK51: 1961 | EL51: =G481 ->  | EM51: =G482 ->  | EN51: =G483 ->  | EO51: =G484 ->  | EP51: =G485 ->  | EQ51: =G486 ->  | ER51: =G487 ->  | ES51: =G488 ->  | ET51: =G489 ->  | EU51: =G490 ->  | EV51: =G491 ->  | EW51: =G492 -> 
A52: 1925-01-31 | B52: =INDIRECT(CONCATENATE("'",B$1,"'!",B$4,(YEAR($A52)-1921)*12+MONTH($A52)+3+IF(ISNUMBER(FIND("PRV",B$6)),1,0)))*IF(AND(B$3>0,TRIM(B$9)="CFS"),Conversions!$C52,1) -> -108.0738831 | C52: =INDIRECT(CONCATENATE("'",C$1,"'!",C$4,(YEAR($A52)-1921)*12+MONTH($A52)+3+IF(ISNUMBER(FIND("PRV",C$6)),1,0)))*IF(AND(C$3>0,TRIM(C$9)="CFS"),Conversions!$C52,1) -> -106.9509506 | D52: =INDIRECT(CONCATENATE("'",D$1,"'!",D$4,(YEAR($A52)-1921)*12+MONTH($A52)+3+IF(ISNUMBER(FIND("PRV",D$6)),1,0)))*IF(AND(D$3>0,TRIM(D$9)="CFS"),Conversions!$C52,1) -> -107.8546448 | E52: =INDIRECT(CONCATENATE("'",E$1,"'!",E$4,(YEAR($A52)-1921)*12+MONTH($A52)+3+IF(ISNUMBER(FIND("PRV",E$6)),1,0)))*IF(AND(E$3>0,TRIM(E$9)="CFS"),Conversions!$C52,1) -> -110.4392319 | F52: =INDIRECT(CONCATENATE("'",F$1,"'!",F$4,(YEAR($A52)-1921)*12+MONTH($A52)+3+IF(ISNUMBER(FIND("PRV",F$6)),1,0)))*IF(AND(F$3>0,TRIM(F$9)="CFS"),Conversions!$C52,1) ->  | G52: =INDIRECT(CONCATENATE("'",G$1,"'!",G$4,(YEAR($A52)-1921)*12+MONTH($A52)+3+IF(ISNUMBER(FIND("PRV",G$6)),1,0)))*IF(AND(G$3>0,TRIM(G$9)="CFS"),Conversions!$C52,1) ->  | K52: 1962 | L52: =B493 -> -136.787384 | M52: =B494 -> -165.857193 | N52: =B495 -> -227.380188 | O52: =B496 -> -109.5480194 | P52: =B497 -> 161.0750275 | Q52: =B498 -> -161.241806 | R52: =B499 -> -136.3887024 | S52: =B500 -> 97.96662903 | T52: =B501 -> 140.7254028 | U52: =B502 -> 287.427002 | V52: =B503 -> -27.78628922 | W52: =B504 -> -331.4783936 | Y52: -1083.163059 | Z52: -967.3517036 | AA52: -609.2739143 | AC52: -502.952179 | AD52: -759.7594643 | AE52: -639.5727844 | AF52: -175.8531799 | AG52: -58.93847656 | AH52: 68.88772202 | AI52: -1146.140259 | AK52: 1962 | AL52: =C493 -> -324.7210693 | AM52: =C494 -> -366.0333252 | AN52: =C495 -> -227.5373535 | AO52: =C496 -> -110.4581299 | AP52: =C497 -> 115.2381744 | AQ52: =C498 -> -182.0558624 | AR52: =C499 -> -136.0652161 | AS52: =C500 -> 98.45426941 | AT52: =C501 -> 138.2789307 | AU52: =C502 -> 272.342804 | AV52: =C503 -> -19.81880951 | AW52: =C504 -> -309.0315247 | AY52: -1267.485329 | AZ52: -1168.884651 | BA52: -1051.407112 | BC52: -770.8464966 | BD52: -797.1253891 | BE52: -1028.749878 | BF52: -222.757309 | BG52: -81.38787842 | BH52: 81.77140045 | BI52: -1206.60379 | BK52: 1962 | BL52: =D493 -> -340.605957 | BM52: =D494 -> -329.0111389 | BN52: =D495 -> -236.7524872 | BO52: =D496 -> -106.071907 | BP52: =D497 -> 134.820694 | BQ52: =D498 -> -174.7198486 | BR52: =D499 -> -131.3401642 | BS52: =D500 -> 101.439743 | BT52: =D501 -> 143.8412628 | BU52: =D502 -> 283.336853 | BV52: =D503 -> -8.70587635 | BW52: =D504 -> -296.1092834 | BY52: -1141.919339 | BZ52: -1098.970433 | CA52: -959.8781099 | CC52: -711.7346878 | CD52: -751.0491381 | CE52: -1012.44149 | CF52: -208.0037003 | CG52: -60.77900696 | CH52: 122.362956 | CI52: -1160.820801 | CK52: 1962 | CL52: =E493 -> -375.1063843 | CM52: =E494 -> -242.1746368 | CN52: =E495 -> -223.6180725 | CO52: =E496 -> -117.0119324 | CP52: =E497 -> 119.7597885 | CQ52: =E498 -> -178.146286 | CR52: =E499 -> -133.7918091 | CS52: =E500 -> 90.10890198 | CT52: =E501 -> 121.9695892 | CU52: =E502 -> 289.2712402 | CV52: =E503 -> -21.04706573 | CW52: =E504 -> -289.2308044 | CY52: -1233.773682 | CZ52: -1141.873207 | DA52: -959.0174713 | DC52: -641.1911392 | DD52: -762.2275772 | DE52: -957.911026 | DF52: -220.8702164 | DG52: -99.85960388 | DH52: 100.9629593 | DI52: -1172.049805 | DK52: 1962 | DL52: =F493 ->  | DM52: =F494 ->  | DN52: =F495 ->  | DO52: =F496 ->  | DP52: =F497 ->  | DQ52: =F498 ->  | DR52: =F499 ->  | DS52: =F500 ->  | DT52: =F501 ->  | DU52: =F502 ->  | DV52: =F503 ->  | DW52: =F504 ->  | EK52: 1962 | EL52: =G493 ->  | EM52: =G494 ->  | EN52: =G495 ->  | EO52: =G496 ->  | EP52: =G497 ->  | EQ52: =G498 ->  | ER52: =G499 ->  | ES52: =G500 ->  | ET52: =G501 ->  | EU52: =G502 ->  | EV52: =G503 ->  | EW52: =G504 -> 
A53: 1925-02-28 | B53: =INDIRECT(CONCATENATE("'",B$1,"'!",B$4,(YEAR($A53)-1921)*12+MONTH($A53)+3+IF(ISNUMBER(FIND("PRV",B$6)),1,0)))*IF(AND(B$3>0,TRIM(B$9)="CFS"),Conversions!$C53,1) -> -29.63918877 | C53: =INDIRECT(CONCATENATE("'",C$1,"'!",C$4,(YEAR($A53)-1921)*12+MONTH($A53)+3+IF(ISNUMBER(FIND("PRV",C$6)),1,0)))*IF(AND(C$3>0,TRIM(C$9)="CFS"),Conversions!$C53,1) -> -72.6239624 | D53: =INDIRECT(CONCATENATE("'",D$1,"'!",D$4,(YEAR($A53)-1921)*12+MONTH($A53)+3+IF(ISNUMBER(FIND("PRV",D$6)),1,0)))*IF(AND(D$3>0,TRIM(D$9)="CFS"),Conversions!$C53,1) -> -72.68035889 | E53: =INDIRECT(CONCATENATE("'",E$1,"'!",E$4,(YEAR($A53)-1921)*12+MONTH($A53)+3+IF(ISNUMBER(FIND("PRV",E$6)),1,0)))*IF(AND(E$3>0,TRIM(E$9)="CFS"),Conversions!$C53,1) -> -69.57138062 | F53: =INDIRECT(CONCATENATE("'",F$1,"'!",F$4,(YEAR($A53)-1921)*12+MONTH($A53)+3+IF(ISNUMBER(FIND("PRV",F$6)),1,0)))*IF(AND(F$3>0,TRIM(F$9)="CFS"),Conversions!$C53,1) ->  | G53: =INDIRECT(CONCATENATE("'",G$1,"'!",G$4,(YEAR($A53)-1921)*12+MONTH($A53)+3+IF(ISNUMBER(FIND("PRV",G$6)),1,0)))*IF(AND(G$3>0,TRIM(G$9)="CFS"),Conversions!$C53,1) ->  | K53: 1963 | L53: =B505 -> -400.4947815 | M53: =B506 -> -414.1670837 | N53: =B507 -> -189.2520447 | O53: =B508 -> -139.3921356 | P53: =B509 -> 306.7304993 | Q53: =B510 -> 175.4685669 | R53: =B511 -> 761.2635498 | S53: =B512 -> 224.9154205 | T53: =B513 -> 124.4796295 | U53: =B514 -> 322.0543213 | V53: =B515 -> 115.4794922 | W53: =B516 -> 87.42627716 | Y53: 1298.821938 | Z53: 936.3921967 | AA53: 974.5117111 | AC53: -260.6121979 | AD53: -33.7158432 | AE53: -1143.306046 | AF53: -21.91368103 | AG53: 1286.127167 | AH53: 649.4397202 | AI53: -262.3396988 | AK53: 1963 | AL53: =C505 -> -468.2750549 | AM53: =C506 -> -429.2972107 | AN53: =C507 -> -236.797699 | AO53: =C508 -> -149.0229797 | AP53: =C509 -> 252.4037018 | AQ53: =C510 -> 163.3726501 | AR53: =C511 -> 671.1679688 | AS53: =C512 -> 226.1809845 | AT53: =C513 -> 128.3598785 | AU53: =C514 -> 323.723114 | AV53: =C515 -> 124.011673 | AW53: =C516 -> 95.246315 | AY53: 1123.751381 | AZ53: 822.4114532 | BA53: 701.0733414 | BC53: -399.3415375 | BD53: -11.66274261 | BE53: -1283.392944 | BF53: -133.4169769 | BG53: 1189.081482 | BH53: 671.3409805 | BI53: -285.5281906 | BK53: 1963 | BL53: =D505 -> -446.2339783 | BM53: =D506 -> -418.4775391 | BN53: =D507 -> -223.699295 | BO53: =D508 -> -169.6855164 | BP53: =D509 -> 241.3832092 | BQ53: =D510 -> 159.5371552 | BR53: =D511 -> 675.4855957 | BS53: =D512 -> 226.5999908 | BT53: =D513 -> 131.3242188 | BU53: =D514 -> 323.8604736 | BV53: =D515 -> 129.8100433 | BW53: =D516 -> 95.07343292 | BY53: 1099.217705 | BZ53: 828.3179779 | CA53: 724.9777908 | CC53: -410.9419861 | CD53: -10.38063812 | CE53: -1258.096329 | CF53: -152.0016022 | CG53: 1192.94696 | CH53: 680.0681686 | CI53: -288.0302353 | CK53: 1963 | CL53: =E505 -> -451.949707 | CM53: =E506 -> -430.8692932 | CN53: =E507 -> -232.8363037 | CO53: =E508 -> -148.8271179 | CP53: =E509 -> 243.4754486 | CQ53: =E510 -> 163.4087067 | CR53: =E511 -> 677.5507812 | CS53: =E512 -> 225.0687408 | CT53: =E513 -> 128.5274506 | CU53: =E514 -> 322.991272 | CV53: =E515 -> 128.7055054 | CW53: =E516 -> 94.01066589 | CY53: 1119.035736 | CZ53: 824.6301346 | DA53: 719.2561493 | DC53: -405.6485596 | DD53: -13.87689209 | DE53: -1264.482422 | DF53: -138.187973 | DG53: 1194.555679 | DH53: 674.2348938 | DI53: -289.3115845 | DK53: 1963 | DL53: =F505 ->  | DM53: =F506 ->  | DN53: =F507 ->  | DO53: =F508 ->  | DP53: =F509 ->  | DQ53: =F510 ->  | DR53: =F511 ->  | DS53: =F512 ->  | DT53: =F513 ->  | DU53: =F514 ->  | DV53: =F515 ->  | DW53: =F516 ->  | EK53: 1963 | EL53: =G505 ->  | EM53: =G506 ->  | EN53: =G507 ->  | EO53: =G508 ->  | EP53: =G509 ->  | EQ53: =G510 ->  | ER53: =G511 ->  | ES53: =G512 ->  | ET53: =G513 ->  | EU53: =G514 ->  | EV53: =G515 ->  | EW53: =G516 -> 
A54: 1925-03-31 | B54: =INDIRECT(CONCATENATE("'",B$1,"'!",B$4,(YEAR($A54)-1921)*12+MONTH($A54)+3+IF(ISNUMBER(FIND("PRV",B$6)),1,0)))*IF(AND(B$3>0,TRIM(B$9)="CFS"),Conversions!$C54,1) -> -70.6772995 | C54: =INDIRECT(CONCATENATE("'",C$1,"'!",C$4,(YEAR($A54)-1921)*12+MONTH($A54)+3+IF(ISNUMBER(FIND("PRV",C$6)),1,0)))*IF(AND(C$3>0,TRIM(C$9)="CFS"),Conversions!$C54,1) -> -72.40032959 | D54: =INDIRECT(CONCATENATE("'",D$1,"'!",D$4,(YEAR($A54)-1921)*12+MONTH($A54)+3+IF(ISNUMBER(FIND("PRV",D$6)),1,0)))*IF(AND(D$3>0,TRIM(D$9)="CFS"),Conversions!$C54,1) -> -72.70723724 | E54: =INDIRECT(CONCATENATE("'",E$1,"'!",E$4,(YEAR($A54)-1921)*12+MONTH($A54)+3+IF(ISNUMBER(FIND("PRV",E$6)),1,0)))*IF(AND(E$3>0,TRIM(E$9)="CFS"),Conversions!$C54,1) -> -70.57151031 | F54: =INDIRECT(CONCATENATE("'",F$1,"'!",F$4,(YEAR($A54)-1921)*12+MONTH($A54)+3+IF(ISNUMBER(FIND("PRV",F$6)),1,0)))*IF(AND(F$3>0,TRIM(F$9)="CFS"),Conversions!$C54,1) ->  | G54: =INDIRECT(CONCATENATE("'",G$1,"'!",G$4,(YEAR($A54)-1921)*12+MONTH($A54)+3+IF(ISNUMBER(FIND("PRV",G$6)),1,0)))*IF(AND(G$3>0,TRIM(G$9)="CFS"),Conversions!$C54,1) ->  | K54: 1964 | L54: =B517 -> -236.6216125 | M54: =B518 -> -113.1443634 | N54: =B519 -> -329.8377075 | O54: =B520 -> -94.86579132 | P54: =B521 -> -100.2255859 | Q54: =B522 -> -109.9221954 | R54: =B523 -> 46.15958023 | S54: =B524 -> 158.8881989 | T54: =B525 -> 228.5367126 | U54: =B526 -> 285.8523254 | V54: =B527 -> -14.84680271 | W54: =B528 -> -230.8899536 | Y54: -81.68364429 | Z54: 825.4628325 | AA54: -510.9171953 | AC54: -747.9956436 | AD54: -498.6218119 | AE54: -774.4694748 | AF54: -524.9290848 | AG54: 323.6622963 | AH54: 268.6522818 | AI54: -734.4516907 | AK54: 1964 | AL54: =C517 -> -230.9207306 | AM54: =C518 -> -149.853775 | AN54: =C519 -> -330.9174194 | AO54: =C520 -> -97.24694061 | AP54: =C521 -> -100.712265 | AQ54: =C522 -> -110.818634 | AR54: =C523 -> 47.22989655 | AS54: =C524 -> 160.3592682 | AT54: =C525 -> 221.3872528 | AU54: =C526 -> 279.2243652 | AV54: =C527 -> -52.00004196 | AW54: =C528 -> -332.2075806 | AY54: -477.2309685 | AZ54: 353.7208366 | BA54: -696.4766045 | BC54: -789.5490341 | BD54: -804.0232964 | BE54: -808.9388657 | BF54: -528.8766251 | BG54: 318.1577835 | BH54: 116.4039955 | BI54: -1041.01413 | BK54: 1964 | BL54: =D517 -> -235.2641144 | BM54: =D518 -> -147.8395538 | BN54: =D519 -> -331.0672302 | BO54: =D520 -> -98.54447174 | BP54: =D521 -> -100.6575623 | BQ54: =D522 -> -111.0204773 | BR54: =D523 -> 39.38725662 | BS54: =D524 -> 155.657959 | BT54: =D525 -> 222.9118805 | BU54: =D526 -> 279.1831665 | BV54: =D527 -> -54.68221283 | BW54: =D528 -> -334.2113647 | BY54: -473.3360558 | BZ54: 432.2031746 | CA54: -716.1467247 | CC54: -789.1292953 | CD54: -809.3078232 | CE54: -812.7153702 | CF54: -530.2692642 | CG54: 306.9366188 | CH54: 113.2014694 | CI54: -1021.931824 | CK54: 1964 | CL54: =E517 -> -236.5930634 | CM54: =E518 -> -146.729187 | CN54: =E519 -> -332.5534668 | CO54: =E520 -> -99.17698669 | CP54: =E521 -> -100.5802841 | CQ54: =E522 -> -110.6933289 | CR54: =E523 -> 39.49057007 | CS54: =E524 -> 144.0308533 | CT54: =E525 -> 207.160141 | CU54: =E526 -> 276.2927551 | CV54: =E527 -> -52.4016037 | CW54: =E528 -> -334.3865356 | CY54: -504.7206116 | CZ54: 318.6389542 | DA54: -746.1401367 | DC54: -789.7332535 | DD54: -750.1037216 | DE54: -815.0527039 | DF54: -532.3107376 | DG54: 279.9882355 | DH54: 96.66475677 | DI54: -1023.446259 | DK54: 1964 | DL54: =F517 ->  | DM54: =F518 ->  | DN54: =F519 ->  | DO54: =F520 ->  | DP54: =F521 ->  | DQ54: =F522 ->  | DR54: =F523 ->  | DS54: =F524 ->  | DT54: =F525 ->  | DU54: =F526 ->  | DV54: =F527 ->  | DW54: =F528 ->  | EK54: 1964 | EL54: =G517 ->  | EM54: =G518 ->  | EN54: =G519 ->  | EO54: =G520 ->  | EP54: =G521 ->  | EQ54: =G522 ->  | ER54: =G523 ->  | ES54: =G524 ->  | ET54: =G525 ->  | EU54: =G526 ->  | EV54: =G527 ->  | EW54: =G528 -> 
A55: 1925-04-30 | B55: =INDIRECT(CONCATENATE("'",B$1,"'!",B$4,(YEAR($A55)-1921)*12+MONTH($A55)+3+IF(ISNUMBER(FIND("PRV",B$6)),1,0)))*IF(AND(B$3>0,TRIM(B$9)="CFS"),Conversions!$C55,1) -> -9.203357697 | C55: =INDIRECT(CONCATENATE("'",C$1,"'!",C$4,(YEAR($A55)-1921)*12+MONTH($A55)+3+IF(ISNUMBER(FIND("PRV",C$6)),1,0)))*IF(AND(C$3>0,TRIM(C$9)="CFS"),Conversions!$C55,1) -> -7.306940556 | D55: =INDIRECT(CONCATENATE("'",D$1,"'!",D$4,(YEAR($A55)-1921)*12+MONTH($A55)+3+IF(ISNUMBER(FIND("PRV",D$6)),1,0)))*IF(AND(D$3>0,TRIM(D$9)="CFS"),Conversions!$C55,1) -> -7.496653557 | E55: =INDIRECT(CONCATENATE("'",E$1,"'!",E$4,(YEAR($A55)-1921)*12+MONTH($A55)+3+IF(ISNUMBER(FIND("PRV",E$6)),1,0)))*IF(AND(E$3>0,TRIM(E$9)="CFS"),Conversions!$C55,1) -> -2.417950392 | F55: =INDIRECT(CONCATENATE("'",F$1,"'!",F$4,(YEAR($A55)-1921)*12+MONTH($A55)+3+IF(ISNUMBER(FIND("PRV",F$6)),1,0)))*IF(AND(F$3>0,TRIM(F$9)="CFS"),Conversions!$C55,1) ->  | G55: =INDIRECT(CONCATENATE("'",G$1,"'!",G$4,(YEAR($A55)-1921)*12+MONTH($A55)+3+IF(ISNUMBER(FIND("PRV",G$6)),1,0)))*IF(AND(G$3>0,TRIM(G$9)="CFS"),Conversions!$C55,1) ->  | K55: 1965 | L55: =B529 -> -252.8850555 | M55: =B530 -> -250.6766815 | N55: =B531 -> 253.1916046 | O55: =B532 -> 841.4486084 | P55: =B533 -> -129.3935089 | Q55: =B534 -> -14.27836037 | R55: =B535 -> 225.5784454 | S55: =B536 -> 299.8384094 | T55: =B537 -> 138.8074341 | U55: =B538 -> 390.5762634 | V55: =B539 -> 93.80516815 | W55: =B540 -> 147.4167023 | Y55: 1259.246115 | Z55: 89.12792015 | AA55: 1743.429029 | AC55: 700.2916622 | AD55: 184.2693481 | AE55: 591.078476 | AF55: 965.2467041 | AG55: 649.9459286 | AH55: 770.6055679 | AI55: -103.6163559 | AK55: 1965 | AL55: =C529 -> -419.8156738 | AM55: =C530 -> -288.9908752 | AN55: =C531 -> 216.36026 | AO55: =C532 -> 768.6618652 | AP55: =C533 -> -135.6692657 | AQ55: =C534 -> -13.02228546 | AR55: =C535 -> 150.7101898 | AS55: =C536 -> 298.3046875 | AT55: =C537 -> 140.6490326 | AU55: =C538 -> 387.6020508 | AV55: =C539 -> 105.8756561 | AW55: =C540 -> 144.5594482 | AY55: 1095.708904 | AZ55: -15.17282486 | BA55: 1355.22509 | BC55: 547.3396988 | BD55: 200.4752541 | BE55: 276.2155762 | BF55: 849.3528595 | BG55: 576.6416245 | BH55: 778.6861877 | BI55: -124.0642815 | BK55: 1965 | BL55: =D529 -> -420.4142456 | BM55: =D530 -> -267.3062134 | BN55: =D531 -> 216.3602295 | BO55: =D532 -> 811.8434448 | BP55: =D533 -> -105.5062485 | BQ55: =D534 -> -4.196376801 | BR55: =D535 -> 155.0294189 | BS55: =D536 -> 334.9015808 | BT55: =D537 -> 141.4299469 | BU55: =D538 -> 384.5251465 | BV55: =D539 -> 111.0585327 | BW55: =D540 -> 142.0793152 | BY55: 1194.413059 | BZ55: -74.17937088 | CA55: 1499.804531 | CC55: 651.1948357 | CD55: 195.7320175 | CE55: 340.4832153 | CF55: 922.6974258 | CG55: 627.1645699 | CH55: 779.0929413 | CI55: -152.1975937 | CK55: 1965 | CL55: =E529 -> -363.3155823 | CM55: =E530 -> -325.7441406 | CN55: =E531 -> 214.6035309 | CO55: =E532 -> 761.5219116 | CP55: =E533 -> -137.9196167 | CQ55: =E534 -> -13.99177742 | CR55: =E535 -> 157.6550293 | CS55: =E536 -> 303.6903992 | CT55: =E537 -> 148.2038116 | CU55: =E538 -> 388.302887 | CV55: =E539 -> 111.2281723 | CW55: =E540 -> 149.3314819 | CY55: 1109.374113 | CZ55: -73.63386726 | DA55: 1393.566107 | DC55: 498.4699078 | DD55: 200.9602203 | DE55: 287.0657196 | DF55: 838.2058258 | DG55: 595.5574627 | DH55: 797.0663528 | DI55: -126.6794968 | DK55: 1965 | DL55: =F529 ->  | DM55: =F530 ->  | DN55: =F531 ->  | DO55: =F532 ->  | DP55: =F533 ->  | DQ55: =F534 ->  | DR55: =F535 ->  | DS55: =F536 ->  | DT55: =F537 ->  | DU55: =F538 ->  | DV55: =F539 ->  | DW55: =F540 ->  | EK55: 1965 | EL55: =G529 ->  | EM55: =G530 ->  | EN55: =G531 ->  | EO55: =G532 ->  | EP55: =G533 ->  | EQ55: =G534 ->  | ER55: =G535 ->  | ES55: =G536 ->  | ET55: =G537 ->  | EU55: =G538 ->  | EV55: =G539 ->  | EW55: =G540 -> 
